Workbook

Sheet Interface KRW-tool Waterplanten
A1: Ontwerp-tool waterplanten Rijntakken | F1: Handleiding citeren als: Van Geest et al. (2019) Handleiding Ontwerp-tool waterplanten Rijntakken, versie 3.0; rapport Deltares.
A2: versie 3.0 d.d. 23 december 2019 | F2: Instructie:
A3: Locatie | F3: Deze tool bepaalt de kans op vestiging van waterplanten op een locatie langs de Rijntakken bij verschillende typen maatregelen. Doorloop daarbij de volgende stappen:
A4: Riviertak | B4: Bovenrijn/Waal | F4: Stap 1: Specificeer de Riviertak van de locatie.
A5: Begin riviertak | B5: =VLOOKUP($B$4,MinMaxRivierKm!A2:C4,2,FALSE) -> 854 | C5: km | F5: De tool zoekt het begin en het einde van de riviertak op.
A6: Eind riviertak | B6: =VLOOKUP($B$4,MinMaxRivierKm!A2:C4,3,FALSE) -> 952 | C6: km | H6: Legenda:
A7: Rivierkm | B7: 860 | C7: km | F7: Stap 2: Geef de Rivierkm van de locatie (tussen begin en eind van de riviertak). | H7: veld kan/moet worden ingevuld
A8: minimale waterstand in de jaren 1998 t/m 2017 | B8: =ROUND(MIN(Waterstand_obv_Lobith!J2:J11202),0) -> 716 | C8: cm NAP | F8: De tool berekent de minimale en maximale waterstand op de locatie op basis van de | H8: veld wordt berekend op basis van andere velden
A9: maximale waterstand in de jaren 1998 t/m 2017 | B9: =ROUND(MAX(Waterstand_obv_Lobith!J2:J11202),0) -> 1720 | C9: cm NAP | F9: waterstand bij Lobith en de verhanglijnen van Rijkswaterstaat uit 2018.
A11: ondergrens realistische bodemhoogte | B11: =ROUND(B8,-1)-250 -> 470 | C11: cm NAP | F11: De tool kiest een range voor bodemhoogte waarvoor de kans op waterplanten wordt bepaald.
A12: bovengrens realistische bodemhoogte | B12: =ROUND(B9,-1) -> 1720 | C12: cm NAP | F12: De range is breed gekozen en zo dat het optimum er altijd binnen ligt.
F13: Buiten deze range is de kans op waterplanten nihil.
A15: variant Geul, Hoofdstroom of Aangetakte Strang | B15: Geul | F15: Voor een geul / hoofdstroom / aangetakte strang is geen verdere invoer nodig.
A17: variant Uiterwaardplas | B17: Plas A | C17: Plas B | F17: Stappen 6-11: Vul de gegevens voor twee soorten plassen in.
A18: naam | B18: jonge plas | C18: oude plas | F18: Stap 6: Kies namen voor de mogelijke plassen.
A19: oppervlak | B19: 0.2 | C19: 5 | D19: ha | F19: Stap 7: Vul de grootte van de plassen in.
A20: leeftijd | B20: 50 | C20: 200 | D20: jaar | F20: Stap 8: Vul de leeftijd van de plassen in.
A21: afstand tot de rivier | B21: 600 | C21: 600 | D21: m | F21: Stap 9: Vul in wat de afstand is tot de rivier.
A22: samenstelling bodem | B22: 1 zand | C22: 1 zand | F22: Stap 10: Selecteer een bodemtype.
A23: hoogte zomerkade / drempel naar rivier | B23: 550 | C23: 550 | D23: cm NAP | F23: Stap 11: Bepaal de hoogte van het laagste obstakel tussen rivier en plas.
A24: overstromingsdagen/jaar | B24: =Waterstand_obv_Lobith!AI50 -> 365.25 | C24: =Waterstand_obv_Lobith!AJ50 -> 365.25 | D24: dagen/jaar | F24: De tool berekent het aantal overstromingsdagen op basis van de hoogte van het obstakel.
A25: overstromingsklasse | B25: =VLOOKUP(B24,Overstromingsklasse!A2:C6,3) -> 5 (>150 dg/jr) | C25: =VLOOKUP(C24,Overstromingsklasse!A2:C6,3) -> 5 (>150 dg/jr) | D25: klasse | F25: De overstromingsklasse is een indeling op basis van overstromingsdagen.
A27: Resultaat berekening: | F27: Stap 12: De tool berekent voor verschillende bodemhoogtes de kans op vestiging
F28: van waterplanten in de varianten geul en plassen A en B.
F29: Het resultaat is weergegeven in twee figuren. Daar kan gekozen worden voor diverse soorten of groeivormen van (water)planten.
A30: Bekijk voor de geul een plantensoort:
A31: Helofyten | F31: Disclaimer:
F32: Voor de berekening wordt uitgegaan van:
F33: 1. de waterstand bij Lobith in de periode 1998-2017
F34: 2. de rivier-verhanglijnen van Rijkswaterstaat van 1 november 2018.
F35: De onderliggende modellen zijn gebaseerd op gegevens van Deltares
F36: verzameld in de periode 1998-2018 en MWTL-gegevens van waterplanten uit 1997-2015.
F43: Gele plomp (Nuphar lutea)
F44: Rivierfonteinkruid (Potamogeton nodosus)
F45: Schedefonteinkruid (Potamogeton pectinatus)
F46: Riet (Phragmites australis)
F47: Ondergedoken
F48: Drijvend
F49: Helofyten
A57: Bekijk voor de plassen een plantensoort:
A58: Ondergedoken
F70: Gewoon kransblad (Chara vulgaris)
F71: Gele plomp (Nuphar lutea)
F72: Watergentiaan (Nymphoides peltata)
F73: Glanzig fonteinkruid (Potamogeton lucens)
F74: Ondergedoken
F75: Drijvend
F76: Droogvalpercentage

Sheet Tabel resultaten
A1: bodemhoogte (cm tov NAP) | C1: ='Interface KRW-tool Waterplanten'!$B$11 -> 470 | D1: =C1+10 -> 480 | E1: =D1+10 -> 490 | F1: 500 | G1: 510 | H1: 520 | I1: 530 | J1: 540 | K1: 550 | L1: 560 | M1: 570 | N1: 580 | O1: 590 | P1: 600 | Q1: 610 | R1: 620 | S1: 630 | T1: 640 | U1: 650 | V1: 660 | W1: 670 | X1: 680 | Y1: 690 | Z1: 700 | AA1: 710 | AB1: 720 | AC1: 730 | AD1: 740 | AE1: 750 | AF1: 760 | AG1: 770 | AH1: 780 | AI1: 790 | AJ1: =AI1+10 -> 800 | AK1: 810 | AL1: 820 | AM1: 830 | AN1: 840 | AO1: 850 | AP1: 860 | AQ1: 870 | AR1: 880 | AS1: 890 | AT1: 900 | AU1: 910 | AV1: 920 | AW1: 930 | AX1: 940 | AY1: 950 | AZ1: 960 | BA1: 970 | BB1: 980 | BC1: 990 | BD1: 1000 | BE1: 1010 | BF1: 1020 | BG1: 1030 | BH1: 1040 | BI1: 1050 | BJ1: 1060 | BK1: 1070 | BL1: 1080 | BM1: 1090 | BN1: 1100 | BO1: 1110 | BP1: 1120 | BQ1: 1130 | BR1: 1140 | BS1: 1150 | BT1: 1160
A3: ='Interface KRW-tool Waterplanten'!$B$15 -> Geul
A4: Submers | B4: =CONCATENATE($A$3," - ",A4) -> Geul - Submers | C4: ='Geul-Submers'!D51 -> 0 | D4: ='Geul-Submers'!E51 -> 0 | E4: ='Geul-Submers'!F51 -> 0 | F4: ='Geul-Submers'!G51 -> 0 | G4: ='Geul-Submers'!H51 -> 0 | H4: ='Geul-Submers'!I51 -> 0 | I4: ='Geul-Submers'!J51 -> 0 | J4: ='Geul-Submers'!K51 -> 0 | K4: ='Geul-Submers'!L51 -> 0 | L4: ='Geul-Submers'!M51 -> 0 | M4: ='Geul-Submers'!N51 -> 0 | N4: ='Geul-Submers'!O51 -> 0 | O4: ='Geul-Submers'!P51 -> 0 | P4: ='Geul-Submers'!Q51 -> 0 | Q4: ='Geul-Submers'!R51 -> 0 | R4: ='Geul-Submers'!S51 -> 0 | S4: ='Geul-Submers'!T51 -> 0 | T4: ='Geul-Submers'!U51 -> 0 | U4: ='Geul-Submers'!V51 -> 0 | V4: ='Geul-Submers'!W51 -> 0 | W4: ='Geul-Submers'!X51 -> 0 | X4: ='Geul-Submers'!Y51 -> 0 | Y4: ='Geul-Submers'!Z51 -> 0 | Z4: ='Geul-Submers'!AA51 -> 0 | AA4: ='Geul-Submers'!AB51 -> 0 | AB4: ='Geul-Submers'!AC51 -> 0 | AC4: ='Geul-Submers'!AD51 -> 0 | AD4: ='Geul-Submers'!AE51 -> 0 | AE4: ='Geul-Submers'!AF51 -> 0 | AF4: ='Geul-Submers'!AG51 -> 0 | AG4: ='Geul-Submers'!AH51 -> 0 | AH4: ='Geul-Submers'!AI51 -> 0 | AI4: ='Geul-Submers'!AJ51 -> 0 | AJ4: ='Geul-Submers'!AK51 -> 0 | AK4: ='Geul-Submers'!AL51 -> 0 | AL4: ='Geul-Submers'!AM51 -> 0 | AM4: ='Geul-Submers'!AN51 -> 0 | AN4: ='Geul-Submers'!AO51 -> 0 | AO4: ='Geul-Submers'!AP51 -> 0 | AP4: ='Geul-Submers'!AQ51 -> 0 | AQ4: ='Geul-Submers'!AR51 -> 0 | AR4: ='Geul-Submers'!AS51 -> 0 | AS4: ='Geul-Submers'!AT51 -> 0 | AT4: ='Geul-Submers'!AU51 -> 0 | AU4: ='Geul-Submers'!AV51 -> 0 | AV4: ='Geul-Submers'!AW51 -> 0 | AW4: ='Geul-Submers'!AX51 -> 0 | AX4: ='Geul-Submers'!AY51 -> 0 | AY4: ='Geul-Submers'!AZ51 -> 0 | AZ4: ='Geul-Submers'!BA51 -> 0 | BA4: ='Geul-Submers'!BB51 -> 0 | BB4: ='Geul-Submers'!BC51 -> 0 | BC4: ='Geul-Submers'!BD51 -> 0 | BD4: ='Geul-Submers'!BE51 -> 0 | BE4: ='Geul-Submers'!BF51 -> 0 | BF4: ='Geul-Submers'!BG51 -> 0 | BG4: ='Geul-Submers'!BH51 -> 0 | BH4: ='Geul-Submers'!BI51 -> 0 | BI4: ='Geul-Submers'!BJ51 -> 0 | BJ4: ='Geul-Submers'!BK51 -> 0 | BK4: ='Geul-Submers'!BL51 -> 0 | BL4: ='Geul-Submers'!BM51 -> 0 | BM4: ='Geul-Submers'!BN51 -> 0 | BN4: ='Geul-Submers'!BO51 -> 0 | BO4: ='Geul-Submers'!BP51 -> 0 | BP4: ='Geul-Submers'!BQ51 -> 0 | BQ4: ='Geul-Submers'!BR51 -> 0 | BR4: ='Geul-Submers'!BS51 -> 0 | BS4: ='Geul-Submers'!BT51 -> 0 | BT4: ='Geul-Submers'!BU51 -> 0
A5: Drijvend | B5: =CONCATENATE($A$3," - ",A5) -> Geul - Drijvend | C5: ='Geul-Drijvend'!D51 -> 0 | D5: ='Geul-Drijvend'!E51 -> 0 | E5: ='Geul-Drijvend'!F51 -> 0 | F5: ='Geul-Drijvend'!G51 -> 0 | G5: ='Geul-Drijvend'!H51 -> 0 | H5: ='Geul-Drijvend'!I51 -> 0 | I5: ='Geul-Drijvend'!J51 -> 0 | J5: ='Geul-Drijvend'!K51 -> 0 | K5: ='Geul-Drijvend'!L51 -> 0 | L5: ='Geul-Drijvend'!M51 -> 0 | M5: ='Geul-Drijvend'!N51 -> 0 | N5: ='Geul-Drijvend'!O51 -> 0 | O5: ='Geul-Drijvend'!P51 -> 0 | P5: ='Geul-Drijvend'!Q51 -> 0 | Q5: ='Geul-Drijvend'!R51 -> 0 | R5: ='Geul-Drijvend'!S51 -> 0 | S5: ='Geul-Drijvend'!T51 -> 0 | T5: ='Geul-Drijvend'!U51 -> 0 | U5: ='Geul-Drijvend'!V51 -> 0 | V5: ='Geul-Drijvend'!W51 -> 0 | W5: ='Geul-Drijvend'!X51 -> 0 | X5: ='Geul-Drijvend'!Y51 -> 0 | Y5: ='Geul-Drijvend'!Z51 -> 0 | Z5: ='Geul-Drijvend'!AA51 -> 0 | AA5: ='Geul-Drijvend'!AB51 -> 0 | AB5: ='Geul-Drijvend'!AC51 -> 0 | AC5: ='Geul-Drijvend'!AD51 -> 0 | AD5: ='Geul-Drijvend'!AE51 -> 0 | AE5: ='Geul-Drijvend'!AF51 -> 0 | AF5: ='Geul-Drijvend'!AG51 -> 0 | AG5: ='Geul-Drijvend'!AH51 -> 0 | AH5: ='Geul-Drijvend'!AI51 -> 0 | AI5: ='Geul-Drijvend'!AJ51 -> 0 | AJ5: ='Geul-Drijvend'!AK51 -> 0 | AK5: ='Geul-Drijvend'!AL51 -> 0 | AL5: ='Geul-Drijvend'!AM51 -> 0 | AM5: ='Geul-Drijvend'!AN51 -> 0 | AN5: ='Geul-Drijvend'!AO51 -> 0 | AO5: ='Geul-Drijvend'!AP51 -> 0 | AP5: ='Geul-Drijvend'!AQ51 -> 0 | AQ5: ='Geul-Drijvend'!AR51 -> 0 | AR5: ='Geul-Drijvend'!AS51 -> 0 | AS5: ='Geul-Drijvend'!AT51 -> 0 | AT5: ='Geul-Drijvend'!AU51 -> 0 | AU5: ='Geul-Drijvend'!AV51 -> 0 | AV5: ='Geul-Drijvend'!AW51 -> 0 | AW5: ='Geul-Drijvend'!AX51 -> 0 | AX5: ='Geul-Drijvend'!AY51 -> 0 | AY5: ='Geul-Drijvend'!AZ51 -> 0 | AZ5: ='Geul-Drijvend'!BA51 -> 0 | BA5: ='Geul-Drijvend'!BB51 -> 0 | BB5: ='Geul-Drijvend'!BC51 -> 0 | BC5: ='Geul-Drijvend'!BD51 -> 0 | BD5: ='Geul-Drijvend'!BE51 -> 0 | BE5: ='Geul-Drijvend'!BF51 -> 0 | BF5: ='Geul-Drijvend'!BG51 -> 0 | BG5: ='Geul-Drijvend'!BH51 -> 0 | BH5: ='Geul-Drijvend'!BI51 -> 0 | BI5: ='Geul-Drijvend'!BJ51 -> 0 | BJ5: ='Geul-Drijvend'!BK51 -> 0 | BK5: ='Geul-Drijvend'!BL51 -> 0 | BL5: ='Geul-Drijvend'!BM51 -> 0 | BM5: ='Geul-Drijvend'!BN51 -> 0 | BN5: ='Geul-Drijvend'!BO51 -> 0 | BO5: ='Geul-Drijvend'!BP51 -> 0 | BP5: ='Geul-Drijvend'!BQ51 -> 0 | BQ5: ='Geul-Drijvend'!BR51 -> 0 | BR5: ='Geul-Drijvend'!BS51 -> 0 | BS5: ='Geul-Drijvend'!BT51 -> 0 | BT5: ='Geul-Drijvend'!BU51 -> 0
A6: Helofyten | B6: =CONCATENATE($A$3," - ",A6) -> Geul - Helofyten | C6: ='Geul - helofyten'!D51 -> 0 | D6: ='Geul - helofyten'!E51 -> 0 | E6: ='Geul - helofyten'!F51 -> 0 | F6: ='Geul - helofyten'!G51 -> 0 | G6: ='Geul - helofyten'!H51 -> 0 | H6: ='Geul - helofyten'!I51 -> 0 | I6: ='Geul - helofyten'!J51 -> 0 | J6: ='Geul - helofyten'!K51 -> 0 | K6: ='Geul - helofyten'!L51 -> 0 | L6: ='Geul - helofyten'!M51 -> 0 | M6: ='Geul - helofyten'!N51 -> 0 | N6: ='Geul - helofyten'!O51 -> 0 | O6: ='Geul - helofyten'!P51 -> 0 | P6: ='Geul - helofyten'!Q51 -> 0 | Q6: ='Geul - helofyten'!R51 -> 0 | R6: ='Geul - helofyten'!S51 -> 0 | S6: ='Geul - helofyten'!T51 -> 0 | T6: ='Geul - helofyten'!U51 -> 0 | U6: ='Geul - helofyten'!V51 -> 0 | V6: ='Geul - helofyten'!W51 -> 0 | W6: ='Geul - helofyten'!X51 -> 0 | X6: ='Geul - helofyten'!Y51 -> 0 | Y6: ='Geul - helofyten'!Z51 -> 0 | Z6: ='Geul - helofyten'!AA51 -> 0 | AA6: ='Geul - helofyten'!AB51 -> 0 | AB6: ='Geul - helofyten'!AC51 -> 0 | AC6: ='Geul - helofyten'!AD51 -> 0 | AD6: ='Geul - helofyten'!AE51 -> 0 | AE6: ='Geul - helofyten'!AF51 -> 0 | AF6: ='Geul - helofyten'!AG51 -> 0 | AG6: ='Geul - helofyten'!AH51 -> 0 | AH6: ='Geul - helofyten'!AI51 -> 0.2398027918 | AI6: ='Geul - helofyten'!AJ51 -> 0.2659080725 | AJ6: ='Geul - helofyten'!AK51 -> 0.2883258062 | AK6: ='Geul - helofyten'!AL51 -> 0.3069813521 | AL6: ='Geul - helofyten'!AM51 -> 0.3209904598 | AM6: ='Geul - helofyten'!AN51 -> 0.330292766 | AN6: ='Geul - helofyten'!AO51 -> 0.3362192444 | AO6: ='Geul - helofyten'!AP51 -> 0.338434274 | AP6: ='Geul - helofyten'!AQ51 -> 0.3339100549 | AQ6: ='Geul - helofyten'!AR51 -> 0.3241070846 | AR6: ='Geul - helofyten'!AS51 -> 0.3110702517 | AS6: ='Geul - helofyten'!AT51 -> 0.2962224255 | AT6: ='Geul - helofyten'!AU51 -> 0.2773223317 | AU6: ='Geul - helofyten'!AV51 -> 0.2579062329 | AV6: ='Geul - helofyten'!AW51 -> 0.2337047884 | AW6: ='Geul - helofyten'!AX51 -> 0.2062049264 | AX6: ='Geul - helofyten'!AY51 -> 0 | AY6: ='Geul - helofyten'!AZ51 -> 0 | AZ6: ='Geul - helofyten'!BA51 -> 0 | BA6: ='Geul - helofyten'!BB51 -> 0 | BB6: ='Geul - helofyten'!BC51 -> 0 | BC6: ='Geul - helofyten'!BD51 -> 0 | BD6: ='Geul - helofyten'!BE51 -> 0 | BE6: ='Geul - helofyten'!BF51 -> 0 | BF6: ='Geul - helofyten'!BG51 -> 0 | BG6: ='Geul - helofyten'!BH51 -> 0 | BH6: ='Geul - helofyten'!BI51 -> 0 | BI6: ='Geul - helofyten'!BJ51 -> 0 | BJ6: ='Geul - helofyten'!BK51 -> 0 | BK6: ='Geul - helofyten'!BL51 -> 0 | BL6: ='Geul - helofyten'!BM51 -> 0 | BM6: ='Geul - helofyten'!BN51 -> 0 | BN6: ='Geul - helofyten'!BO51 -> 0 | BO6: ='Geul - helofyten'!BP51 -> 0 | BP6: ='Geul - helofyten'!BQ51 -> 0 | BQ6: ='Geul - helofyten'!BR51 -> 0 | BR6: ='Geul - helofyten'!BS51 -> 0 | BS6: ='Geul - helofyten'!BT51 -> 0 | BT6: ='Geul - helofyten'!BU51 -> 0
A7: PotNod | B7: =CONCATENATE($A$3," - ",A7) -> Geul - PotNod | C7: ='Geul-PotNod'!D51 -> 0 | D7: ='Geul-PotNod'!E51 -> 0 | E7: ='Geul-PotNod'!F51 -> 0 | F7: ='Geul-PotNod'!G51 -> 0 | G7: ='Geul-PotNod'!H51 -> 0 | H7: ='Geul-PotNod'!I51 -> 0 | I7: ='Geul-PotNod'!J51 -> 0 | J7: ='Geul-PotNod'!K51 -> 0 | K7: ='Geul-PotNod'!L51 -> 0 | L7: ='Geul-PotNod'!M51 -> 0 | M7: ='Geul-PotNod'!N51 -> 0 | N7: ='Geul-PotNod'!O51 -> 0 | O7: ='Geul-PotNod'!P51 -> 0 | P7: ='Geul-PotNod'!Q51 -> 0 | Q7: ='Geul-PotNod'!R51 -> 0 | R7: ='Geul-PotNod'!S51 -> 0 | S7: ='Geul-PotNod'!T51 -> 0 | T7: ='Geul-PotNod'!U51 -> 0 | U7: ='Geul-PotNod'!V51 -> 0 | V7: ='Geul-PotNod'!W51 -> 0 | W7: ='Geul-PotNod'!X51 -> 0 | X7: ='Geul-PotNod'!Y51 -> 0 | Y7: ='Geul-PotNod'!Z51 -> 0 | Z7: ='Geul-PotNod'!AA51 -> 0 | AA7: ='Geul-PotNod'!AB51 -> 0 | AB7: ='Geul-PotNod'!AC51 -> 0 | AC7: ='Geul-PotNod'!AD51 -> 0 | AD7: ='Geul-PotNod'!AE51 -> 0 | AE7: ='Geul-PotNod'!AF51 -> 0 | AF7: ='Geul-PotNod'!AG51 -> 0 | AG7: ='Geul-PotNod'!AH51 -> 0 | AH7: ='Geul-PotNod'!AI51 -> 0 | AI7: ='Geul-PotNod'!AJ51 -> 0 | AJ7: ='Geul-PotNod'!AK51 -> 0 | AK7: ='Geul-PotNod'!AL51 -> 0 | AL7: ='Geul-PotNod'!AM51 -> 0 | AM7: ='Geul-PotNod'!AN51 -> 0 | AN7: ='Geul-PotNod'!AO51 -> 0 | AO7: ='Geul-PotNod'!AP51 -> 0 | AP7: ='Geul-PotNod'!AQ51 -> 0 | AQ7: ='Geul-PotNod'!AR51 -> 0 | AR7: ='Geul-PotNod'!AS51 -> 0 | AS7: ='Geul-PotNod'!AT51 -> 0 | AT7: ='Geul-PotNod'!AU51 -> 0 | AU7: ='Geul-PotNod'!AV51 -> 0 | AV7: ='Geul-PotNod'!AW51 -> 0 | AW7: ='Geul-PotNod'!AX51 -> 0 | AX7: ='Geul-PotNod'!AY51 -> 0 | AY7: ='Geul-PotNod'!AZ51 -> 0 | AZ7: ='Geul-PotNod'!BA51 -> 0 | BA7: ='Geul-PotNod'!BB51 -> 0 | BB7: ='Geul-PotNod'!BC51 -> 0 | BC7: ='Geul-PotNod'!BD51 -> 0 | BD7: ='Geul-PotNod'!BE51 -> 0 | BE7: ='Geul-PotNod'!BF51 -> 0 | BF7: ='Geul-PotNod'!BG51 -> 0 | BG7: ='Geul-PotNod'!BH51 -> 0 | BH7: ='Geul-PotNod'!BI51 -> 0 | BI7: ='Geul-PotNod'!BJ51 -> 0 | BJ7: ='Geul-PotNod'!BK51 -> 0 | BK7: ='Geul-PotNod'!BL51 -> 0 | BL7: ='Geul-PotNod'!BM51 -> 0 | BM7: ='Geul-PotNod'!BN51 -> 0 | BN7: ='Geul-PotNod'!BO51 -> 0 | BO7: ='Geul-PotNod'!BP51 -> 0 | BP7: ='Geul-PotNod'!BQ51 -> 0 | BQ7: ='Geul-PotNod'!BR51 -> 0 | BR7: ='Geul-PotNod'!BS51 -> 0 | BS7: ='Geul-PotNod'!BT51 -> 0 | BT7: ='Geul-PotNod'!BU51 -> 0
A8: PotPec | B8: Geul - PotPec | C8: ='Geul-PotPec'!D51 -> 0 | D8: ='Geul-PotPec'!E51 -> 0 | E8: ='Geul-PotPec'!F51 -> 0 | F8: ='Geul-PotPec'!G51 -> 0 | G8: ='Geul-PotPec'!H51 -> 0 | H8: ='Geul-PotPec'!I51 -> 0 | I8: ='Geul-PotPec'!J51 -> 0 | J8: ='Geul-PotPec'!K51 -> 0 | K8: ='Geul-PotPec'!L51 -> 0 | L8: ='Geul-PotPec'!M51 -> 0 | M8: ='Geul-PotPec'!N51 -> 0 | N8: ='Geul-PotPec'!O51 -> 0 | O8: ='Geul-PotPec'!P51 -> 0 | P8: ='Geul-PotPec'!Q51 -> 0 | Q8: ='Geul-PotPec'!R51 -> 0 | R8: ='Geul-PotPec'!S51 -> 0 | S8: ='Geul-PotPec'!T51 -> 0 | T8: ='Geul-PotPec'!U51 -> 0 | U8: ='Geul-PotPec'!V51 -> 0 | V8: ='Geul-PotPec'!W51 -> 0 | W8: ='Geul-PotPec'!X51 -> 0 | X8: ='Geul-PotPec'!Y51 -> 0 | Y8: ='Geul-PotPec'!Z51 -> 0 | Z8: ='Geul-PotPec'!AA51 -> 0 | AA8: ='Geul-PotPec'!AB51 -> 0 | AB8: ='Geul-PotPec'!AC51 -> 0 | AC8: ='Geul-PotPec'!AD51 -> 0 | AD8: ='Geul-PotPec'!AE51 -> 0 | AE8: ='Geul-PotPec'!AF51 -> 0 | AF8: ='Geul-PotPec'!AG51 -> 0 | AG8: ='Geul-PotPec'!AH51 -> 0 | AH8: ='Geul-PotPec'!AI51 -> 0 | AI8: ='Geul-PotPec'!AJ51 -> 0 | AJ8: ='Geul-PotPec'!AK51 -> 0 | AK8: ='Geul-PotPec'!AL51 -> 0 | AL8: ='Geul-PotPec'!AM51 -> 0 | AM8: ='Geul-PotPec'!AN51 -> 0 | AN8: ='Geul-PotPec'!AO51 -> 0 | AO8: ='Geul-PotPec'!AP51 -> 0 | AP8: ='Geul-PotPec'!AQ51 -> 0 | AQ8: ='Geul-PotPec'!AR51 -> 0 | AR8: ='Geul-PotPec'!AS51 -> 0 | AS8: ='Geul-PotPec'!AT51 -> 0 | AT8: ='Geul-PotPec'!AU51 -> 0 | AU8: ='Geul-PotPec'!AV51 -> 0 | AV8: ='Geul-PotPec'!AW51 -> 0 | AW8: ='Geul-PotPec'!AX51 -> 0 | AX8: ='Geul-PotPec'!AY51 -> 0 | AY8: ='Geul-PotPec'!AZ51 -> 0 | AZ8: ='Geul-PotPec'!BA51 -> 0 | BA8: ='Geul-PotPec'!BB51 -> 0 | BB8: ='Geul-PotPec'!BC51 -> 0 | BC8: ='Geul-PotPec'!BD51 -> 0 | BD8: ='Geul-PotPec'!BE51 -> 0 | BE8: ='Geul-PotPec'!BF51 -> 0 | BF8: ='Geul-PotPec'!BG51 -> 0 | BG8: ='Geul-PotPec'!BH51 -> 0 | BH8: ='Geul-PotPec'!BI51 -> 0 | BI8: ='Geul-PotPec'!BJ51 -> 0 | BJ8: ='Geul-PotPec'!BK51 -> 0 | BK8: ='Geul-PotPec'!BL51 -> 0 | BL8: ='Geul-PotPec'!BM51 -> 0 | BM8: ='Geul-PotPec'!BN51 -> 0 | BN8: ='Geul-PotPec'!BO51 -> 0 | BO8: ='Geul-PotPec'!BP51 -> 0 | BP8: ='Geul-PotPec'!BQ51 -> 0 | BQ8: ='Geul-PotPec'!BR51 -> 0 | BR8: ='Geul-PotPec'!BS51 -> 0 | BS8: ='Geul-PotPec'!BT51 -> 0 | BT8: ='Geul-PotPec'!BU51 -> 0
A9: NuphLut | B9: Geul - NuphLut | C9: ='Geul-NuphLut'!D51 -> 0 | D9: ='Geul-NuphLut'!E51 -> 0 | E9: ='Geul-NuphLut'!F51 -> 0 | F9: ='Geul-NuphLut'!G51 -> 0 | G9: ='Geul-NuphLut'!H51 -> 0 | H9: ='Geul-NuphLut'!I51 -> 0 | I9: ='Geul-NuphLut'!J51 -> 0 | J9: ='Geul-NuphLut'!K51 -> 0 | K9: ='Geul-NuphLut'!L51 -> 0 | L9: ='Geul-NuphLut'!M51 -> 0 | M9: ='Geul-NuphLut'!N51 -> 0 | N9: ='Geul-NuphLut'!O51 -> 0 | O9: ='Geul-NuphLut'!P51 -> 0 | P9: ='Geul-NuphLut'!Q51 -> 0 | Q9: ='Geul-NuphLut'!R51 -> 0 | R9: ='Geul-NuphLut'!S51 -> 0 | S9: ='Geul-NuphLut'!T51 -> 0 | T9: ='Geul-NuphLut'!U51 -> 0 | U9: ='Geul-NuphLut'!V51 -> 0 | V9: ='Geul-NuphLut'!W51 -> 0 | W9: ='Geul-NuphLut'!X51 -> 0 | X9: ='Geul-NuphLut'!Y51 -> 0 | Y9: ='Geul-NuphLut'!Z51 -> 0 | Z9: ='Geul-NuphLut'!AA51 -> 0 | AA9: ='Geul-NuphLut'!AB51 -> 0 | AB9: ='Geul-NuphLut'!AC51 -> 0 | AC9: ='Geul-NuphLut'!AD51 -> 0 | AD9: ='Geul-NuphLut'!AE51 -> 0 | AE9: ='Geul-NuphLut'!AF51 -> 0 | AF9: ='Geul-NuphLut'!AG51 -> 0 | AG9: ='Geul-NuphLut'!AH51 -> 0 | AH9: ='Geul-NuphLut'!AI51 -> 0 | AI9: ='Geul-NuphLut'!AJ51 -> 0 | AJ9: ='Geul-NuphLut'!AK51 -> 0 | AK9: ='Geul-NuphLut'!AL51 -> 0 | AL9: ='Geul-NuphLut'!AM51 -> 0 | AM9: ='Geul-NuphLut'!AN51 -> 0 | AN9: ='Geul-NuphLut'!AO51 -> 0 | AO9: ='Geul-NuphLut'!AP51 -> 0 | AP9: ='Geul-NuphLut'!AQ51 -> 0 | AQ9: ='Geul-NuphLut'!AR51 -> 0 | AR9: ='Geul-NuphLut'!AS51 -> 0 | AS9: ='Geul-NuphLut'!AT51 -> 0 | AT9: ='Geul-NuphLut'!AU51 -> 0 | AU9: ='Geul-NuphLut'!AV51 -> 0 | AV9: ='Geul-NuphLut'!AW51 -> 0 | AW9: ='Geul-NuphLut'!AX51 -> 0 | AX9: ='Geul-NuphLut'!AY51 -> 0 | AY9: ='Geul-NuphLut'!AZ51 -> 0 | AZ9: ='Geul-NuphLut'!BA51 -> 0 | BA9: ='Geul-NuphLut'!BB51 -> 0 | BB9: ='Geul-NuphLut'!BC51 -> 0 | BC9: ='Geul-NuphLut'!BD51 -> 0 | BD9: ='Geul-NuphLut'!BE51 -> 0 | BE9: ='Geul-NuphLut'!BF51 -> 0 | BF9: ='Geul-NuphLut'!BG51 -> 0 | BG9: ='Geul-NuphLut'!BH51 -> 0 | BH9: ='Geul-NuphLut'!BI51 -> 0 | BI9: ='Geul-NuphLut'!BJ51 -> 0 | BJ9: ='Geul-NuphLut'!BK51 -> 0 | BK9: ='Geul-NuphLut'!BL51 -> 0 | BL9: ='Geul-NuphLut'!BM51 -> 0 | BM9: ='Geul-NuphLut'!BN51 -> 0 | BN9: ='Geul-NuphLut'!BO51 -> 0 | BO9: ='Geul-NuphLut'!BP51 -> 0 | BP9: ='Geul-NuphLut'!BQ51 -> 0 | BQ9: ='Geul-NuphLut'!BR51 -> 0 | BR9: ='Geul-NuphLut'!BS51 -> 0 | BS9: ='Geul-NuphLut'!BT51 -> 0 | BT9: ='Geul-NuphLut'!BU51 -> 0
A10: PragAus | B10: Geul - PragAus | C10: ='Geul-PragAus'!D51 -> 0 | D10: ='Geul-PragAus'!E51 -> 0 | E10: ='Geul-PragAus'!F51 -> 0 | F10: ='Geul-PragAus'!G51 -> 0 | G10: ='Geul-PragAus'!H51 -> 0 | H10: ='Geul-PragAus'!I51 -> 0 | I10: ='Geul-PragAus'!J51 -> 0 | J10: ='Geul-PragAus'!K51 -> 0 | K10: ='Geul-PragAus'!L51 -> 0 | L10: ='Geul-PragAus'!M51 -> 0 | M10: ='Geul-PragAus'!N51 -> 0 | N10: ='Geul-PragAus'!O51 -> 0 | O10: ='Geul-PragAus'!P51 -> 0 | P10: ='Geul-PragAus'!Q51 -> 0 | Q10: ='Geul-PragAus'!R51 -> 0 | R10: ='Geul-PragAus'!S51 -> 0 | S10: ='Geul-PragAus'!T51 -> 0 | T10: ='Geul-PragAus'!U51 -> 0 | U10: ='Geul-PragAus'!V51 -> 0 | V10: ='Geul-PragAus'!W51 -> 0 | W10: ='Geul-PragAus'!X51 -> 0 | X10: ='Geul-PragAus'!Y51 -> 0 | Y10: ='Geul-PragAus'!Z51 -> 0 | Z10: ='Geul-PragAus'!AA51 -> 0 | AA10: ='Geul-PragAus'!AB51 -> 0 | AB10: ='Geul-PragAus'!AC51 -> 0 | AC10: ='Geul-PragAus'!AD51 -> 0 | AD10: ='Geul-PragAus'!AE51 -> 0 | AE10: ='Geul-PragAus'!AF51 -> 0 | AF10: ='Geul-PragAus'!AG51 -> 0 | AG10: ='Geul-PragAus'!AH51 -> 0 | AH10: ='Geul-PragAus'!AI51 -> 0 | AI10: ='Geul-PragAus'!AJ51 -> 0 | AJ10: ='Geul-PragAus'!AK51 -> 0 | AK10: ='Geul-PragAus'!AL51 -> 0 | AL10: ='Geul-PragAus'!AM51 -> 0 | AM10: ='Geul-PragAus'!AN51 -> 0 | AN10: ='Geul-PragAus'!AO51 -> 0 | AO10: ='Geul-PragAus'!AP51 -> 0 | AP10: ='Geul-PragAus'!AQ51 -> 0 | AQ10: ='Geul-PragAus'!AR51 -> 0 | AR10: ='Geul-PragAus'!AS51 -> 0 | AS10: ='Geul-PragAus'!AT51 -> 0 | AT10: ='Geul-PragAus'!AU51 -> 0 | AU10: ='Geul-PragAus'!AV51 -> 0 | AV10: ='Geul-PragAus'!AW51 -> 0 | AW10: ='Geul-PragAus'!AX51 -> 0 | AX10: ='Geul-PragAus'!AY51 -> 0 | AY10: ='Geul-PragAus'!AZ51 -> 0 | AZ10: ='Geul-PragAus'!BA51 -> 0 | BA10: ='Geul-PragAus'!BB51 -> 0 | BB10: ='Geul-PragAus'!BC51 -> 0 | BC10: ='Geul-PragAus'!BD51 -> 0 | BD10: ='Geul-PragAus'!BE51 -> 0 | BE10: ='Geul-PragAus'!BF51 -> 0 | BF10: ='Geul-PragAus'!BG51 -> 0 | BG10: ='Geul-PragAus'!BH51 -> 0 | BH10: ='Geul-PragAus'!BI51 -> 0 | BI10: ='Geul-PragAus'!BJ51 -> 0 | BJ10: ='Geul-PragAus'!BK51 -> 0 | BK10: ='Geul-PragAus'!BL51 -> 0 | BL10: ='Geul-PragAus'!BM51 -> 0 | BM10: ='Geul-PragAus'!BN51 -> 0 | BN10: ='Geul-PragAus'!BO51 -> 0 | BO10: ='Geul-PragAus'!BP51 -> 0 | BP10: ='Geul-PragAus'!BQ51 -> 0 | BQ10: ='Geul-PragAus'!BR51 -> 0 | BR10: ='Geul-PragAus'!BS51 -> 0 | BS10: ='Geul-PragAus'!BT51 -> 0 | BT10: ='Geul-PragAus'!BU51 -> 0
A12: =CONCATENATE('Interface KRW-tool Waterplanten'!$B$17," ",'Interface KRW-tool Waterplanten'!$B$18) -> Plas A jonge plas
A13: Droogval | B13: =CONCATENATE($A$12," - ",A13) -> Plas A jonge plas - Droogval | C13: ='Plas 1-Droogval'!D69 -> 0.0004331012974 | D13: ='Plas 1-Droogval'!E69 -> 0.0004518401449 | E13: ='Plas 1-Droogval'!F69 -> 0.0004715513148 | F13: ='Plas 1-Droogval'!G69 -> 0.000492304892 | G13: ='Plas 1-Droogval'!H69 -> 0.0005141776947 | H13: ='Plas 1-Droogval'!I69 -> 0.0005372540967 | I13: ='Plas 1-Droogval'!J69 -> 0.0005616269729 | J13: ='Plas 1-Droogval'!K69 -> 0.0005873987904 | K13: ='Plas 1-Droogval'!L69 -> 0.0006169956291 | L13: ='Plas 1-Droogval'!M69 -> 0.0006618944076 | M13: ='Plas 1-Droogval'!N69 -> 0.0007138292358 | N13: ='Plas 1-Droogval'!O69 -> 0.0007688894918 | O13: ='Plas 1-Droogval'!P69 -> 0.0008273421475 | P13: ='Plas 1-Droogval'!Q69 -> 0.0009170855294 | Q13: ='Plas 1-Droogval'!R69 -> 0.001059691158 | R13: ='Plas 1-Droogval'!S69 -> 0.001212158456 | S13: ='Plas 1-Droogval'!T69 -> 0.001375455692 | T13: ='Plas 1-Droogval'!U69 -> 0.001550679657 | U13: ='Plas 1-Droogval'!V69 -> 0.001739077625 | V13: ='Plas 1-Droogval'!W69 -> 0.001942073997 | W13: ='Plas 1-Droogval'!X69 -> 0.00216130281 | X13: ='Plas 1-Droogval'!Y69 -> 0.002398647702 | Y13: ='Plas 1-Droogval'!Z69 -> 0.002656291408 | Z13: ='Plas 1-Droogval'!AA69 -> 0.002936777567 | AA13: ='Plas 1-Droogval'!AB69 -> 0.003243088583 | AB13: ='Plas 1-Droogval'!AC69 -> 0.003716195532 | AC13: ='Plas 1-Droogval'!AD69 -> 0.004555912945 | AD13: ='Plas 1-Droogval'!AE69 -> 0.005471856307 | AE13: ='Plas 1-Droogval'!AF69 -> 0.006670145213 | AF13: ='Plas 1-Droogval'!AG69 -> 0.008156099264 | AG13: ='Plas 1-Droogval'!AH69 -> 0.0597469678 | AH13: ='Plas 1-Droogval'!AI69 -> 0.06158869662 | AI13: ='Plas 1-Droogval'!AJ69 -> 0.0636701624 | AJ13: ='Plas 1-Droogval'!AK69 -> 0.06598727511 | AK13: ='Plas 1-Droogval'!AL69 -> 0.06858252051 | AL13: ='Plas 1-Droogval'!AM69 -> 0.07151010103 | AM13: ='Plas 1-Droogval'!AN69 -> 0.07484071171 | AN13: ='Plas 1-Droogval'!AO69 -> 0.07866912351 | AO13: ='Plas 1-Droogval'!AP69 -> 0.08312691705 | AP13: ='Plas 1-Droogval'!AQ69 -> 0.08840548367 | AQ13: ='Plas 1-Droogval'!AR69 -> 0.09491857967 | AR13: ='Plas 1-Droogval'!AS69 -> 0.1032003049 | AS13: ='Plas 1-Droogval'!AT69 -> 0.1141748185 | AT13: ='Plas 1-Droogval'!AU69 -> 0.1319634733 | AU13: ='Plas 1-Droogval'!AV69 -> 0.2985084967 | AV13: ='Plas 1-Droogval'!AW69 -> 0.4019985319 | AW13: ='Plas 1-Droogval'!AX69 -> 0.4208074844 | AX13: ='Plas 1-Droogval'!AY69 -> 0.4350340011 | AY13: ='Plas 1-Droogval'!AZ69 -> 0.5554146752 | AZ13: ='Plas 1-Droogval'!BA69 -> 0.6039007674 | BA13: ='Plas 1-Droogval'!BB69 -> 0.660707821 | BB13: ='Plas 1-Droogval'!BC69 -> 0.6897902439 | BC13: ='Plas 1-Droogval'!BD69 -> 0.702403954 | BD13: ='Plas 1-Droogval'!BE69 -> 0.7591801405 | BE13: ='Plas 1-Droogval'!BF69 -> 0.7735808816 | BF13: ='Plas 1-Droogval'!BG69 -> 0.7780307633 | BG13: ='Plas 1-Droogval'!BH69 -> 0.7842867712 | BH13: ='Plas 1-Droogval'!BI69 -> 0.7950523865 | BI13: ='Plas 1-Droogval'!BJ69 -> 0.8401862739 | BJ13: ='Plas 1-Droogval'!BK69 -> 0.853293306 | BK13: ='Plas 1-Droogval'!BL69 -> 0.9134258327 | BL13: ='Plas 1-Droogval'!BM69 -> 0.9451757812 | BM13: ='Plas 1-Droogval'!BN69 -> 0.9588629749 | BN13: ='Plas 1-Droogval'!BO69 -> 0.9790757803 | BO13: ='Plas 1-Droogval'!BP69 -> 0.9858049508 | BP13: ='Plas 1-Droogval'!BQ69 -> 0.9953463507 | BQ13: ='Plas 1-Droogval'!BR69 -> 1 | BR13: ='Plas 1-Droogval'!BS69 -> 1 | BS13: ='Plas 1-Droogval'!BT69 -> 1 | BT13: ='Plas 1-Droogval'!BU69 -> 1
A14: Submers | B14: Plas A jonge plas - Submers | C14: ='Plas 1-Submers'!D$25 -> 0 | D14: ='Plas 1-Submers'!E$25 -> 0 | E14: ='Plas 1-Submers'!F$25 -> 0 | F14: ='Plas 1-Submers'!G$25 -> 0 | G14: ='Plas 1-Submers'!H$25 -> 0 | H14: ='Plas 1-Submers'!I$25 -> 0 | I14: ='Plas 1-Submers'!J$25 -> 0 | J14: ='Plas 1-Submers'!K$25 -> 0 | K14: ='Plas 1-Submers'!L$25 -> 0 | L14: ='Plas 1-Submers'!M$25 -> 0 | M14: ='Plas 1-Submers'!N$25 -> 0 | N14: ='Plas 1-Submers'!O$25 -> 0 | O14: ='Plas 1-Submers'!P$25 -> 0 | P14: ='Plas 1-Submers'!Q$25 -> 0 | Q14: ='Plas 1-Submers'!R$25 -> 0 | R14: ='Plas 1-Submers'!S$25 -> 0 | S14: ='Plas 1-Submers'!T$25 -> 0 | T14: ='Plas 1-Submers'!U$25 -> 0 | U14: ='Plas 1-Submers'!V$25 -> 0 | V14: ='Plas 1-Submers'!W$25 -> 0 | W14: ='Plas 1-Submers'!X$25 -> 0 | X14: ='Plas 1-Submers'!Y$25 -> 0 | Y14: ='Plas 1-Submers'!Z$25 -> 0 | Z14: ='Plas 1-Submers'!AA$25 -> 0 | AA14: ='Plas 1-Submers'!AB$25 -> 0 | AB14: ='Plas 1-Submers'!AC$25 -> 0 | AC14: ='Plas 1-Submers'!AD$25 -> 0 | AD14: ='Plas 1-Submers'!AE$25 -> 0 | AE14: ='Plas 1-Submers'!AF$25 -> 0 | AF14: ='Plas 1-Submers'!AG$25 -> 0 | AG14: ='Plas 1-Submers'!AH$25 -> 0 | AH14: ='Plas 1-Submers'!AI$25 -> 0 | AI14: ='Plas 1-Submers'!AJ$25 -> 0 | AJ14: ='Plas 1-Submers'!AK$25 -> 0 | AK14: ='Plas 1-Submers'!AL$25 -> 0.47508645 | AL14: ='Plas 1-Submers'!AM$25 -> 0.47508645 | AM14: ='Plas 1-Submers'!AN$25 -> 0.47508645 | AN14: ='Plas 1-Submers'!AO$25 -> 0.47508645 | AO14: ='Plas 1-Submers'!AP$25 -> 0.47508645 | AP14: ='Plas 1-Submers'!AQ$25 -> 0.47508645 | AQ14: ='Plas 1-Submers'!AR$25 -> 0.47508645 | AR14: ='Plas 1-Submers'!AS$25 -> 0.47508645 | AS14: ='Plas 1-Submers'!AT$25 -> 0.47508645 | AT14: ='Plas 1-Submers'!AU$25 -> 0.41408885 | AU14: ='Plas 1-Submers'!AV$25 -> 0.37050055 | AV14: ='Plas 1-Submers'!AW$25 -> 0.32691225 | AW14: ='Plas 1-Submers'!AX$25 -> 0.3051181 | AX14: ='Plas 1-Submers'!AY$25 -> 0.3051181 | AY14: ='Plas 1-Submers'!AZ$25 -> 0.23973565 | AZ14: ='Plas 1-Submers'!BA$25 -> 0.23973565 | BA14: ='Plas 1-Submers'!BB$25 -> 0.2179415 | BB14: ='Plas 1-Submers'!BC$25 -> 0.19614735 | BC14: ='Plas 1-Submers'!BD$25 -> 0.19614735 | BD14: ='Plas 1-Submers'!BE$25 -> 0.1743532 | BE14: ='Plas 1-Submers'!BF$25 -> 0.1743532 | BF14: ='Plas 1-Submers'!BG$25 -> 0.15255905 | BG14: ='Plas 1-Submers'!BH$25 -> 0.15255905 | BH14: ='Plas 1-Submers'!BI$25 -> 0.10897075 | BI14: ='Plas 1-Submers'!BJ$25 -> 0.10897075 | BJ14: ='Plas 1-Submers'!BK$25 -> 0.0871766 | BK14: ='Plas 1-Submers'!BL$25 -> 0.06538245 | BL14: ='Plas 1-Submers'!BM$25 -> 0.06538245 | BM14: ='Plas 1-Submers'!BN$25 -> 0.06538245 | BN14: ='Plas 1-Submers'!BO$25 -> 0.0435883 | BO14: ='Plas 1-Submers'!BP$25 -> 0.0435883 | BP14: ='Plas 1-Submers'!BQ$25 -> 0.02179415 | BQ14: ='Plas 1-Submers'!BR$25 -> 0.02179415 | BR14: ='Plas 1-Submers'!BS$25 -> 0.02179415 | BS14: ='Plas 1-Submers'!BT$25 -> 0.02179415 | BT14: ='Plas 1-Submers'!BU$25 -> 0.02179415
A15: Drijvend | B15: Plas A jonge plas - Drijvend | C15: ='Plas 1-Drijvend'!D$26 -> 0.0925 | D15: ='Plas 1-Drijvend'!E$26 -> 0.0925 | E15: ='Plas 1-Drijvend'!F$26 -> 0.0925 | F15: ='Plas 1-Drijvend'!G$26 -> 0.0925 | G15: ='Plas 1-Drijvend'!H$26 -> 0.0925 | H15: ='Plas 1-Drijvend'!I$26 -> 0.0925 | I15: ='Plas 1-Drijvend'!J$26 -> 0.0925 | J15: ='Plas 1-Drijvend'!K$26 -> 0.0925 | K15: ='Plas 1-Drijvend'!L$26 -> 0.0925 | L15: ='Plas 1-Drijvend'!M$26 -> 0.0925 | M15: ='Plas 1-Drijvend'!N$26 -> 0.0925 | N15: ='Plas 1-Drijvend'!O$26 -> 0.0925 | O15: ='Plas 1-Drijvend'!P$26 -> 0.0925 | P15: ='Plas 1-Drijvend'!Q$26 -> 0.0925 | Q15: ='Plas 1-Drijvend'!R$26 -> 0.0925 | R15: ='Plas 1-Drijvend'!S$26 -> 0.0925 | S15: ='Plas 1-Drijvend'!T$26 -> 0.0925 | T15: ='Plas 1-Drijvend'!U$26 -> 0.0925 | U15: ='Plas 1-Drijvend'!V$26 -> 0.0925 | V15: ='Plas 1-Drijvend'!W$26 -> 0.0925 | W15: ='Plas 1-Drijvend'!X$26 -> 0.0925 | X15: ='Plas 1-Drijvend'!Y$26 -> 0.0925 | Y15: ='Plas 1-Drijvend'!Z$26 -> 0.0925 | Z15: ='Plas 1-Drijvend'!AA$26 -> 0.0925 | AA15: ='Plas 1-Drijvend'!AB$26 -> 0.0925 | AB15: ='Plas 1-Drijvend'!AC$26 -> 0.0925 | AC15: ='Plas 1-Drijvend'!AD$26 -> 0.0925 | AD15: ='Plas 1-Drijvend'!AE$26 -> 0.0925 | AE15: ='Plas 1-Drijvend'!AF$26 -> 0.0925 | AF15: ='Plas 1-Drijvend'!AG$26 -> 0.0925 | AG15: ='Plas 1-Drijvend'!AH$26 -> 0.087875 | AH15: ='Plas 1-Drijvend'!AI$26 -> 0.087875 | AI15: ='Plas 1-Drijvend'!AJ$26 -> 0.087875 | AJ15: ='Plas 1-Drijvend'!AK$26 -> 0.087875 | AK15: ='Plas 1-Drijvend'!AL$26 -> 0.087875 | AL15: ='Plas 1-Drijvend'!AM$26 -> 0.087875 | AM15: ='Plas 1-Drijvend'!AN$26 -> 0 | AN15: ='Plas 1-Drijvend'!AO$26 -> 0 | AO15: ='Plas 1-Drijvend'!AP$26 -> 0 | AP15: ='Plas 1-Drijvend'!AQ$26 -> 0 | AQ15: ='Plas 1-Drijvend'!AR$26 -> 0.1898765 | AR15: ='Plas 1-Drijvend'!AS$26 -> 0.1898765 | AS15: ='Plas 1-Drijvend'!AT$26 -> 0.1898765 | AT15: ='Plas 1-Drijvend'!AU$26 -> 0.1898765 | AU15: ='Plas 1-Drijvend'!AV$26 -> 0.1698895 | AV15: ='Plas 1-Drijvend'!AW$26 -> 0.1499025 | AW15: ='Plas 1-Drijvend'!AX$26 -> 0.139909 | AX15: ='Plas 1-Drijvend'!AY$26 -> 0.139909 | AY15: ='Plas 1-Drijvend'!AZ$26 -> 0.1099285 | AZ15: ='Plas 1-Drijvend'!BA$26 -> 0.1099285 | BA15: ='Plas 1-Drijvend'!BB$26 -> 0.099935 | BB15: ='Plas 1-Drijvend'!BC$26 -> 0.0899415 | BC15: ='Plas 1-Drijvend'!BD$26 -> 0.0899415 | BD15: ='Plas 1-Drijvend'!BE$26 -> 0.079948 | BE15: ='Plas 1-Drijvend'!BF$26 -> 0.079948 | BF15: ='Plas 1-Drijvend'!BG$26 -> 0.0699545 | BG15: ='Plas 1-Drijvend'!BH$26 -> 0.0699545 | BH15: ='Plas 1-Drijvend'!BI$26 -> 0.0499675 | BI15: ='Plas 1-Drijvend'!BJ$26 -> 0.0499675 | BJ15: ='Plas 1-Drijvend'!BK$26 -> 0.039974 | BK15: ='Plas 1-Drijvend'!BL$26 -> 0.0299805 | BL15: ='Plas 1-Drijvend'!BM$26 -> 0.0299805 | BM15: ='Plas 1-Drijvend'!BN$26 -> 0.0299805 | BN15: ='Plas 1-Drijvend'!BO$26 -> 0.019987 | BO15: ='Plas 1-Drijvend'!BP$26 -> 0.019987 | BP15: ='Plas 1-Drijvend'!BQ$26 -> 0.0099935 | BQ15: ='Plas 1-Drijvend'!BR$26 -> 0.0099935 | BR15: ='Plas 1-Drijvend'!BS$26 -> 0.0099935 | BS15: ='Plas 1-Drijvend'!BT$26 -> 0.0099935 | BT15: ='Plas 1-Drijvend'!BU$26 -> 0.0099935
A16: CharVul | B16: Plas A jonge plas - CharVul | C16: ='Plas 1-CharVul'!D20 -> 0 | D16: ='Plas 1-CharVul'!E20 -> 0 | E16: ='Plas 1-CharVul'!F20 -> 0 | F16: ='Plas 1-CharVul'!G20 -> 0 | G16: ='Plas 1-CharVul'!H20 -> 0 | H16: ='Plas 1-CharVul'!I20 -> 0 | I16: ='Plas 1-CharVul'!J20 -> 0 | J16: ='Plas 1-CharVul'!K20 -> 0 | K16: ='Plas 1-CharVul'!L20 -> 0 | L16: ='Plas 1-CharVul'!M20 -> 0 | M16: ='Plas 1-CharVul'!N20 -> 0 | N16: ='Plas 1-CharVul'!O20 -> 0 | O16: ='Plas 1-CharVul'!P20 -> 0 | P16: ='Plas 1-CharVul'!Q20 -> 0 | Q16: ='Plas 1-CharVul'!R20 -> 0 | R16: ='Plas 1-CharVul'!S20 -> 0 | S16: ='Plas 1-CharVul'!T20 -> 0 | T16: ='Plas 1-CharVul'!U20 -> 0 | U16: ='Plas 1-CharVul'!V20 -> 0 | V16: ='Plas 1-CharVul'!W20 -> 0 | W16: ='Plas 1-CharVul'!X20 -> 0 | X16: ='Plas 1-CharVul'!Y20 -> 0 | Y16: ='Plas 1-CharVul'!Z20 -> 0 | Z16: ='Plas 1-CharVul'!AA20 -> 0 | AA16: ='Plas 1-CharVul'!AB20 -> 0 | AB16: ='Plas 1-CharVul'!AC20 -> 0 | AC16: ='Plas 1-CharVul'!AD20 -> 0 | AD16: ='Plas 1-CharVul'!AE20 -> 0 | AE16: ='Plas 1-CharVul'!AF20 -> 0 | AF16: ='Plas 1-CharVul'!AG20 -> 0 | AG16: ='Plas 1-CharVul'!AH20 -> 0 | AH16: ='Plas 1-CharVul'!AI20 -> 0 | AI16: ='Plas 1-CharVul'!AJ20 -> 0 | AJ16: ='Plas 1-CharVul'!AK20 -> 0 | AK16: ='Plas 1-CharVul'!AL20 -> 0 | AL16: ='Plas 1-CharVul'!AM20 -> 0 | AM16: ='Plas 1-CharVul'!AN20 -> 0 | AN16: ='Plas 1-CharVul'!AO20 -> 0 | AO16: ='Plas 1-CharVul'!AP20 -> 0 | AP16: ='Plas 1-CharVul'!AQ20 -> 0 | AQ16: ='Plas 1-CharVul'!AR20 -> 0.01070365 | AR16: ='Plas 1-CharVul'!AS20 -> 0.01070365 | AS16: ='Plas 1-CharVul'!AT20 -> 0.01070365 | AT16: ='Plas 1-CharVul'!AU20 -> 0.01070365 | AU16: ='Plas 1-CharVul'!AV20 -> 0.00957695 | AV16: ='Plas 1-CharVul'!AW20 -> 0.03158145 | AW16: ='Plas 1-CharVul'!AX20 -> 0.02947602 | AX16: ='Plas 1-CharVul'!AY20 -> 0.02947602 | AY16: ='Plas 1-CharVul'!AZ20 -> 0.0742929 | AZ16: ='Plas 1-CharVul'!BA20 -> 0.22135465 | BA16: ='Plas 1-CharVul'!BB20 -> 0.2012315 | BB16: ='Plas 1-CharVul'!BC20 -> 0.18110835 | BC16: ='Plas 1-CharVul'!BD20 -> 0.18110835 | BD16: ='Plas 1-CharVul'!BE20 -> 0.1609852 | BE16: ='Plas 1-CharVul'!BF20 -> 0.1609852 | BF16: ='Plas 1-CharVul'!BG20 -> 0.14086205 | BG16: ='Plas 1-CharVul'!BH20 -> 0.14086205 | BH16: ='Plas 1-CharVul'!BI20 -> 0.10061575 | BI16: ='Plas 1-CharVul'!BJ20 -> 0.10061575 | BJ16: ='Plas 1-CharVul'!BK20 -> 0.0804926 | BK16: ='Plas 1-CharVul'!BL20 -> 0.06036945 | BL16: ='Plas 1-CharVul'!BM20 -> 0.06036945 | BM16: ='Plas 1-CharVul'!BN20 -> 0.06036945 | BN16: ='Plas 1-CharVul'!BO20 -> 0.0402463 | BO16: ='Plas 1-CharVul'!BP20 -> 0.0402463 | BP16: ='Plas 1-CharVul'!BQ20 -> 0.02012315 | BQ16: ='Plas 1-CharVul'!BR20 -> 0.02012315 | BR16: ='Plas 1-CharVul'!BS20 -> 0.02012315 | BS16: ='Plas 1-CharVul'!BT20 -> 0.02012315 | BT16: ='Plas 1-CharVul'!BU20 -> 0.02012315
A17: NuphLut | B17: Plas A jonge plas - NuphLut | C17: ='Plas 1-NuphLut'!D24 -> 0.0808333 | D17: ='Plas 1-NuphLut'!E24 -> 0.0808333 | E17: ='Plas 1-NuphLut'!F24 -> 0.0808333 | F17: ='Plas 1-NuphLut'!G24 -> 0.0808333 | G17: ='Plas 1-NuphLut'!H24 -> 0.0808333 | H17: ='Plas 1-NuphLut'!I24 -> 0.0808333 | I17: ='Plas 1-NuphLut'!J24 -> 0.0808333 | J17: ='Plas 1-NuphLut'!K24 -> 0.0808333 | K17: ='Plas 1-NuphLut'!L24 -> 0.0808333 | L17: ='Plas 1-NuphLut'!M24 -> 0.0808333 | M17: ='Plas 1-NuphLut'!N24 -> 0.0808333 | N17: ='Plas 1-NuphLut'!O24 -> 0.0808333 | O17: ='Plas 1-NuphLut'!P24 -> 0.0808333 | P17: ='Plas 1-NuphLut'!Q24 -> 0.0808333 | Q17: ='Plas 1-NuphLut'!R24 -> 0.0808333 | R17: ='Plas 1-NuphLut'!S24 -> 0.0808333 | S17: ='Plas 1-NuphLut'!T24 -> 0.0808333 | T17: ='Plas 1-NuphLut'!U24 -> 0.0808333 | U17: ='Plas 1-NuphLut'!V24 -> 0.0808333 | V17: ='Plas 1-NuphLut'!W24 -> 0.0808333 | W17: ='Plas 1-NuphLut'!X24 -> 0.0808333 | X17: ='Plas 1-NuphLut'!Y24 -> 0.0808333 | Y17: ='Plas 1-NuphLut'!Z24 -> 0.0808333 | Z17: ='Plas 1-NuphLut'!AA24 -> 0.0808333 | AA17: ='Plas 1-NuphLut'!AB24 -> 0.0808333 | AB17: ='Plas 1-NuphLut'!AC24 -> 0.0808333 | AC17: ='Plas 1-NuphLut'!AD24 -> 0.0808333 | AD17: ='Plas 1-NuphLut'!AE24 -> 0.0808333 | AE17: ='Plas 1-NuphLut'!AF24 -> 0.0808333 | AF17: ='Plas 1-NuphLut'!AG24 -> 0.0808333 | AG17: ='Plas 1-NuphLut'!AH24 -> 0.076791635 | AH17: ='Plas 1-NuphLut'!AI24 -> 0.076791635 | AI17: ='Plas 1-NuphLut'!AJ24 -> 0.076791635 | AJ17: ='Plas 1-NuphLut'!AK24 -> 0.076791635 | AK17: ='Plas 1-NuphLut'!AL24 -> 0.076791635 | AL17: ='Plas 1-NuphLut'!AM24 -> 0.076791635 | AM17: ='Plas 1-NuphLut'!AN24 -> 0.010819455 | AN17: ='Plas 1-NuphLut'!AO24 -> 0.010819455 | AO17: ='Plas 1-NuphLut'!AP24 -> 0.010819455 | AP17: ='Plas 1-NuphLut'!AQ24 -> 0.010819455 | AQ17: ='Plas 1-NuphLut'!AR24 -> 0.010819455 | AR17: ='Plas 1-NuphLut'!AS24 -> 0.010819455 | AS17: ='Plas 1-NuphLut'!AT24 -> 0.010819455 | AT17: ='Plas 1-NuphLut'!AU24 -> 0.010819455 | AU17: ='Plas 1-NuphLut'!AV24 -> 0.009680565 | AV17: ='Plas 1-NuphLut'!AW24 -> 0.008541675 | AW17: ='Plas 1-NuphLut'!AX24 -> 0.00797223 | AX17: ='Plas 1-NuphLut'!AY24 -> 0.00797223 | AY17: ='Plas 1-NuphLut'!AZ24 -> 0.006263895 | AZ17: ='Plas 1-NuphLut'!BA24 -> 0.006263895 | BA17: ='Plas 1-NuphLut'!BB24 -> 0.00569445 | BB17: ='Plas 1-NuphLut'!BC24 -> 0.005125005 | BC17: ='Plas 1-NuphLut'!BD24 -> 0.005125005 | BD17: ='Plas 1-NuphLut'!BE24 -> 0.00455556 | BE17: ='Plas 1-NuphLut'!BF24 -> 0.00455556 | BF17: ='Plas 1-NuphLut'!BG24 -> 0.003986115 | BG17: ='Plas 1-NuphLut'!BH24 -> 0.003986115 | BH17: ='Plas 1-NuphLut'!BI24 -> 0.002847225 | BI17: ='Plas 1-NuphLut'!BJ24 -> 0.002847225 | BJ17: ='Plas 1-NuphLut'!BK24 -> 0.00227778 | BK17: ='Plas 1-NuphLut'!BL24 -> 0.001708335 | BL17: ='Plas 1-NuphLut'!BM24 -> 0.001708335 | BM17: ='Plas 1-NuphLut'!BN24 -> 0.001708335 | BN17: ='Plas 1-NuphLut'!BO24 -> 0.00113889 | BO17: ='Plas 1-NuphLut'!BP24 -> 0.00113889 | BP17: ='Plas 1-NuphLut'!BQ24 -> 0.000569445 | BQ17: ='Plas 1-NuphLut'!BR24 -> 0.000569445 | BR17: ='Plas 1-NuphLut'!BS24 -> 0.000569445 | BS17: ='Plas 1-NuphLut'!BT24 -> 0.000569445 | BT17: ='Plas 1-NuphLut'!BU24 -> 0.000569445
A18: NympPel | B18: Plas A jonge plas - NympPel | C18: ='Plas 1-NympPel'!D$24 -> 0.0222336 | D18: ='Plas 1-NympPel'!E$24 -> 0.0222336 | E18: ='Plas 1-NympPel'!F$24 -> 0.0222336 | F18: ='Plas 1-NympPel'!G$24 -> 0.0222336 | G18: ='Plas 1-NympPel'!H$24 -> 0.0222336 | H18: ='Plas 1-NympPel'!I$24 -> 0.0222336 | I18: ='Plas 1-NympPel'!J$24 -> 0.0222336 | J18: ='Plas 1-NympPel'!K$24 -> 0.0222336 | K18: ='Plas 1-NympPel'!L$24 -> 0.0222336 | L18: ='Plas 1-NympPel'!M$24 -> 0.0222336 | M18: ='Plas 1-NympPel'!N$24 -> 0.0222336 | N18: ='Plas 1-NympPel'!O$24 -> 0.0222336 | O18: ='Plas 1-NympPel'!P$24 -> 0.0222336 | P18: ='Plas 1-NympPel'!Q$24 -> 0.0222336 | Q18: ='Plas 1-NympPel'!R$24 -> 0.0222336 | R18: ='Plas 1-NympPel'!S$24 -> 0.0222336 | S18: ='Plas 1-NympPel'!T$24 -> 0.0222336 | T18: ='Plas 1-NympPel'!U$24 -> 0.0222336 | U18: ='Plas 1-NympPel'!V$24 -> 0.0222336 | V18: ='Plas 1-NympPel'!W$24 -> 0.0222336 | W18: ='Plas 1-NympPel'!X$24 -> 0.0222336 | X18: ='Plas 1-NympPel'!Y$24 -> 0.0222336 | Y18: ='Plas 1-NympPel'!Z$24 -> 0.0222336 | Z18: ='Plas 1-NympPel'!AA$24 -> 0.0222336 | AA18: ='Plas 1-NympPel'!AB$24 -> 0.0222336 | AB18: ='Plas 1-NympPel'!AC$24 -> 0.0222336 | AC18: ='Plas 1-NympPel'!AD$24 -> 0.0222336 | AD18: ='Plas 1-NympPel'!AE$24 -> 0.0222336 | AE18: ='Plas 1-NympPel'!AF$24 -> 0.0222336 | AF18: ='Plas 1-NympPel'!AG$24 -> 0.0222336 | AG18: ='Plas 1-NympPel'!AH$24 -> 0.02112192 | AH18: ='Plas 1-NympPel'!AI$24 -> 0.02112192 | AI18: ='Plas 1-NympPel'!AJ$24 -> 0.02112192 | AJ18: ='Plas 1-NympPel'!AK$24 -> 0.02112192 | AK18: ='Plas 1-NympPel'!AL$24 -> 0.02112192 | AL18: ='Plas 1-NympPel'!AM$24 -> 0.02112192 | AM18: ='Plas 1-NympPel'!AN$24 -> 0.02112192 | AN18: ='Plas 1-NympPel'!AO$24 -> 0.02112192 | AO18: ='Plas 1-NympPel'!AP$24 -> 0.02112192 | AP18: ='Plas 1-NympPel'!AQ$24 -> 0.02112192 | AQ18: ='Plas 1-NympPel'!AR$24 -> 0.02112192 | AR18: ='Plas 1-NympPel'!AS$24 -> 0.02112192 | AS18: ='Plas 1-NympPel'!AT$24 -> 0.1286623 | AT18: ='Plas 1-NympPel'!AU$24 -> 0.1286623 | AU18: ='Plas 1-NympPel'!AV$24 -> 0.1151189 | AV18: ='Plas 1-NympPel'!AW$24 -> 0.1015755 | AW18: ='Plas 1-NympPel'!AX$24 -> 0.0948038 | AX18: ='Plas 1-NympPel'!AY$24 -> 0.0948038 | AY18: ='Plas 1-NympPel'!AZ$24 -> 0.0744887 | AZ18: ='Plas 1-NympPel'!BA$24 -> 0.0744887 | BA18: ='Plas 1-NympPel'!BB$24 -> 0.067717 | BB18: ='Plas 1-NympPel'!BC$24 -> 0.0609453 | BC18: ='Plas 1-NympPel'!BD$24 -> 0.0609453 | BD18: ='Plas 1-NympPel'!BE$24 -> 0.0541736 | BE18: ='Plas 1-NympPel'!BF$24 -> 0.0541736 | BF18: ='Plas 1-NympPel'!BG$24 -> 0.0474019 | BG18: ='Plas 1-NympPel'!BH$24 -> 0.0474019 | BH18: ='Plas 1-NympPel'!BI$24 -> 0.0338585 | BI18: ='Plas 1-NympPel'!BJ$24 -> 0.0338585 | BJ18: ='Plas 1-NympPel'!BK$24 -> 0.0270868 | BK18: ='Plas 1-NympPel'!BL$24 -> 0.0203151 | BL18: ='Plas 1-NympPel'!BM$24 -> 0.0203151 | BM18: ='Plas 1-NympPel'!BN$24 -> 0.0203151 | BN18: ='Plas 1-NympPel'!BO$24 -> 0.0135434 | BO18: ='Plas 1-NympPel'!BP$24 -> 0.0135434 | BP18: ='Plas 1-NympPel'!BQ$24 -> 0.0067717 | BQ18: ='Plas 1-NympPel'!BR$24 -> 0.0067717 | BR18: ='Plas 1-NympPel'!BS$24 -> 0.0067717 | BS18: ='Plas 1-NympPel'!BT$24 -> 0.0067717 | BT18: ='Plas 1-NympPel'!BU$24 -> 0.0067717
A19: PotaLuc | B19: Plas A jonge plas - PotaLuc | C19: ='Plas 1-PotaLuc'!D$28 -> 0.00833333 | D19: ='Plas 1-PotaLuc'!E$28 -> 0.00833333 | E19: ='Plas 1-PotaLuc'!F$28 -> 0.00833333 | F19: ='Plas 1-PotaLuc'!G$28 -> 0.00833333 | G19: ='Plas 1-PotaLuc'!H$28 -> 0.00833333 | H19: ='Plas 1-PotaLuc'!I$28 -> 0.00833333 | I19: ='Plas 1-PotaLuc'!J$28 -> 0.00833333 | J19: ='Plas 1-PotaLuc'!K$28 -> 0.00833333 | K19: ='Plas 1-PotaLuc'!L$28 -> 0.00833333 | L19: ='Plas 1-PotaLuc'!M$28 -> 0.00833333 | M19: ='Plas 1-PotaLuc'!N$28 -> 0.00833333 | N19: ='Plas 1-PotaLuc'!O$28 -> 0.00833333 | O19: ='Plas 1-PotaLuc'!P$28 -> 0.00833333 | P19: ='Plas 1-PotaLuc'!Q$28 -> 0.00833333 | Q19: ='Plas 1-PotaLuc'!R$28 -> 0.00833333 | R19: ='Plas 1-PotaLuc'!S$28 -> 0.00833333 | S19: ='Plas 1-PotaLuc'!T$28 -> 0.00833333 | T19: ='Plas 1-PotaLuc'!U$28 -> 0.00833333 | U19: ='Plas 1-PotaLuc'!V$28 -> 0.00833333 | V19: ='Plas 1-PotaLuc'!W$28 -> 0.00833333 | W19: ='Plas 1-PotaLuc'!X$28 -> 0.00833333 | X19: ='Plas 1-PotaLuc'!Y$28 -> 0.00833333 | Y19: ='Plas 1-PotaLuc'!Z$28 -> 0.00833333 | Z19: ='Plas 1-PotaLuc'!AA$28 -> 0.00833333 | AA19: ='Plas 1-PotaLuc'!AB$28 -> 0.00833333 | AB19: ='Plas 1-PotaLuc'!AC$28 -> 0.00833333 | AC19: ='Plas 1-PotaLuc'!AD$28 -> 0.00833333 | AD19: ='Plas 1-PotaLuc'!AE$28 -> 0.00833333 | AE19: ='Plas 1-PotaLuc'!AF$28 -> 0.00833333 | AF19: ='Plas 1-PotaLuc'!AG$28 -> 0.00833333 | AG19: ='Plas 1-PotaLuc'!AH$28 -> 0.0079166635 | AH19: ='Plas 1-PotaLuc'!AI$28 -> 0.0079166635 | AI19: ='Plas 1-PotaLuc'!AJ$28 -> 0.0079166635 | AJ19: ='Plas 1-PotaLuc'!AK$28 -> 0.0079166635 | AK19: ='Plas 1-PotaLuc'!AL$28 -> 0.0079166635 | AL19: ='Plas 1-PotaLuc'!AM$28 -> 0.0079166635 | AM19: ='Plas 1-PotaLuc'!AN$28 -> 0.0079166635 | AN19: ='Plas 1-PotaLuc'!AO$28 -> 0.0079166635 | AO19: ='Plas 1-PotaLuc'!AP$28 -> 0.0079166635 | AP19: ='Plas 1-PotaLuc'!AQ$28 -> 0.0079166635 | AQ19: ='Plas 1-PotaLuc'!AR$28 -> 0.0079166635 | AR19: ='Plas 1-PotaLuc'!AS$28 -> 0.0079166635 | AS19: ='Plas 1-PotaLuc'!AT$28 -> 0.0079166635 | AT19: ='Plas 1-PotaLuc'!AU$28 -> 0.0079166635 | AU19: ='Plas 1-PotaLuc'!AV$28 -> 0.06602953 | AV19: ='Plas 1-PotaLuc'!AW$28 -> 0.05826135 | AW19: ='Plas 1-PotaLuc'!AX$28 -> 0.05437726 | AX19: ='Plas 1-PotaLuc'!AY$28 -> 0.05437726 | AY19: ='Plas 1-PotaLuc'!AZ$28 -> 0.04272499 | AZ19: ='Plas 1-PotaLuc'!BA$28 -> 0.04272499 | BA19: ='Plas 1-PotaLuc'!BB$28 -> 0.0388409 | BB19: ='Plas 1-PotaLuc'!BC$28 -> 0.03495681 | BC19: ='Plas 1-PotaLuc'!BD$28 -> 0.03495681 | BD19: ='Plas 1-PotaLuc'!BE$28 -> 0.03107272 | BE19: ='Plas 1-PotaLuc'!BF$28 -> 0.03107272 | BF19: ='Plas 1-PotaLuc'!BG$28 -> 0.02718863 | BG19: ='Plas 1-PotaLuc'!BH$28 -> 0.02718863 | BH19: ='Plas 1-PotaLuc'!BI$28 -> 0.01942045 | BI19: ='Plas 1-PotaLuc'!BJ$28 -> 0.01942045 | BJ19: ='Plas 1-PotaLuc'!BK$28 -> 0.01553636 | BK19: ='Plas 1-PotaLuc'!BL$28 -> 0.01165227 | BL19: ='Plas 1-PotaLuc'!BM$28 -> 0.01165227 | BM19: ='Plas 1-PotaLuc'!BN$28 -> 0.01165227 | BN19: ='Plas 1-PotaLuc'!BO$28 -> 0.00776818 | BO19: ='Plas 1-PotaLuc'!BP$28 -> 0.00776818 | BP19: ='Plas 1-PotaLuc'!BQ$28 -> 0.00388409 | BQ19: ='Plas 1-PotaLuc'!BR$28 -> 0.00388409 | BR19: ='Plas 1-PotaLuc'!BS$28 -> 0.00388409 | BS19: ='Plas 1-PotaLuc'!BT$28 -> 0.00388409 | BT19: ='Plas 1-PotaLuc'!BU$28 -> 0.00388409
A21: =CONCATENATE('Interface KRW-tool Waterplanten'!$C$17," ",'Interface KRW-tool Waterplanten'!$C$18) -> Plas B oude plas
A22: Droogval | B22: =CONCATENATE($A$21," - ",A22) -> Plas B oude plas - Droogval | C22: ='Plas 2-Droogval'!D70 -> 0.0004951786709 | D22: ='Plas 2-Droogval'!E70 -> 0.0005048238387 | E22: ='Plas 2-Droogval'!F70 -> 0.0005149494799 | F22: ='Plas 2-Droogval'!G70 -> 0.000525588654 | G22: ='Plas 2-Droogval'!H70 -> 0.0005367774546 | H22: ='Plas 2-Droogval'!I70 -> 0.0005485553633 | I22: ='Plas 2-Droogval'!J70 -> 0.0005609656558 | J22: ='Plas 2-Droogval'!K70 -> 0.0005740558668 | K22: ='Plas 2-Droogval'!L70 -> 0.0005878783263 | L22: ='Plas 2-Droogval'!M70 -> 0.0006024907785 | M22: ='Plas 2-Droogval'!N70 -> 0.0006254335968 | N22: ='Plas 2-Droogval'!O70 -> 0.0006605567137 | O22: ='Plas 2-Droogval'!P70 -> 0.0006979181737 | P22: ='Plas 2-Droogval'!Q70 -> 0.0007377189336 | Q22: ='Plas 2-Droogval'!R70 -> 0.0007801842219 | R22: ='Plas 2-Droogval'!S70 -> 0.0008255672976 | S22: ='Plas 2-Droogval'!T70 -> 0.0008741539299 | T22: ='Plas 2-Droogval'!U70 -> 0.0009262677655 | U22: ='Plas 2-Droogval'!V70 -> 0.000982276796 | V22: ='Plas 2-Droogval'!W70 -> 0.001042601201 | W22: ='Plas 2-Droogval'!X70 -> 0.001109539357 | X22: ='Plas 2-Droogval'!Y70 -> 0.001188710906 | Y22: ='Plas 2-Droogval'!Z70 -> 0.001274387858 | Z22: ='Plas 2-Droogval'!AA70 -> 0.001397840533 | AA22: ='Plas 2-Droogval'!AB70 -> 0.00159124341 | AB22: ='Plas 2-Droogval'!AC70 -> 0.001820956081 | AC22: ='Plas 2-Droogval'!AD70 -> 0.00207513246 | AD22: ='Plas 2-Droogval'!AE70 -> 0.002445139522 | AE22: ='Plas 2-Droogval'!AF70 -> 0.002856605334 | AF22: ='Plas 2-Droogval'!AG70 -> 0.003318474142 | AG22: ='Plas 2-Droogval'!AH70 -> 0.05378310012 | AH22: ='Plas 2-Droogval'!AI70 -> 0.05434122953 | AI22: ='Plas 2-Droogval'!AJ70 -> 0.05495892592 | AJ22: ='Plas 2-Droogval'!AK70 -> 0.0556461795 | AK22: ='Plas 2-Droogval'!AL70 -> 0.05641550211 | AL22: ='Plas 2-Droogval'!AM70 -> 0.05728285125 | AM22: ='Plas 2-Droogval'!AN70 -> 0.05826903317 | AN22: ='Plas 2-Droogval'!AO70 -> 0.05940193024 | AO22: ='Plas 2-Droogval'!AP70 -> 0.06073230702 | AP22: ='Plas 2-Droogval'!AQ70 -> 0.06235836816 | AQ22: ='Plas 2-Droogval'!AR70 -> 0.06431854097 | AR22: ='Plas 2-Droogval'!AS70 -> 0.06676298091 | AS22: ='Plas 2-Droogval'!AT70 -> 0.06999875306 | AT22: ='Plas 2-Droogval'!AU70 -> 0.07523369678 | AU22: ='Plas 2-Droogval'!AV70 -> 0.2211769431 | AV22: ='Plas 2-Droogval'!AW70 -> 0.304850695 | AW22: ='Plas 2-Droogval'!AX70 -> 0.3442626159 | AX22: ='Plas 2-Droogval'!AY70 -> 0.3759504164 | AY22: ='Plas 2-Droogval'!AZ70 -> 0.4818926217 | AZ22: ='Plas 2-Droogval'!BA70 -> 0.4961323579 | BA22: ='Plas 2-Droogval'!BB70 -> 0.5486374267 | BB22: ='Plas 2-Droogval'!BC70 -> 0.5979897972 | BC22: ='Plas 2-Droogval'!BD70 -> 0.614698641 | BD22: ='Plas 2-Droogval'!BE70 -> 0.6921465812 | BE22: ='Plas 2-Droogval'!BF70 -> 0.7125648178 | BF22: ='Plas 2-Droogval'!BG70 -> 0.7354278505 | BG22: ='Plas 2-Droogval'!BH70 -> 0.760418021 | BH22: ='Plas 2-Droogval'!BI70 -> 0.7635831696 | BI22: ='Plas 2-Droogval'!BJ70 -> 0.7804200643 | BJ22: ='Plas 2-Droogval'!BK70 -> 0.8159781907 | BK22: ='Plas 2-Droogval'!BL70 -> 0.8689318238 | BL22: ='Plas 2-Droogval'!BM70 -> 0.878633413 | BM22: ='Plas 2-Droogval'!BN70 -> 0.9175422964 | BN22: ='Plas 2-Droogval'!BO70 -> 0.9249160434 | BO22: ='Plas 2-Droogval'!BP70 -> 0.9459928985 | BP22: ='Plas 2-Droogval'!BQ70 -> 0.9634986263 | BQ22: ='Plas 2-Droogval'!BR70 -> 0.967776069 | BR22: ='Plas 2-Droogval'!BS70 -> 0.9750692869 | BS22: ='Plas 2-Droogval'!BT70 -> 0.9903154387 | BT22: ='Plas 2-Droogval'!BU70 -> 1
A23: Submers | B23: =CONCATENATE($A$21," - ",A23) -> Plas B oude plas - Submers | C23: ='Plas 2-Submers'!D$25 -> 0 | D23: ='Plas 2-Submers'!E$25 -> 0 | E23: ='Plas 2-Submers'!F$25 -> 0 | F23: ='Plas 2-Submers'!G$25 -> 0 | G23: ='Plas 2-Submers'!H$25 -> 0 | H23: ='Plas 2-Submers'!I$25 -> 0 | I23: ='Plas 2-Submers'!J$25 -> 0 | J23: ='Plas 2-Submers'!K$25 -> 0 | K23: ='Plas 2-Submers'!L$25 -> 0 | L23: ='Plas 2-Submers'!M$25 -> 0 | M23: ='Plas 2-Submers'!N$25 -> 0 | N23: ='Plas 2-Submers'!O$25 -> 0 | O23: ='Plas 2-Submers'!P$25 -> 0 | P23: ='Plas 2-Submers'!Q$25 -> 0 | Q23: ='Plas 2-Submers'!R$25 -> 0 | R23: ='Plas 2-Submers'!S$25 -> 0 | S23: ='Plas 2-Submers'!T$25 -> 0 | T23: ='Plas 2-Submers'!U$25 -> 0 | U23: ='Plas 2-Submers'!V$25 -> 0 | V23: ='Plas 2-Submers'!W$25 -> 0 | W23: ='Plas 2-Submers'!X$25 -> 0 | X23: ='Plas 2-Submers'!Y$25 -> 0 | Y23: ='Plas 2-Submers'!Z$25 -> 0 | Z23: ='Plas 2-Submers'!AA$25 -> 0 | AA23: ='Plas 2-Submers'!AB$25 -> 0 | AB23: ='Plas 2-Submers'!AC$25 -> 0 | AC23: ='Plas 2-Submers'!AD$25 -> 0 | AD23: ='Plas 2-Submers'!AE$25 -> 0 | AE23: ='Plas 2-Submers'!AF$25 -> 0 | AF23: ='Plas 2-Submers'!AG$25 -> 0 | AG23: ='Plas 2-Submers'!AH$25 -> 0 | AH23: ='Plas 2-Submers'!AI$25 -> 0 | AI23: ='Plas 2-Submers'!AJ$25 -> 0 | AJ23: ='Plas 2-Submers'!AK$25 -> 0 | AK23: ='Plas 2-Submers'!AL$25 -> 0.005337271 | AL23: ='Plas 2-Submers'!AM$25 -> 0.005337271 | AM23: ='Plas 2-Submers'!AN$25 -> 0.005337271 | AN23: ='Plas 2-Submers'!AO$25 -> 0.005337271 | AO23: ='Plas 2-Submers'!AP$25 -> 0.35663855 | AP23: ='Plas 2-Submers'!AQ$25 -> 0.35663855 | AQ23: ='Plas 2-Submers'!AR$25 -> 0.35663855 | AR23: ='Plas 2-Submers'!AS$25 -> 0.35663855 | AS23: ='Plas 2-Submers'!AT$25 -> 0.35663855 | AT23: ='Plas 2-Submers'!AU$25 -> 0.35663855 | AU23: ='Plas 2-Submers'!AV$25 -> 0.31909765 | AV23: ='Plas 2-Submers'!AW$25 -> 0.28155675 | AW23: ='Plas 2-Submers'!AX$25 -> 0.2627863 | AX23: ='Plas 2-Submers'!AY$25 -> 0.2627863 | AY23: ='Plas 2-Submers'!AZ$25 -> 0.20647495 | AZ23: ='Plas 2-Submers'!BA$25 -> 0.20647495 | BA23: ='Plas 2-Submers'!BB$25 -> 0.1877045 | BB23: ='Plas 2-Submers'!BC$25 -> 0.16893405 | BC23: ='Plas 2-Submers'!BD$25 -> 0.16893405 | BD23: ='Plas 2-Submers'!BE$25 -> 0.1501636 | BE23: ='Plas 2-Submers'!BF$25 -> 0.1501636 | BF23: ='Plas 2-Submers'!BG$25 -> 0.13139315 | BG23: ='Plas 2-Submers'!BH$25 -> 0.13139315 | BH23: ='Plas 2-Submers'!BI$25 -> 0.09385225 | BI23: ='Plas 2-Submers'!BJ$25 -> 0.09385225 | BJ23: ='Plas 2-Submers'!BK$25 -> 0.0750818 | BK23: ='Plas 2-Submers'!BL$25 -> 0.05631135 | BL23: ='Plas 2-Submers'!BM$25 -> 0.05631135 | BM23: ='Plas 2-Submers'!BN$25 -> 0.05631135 | BN23: ='Plas 2-Submers'!BO$25 -> 0.0375409 | BO23: ='Plas 2-Submers'!BP$25 -> 0.0375409 | BP23: ='Plas 2-Submers'!BQ$25 -> 0.01877045 | BQ23: ='Plas 2-Submers'!BR$25 -> 0.01877045 | BR23: ='Plas 2-Submers'!BS$25 -> 0.01877045 | BS23: ='Plas 2-Submers'!BT$25 -> 0.01877045 | BT23: ='Plas 2-Submers'!BU$25 -> 0.01877045
A24: Drijvend | B24: Plas B oude plas - Drijvend | C24: ='Plas 2-Drijvend'!D$26 -> 0.0705455 | D24: ='Plas 2-Drijvend'!E$26 -> 0.0705455 | E24: ='Plas 2-Drijvend'!F$26 -> 0.0705455 | F24: ='Plas 2-Drijvend'!G$26 -> 0.0705455 | G24: ='Plas 2-Drijvend'!H$26 -> 0.0705455 | H24: ='Plas 2-Drijvend'!I$26 -> 0.0705455 | I24: ='Plas 2-Drijvend'!J$26 -> 0.0705455 | J24: ='Plas 2-Drijvend'!K$26 -> 0.0705455 | K24: ='Plas 2-Drijvend'!L$26 -> 0.0705455 | L24: ='Plas 2-Drijvend'!M$26 -> 0.0705455 | M24: ='Plas 2-Drijvend'!N$26 -> 0.0705455 | N24: ='Plas 2-Drijvend'!O$26 -> 0.0705455 | O24: ='Plas 2-Drijvend'!P$26 -> 0.0705455 | P24: ='Plas 2-Drijvend'!Q$26 -> 0.0705455 | Q24: ='Plas 2-Drijvend'!R$26 -> 0.0705455 | R24: ='Plas 2-Drijvend'!S$26 -> 0.0705455 | S24: ='Plas 2-Drijvend'!T$26 -> 0.0705455 | T24: ='Plas 2-Drijvend'!U$26 -> 0.0705455 | U24: ='Plas 2-Drijvend'!V$26 -> 0.0705455 | V24: ='Plas 2-Drijvend'!W$26 -> 0.0705455 | W24: ='Plas 2-Drijvend'!X$26 -> 0.0705455 | X24: ='Plas 2-Drijvend'!Y$26 -> 0.0705455 | Y24: ='Plas 2-Drijvend'!Z$26 -> 0.0705455 | Z24: ='Plas 2-Drijvend'!AA$26 -> 0.0705455 | AA24: ='Plas 2-Drijvend'!AB$26 -> 0.0705455 | AB24: ='Plas 2-Drijvend'!AC$26 -> 0.0705455 | AC24: ='Plas 2-Drijvend'!AD$26 -> 0.0705455 | AD24: ='Plas 2-Drijvend'!AE$26 -> 0.0705455 | AE24: ='Plas 2-Drijvend'!AF$26 -> 0.0705455 | AF24: ='Plas 2-Drijvend'!AG$26 -> 0.0705455 | AG24: ='Plas 2-Drijvend'!AH$26 -> 0.067018225 | AH24: ='Plas 2-Drijvend'!AI$26 -> 0.067018225 | AI24: ='Plas 2-Drijvend'!AJ$26 -> 0.067018225 | AJ24: ='Plas 2-Drijvend'!AK$26 -> 0.067018225 | AK24: ='Plas 2-Drijvend'!AL$26 -> 0.067018225 | AL24: ='Plas 2-Drijvend'!AM$26 -> 0.2362042 | AM24: ='Plas 2-Drijvend'!AN$26 -> 0.2362042 | AN24: ='Plas 2-Drijvend'!AO$26 -> 0.2362042 | AO24: ='Plas 2-Drijvend'!AP$26 -> 0.2362042 | AP24: ='Plas 2-Drijvend'!AQ$26 -> 0.23188645 | AQ24: ='Plas 2-Drijvend'!AR$26 -> 0.23188645 | AR24: ='Plas 2-Drijvend'!AS$26 -> 0.23188645 | AS24: ='Plas 2-Drijvend'!AT$26 -> 0.66658365 | AT24: ='Plas 2-Drijvend'!AU$26 -> 0.66658365 | AU24: ='Plas 2-Drijvend'!AV$26 -> 0.1470755 | AV24: ='Plas 2-Drijvend'!AW$26 -> 0.1297725 | AW24: ='Plas 2-Drijvend'!AX$26 -> 0.121121 | AX24: ='Plas 2-Drijvend'!AY$26 -> 0.121121 | AY24: ='Plas 2-Drijvend'!AZ$26 -> 0.0951665 | AZ24: ='Plas 2-Drijvend'!BA$26 -> 0.0951665 | BA24: ='Plas 2-Drijvend'!BB$26 -> 0.086515 | BB24: ='Plas 2-Drijvend'!BC$26 -> 0.0778635 | BC24: ='Plas 2-Drijvend'!BD$26 -> 0.0778635 | BD24: ='Plas 2-Drijvend'!BE$26 -> 0.069212 | BE24: ='Plas 2-Drijvend'!BF$26 -> 0.069212 | BF24: ='Plas 2-Drijvend'!BG$26 -> 0.0605605 | BG24: ='Plas 2-Drijvend'!BH$26 -> 0.0605605 | BH24: ='Plas 2-Drijvend'!BI$26 -> 0.0432575 | BI24: ='Plas 2-Drijvend'!BJ$26 -> 0.0432575 | BJ24: ='Plas 2-Drijvend'!BK$26 -> 0.034606 | BK24: ='Plas 2-Drijvend'!BL$26 -> 0.0259545 | BL24: ='Plas 2-Drijvend'!BM$26 -> 0.0259545 | BM24: ='Plas 2-Drijvend'!BN$26 -> 0.0259545 | BN24: ='Plas 2-Drijvend'!BO$26 -> 0.017303 | BO24: ='Plas 2-Drijvend'!BP$26 -> 0.017303 | BP24: ='Plas 2-Drijvend'!BQ$26 -> 0.0086515 | BQ24: ='Plas 2-Drijvend'!BR$26 -> 0.0086515 | BR24: ='Plas 2-Drijvend'!BS$26 -> 0.0086515 | BS24: ='Plas 2-Drijvend'!BT$26 -> 0.0086515 | BT24: ='Plas 2-Drijvend'!BU$26 -> 0.0086515
A25: CharVul | B25: Plas B oude plas - CharVul | C25: ='Plas 2-CharVul'!D20 -> 0.00481481 | D25: ='Plas 2-CharVul'!E20 -> 0.00481481 | E25: ='Plas 2-CharVul'!F20 -> 0.00481481 | F25: ='Plas 2-CharVul'!G20 -> 0.00481481 | G25: ='Plas 2-CharVul'!H20 -> 0.00481481 | H25: ='Plas 2-CharVul'!I20 -> 0.00481481 | I25: ='Plas 2-CharVul'!J20 -> 0.00481481 | J25: ='Plas 2-CharVul'!K20 -> 0.00481481 | K25: ='Plas 2-CharVul'!L20 -> 0.00481481 | L25: ='Plas 2-CharVul'!M20 -> 0.00481481 | M25: ='Plas 2-CharVul'!N20 -> 0.00481481 | N25: ='Plas 2-CharVul'!O20 -> 0.00481481 | O25: ='Plas 2-CharVul'!P20 -> 0.00481481 | P25: ='Plas 2-CharVul'!Q20 -> 0.00481481 | Q25: ='Plas 2-CharVul'!R20 -> 0.00481481 | R25: ='Plas 2-CharVul'!S20 -> 0.00481481 | S25: ='Plas 2-CharVul'!T20 -> 0.00481481 | T25: ='Plas 2-CharVul'!U20 -> 0.00481481 | U25: ='Plas 2-CharVul'!V20 -> 0.00481481 | V25: ='Plas 2-CharVul'!W20 -> 0.00481481 | W25: ='Plas 2-CharVul'!X20 -> 0.00481481 | X25: ='Plas 2-CharVul'!Y20 -> 0.00481481 | Y25: ='Plas 2-CharVul'!Z20 -> 0.00481481 | Z25: ='Plas 2-CharVul'!AA20 -> 0.00481481 | AA25: ='Plas 2-CharVul'!AB20 -> 0.00481481 | AB25: ='Plas 2-CharVul'!AC20 -> 0.00481481 | AC25: ='Plas 2-CharVul'!AD20 -> 0.00481481 | AD25: ='Plas 2-CharVul'!AE20 -> 0.00481481 | AE25: ='Plas 2-CharVul'!AF20 -> 0.00481481 | AF25: ='Plas 2-CharVul'!AG20 -> 0.00481481 | AG25: ='Plas 2-CharVul'!AH20 -> 0.0045740695 | AH25: ='Plas 2-CharVul'!AI20 -> 0.0045740695 | AI25: ='Plas 2-CharVul'!AJ20 -> 0.0045740695 | AJ25: ='Plas 2-CharVul'!AK20 -> 0.0045740695 | AK25: ='Plas 2-CharVul'!AL20 -> 0.0045740695 | AL25: ='Plas 2-CharVul'!AM20 -> 0.0045740695 | AM25: ='Plas 2-CharVul'!AN20 -> 0.0045740695 | AN25: ='Plas 2-CharVul'!AO20 -> 0.0045740695 | AO25: ='Plas 2-CharVul'!AP20 -> 0.0045740695 | AP25: ='Plas 2-CharVul'!AQ20 -> 0.0045740695 | AQ25: ='Plas 2-CharVul'!AR20 -> 0.0045740695 | AR25: ='Plas 2-CharVul'!AS20 -> 0.0045740695 | AS25: ='Plas 2-CharVul'!AT20 -> 0.0045740695 | AT25: ='Plas 2-CharVul'!AU20 -> 0.0045740695 | AU25: ='Plas 2-CharVul'!AV20 -> 0.0040925885 | AV25: ='Plas 2-CharVul'!AW20 -> 0.0036111075 | AW25: ='Plas 2-CharVul'!AX20 -> 0.02947602 | AX25: ='Plas 2-CharVul'!AY20 -> 0.02947602 | AY25: ='Plas 2-CharVul'!AZ20 -> 0.0742929 | AZ25: ='Plas 2-CharVul'!BA20 -> 0.0742929 | BA25: ='Plas 2-CharVul'!BB20 -> 0.067539 | BB25: ='Plas 2-CharVul'!BC20 -> 0.0607851 | BC25: ='Plas 2-CharVul'!BD20 -> 0.18110835 | BD25: ='Plas 2-CharVul'!BE20 -> 0.1609852 | BE25: ='Plas 2-CharVul'!BF20 -> 0.1609852 | BF25: ='Plas 2-CharVul'!BG20 -> 0.14086205 | BG25: ='Plas 2-CharVul'!BH20 -> 0.14086205 | BH25: ='Plas 2-CharVul'!BI20 -> 0.10061575 | BI25: ='Plas 2-CharVul'!BJ20 -> 0.10061575 | BJ25: ='Plas 2-CharVul'!BK20 -> 0.0804926 | BK25: ='Plas 2-CharVul'!BL20 -> 0.06036945 | BL25: ='Plas 2-CharVul'!BM20 -> 0.06036945 | BM25: ='Plas 2-CharVul'!BN20 -> 0.06036945 | BN25: ='Plas 2-CharVul'!BO20 -> 0.0402463 | BO25: ='Plas 2-CharVul'!BP20 -> 0.0402463 | BP25: ='Plas 2-CharVul'!BQ20 -> 0.02012315 | BQ25: ='Plas 2-CharVul'!BR20 -> 0.02012315 | BR25: ='Plas 2-CharVul'!BS20 -> 0.02012315 | BS25: ='Plas 2-CharVul'!BT20 -> 0.02012315 | BT25: ='Plas 2-CharVul'!BU20 -> 0.02012315
A26: NuphLut | B26: Plas B oude plas - NuphLut | C26: ='Plas 2-NuphLut'!D24 -> 0 | D26: ='Plas 2-NuphLut'!E24 -> 0 | E26: ='Plas 2-NuphLut'!F24 -> 0 | F26: ='Plas 2-NuphLut'!G24 -> 0 | G26: ='Plas 2-NuphLut'!H24 -> 0 | H26: ='Plas 2-NuphLut'!I24 -> 0 | I26: ='Plas 2-NuphLut'!J24 -> 0 | J26: ='Plas 2-NuphLut'!K24 -> 0 | K26: ='Plas 2-NuphLut'!L24 -> 0 | L26: ='Plas 2-NuphLut'!M24 -> 0 | M26: ='Plas 2-NuphLut'!N24 -> 0 | N26: ='Plas 2-NuphLut'!O24 -> 0 | O26: ='Plas 2-NuphLut'!P24 -> 0 | P26: ='Plas 2-NuphLut'!Q24 -> 0 | Q26: ='Plas 2-NuphLut'!R24 -> 0 | R26: ='Plas 2-NuphLut'!S24 -> 0 | S26: ='Plas 2-NuphLut'!T24 -> 0 | T26: ='Plas 2-NuphLut'!U24 -> 0 | U26: ='Plas 2-NuphLut'!V24 -> 0 | V26: ='Plas 2-NuphLut'!W24 -> 0 | W26: ='Plas 2-NuphLut'!X24 -> 0 | X26: ='Plas 2-NuphLut'!Y24 -> 0 | Y26: ='Plas 2-NuphLut'!Z24 -> 0 | Z26: ='Plas 2-NuphLut'!AA24 -> 0 | AA26: ='Plas 2-NuphLut'!AB24 -> 0 | AB26: ='Plas 2-NuphLut'!AC24 -> 0 | AC26: ='Plas 2-NuphLut'!AD24 -> 0 | AD26: ='Plas 2-NuphLut'!AE24 -> 0 | AE26: ='Plas 2-NuphLut'!AF24 -> 0 | AF26: ='Plas 2-NuphLut'!AG24 -> 0 | AG26: ='Plas 2-NuphLut'!AH24 -> 0 | AH26: ='Plas 2-NuphLut'!AI24 -> 0 | AI26: ='Plas 2-NuphLut'!AJ24 -> 0 | AJ26: ='Plas 2-NuphLut'!AK24 -> 0 | AK26: ='Plas 2-NuphLut'!AL24 -> 0 | AL26: ='Plas 2-NuphLut'!AM24 -> 0 | AM26: ='Plas 2-NuphLut'!AN24 -> 0 | AN26: ='Plas 2-NuphLut'!AO24 -> 0 | AO26: ='Plas 2-NuphLut'!AP24 -> 0 | AP26: ='Plas 2-NuphLut'!AQ24 -> 0.24779135 | AQ26: ='Plas 2-NuphLut'!AR24 -> 0.24779135 | AR26: ='Plas 2-NuphLut'!AS24 -> 0.24779135 | AS26: ='Plas 2-NuphLut'!AT24 -> 0.24779135 | AT26: ='Plas 2-NuphLut'!AU24 -> 0.24779135 | AU26: ='Plas 2-NuphLut'!AV24 -> 0.13458305 | AV26: ='Plas 2-NuphLut'!AW24 -> 0.11874975 | AW26: ='Plas 2-NuphLut'!AX24 -> 0.1108331 | AX26: ='Plas 2-NuphLut'!AY24 -> 0.1108331 | AY26: ='Plas 2-NuphLut'!AZ24 -> 0.08708315 | AZ26: ='Plas 2-NuphLut'!BA24 -> 0.08708315 | BA26: ='Plas 2-NuphLut'!BB24 -> 0.0791665 | BB26: ='Plas 2-NuphLut'!BC24 -> 0.07124985 | BC26: ='Plas 2-NuphLut'!BD24 -> 0.07124985 | BD26: ='Plas 2-NuphLut'!BE24 -> 0.0633332 | BE26: ='Plas 2-NuphLut'!BF24 -> 0.0633332 | BF26: ='Plas 2-NuphLut'!BG24 -> 0.05541655 | BG26: ='Plas 2-NuphLut'!BH24 -> 0.05541655 | BH26: ='Plas 2-NuphLut'!BI24 -> 0.03958325 | BI26: ='Plas 2-NuphLut'!BJ24 -> 0.03958325 | BJ26: ='Plas 2-NuphLut'!BK24 -> 0.0316666 | BK26: ='Plas 2-NuphLut'!BL24 -> 0.02374995 | BL26: ='Plas 2-NuphLut'!BM24 -> 0.02374995 | BM26: ='Plas 2-NuphLut'!BN24 -> 0.02374995 | BN26: ='Plas 2-NuphLut'!BO24 -> 0.0158333 | BO26: ='Plas 2-NuphLut'!BP24 -> 0.0158333 | BP26: ='Plas 2-NuphLut'!BQ24 -> 0.00791665 | BQ26: ='Plas 2-NuphLut'!BR24 -> 0.00791665 | BR26: ='Plas 2-NuphLut'!BS24 -> 0.00791665 | BS26: ='Plas 2-NuphLut'!BT24 -> 0.00791665 | BT26: ='Plas 2-NuphLut'!BU24 -> 0.00791665
A27: NympPel | B27: Plas B oude plas - NympPel | C27: ='Plas 2-NympPel'!D24 -> 0.0601984 | D27: ='Plas 2-NympPel'!E24 -> 0.0601984 | E27: ='Plas 2-NympPel'!F24 -> 0.0601984 | F27: ='Plas 2-NympPel'!G24 -> 0.0601984 | G27: ='Plas 2-NympPel'!H24 -> 0.0601984 | H27: ='Plas 2-NympPel'!I24 -> 0.0601984 | I27: ='Plas 2-NympPel'!J24 -> 0.0601984 | J27: ='Plas 2-NympPel'!K24 -> 0.0601984 | K27: ='Plas 2-NympPel'!L24 -> 0.0601984 | L27: ='Plas 2-NympPel'!M24 -> 0.0601984 | M27: ='Plas 2-NympPel'!N24 -> 0.0601984 | N27: ='Plas 2-NympPel'!O24 -> 0.0601984 | O27: ='Plas 2-NympPel'!P24 -> 0.0601984 | P27: ='Plas 2-NympPel'!Q24 -> 0.0601984 | Q27: ='Plas 2-NympPel'!R24 -> 0.0601984 | R27: ='Plas 2-NympPel'!S24 -> 0.0601984 | S27: ='Plas 2-NympPel'!T24 -> 0.0601984 | T27: ='Plas 2-NympPel'!U24 -> 0.0601984 | U27: ='Plas 2-NympPel'!V24 -> 0.0601984 | V27: ='Plas 2-NympPel'!W24 -> 0.0601984 | W27: ='Plas 2-NympPel'!X24 -> 0.0601984 | X27: ='Plas 2-NympPel'!Y24 -> 0.0601984 | Y27: ='Plas 2-NympPel'!Z24 -> 0.0601984 | Z27: ='Plas 2-NympPel'!AA24 -> 0.0601984 | AA27: ='Plas 2-NympPel'!AB24 -> 0.0601984 | AB27: ='Plas 2-NympPel'!AC24 -> 0.0601984 | AC27: ='Plas 2-NympPel'!AD24 -> 0.0601984 | AD27: ='Plas 2-NympPel'!AE24 -> 0.0601984 | AE27: ='Plas 2-NympPel'!AF24 -> 0.0601984 | AF27: ='Plas 2-NympPel'!AG24 -> 0.0601984 | AG27: ='Plas 2-NympPel'!AH24 -> 0.05718848 | AH27: ='Plas 2-NympPel'!AI24 -> 0.05718848 | AI27: ='Plas 2-NympPel'!AJ24 -> 0.05718848 | AJ27: ='Plas 2-NympPel'!AK24 -> 0.05718848 | AK27: ='Plas 2-NympPel'!AL24 -> 0.05718848 | AL27: ='Plas 2-NympPel'!AM24 -> 0.05718848 | AM27: ='Plas 2-NympPel'!AN24 -> 0.05718848 | AN27: ='Plas 2-NympPel'!AO24 -> 0.05718848 | AO27: ='Plas 2-NympPel'!AP24 -> 0.05718848 | AP27: ='Plas 2-NympPel'!AQ24 -> 0.05718848 | AQ27: ='Plas 2-NympPel'!AR24 -> 0.05718848 | AR27: ='Plas 2-NympPel'!AS24 -> 0.05718848 | AS27: ='Plas 2-NympPel'!AT24 -> 0.05718848 | AT27: ='Plas 2-NympPel'!AU24 -> 0.05718848 | AU27: ='Plas 2-NympPel'!AV24 -> 0.1504262 | AV27: ='Plas 2-NympPel'!AW24 -> 0.132729 | AW27: ='Plas 2-NympPel'!AX24 -> 0.1238804 | AX27: ='Plas 2-NympPel'!AY24 -> 0.1238804 | AY27: ='Plas 2-NympPel'!AZ24 -> 0.0973346 | AZ27: ='Plas 2-NympPel'!BA24 -> 0.0973346 | BA27: ='Plas 2-NympPel'!BB24 -> 0.088486 | BB27: ='Plas 2-NympPel'!BC24 -> 0.0796374 | BC27: ='Plas 2-NympPel'!BD24 -> 0.0796374 | BD27: ='Plas 2-NympPel'!BE24 -> 0.0707888 | BE27: ='Plas 2-NympPel'!BF24 -> 0.0707888 | BF27: ='Plas 2-NympPel'!BG24 -> 0.0619402 | BG27: ='Plas 2-NympPel'!BH24 -> 0.0619402 | BH27: ='Plas 2-NympPel'!BI24 -> 0.044243 | BI27: ='Plas 2-NympPel'!BJ24 -> 0.044243 | BJ27: ='Plas 2-NympPel'!BK24 -> 0.0353944 | BK27: ='Plas 2-NympPel'!BL24 -> 0.0265458 | BL27: ='Plas 2-NympPel'!BM24 -> 0.0265458 | BM27: ='Plas 2-NympPel'!BN24 -> 0.0265458 | BN27: ='Plas 2-NympPel'!BO24 -> 0.0176972 | BO27: ='Plas 2-NympPel'!BP24 -> 0.0176972 | BP27: ='Plas 2-NympPel'!BQ24 -> 0.0088486 | BQ27: ='Plas 2-NympPel'!BR24 -> 0.0088486 | BR27: ='Plas 2-NympPel'!BS24 -> 0.0088486 | BS27: ='Plas 2-NympPel'!BT24 -> 0.0088486 | BT27: ='Plas 2-NympPel'!BU24 -> 0.0088486
A28: PotaLuc | B28: Plas B oude plas - PotaLuc | C28: ='Plas 2-PotaLuc'!D28 -> 0.074997 | D28: ='Plas 2-PotaLuc'!E28 -> 0.074997 | E28: ='Plas 2-PotaLuc'!F28 -> 0.074997 | F28: ='Plas 2-PotaLuc'!G28 -> 0.074997 | G28: ='Plas 2-PotaLuc'!H28 -> 0.074997 | H28: ='Plas 2-PotaLuc'!I28 -> 0.074997 | I28: ='Plas 2-PotaLuc'!J28 -> 0.074997 | J28: ='Plas 2-PotaLuc'!K28 -> 0.074997 | K28: ='Plas 2-PotaLuc'!L28 -> 0.074997 | L28: ='Plas 2-PotaLuc'!M28 -> 0.074997 | M28: ='Plas 2-PotaLuc'!N28 -> 0.074997 | N28: ='Plas 2-PotaLuc'!O28 -> 0.074997 | O28: ='Plas 2-PotaLuc'!P28 -> 0.074997 | P28: ='Plas 2-PotaLuc'!Q28 -> 0.074997 | Q28: ='Plas 2-PotaLuc'!R28 -> 0.074997 | R28: ='Plas 2-PotaLuc'!S28 -> 0.074997 | S28: ='Plas 2-PotaLuc'!T28 -> 0.074997 | T28: ='Plas 2-PotaLuc'!U28 -> 0.074997 | U28: ='Plas 2-PotaLuc'!V28 -> 0.074997 | V28: ='Plas 2-PotaLuc'!W28 -> 0.074997 | W28: ='Plas 2-PotaLuc'!X28 -> 0.074997 | X28: ='Plas 2-PotaLuc'!Y28 -> 0.074997 | Y28: ='Plas 2-PotaLuc'!Z28 -> 0.074997 | Z28: ='Plas 2-PotaLuc'!AA28 -> 0.074997 | AA28: ='Plas 2-PotaLuc'!AB28 -> 0.074997 | AB28: ='Plas 2-PotaLuc'!AC28 -> 0.074997 | AC28: ='Plas 2-PotaLuc'!AD28 -> 0.074997 | AD28: ='Plas 2-PotaLuc'!AE28 -> 0.074997 | AE28: ='Plas 2-PotaLuc'!AF28 -> 0.074997 | AF28: ='Plas 2-PotaLuc'!AG28 -> 0.074997 | AG28: ='Plas 2-PotaLuc'!AH28 -> 0.07124715 | AH28: ='Plas 2-PotaLuc'!AI28 -> 0.07124715 | AI28: ='Plas 2-PotaLuc'!AJ28 -> 0.07124715 | AJ28: ='Plas 2-PotaLuc'!AK28 -> 0.07124715 | AK28: ='Plas 2-PotaLuc'!AL28 -> 0.07124715 | AL28: ='Plas 2-PotaLuc'!AM28 -> 0.07124715 | AM28: ='Plas 2-PotaLuc'!AN28 -> 0.07124715 | AN28: ='Plas 2-PotaLuc'!AO28 -> 0.07124715 | AO28: ='Plas 2-PotaLuc'!AP28 -> 0.07124715 | AP28: ='Plas 2-PotaLuc'!AQ28 -> 0.07124715 | AQ28: ='Plas 2-PotaLuc'!AR28 -> 0.07124715 | AR28: ='Plas 2-PotaLuc'!AS28 -> 0.07124715 | AS28: ='Plas 2-PotaLuc'!AT28 -> 0.07124715 | AT28: ='Plas 2-PotaLuc'!AU28 -> 0.07124715 | AU28: ='Plas 2-PotaLuc'!AV28 -> 0.06374745 | AV28: ='Plas 2-PotaLuc'!AW28 -> 0.05624775 | AW28: ='Plas 2-PotaLuc'!AX28 -> 0.0524979 | AX28: ='Plas 2-PotaLuc'!AY28 -> 0.0524979 | AY28: ='Plas 2-PotaLuc'!AZ28 -> 0.04124835 | AZ28: ='Plas 2-PotaLuc'!BA28 -> 0.04124835 | BA28: ='Plas 2-PotaLuc'!BB28 -> 0.0374985 | BB28: ='Plas 2-PotaLuc'!BC28 -> 0.03374865 | BC28: ='Plas 2-PotaLuc'!BD28 -> 0.03374865 | BD28: ='Plas 2-PotaLuc'!BE28 -> 0.0299988 | BE28: ='Plas 2-PotaLuc'!BF28 -> 0.0299988 | BF28: ='Plas 2-PotaLuc'!BG28 -> 0.02624895 | BG28: ='Plas 2-PotaLuc'!BH28 -> 0.02624895 | BH28: ='Plas 2-PotaLuc'!BI28 -> 0.01874925 | BI28: ='Plas 2-PotaLuc'!BJ28 -> 0.01874925 | BJ28: ='Plas 2-PotaLuc'!BK28 -> 0.0149994 | BK28: ='Plas 2-PotaLuc'!BL28 -> 0.01124955 | BL28: ='Plas 2-PotaLuc'!BM28 -> 0.01124955 | BM28: ='Plas 2-PotaLuc'!BN28 -> 0.01124955 | BN28: ='Plas 2-PotaLuc'!BO28 -> 0.0074997 | BO28: ='Plas 2-PotaLuc'!BP28 -> 0.0074997 | BP28: ='Plas 2-PotaLuc'!BQ28 -> 0.00374985 | BQ28: ='Plas 2-PotaLuc'!BR28 -> 0.00374985 | BR28: ='Plas 2-PotaLuc'!BS28 -> 0.00374985 | BS28: ='Plas 2-PotaLuc'!BT28 -> 0.00374985 | BT28: ='Plas 2-PotaLuc'!BU28 -> 0.00374985

Sheet PlotSoort (hidden)
A1: bodemhoogte (cm tov NAP) | C1: ='Interface KRW-tool Waterplanten'!$B$11 -> 470 | D1: =C1+10 -> 480 | E1: 490 | F1: 500 | G1: 510 | H1: 520 | I1: 530 | J1: 540 | K1: 550 | L1: 560 | M1: 570 | N1: 580 | O1: 590 | P1: 600 | Q1: 610 | R1: 620 | S1: 630 | T1: 640 | U1: 650 | V1: 660 | W1: 670 | X1: 680 | Y1: 690 | Z1: 700 | AA1: 710 | AB1: 720 | AC1: 730 | AD1: 740 | AE1: 750 | AF1: 760 | AG1: 770 | AH1: 780 | AI1: 790 | AJ1: =AI1+10 -> 800 | AK1: 810 | AL1: 820 | AM1: 830 | AN1: 840 | AO1: 850 | AP1: 860 | AQ1: 870 | AR1: 880 | AS1: 890 | AT1: 900 | AU1: 910 | AV1: 920 | AW1: 930 | AX1: 940 | AY1: 950 | AZ1: 960 | BA1: 970 | BB1: 980 | BC1: 990 | BD1: 1000 | BE1: 1010 | BF1: 1020 | BG1: 1030 | BH1: 1040 | BI1: =BH1+10 -> 1050 | BJ1: 1060 | BK1: 1070 | BL1: 1080 | BM1: 1090 | BN1: 1100 | BO1: 1110 | BP1: 1120 | BQ1: 1130 | BR1: 1140 | BS1: 1150 | BT1: 1160
A2: ='Interface KRW-tool Waterplanten'!$A$58 -> Ondergedoken | B2: =VLOOKUP($A$2,A9:B19,2,0) -> Submers | C2: 2 | D2: 3 | E2: 4 | F2: 5 | G2: 6 | H2: 7 | I2: 8 | J2: 9 | K2: 10 | L2: 11 | M2: 12 | N2: 13 | O2: 14 | P2: 15 | Q2: 16 | R2: 17 | S2: 18 | T2: 19 | U2: 20 | V2: 21 | W2: 22 | X2: 23 | Y2: 24 | Z2: 25 | AA2: 26 | AB2: 27 | AC2: 28 | AD2: 29 | AE2: 30 | AF2: 31 | AG2: 32 | AH2: 33 | AI2: 34 | AJ2: 35 | AK2: 36 | AL2: 37 | AM2: 38 | AN2: 39 | AO2: 40 | AP2: 41 | AQ2: 42 | AR2: 43 | AS2: 44 | AT2: 45 | AU2: 46 | AV2: 47 | AW2: 48 | AX2: 49 | AY2: 50 | AZ2: 51 | BA2: 52 | BB2: 53 | BC2: 54 | BD2: 55 | BE2: 56 | BF2: 57 | BG2: 58 | BH2: 59 | BI2: 60 | BJ2: 61 | BK2: 62 | BL2: 63 | BM2: 64 | BN2: 65 | BO2: 66 | BP2: 67 | BQ2: 68 | BR2: 69 | BS2: 70 | BT2: 71
A3: =CONCATENATE('Interface KRW-tool Waterplanten'!$B$17," ",'Interface KRW-tool Waterplanten'!$B$18) -> Plas A jonge plas | B3: =CONCATENATE(A3," - ",$B$2) -> Plas A jonge plas - Submers | C3: =VLOOKUP($B$3,'Tabel resultaten'!$B13:$BT19,C2,0) -> 0 | D3: =VLOOKUP($B$3,'Tabel resultaten'!$B13:$BT19,D2,0) -> 0 | E3: =VLOOKUP($B$3,'Tabel resultaten'!$B13:$BT19,E2,0) -> 0 | F3: =VLOOKUP($B$3,'Tabel resultaten'!$B13:$BT19,F2,0) -> 0 | G3: =VLOOKUP($B$3,'Tabel resultaten'!$B13:$BT19,G2,0) -> 0 | H3: =VLOOKUP($B$3,'Tabel resultaten'!$B13:$BT19,H2,0) -> 0 | I3: =VLOOKUP($B$3,'Tabel resultaten'!$B13:$BT19,I2,0) -> 0 | J3: =VLOOKUP($B$3,'Tabel resultaten'!$B13:$BT19,J2,0) -> 0 | K3: =VLOOKUP($B$3,'Tabel resultaten'!$B13:$BT19,K2,0) -> 0 | L3: =VLOOKUP($B$3,'Tabel resultaten'!$B13:$BT19,L2,0) -> 0 | M3: =VLOOKUP($B$3,'Tabel resultaten'!$B13:$BT19,M2,0) -> 0 | N3: =VLOOKUP($B$3,'Tabel resultaten'!$B13:$BT19,N2,0) -> 0 | O3: =VLOOKUP($B$3,'Tabel resultaten'!$B13:$BT19,O2,0) -> 0 | P3: =VLOOKUP($B$3,'Tabel resultaten'!$B13:$BT19,P2,0) -> 0 | Q3: =VLOOKUP($B$3,'Tabel resultaten'!$B13:$BT19,Q2,0) -> 0 | R3: =VLOOKUP($B$3,'Tabel resultaten'!$B13:$BT19,R2,0) -> 0 | S3: =VLOOKUP($B$3,'Tabel resultaten'!$B13:$BT19,S2,0) -> 0 | T3: =VLOOKUP($B$3,'Tabel resultaten'!$B13:$BT19,T2,0) -> 0 | U3: =VLOOKUP($B$3,'Tabel resultaten'!$B13:$BT19,U2,0) -> 0 | V3: =VLOOKUP($B$3,'Tabel resultaten'!$B13:$BT19,V2,0) -> 0 | W3: =VLOOKUP($B$3,'Tabel resultaten'!$B13:$BT19,W2,0) -> 0 | X3: =VLOOKUP($B$3,'Tabel resultaten'!$B13:$BT19,X2,0) -> 0 | Y3: =VLOOKUP($B$3,'Tabel resultaten'!$B13:$BT19,Y2,0) -> 0 | Z3: =VLOOKUP($B$3,'Tabel resultaten'!$B13:$BT19,Z2,0) -> 0 | AA3: =VLOOKUP($B$3,'Tabel resultaten'!$B13:$BT19,AA2,0) -> 0 | AB3: =VLOOKUP($B$3,'Tabel resultaten'!$B13:$BT19,AB2,0) -> 0 | AC3: =VLOOKUP($B$3,'Tabel resultaten'!$B13:$BT19,AC2,0) -> 0 | AD3: =VLOOKUP($B$3,'Tabel resultaten'!$B13:$BT19,AD2,0) -> 0 | AE3: =VLOOKUP($B$3,'Tabel resultaten'!$B13:$BT19,AE2,0) -> 0 | AF3: =VLOOKUP($B$3,'Tabel resultaten'!$B13:$BT19,AF2,0) -> 0 | AG3: =VLOOKUP($B$3,'Tabel resultaten'!$B13:$BT19,AG2,0) -> 0 | AH3: =VLOOKUP($B$3,'Tabel resultaten'!$B13:$BT19,AH2,0) -> 0 | AI3: =VLOOKUP($B$3,'Tabel resultaten'!$B13:$BT19,AI2,0) -> 0 | AJ3: =VLOOKUP($B$3,'Tabel resultaten'!$B13:$BT19,AJ2,0) -> 0 | AK3: =VLOOKUP($B$3,'Tabel resultaten'!$B13:$BT19,AK2,0) -> 0.47508645 | AL3: =VLOOKUP($B$3,'Tabel resultaten'!$B13:$BT19,AL2,0) -> 0.47508645 | AM3: =VLOOKUP($B$3,'Tabel resultaten'!$B13:$BT19,AM2,0) -> 0.47508645 | AN3: =VLOOKUP($B$3,'Tabel resultaten'!$B13:$BT19,AN2,0) -> 0.47508645 | AO3: =VLOOKUP($B$3,'Tabel resultaten'!$B13:$BT19,AO2,0) -> 0.47508645 | AP3: =VLOOKUP($B$3,'Tabel resultaten'!$B13:$BT19,AP2,0) -> 0.47508645 | AQ3: =VLOOKUP($B$3,'Tabel resultaten'!$B13:$BT19,AQ2,0) -> 0.47508645 | AR3: =VLOOKUP($B$3,'Tabel resultaten'!$B13:$BT19,AR2,0) -> 0.47508645 | AS3: =VLOOKUP($B$3,'Tabel resultaten'!$B13:$BT19,AS2,0) -> 0.47508645 | AT3: =VLOOKUP($B$3,'Tabel resultaten'!$B13:$BT19,AT2,0) -> 0.41408885 | AU3: =VLOOKUP($B$3,'Tabel resultaten'!$B13:$BT19,AU2,0) -> 0.37050055 | AV3: =VLOOKUP($B$3,'Tabel resultaten'!$B13:$BT19,AV2,0) -> 0.32691225 | AW3: =VLOOKUP($B$3,'Tabel resultaten'!$B13:$BT19,AW2,0) -> 0.3051181 | AX3: =VLOOKUP($B$3,'Tabel resultaten'!$B13:$BT19,AX2,0) -> 0.3051181 | AY3: =VLOOKUP($B$3,'Tabel resultaten'!$B13:$BT19,AY2,0) -> 0.23973565 | AZ3: =VLOOKUP($B$3,'Tabel resultaten'!$B13:$BT19,AZ2,0) -> 0.23973565 | BA3: =VLOOKUP($B$3,'Tabel resultaten'!$B13:$BT19,BA2,0) -> 0.2179415 | BB3: =VLOOKUP($B$3,'Tabel resultaten'!$B13:$BT19,BB2,0) -> 0.19614735 | BC3: =VLOOKUP($B$3,'Tabel resultaten'!$B13:$BT19,BC2,0) -> 0.19614735 | BD3: =VLOOKUP($B$3,'Tabel resultaten'!$B13:$BT19,BD2,0) -> 0.1743532 | BE3: =VLOOKUP($B$3,'Tabel resultaten'!$B13:$BT19,BE2,0) -> 0.1743532 | BF3: =VLOOKUP($B$3,'Tabel resultaten'!$B13:$BT19,BF2,0) -> 0.15255905 | BG3: =VLOOKUP($B$3,'Tabel resultaten'!$B13:$BT19,BG2,0) -> 0.15255905 | BH3: =VLOOKUP($B$3,'Tabel resultaten'!$B13:$BT19,BH2,0) -> 0.10897075 | BI3: =VLOOKUP($B$3,'Tabel resultaten'!$B13:$BT19,BI2,0) -> 0.10897075 | BJ3: =VLOOKUP($B$3,'Tabel resultaten'!$B13:$BT19,BJ2,0) -> 0.0871766 | BK3: =VLOOKUP($B$3,'Tabel resultaten'!$B13:$BT19,BK2,0) -> 0.06538245 | BL3: =VLOOKUP($B$3,'Tabel resultaten'!$B13:$BT19,BL2,0) -> 0.06538245 | BM3: =VLOOKUP($B$3,'Tabel resultaten'!$B13:$BT19,BM2,0) -> 0.06538245 | BN3: =VLOOKUP($B$3,'Tabel resultaten'!$B13:$BT19,BN2,0) -> 0.0435883 | BO3: =VLOOKUP($B$3,'Tabel resultaten'!$B13:$BT19,BO2,0) -> 0.0435883 | BP3: =VLOOKUP($B$3,'Tabel resultaten'!$B13:$BT19,BP2,0) -> 0.02179415 | BQ3: =VLOOKUP($B$3,'Tabel resultaten'!$B13:$BT19,BQ2,0) -> 0.02179415 | BR3: =VLOOKUP($B$3,'Tabel resultaten'!$B13:$BT19,BR2,0) -> 0.02179415 | BS3: =VLOOKUP($B$3,'Tabel resultaten'!$B13:$BT19,BS2,0) -> 0.02179415 | BT3: =VLOOKUP($B$3,'Tabel resultaten'!$B13:$BT19,BT2,0) -> 0.02179415
A4: =CONCATENATE('Interface KRW-tool Waterplanten'!$C$17," ",'Interface KRW-tool Waterplanten'!$C$18) -> Plas B oude plas | B4: =CONCATENATE(A4," - ",$B$2) -> Plas B oude plas - Submers | C4: =VLOOKUP($B$4,'Tabel resultaten'!$B22:$BT28,C2,0) -> 0 | D4: =VLOOKUP($B$4,'Tabel resultaten'!$B22:$BT28,D2,0) -> 0 | E4: =VLOOKUP($B$4,'Tabel resultaten'!$B22:$BT28,E2,0) -> 0 | F4: =VLOOKUP($B$4,'Tabel resultaten'!$B22:$BT28,F2,0) -> 0 | G4: =VLOOKUP($B$4,'Tabel resultaten'!$B22:$BT28,G2,0) -> 0 | H4: =VLOOKUP($B$4,'Tabel resultaten'!$B22:$BT28,H2,0) -> 0 | I4: =VLOOKUP($B$4,'Tabel resultaten'!$B22:$BT28,I2,0) -> 0 | J4: =VLOOKUP($B$4,'Tabel resultaten'!$B22:$BT28,J2,0) -> 0 | K4: =VLOOKUP($B$4,'Tabel resultaten'!$B22:$BT28,K2,0) -> 0 | L4: =VLOOKUP($B$4,'Tabel resultaten'!$B22:$BT28,L2,0) -> 0 | M4: =VLOOKUP($B$4,'Tabel resultaten'!$B22:$BT28,M2,0) -> 0 | N4: =VLOOKUP($B$4,'Tabel resultaten'!$B22:$BT28,N2,0) -> 0 | O4: =VLOOKUP($B$4,'Tabel resultaten'!$B22:$BT28,O2,0) -> 0 | P4: =VLOOKUP($B$4,'Tabel resultaten'!$B22:$BT28,P2,0) -> 0 | Q4: =VLOOKUP($B$4,'Tabel resultaten'!$B22:$BT28,Q2,0) -> 0 | R4: =VLOOKUP($B$4,'Tabel resultaten'!$B22:$BT28,R2,0) -> 0 | S4: =VLOOKUP($B$4,'Tabel resultaten'!$B22:$BT28,S2,0) -> 0 | T4: =VLOOKUP($B$4,'Tabel resultaten'!$B22:$BT28,T2,0) -> 0 | U4: =VLOOKUP($B$4,'Tabel resultaten'!$B22:$BT28,U2,0) -> 0 | V4: =VLOOKUP($B$4,'Tabel resultaten'!$B22:$BT28,V2,0) -> 0 | W4: =VLOOKUP($B$4,'Tabel resultaten'!$B22:$BT28,W2,0) -> 0 | X4: =VLOOKUP($B$4,'Tabel resultaten'!$B22:$BT28,X2,0) -> 0 | Y4: =VLOOKUP($B$4,'Tabel resultaten'!$B22:$BT28,Y2,0) -> 0 | Z4: =VLOOKUP($B$4,'Tabel resultaten'!$B22:$BT28,Z2,0) -> 0 | AA4: =VLOOKUP($B$4,'Tabel resultaten'!$B22:$BT28,AA2,0) -> 0 | AB4: =VLOOKUP($B$4,'Tabel resultaten'!$B22:$BT28,AB2,0) -> 0 | AC4: =VLOOKUP($B$4,'Tabel resultaten'!$B22:$BT28,AC2,0) -> 0 | AD4: =VLOOKUP($B$4,'Tabel resultaten'!$B22:$BT28,AD2,0) -> 0 | AE4: =VLOOKUP($B$4,'Tabel resultaten'!$B22:$BT28,AE2,0) -> 0 | AF4: =VLOOKUP($B$4,'Tabel resultaten'!$B22:$BT28,AF2,0) -> 0 | AG4: =VLOOKUP($B$4,'Tabel resultaten'!$B22:$BT28,AG2,0) -> 0 | AH4: =VLOOKUP($B$4,'Tabel resultaten'!$B22:$BT28,AH2,0) -> 0 | AI4: =VLOOKUP($B$4,'Tabel resultaten'!$B22:$BT28,AI2,0) -> 0 | AJ4: =VLOOKUP($B$4,'Tabel resultaten'!$B22:$BT28,AJ2,0) -> 0 | AK4: =VLOOKUP($B$4,'Tabel resultaten'!$B22:$BT28,AK2,0) -> 0.005337271 | AL4: =VLOOKUP($B$4,'Tabel resultaten'!$B22:$BT28,AL2,0) -> 0.005337271 | AM4: =VLOOKUP($B$4,'Tabel resultaten'!$B22:$BT28,AM2,0) -> 0.005337271 | AN4: =VLOOKUP($B$4,'Tabel resultaten'!$B22:$BT28,AN2,0) -> 0.005337271 | AO4: =VLOOKUP($B$4,'Tabel resultaten'!$B22:$BT28,AO2,0) -> 0.35663855 | AP4: =VLOOKUP($B$4,'Tabel resultaten'!$B22:$BT28,AP2,0) -> 0.35663855 | AQ4: =VLOOKUP($B$4,'Tabel resultaten'!$B22:$BT28,AQ2,0) -> 0.35663855 | AR4: =VLOOKUP($B$4,'Tabel resultaten'!$B22:$BT28,AR2,0) -> 0.35663855 | AS4: =VLOOKUP($B$4,'Tabel resultaten'!$B22:$BT28,AS2,0) -> 0.35663855 | AT4: =VLOOKUP($B$4,'Tabel resultaten'!$B22:$BT28,AT2,0) -> 0.35663855 | AU4: =VLOOKUP($B$4,'Tabel resultaten'!$B22:$BT28,AU2,0) -> 0.31909765 | AV4: =VLOOKUP($B$4,'Tabel resultaten'!$B22:$BT28,AV2,0) -> 0.28155675 | AW4: =VLOOKUP($B$4,'Tabel resultaten'!$B22:$BT28,AW2,0) -> 0.2627863 | AX4: =VLOOKUP($B$4,'Tabel resultaten'!$B22:$BT28,AX2,0) -> 0.2627863 | AY4: =VLOOKUP($B$4,'Tabel resultaten'!$B22:$BT28,AY2,0) -> 0.20647495 | AZ4: =VLOOKUP($B$4,'Tabel resultaten'!$B22:$BT28,AZ2,0) -> 0.20647495 | BA4: =VLOOKUP($B$4,'Tabel resultaten'!$B22:$BT28,BA2,0) -> 0.1877045 | BB4: =VLOOKUP($B$4,'Tabel resultaten'!$B22:$BT28,BB2,0) -> 0.16893405 | BC4: =VLOOKUP($B$4,'Tabel resultaten'!$B22:$BT28,BC2,0) -> 0.16893405 | BD4: =VLOOKUP($B$4,'Tabel resultaten'!$B22:$BT28,BD2,0) -> 0.1501636 | BE4: =VLOOKUP($B$4,'Tabel resultaten'!$B22:$BT28,BE2,0) -> 0.1501636 | BF4: =VLOOKUP($B$4,'Tabel resultaten'!$B22:$BT28,BF2,0) -> 0.13139315 | BG4: =VLOOKUP($B$4,'Tabel resultaten'!$B22:$BT28,BG2,0) -> 0.13139315 | BH4: =VLOOKUP($B$4,'Tabel resultaten'!$B22:$BT28,BH2,0) -> 0.09385225 | BI4: =VLOOKUP($B$4,'Tabel resultaten'!$B22:$BT28,BI2,0) -> 0.09385225 | BJ4: =VLOOKUP($B$4,'Tabel resultaten'!$B22:$BT28,BJ2,0) -> 0.0750818 | BK4: =VLOOKUP($B$4,'Tabel resultaten'!$B22:$BT28,BK2,0) -> 0.05631135 | BL4: =VLOOKUP($B$4,'Tabel resultaten'!$B22:$BT28,BL2,0) -> 0.05631135 | BM4: =VLOOKUP($B$4,'Tabel resultaten'!$B22:$BT28,BM2,0) -> 0.05631135 | BN4: =VLOOKUP($B$4,'Tabel resultaten'!$B22:$BT28,BN2,0) -> 0.0375409 | BO4: =VLOOKUP($B$4,'Tabel resultaten'!$B22:$BT28,BO2,0) -> 0.0375409 | BP4: =VLOOKUP($B$4,'Tabel resultaten'!$B22:$BT28,BP2,0) -> 0.01877045 | BQ4: =VLOOKUP($B$4,'Tabel resultaten'!$B22:$BT28,BQ2,0) -> 0.01877045 | BR4: =VLOOKUP($B$4,'Tabel resultaten'!$B22:$BT28,BR2,0) -> 0.01877045 | BS4: =VLOOKUP($B$4,'Tabel resultaten'!$B22:$BT28,BS2,0) -> 0.01877045 | BT4: =VLOOKUP($B$4,'Tabel resultaten'!$B22:$BT28,BT2,0) -> 0.01877045
A6: ='Interface KRW-tool Waterplanten'!$A$31 -> Helofyten | B6: =VLOOKUP($A$6,A9:B19,2,0) -> Helofyten
A7: Geul | B7: =CONCATENATE(A7," - ",$B$6) -> Geul - Helofyten | C7: =VLOOKUP($B$7,'Tabel resultaten'!$B$4:$BT$10,C2,0) -> 0 | D7: =VLOOKUP($B$7,'Tabel resultaten'!$B$4:$BH$10,D2,0) -> 0 | E7: =VLOOKUP($B$7,'Tabel resultaten'!$B$4:$BH$10,E2,0) -> 0 | F7: =VLOOKUP($B$7,'Tabel resultaten'!$B$4:$BH$10,F2,0) -> 0 | G7: =VLOOKUP($B$7,'Tabel resultaten'!$B$4:$BH$10,G2,0) -> 0 | H7: =VLOOKUP($B$7,'Tabel resultaten'!$B$4:$BH$10,H2,0) -> 0 | I7: =VLOOKUP($B$7,'Tabel resultaten'!$B$4:$BH$10,I2,0) -> 0 | J7: =VLOOKUP($B$7,'Tabel resultaten'!$B$4:$BH$10,J2,0) -> 0 | K7: =VLOOKUP($B$7,'Tabel resultaten'!$B$4:$BH$10,K2,0) -> 0 | L7: =VLOOKUP($B$7,'Tabel resultaten'!$B$4:$BH$10,L2,0) -> 0 | M7: =VLOOKUP($B$7,'Tabel resultaten'!$B$4:$BH$10,M2,0) -> 0 | N7: =VLOOKUP($B$7,'Tabel resultaten'!$B$4:$BH$10,N2,0) -> 0 | O7: =VLOOKUP($B$7,'Tabel resultaten'!$B$4:$BH$10,O2,0) -> 0 | P7: =VLOOKUP($B$7,'Tabel resultaten'!$B$4:$BH$10,P2,0) -> 0 | Q7: =VLOOKUP($B$7,'Tabel resultaten'!$B$4:$BH$10,Q2,0) -> 0 | R7: =VLOOKUP($B$7,'Tabel resultaten'!$B$4:$BH$10,R2,0) -> 0 | S7: =VLOOKUP($B$7,'Tabel resultaten'!$B$4:$BH$10,S2,0) -> 0 | T7: =VLOOKUP($B$7,'Tabel resultaten'!$B$4:$BH$10,T2,0) -> 0 | U7: =VLOOKUP($B$7,'Tabel resultaten'!$B$4:$BH$10,U2,0) -> 0 | V7: =VLOOKUP($B$7,'Tabel resultaten'!$B$4:$BH$10,V2,0) -> 0 | W7: =VLOOKUP($B$7,'Tabel resultaten'!$B$4:$BH$10,W2,0) -> 0 | X7: =VLOOKUP($B$7,'Tabel resultaten'!$B$4:$BH$10,X2,0) -> 0 | Y7: =VLOOKUP($B$7,'Tabel resultaten'!$B$4:$BH$10,Y2,0) -> 0 | Z7: =VLOOKUP($B$7,'Tabel resultaten'!$B$4:$BH$10,Z2,0) -> 0 | AA7: =VLOOKUP($B$7,'Tabel resultaten'!$B$4:$BH$10,AA2,0) -> 0 | AB7: =VLOOKUP($B$7,'Tabel resultaten'!$B$4:$BH$10,AB2,0) -> 0 | AC7: =VLOOKUP($B$7,'Tabel resultaten'!$B$4:$BH$10,AC2,0) -> 0 | AD7: =VLOOKUP($B$7,'Tabel resultaten'!$B$4:$BH$10,AD2,0) -> 0 | AE7: =VLOOKUP($B$7,'Tabel resultaten'!$B$4:$BH$10,AE2,0) -> 0 | AF7: =VLOOKUP($B$7,'Tabel resultaten'!$B$4:$BH$10,AF2,0) -> 0 | AG7: =VLOOKUP($B$7,'Tabel resultaten'!$B$4:$BH$10,AG2,0) -> 0 | AH7: =VLOOKUP($B$7,'Tabel resultaten'!$B$4:$BH$10,AH2,0) -> 0.2398027918 | AI7: =VLOOKUP($B$7,'Tabel resultaten'!$B$4:$BH$10,AI2,0) -> 0.2659080725 | AJ7: =VLOOKUP($B$7,'Tabel resultaten'!$B$4:$BH$10,AJ2,0) -> 0.2883258062 | AK7: =VLOOKUP($B$7,'Tabel resultaten'!$B$4:$BH$10,AK2,0) -> 0.3069813521 | AL7: =VLOOKUP($B$7,'Tabel resultaten'!$B$4:$BH$10,AL2,0) -> 0.3209904598 | AM7: =VLOOKUP($B$7,'Tabel resultaten'!$B$4:$BH$10,AM2,0) -> 0.330292766 | AN7: =VLOOKUP($B$7,'Tabel resultaten'!$B$4:$BH$10,AN2,0) -> 0.3362192444 | AO7: =VLOOKUP($B$7,'Tabel resultaten'!$B$4:$BH$10,AO2,0) -> 0.338434274 | AP7: =VLOOKUP($B$7,'Tabel resultaten'!$B$4:$BH$10,AP2,0) -> 0.3339100549 | AQ7: =VLOOKUP($B$7,'Tabel resultaten'!$B$4:$BH$10,AQ2,0) -> 0.3241070846 | AR7: =VLOOKUP($B$7,'Tabel resultaten'!$B$4:$BH$10,AR2,0) -> 0.3110702517 | AS7: =VLOOKUP($B$7,'Tabel resultaten'!$B$4:$BH$10,AS2,0) -> 0.2962224255 | AT7: =VLOOKUP($B$7,'Tabel resultaten'!$B$4:$BH$10,AT2,0) -> 0.2773223317 | AU7: =VLOOKUP($B$7,'Tabel resultaten'!$B$4:$BH$10,AU2,0) -> 0.2579062329 | AV7: =VLOOKUP($B$7,'Tabel resultaten'!$B$4:$BH$10,AV2,0) -> 0.2337047884 | AW7: =VLOOKUP($B$7,'Tabel resultaten'!$B$4:$BH$10,AW2,0) -> 0.2062049264 | AX7: =VLOOKUP($B$7,'Tabel resultaten'!$B$4:$BH$10,AX2,0) -> 0 | AY7: =VLOOKUP($B$7,'Tabel resultaten'!$B$4:$BH$10,AY2,0) -> 0 | AZ7: =VLOOKUP($B$7,'Tabel resultaten'!$B$4:$BH$10,AZ2,0) -> 0 | BA7: =VLOOKUP($B$7,'Tabel resultaten'!$B$4:$BH$10,BA2,0) -> 0 | BB7: =VLOOKUP($B$7,'Tabel resultaten'!$B$4:$BH$10,BB2,0) -> 0 | BC7: =VLOOKUP($B$7,'Tabel resultaten'!$B$4:$BH$10,BC2,0) -> 0 | BD7: =VLOOKUP($B$7,'Tabel resultaten'!$B$4:$BH$10,BD2,0) -> 0 | BE7: =VLOOKUP($B$7,'Tabel resultaten'!$B$4:$BH$10,BE2,0) -> 0 | BF7: =VLOOKUP($B$7,'Tabel resultaten'!$B$4:$BH$10,BF2,0) -> 0 | BG7: =VLOOKUP($B$7,'Tabel resultaten'!$B$4:$BH$10,BG2,0) -> 0 | BH7: =VLOOKUP($B$7,'Tabel resultaten'!$B$4:$BH$10,BH2,0) -> 0 | BI7: =VLOOKUP($B$7,'Tabel resultaten'!$B$4:$BH$10,BI2,0) ->  | BJ7: =VLOOKUP($B$7,'Tabel resultaten'!$B$4:$BH$10,BJ2,0) ->  | BK7: =VLOOKUP($B$7,'Tabel resultaten'!$B$4:$BH$10,BK2,0) ->  | BL7: =VLOOKUP($B$7,'Tabel resultaten'!$B$4:$BH$10,BL2,0) ->  | BM7: =VLOOKUP($B$7,'Tabel resultaten'!$B$4:$BH$10,BM2,0) ->  | BN7: =VLOOKUP($B$7,'Tabel resultaten'!$B$4:$BH$10,BN2,0) ->  | BO7: =VLOOKUP($B$7,'Tabel resultaten'!$B$4:$BH$10,BO2,0) ->  | BP7: =VLOOKUP($B$7,'Tabel resultaten'!$B$4:$BH$10,BP2,0) ->  | BQ7: =VLOOKUP($B$7,'Tabel resultaten'!$B$4:$BH$10,BQ2,0) ->  | BR7: =VLOOKUP($B$7,'Tabel resultaten'!$B$4:$BH$10,BR2,0) ->  | BS7: =VLOOKUP($B$7,'Tabel resultaten'!$B$4:$BH$10,BS2,0) ->  | BT7: =VLOOKUP($B$7,'Tabel resultaten'!$B$4:$BH$10,BT2,0) -> 
A9: Gewoon kransblad (Chara vulgaris) | B9: CharVul
A10: Gele plomp (Nuphar lutea) | B10: NuphLut
A11: Watergentiaan (Nymphoides peltata) | B11: NympPel
A12: Glanzig fonteinkruid (Potamogeton lucens) | B12: PotaLuc
A13: Rivierfonteinkruid (Potamogeton nodosus) | B13: PotNod
A14: Schedefonteinkruid (Potamogeton pectinatus) | B14: PotPec
A15: Riet (Phragmites australis) | B15: PragAus
A16: Ondergedoken | B16: Submers
A17: Drijvend | B17: Drijvend
A18: Helofyten | B18: Helofyten
A19: Droogvalpercentage | B19: Droogval

Sheet Overstromingsklasse (hidden)
A1: min dg/jr | B1: klasse | C1: Overstromingsklasse
A2: 0 | B2: 1 | C2: 1 (<2 dg/jr)
A3: 2 | B3: 2 | C3: 2 (2-20 dg/jr)
A4: 20 | B4: 3 | C4: 3 (20-50 dg/jr)
A5: 50 | B5: 4 | C5: 4 (50-150 dg/jr)
A6: 150 | B6: 5 | C6: 5 (>150 dg/jr)

Sheet Geul-Submers (hidden)
A1: NEVENGEUL SUBMERS
A2: optimale diepte mei | B2: 118 | C2: cm
A3: optimale diepte juli | B3: 90 | C3: cm
A4: max distance | B4: 75 | C4: cm
A5: max bedekking | B5: 70 | C5: %
A6: minimaal jaren uit 10 jaar | B6: 8 | C6: -
D7: ='Interface KRW-tool Waterplanten'!$B$11 -> 470 | E7: =D7+10 -> 480 | F7: =E7+10 -> 490 | G7: 500 | H7: 510 | I7: 520 | J7: 530 | K7: 540 | L7: 550 | M7: 560 | N7: 570 | O7: 580 | P7: 590 | Q7: 600 | R7: 610 | S7: 620 | T7: 630 | U7: =T7+10 -> 640 | V7: 650 | W7: 660 | X7: 670 | Y7: 680 | Z7: 690 | AA7: 700 | AB7: 710 | AC7: =AB7+10 -> 720 | AD7: 730 | AE7: 740 | AF7: 750 | AG7: 760 | AH7: 770 | AI7: 780 | AJ7: 790 | AK7: =AJ7+10 -> 800 | AL7: 810 | AM7: 820 | AN7: 830 | AO7: 840 | AP7: 850 | AQ7: 860 | AR7: 870 | AS7: 880 | AT7: 890 | AU7: 900 | AV7: 910 | AW7: 920 | AX7: 930 | AY7: 940 | AZ7: 950 | BA7: 960 | BB7: =BA7+10 -> 970 | BC7: 980 | BD7: 990 | BE7: 1000 | BF7: 1010 | BG7: 1020 | BH7: 1030 | BI7: 1040 | BJ7: 1050
B8: peil in mei | C8: peil in juli
B9: (cm NAP) | C9: (cm NAP)
A10: =Waterstand_obv_Lobith!Y30 -> 1998 | B10: =Waterstand_obv_Lobith!Z30 -> 944.4287634 | C10: =Waterstand_obv_Lobith!AA30 -> 883.8665323 | D10: =SQRT(($B10-D$7-$B$2)^2+($C10-D$7-$B$3)^2) -> 481.592145 | E10: 467.4666707 | F10: 453.3422353 | G10: 439.218939 | H10: 425.0968954 | I10: 410.9762336 | J10: 396.857101 | K10: 382.739667 | L10: 368.6241267 | M10: 354.5107063 | N10: =SQRT(($B10-N$7-$B$2)^2+($C10-N$7-$B$3)^2) -> 340.3996695 | O10: 326.2913255 | P10: 312.1860393 | Q10: 298.0842452 | R10: 283.9864633 | S10: 269.8933223 | T10: 255.8055893 | U10: 241.7242098 | V10: 227.6503628 | W10: 213.5855373 | X10: =SQRT(($B10-X$7-$B$2)^2+($C10-X$7-$B$3)^2) -> 199.5316412 | Y10: 185.4911586 | Z10: 171.4673847 | AA10: 157.4647837 | AB10: 143.4895543 | AC10: 129.5505549 | AD10: 115.6608852 | AE10: 101.8407308 | AF10: 88.12280371 | AG10: 74.56354752 | AH10: =SQRT(($B10-AH$7-$B$2)^2+($C10-AH$7-$B$3)^2) -> 61.26839891 | AI10: 48.45524524 | AJ10: 36.63338474 | AK10: 27.13114379 | AL10: 23.02592125 | AM10: 26.91258322 | AN10: 36.30951971 | AO10: 48.08820341 | AP10: 60.88160144 | AQ10: 74.16645792 | AR10: =SQRT(($B10-AR$7-$B$2)^2+($C10-AR$7-$B$3)^2) -> 87.71976725 | AS10: 101.4339768 | AT10: 115.2516626 | AU10: 129.1396137 | AV10: 143.0773704 | AW10: 157.051673 | AX10: 171.0535649 | AY10: 185.0767845 | AZ10: 199.1168256 | BA10: 213.1703646 | BB10: =SQRT(($B10-BB$7-$B$2)^2+($C10-BB$7-$B$3)^2) -> 227.234897 | BC10: 241.3085007 | BD10: 255.389676 | BE10: 269.4772359 | BF10: 283.570229 | BG10: 297.6678835 | BH10: 311.7695671 | BI10: 325.8747567 | BJ10: 339.9830159
A11: =Waterstand_obv_Lobith!Y31 -> 1999 | B11: =Waterstand_obv_Lobith!Z31 -> 1167.324194 | C11: =Waterstand_obv_Lobith!AA31 -> 1041.140995 | D11: 753.0691721 | E11: 738.9884127 | F11: 724.910043 | G11: 710.8342048 | H11: 696.7610515 | I11: 682.6907493 | J11: 668.623478 | K11: 654.5594332 | L11: 640.4988273 | M11: 626.441892 | N11: 612.38888 | O11: 598.3400676 | P11: 584.295758 | Q11: 570.2562836 | R11: 556.2220108 | S11: 542.1933433 | T11: 528.1707278 | U11: 514.1546596 | V11: 500.145689 | W11: 486.1444296 | X11: 472.1515675 | Y11: 458.167872 | Z11: 444.1942088 | AA11: 430.2315555 | AB11: 416.28102 | AC11: 402.3438627 | AD11: 388.4215237 | AE11: 374.5156556 | AF11: 360.6281638 | AG11: 346.7612562 | AH11: 332.9175048 | AI11: 319.0999236 | AJ11: 305.3120658 | AK11: 291.5581481 | AL11: 277.8432111 | AM11: 264.1733261 | AN11: 250.5558669 | AO11: 236.9998707 | AP11: 223.5165205 | AQ11: 210.1198019 | AR11: 196.8274051 | AS11: 183.661982 | AT11: 170.6529223 | AU11: 157.8388929 | AV11: 145.2715125 | AW11: 133.0207073 | AX11: 121.1825269 | AY11: 109.8904048 | AZ11: 99.33074697 | BA11: 89.76242827 | BB11: 81.53520568 | BC11: 75.09118459 | BD11: 70.91813759 | BE11: 69.426785 | BF11: 70.78682584 | BG11: 74.84297528 | BH11: 81.19216209 | BI11: 89.34687136 | BJ11: 98.86131528
A12: =Waterstand_obv_Lobith!Y32 -> 2000 | B12: =Waterstand_obv_Lobith!Z32 -> 992.6962366 | C12: =Waterstand_obv_Lobith!AA32 -> 1004.294758 | D12: 600.9799297 | E12: 586.8535218 | F12: 572.7278901 | G12: 558.6030937 | H12: 544.4791974 | I12: 530.3562731 | J12: 516.2344008 | K12: 502.1136691 | L12: 487.994177 | M12: 473.8760354 | N12: 459.7593686 | O12: 445.6443168 | P12: 431.5310385 | Q12: 417.4197136 | R12: 403.3105471 | S12: 389.2037738 | T12: 375.0996636 | U12: 360.9985287 | V12: 346.900732 | W12: 332.8066976 | X12: 318.7169247 | Y12: 304.6320045 | Z12: 290.5526429 | AA12: 276.4796889 | AB12: 262.4141736 | AC12: 248.3573607 | AD12: 234.3108165 | AE12: 220.2765054 | AF12: 206.2569246 | AG12: 192.2552965 | AH12: 178.2758513 | AI12: 164.3242504 | AJ12: 150.4082424 | AK12: 136.5387105 | AL12: 122.7314124 | AM12: 109.0099981 | AN12: 95.41152865 | AO12: 81.99719451 | AP12: 68.87466889 | AQ12: 56.24855662 | AR12: 44.5430155 | AS12: 34.70245434 | AT12: 28.71307098 | AU12: 29.06235628 | AV12: 35.56403605 | AW12: 45.66158963 | AX12: 57.49052857 | AY12: 70.1807736 | AZ12: 83.33979296 | BA12: 96.77655293 | BB12: 110.3896793 | BC12: 124.1211562 | BD12: 137.9356427 | BE12: 151.8104793 | BF12: 165.7305094 | BG12: 179.6852299 | BH12: 193.6671422 | BI12: 207.670754 | BJ12: 221.6919533
A13: =Waterstand_obv_Lobith!Y33 -> 2001 | B13: =Waterstand_obv_Lobith!Z33 -> 1118.106048 | C13: =Waterstand_obv_Lobith!AA33 -> 1010.370968 | D13: 695.5907066 | E13: 681.4960681 | F13: 667.4034391 | G13: 653.3129496 | H13: 639.2247413 | I13: 625.1389682 | J13: 611.0557987 | K13: 596.9754173 | L13: 582.8980259 | M13: 568.8238464 | N13: 554.7531234 | O13: 540.6861267 | P13: 526.6231549 | Q13: 512.5645393 | R13: 498.5106484 | S13: 484.4618935 | T13: 470.4187347 | U13: 456.3816885 | V13: 442.351337 | W13: 428.3283378 | X13: 414.3134377 | Y13: 400.3074872 | Z13: 386.3114599 | AA13: 372.3264746 | AB13: 358.3538243 | AC13: 344.3950102 | AD13: 330.4517858 | AE13: 316.5262113 | AF13: 302.6207232 | AG13: 288.7382236 | AH13: 274.8821956 | AI13: 261.0568542 | AJ13: 247.2673468 | AK13: 233.5200216 | AL13: 219.8227926 | AM13: 206.1856441 | AN13: 192.6213371 | AO13: 179.1464183 | AP13: 165.7826857 | AQ13: 152.5593607 | AR13: 139.5163726 | AS13: 126.7094231 | AT13: 114.2179389 | AU13: 102.1577077 | AV13: 90.70092021 | AW13: 80.10690735 | AX13: 70.76423025 | AY13: 63.2300242 | AZ13: 58.21078626 | BA13: 56.38222517 | BB13: 58.0466622 | BC13: 62.92753507 | BD13: 70.35861246 | BE13: 79.62910287 | BF13: 90.17346451 | BG13: 101.5958335 | BH13: 113.6317432 | BI13: 126.1056412 | BJ13: 138.8995767
A14: =Waterstand_obv_Lobith!Y34 -> 2002 | B14: =Waterstand_obv_Lobith!Z34 -> 1063.945296 | C14: =Waterstand_obv_Lobith!AA34 -> 957.6646505 | D14: 620.2105278 | E14: 606.1261419 | F14: 592.0445093 | G14: 577.9658312 | H14: 563.890329 | I14: 549.8182465 | J14: 535.7498532 | K14: 521.6854477 | L14: 507.6253613 | M14: 493.5699631 | N14: 479.5196654 | O14: 465.4749302 | P14: 451.4362764 | Q14: 437.4042898 | R14: 423.3796332 | S14: 409.36306 | T14: 395.3554299 | U14: 381.3577285 | V14: 367.3710905 | W14: 353.3968297 | X14: 339.4364746 | Y14: 325.4918146 | Z14: 311.564957 | AA14: 297.6584007 | AB14: 283.7751303 | AC14: 269.918739 | AD14: 256.0935898 | AE14: 242.3050305 | AF14: 228.5596834 | AG14: 214.8658418 | AH14: 201.2340206 | AI14: 187.6777347 | AJ14: 174.2146182 | AK14: 160.8680648 | AL14: 147.6696832 | AM14: 134.6630477 | AN14: 121.9095464 | AO14: 109.4976647 | AP14: 97.55787844 | AQ14: 86.28638781 | AR14: 75.9811937 | AS14: 67.0890667 | AT14: 60.23905665 | AU14: 56.18313823 | AV14: 55.53688951 | AW14: 58.41358722 | AX14: 64.34242961 | AY14: 72.57926235 | AZ14: 82.43512842 | BA14: 93.39888368 | BB14: 105.1244622 | BC14: 117.3837877 | BD14: 130.025977 | BE14: 142.9494868 | BF14: 156.0844542 | BG14: 169.381693 | BH14: 182.8057959 | BI14: 196.3307415 | BJ14: 209.9370409
A15: =Waterstand_obv_Lobith!Y35 -> 2003 | B15: =Waterstand_obv_Lobith!Z35 -> 922.0501344 | C15: =Waterstand_obv_Lobith!AA35 -> 830.1151882 | D15: 429.5948174 | E15: 415.5338743 | F15: 401.4786349 | G15: 387.4297199 | H15: 373.3878431 | I15: 359.3538297 | J15: 345.3286384 | K15: 331.3133894 | L15: 317.3094004 | M15: 303.3182308 | N15: 289.3417403 | O15: 275.3821639 | P15: 261.4422111 | Q15: 247.5251973 | R15: 233.6352218 | S15: 219.777411 | T15: 205.9582578 | U15: 192.1861012 | V15: 178.4718214 | W15: 164.8298656 | X15: 151.2798009 | Y15: 137.8487276 | Z15: 124.5751389 | AA15: 111.515285 | AB15: 98.75399911 | AC15: 86.42364196 | AD15: 74.73780461 | AE15: 64.05023799 | AF15: 54.94657891 | AG15: 48.3303226 | AH15: 45.3046756 | AI15: 46.5747483 | AJ15: 51.82567634 | AK15: 60.02161508 | AL15: 70.13763487 | AM15: 81.46153309 | AN15: 93.55573163 | AO15: 106.1572818 | AP15: 119.105256 | AQ15: 132.2979802 | AR15: 145.668971 | AS15: 159.1733101 | AT15: 172.7797332 | AU15: 186.4658944 | AV15: 200.2154422 | AW15: 214.0161603 | AX15: 227.858751 | AY15: 241.7360212 | AZ15: 255.6423234 | BA15: 269.5731646 | BB15: 283.5249277 | BC15: 297.4946691 | BD15: 311.47997 | BE15: 325.4788246 | BF15: 339.4895562 | BG15: 353.5107528 | BH15: 367.5412166 | BI15: 381.5799254 | BJ15: 395.6260014
A16: =Waterstand_obv_Lobith!Y36 -> 2004 | B16: =Waterstand_obv_Lobith!Z36 -> 963.3307796 | C16: =Waterstand_obv_Lobith!AA36 -> 909.3990591 | D16: 512.7893297 | E16: 498.6564948 | F16: 484.5242028 | G16: 470.3925024 | H16: 456.2614486 | I16: 442.1311036 | J16: 428.0015374 | K16: 413.8728297 | L16: 399.7450718 | M16: 385.6183679 | N16: 371.4928383 | O16: 357.3686222 | P16: 343.2458817 | Q16: 329.124807 | R16: 315.0056218 | S16: 300.8885924 | T16: 286.7740369 | U16: 272.6623396 | V16: 258.5539686 | W16: 244.4494997 | X16: 230.3496497 | Y16: 216.2553222 | Z16: 202.167672 | AA16: 188.0881996 | AB16: 174.0188899 | AC16: 159.9624245 | AD16: 145.9225154 | AE16: 131.9044492 | AF16: 117.9160165 | AG16: 103.9691789 | AH16: 90.08325813 | AI16: 76.29152391 | AJ16: 62.65620357 | AK16: 49.30723144 | AL16: 36.55962661 | AM16: 25.33790685 | AN16: 18.63901149 | AO16: 21.27947309 | AP16: 30.95511591 | AQ16: 43.16969338 | AR16: 56.29409962 | AS16: 69.81711021 | AT16: 83.54538948 | AU16: 97.39217284 | AV16: 111.3132452 | AW16: 125.2838449 | AX16: 139.2890699 | AY16: 153.319432 | AZ16: 167.3686095 | BA16: 181.4322317 | BB16: 195.5071812 | BC16: 209.5911762 | BD16: 223.6825079 | BE16: 237.7798721 | BF16: 251.8822559 | BG16: 265.9888607 | BH16: 280.099049 | BI16: 294.2123051 | BJ16: 308.3282078
A17: =Waterstand_obv_Lobith!Y37 -> 2005 | B17: =Waterstand_obv_Lobith!Z37 -> 1036.312634 | C17: =Waterstand_obv_Lobith!AA37 -> 889.2451613 | D17: 556.225309 | E17: 542.2503467 | F17: 528.284282 | G17: 514.3278397 | H17: 500.381825 | I17: 486.4471347 | J17: 472.5247707 | K17: 458.6158556 | L17: 444.7216513 | M17: 430.8435809 | N17: 416.9832554 | O17: 403.142505 | P17: 389.3234175 | Q17: 375.5283844 | R17: 361.7601576 | S17: 348.0219184 | T17: 334.3173639 | U17: 320.650813 | V17: 307.0273407 | W17: 293.4529469 | X17: 279.9347712 | Y17: 266.4813693 | Z17: 253.1030705 | AA17: 239.8124442 | AB17: 226.6249158 | AC17: 213.5595855 | AD17: 200.6403266 | AE17: 187.8972717 | AF17: 175.3688365 | AG17: 163.1044846 | AH17: 151.1685053 | AI17: 139.6451255 | AJ17: 128.6452687 | AK17: 118.3150423 | AL17: 108.8452724 | AM17: 100.4795373 | AN17: 93.51460581 | AO17: 88.28264601 | AP17: 85.10387578 | AQ17: 84.2111261 | AR17: 85.67588835 | AS17: 89.38233567 | AT17: 95.06863845 | AU17: 102.4055179 | AV17: 111.0663504 | AW17: 120.7666273 | AX17: 131.2761302 | AY17: 142.4158223 | AZ17: 154.0490524 | BA17: 166.0721368 | BB17: 178.4062743 | BC17: 190.9912113 | BD17: 203.780487 | BE17: 216.7379315 | BF17: 229.835104 | BG17: 243.0494171 | BH17: 256.3627571 | BI17: 269.7604628 | BJ17: 283.2305623
A18: =Waterstand_obv_Lobith!Y38 -> 2006 | B18: =Waterstand_obv_Lobith!Z38 -> 1051.970565 | C18: =Waterstand_obv_Lobith!AA38 -> 868.7884409 | D18: 557.3320249 | E18: 543.4738318 | F18: 529.6306503 | G18: 515.803689 | H18: 501.9942883 | I18: 488.2039383 | J18: 474.4343003 | K18: 460.6872314 | L18: 446.9648141 | M18: 433.2693908 | N18: 419.6036045 | O18: 405.9704481 | P18: 392.3733231 | Q18: 378.8161091 | R18: 365.30325 | S18: 351.8398561 | T18: 338.431831 | U18: 325.0860257 | V18: 311.8104296 | W18: 298.6144067 | X18: 285.5089907 | Y18: 272.5072544 | Z18: 259.6247746 | AA18: 246.8802209 | AB18: 234.2961019 | AC18: 221.8997144 | AD18: 209.7243504 | AE18: 197.8108264 | AF18: 186.2094061 | AG18: 174.9821786 | AH18: 164.2059156 | AI18: 153.9753312 | AJ18: 144.406449 | AK18: 135.6393837 | AL18: 127.8392048 | AM18: 121.1927481 | AN18: 115.8986716 | AO18: 112.1486601 | AP18: 110.1005988 | AQ18: 109.8497235 | AR18: 111.4081758 | AS18: 114.7022299 | AT18: 119.5885506 | AU18: 125.8818546 | AV18: 133.3831369 | AW18: 141.9009553 | AX18: 151.2636804 | AY18: 161.3242725 | AZ18: 171.9602884 | BA18: 183.0714633 | BB18: 194.5764132 | BC18: 206.4093032 | BD18: 218.5168651 | BE18: 230.8558863 | BF18: 243.3911669 | BG18: 256.0938891 | BH18: 268.9403278 | BI18: 281.9108366 | BJ18: 294.9890502
A19: =Waterstand_obv_Lobith!Y39 -> 2007 | B19: =Waterstand_obv_Lobith!Z39 -> 901.888172 | C19: =Waterstand_obv_Lobith!AA39 -> 1041.144086 | D19: 574.4783861 | E19: 560.6467434 | F19: 546.8309846 | G19: 533.0323448 | H19: 519.2521886 | I19: 505.4920279 | J19: 491.753541 | K19: 478.0385967 | L19: 464.349281 | M19: 450.6879293 | N19: 437.0571638 | O19: 423.4599382 | P19: 409.8995903 | Q19: 396.3799048 | R19: 382.9051891 | S19: 369.480363 | T19: 356.111069 | U19: 342.8038044 | V19: 329.5660831 | W19: 316.4066339 | X19: 303.3356439 | Y19: 290.3650593 | Z19: 277.5089593 | AA19: 264.7840202 | AB19: 252.2100953 | AC19: 239.8109402 | AD19: 227.6151178 | AE19: 215.6571277 | AF19: 203.9788017 | AG19: 192.631011 | AH19: 181.6757034 | AI19: 171.1882474 | AJ19: 161.2599482 | AK19: 152.0004136 | AL19: 143.5391256 | AM19: 136.0251279 | AN19: 129.6232628 | AO19: 124.5052011 | AP19: 120.8341836 | AQ19: 118.7444936 | AR19: 118.319946 | AS19: 119.5782775 | AT19: 122.4676255 | AU19: 126.8766098 | AV19: 132.6537936 | AW19: 139.6294518 | AX19: 147.6337991 | AY19: 156.5090843 | AZ19: 166.1157678 | BA19: 176.3343505 | BB19: 187.0645824 | BC19: 198.2233912 | BD19: 209.7423841 | BE19: 221.5653911 | BF19: 233.6462654 | BG19: 245.9470109 | BH19: 258.436234 | BI19: 271.0878859 | BJ19: 283.8802506
A20: =Waterstand_obv_Lobith!Y40 -> 2008 | B20: =Waterstand_obv_Lobith!Z40 -> 977.8186828 | C20: =Waterstand_obv_Lobith!AA40 -> 930.299328 | D20: =SQRT(($B20-D$7-$B$2)^2+($C20-D$7-$B$3)^2) -> 537.6617875 | E20: 523.5244383 | F20: 509.3873549 | G20: 495.2505599 | H20: 481.1140789 | I20: 466.9779402 | J20: 452.8421761 | K20: 438.7068226 | L20: 424.5719209 | M20: 410.4375175 | N20: =SQRT(($B20-N$7-$B$2)^2+($C20-N$7-$B$3)^2) -> 396.3036659 | O20: 382.1704271 | P20: 368.0378719 | Q20: 353.9060821 | R20: 339.7751532 | S20: 325.6451973 | T20: 311.5163468 | U20: 297.3887592 | V20: 283.2626235 | W20: 269.1381683 | X20: =SQRT(($B20-X$7-$B$2)^2+($C20-X$7-$B$3)^2) -> 255.0156729 | Y20: 240.895482 | Z20: 226.7780259 | AA20: 212.6638493 | AB20: 198.5536516 | AC20: 184.4483461 | AD20: 170.3491478 | AE20: 156.25771 | AF20: 142.1763402 | AG20: 128.1083585 | AH20: =SQRT(($B20-AH$7-$B$2)^2+($C20-AH$7-$B$3)^2) -> 114.0587186 | AI20: 100.0351492 | AJ20: 86.05039721 | AK20: 72.12704517 | AL20: 58.30909389 | AM20: 44.69440922 | AN20: 31.54726613 | AO20: 19.82094309 | AP20: 13.80252042 | AQ20: 19.70150641 | AR20: =SQRT(($B20-AR$7-$B$2)^2+($C20-AR$7-$B$3)^2) -> 31.39727918 | AS20: 44.53570393 | AT20: 58.14695787 | AU20: 71.96324405 | AV20: 85.88566982 | AW20: 99.86985563 | AX20: 113.8930544 | AY20: 127.9424388 | AZ20: 142.010237 | BA20: 156.0914706 | BB20: =SQRT(($B20-BB$7-$B$2)^2+($C20-BB$7-$B$3)^2) -> 170.1828046 | BC20: 184.281922 | BD20: 198.3871633 | BE20: 212.497309 | BF20: 226.6114431 | BG20: 240.7288639 | BH20: 254.8490253 | BI20: 268.9714957 | BJ20: 283.0959294
A21: =Waterstand_obv_Lobith!Y41 -> 2009 | B21: =Waterstand_obv_Lobith!Z41 -> 942.2651882 | C21: =Waterstand_obv_Lobith!AA41 -> 967.8369624 | D21: 540.2173742 | E21: 526.1109849 | F21: 512.0065677 | G21: 497.9042904 | H21: 483.80434 | I21: 469.706926 | J21: 455.612284 | K21: 441.5206794 | L21: 427.4324126 | M21: 413.3478249 | N21: 399.2673056 | O21: 385.1913009 | P21: 371.1203245 | Q21: 357.054971 | R21: 342.9959319 | S21: 328.9440169 | T21: 314.9001798 | U21: 300.8655518 | V21: 286.8414845 | W21: 272.8296066 | X21: 258.8318976 | Y21: 244.8507876 | Z21: 230.8892921 | AA21: 216.9511977 | AB21: 203.0413238 | AC21: 189.1658959 | AD21: 175.333092 | AE21: 161.5538614 | AF21: 147.8431842 | AG21: 134.2220701 | AH21: 120.7208395 | AI21: 107.38472 | AJ21: 94.28380072 | AK21: 81.53154032 | AL21: 69.32062504 | AM21: 57.99401733 | AN21: 48.1794877 | AO21: 40.97828723 | AP21: 37.91011756 | AQ21: 39.93912872 | AR21: 46.40141153 | AS21: 55.77676919 | AT21: 66.85061683 | AU21: 78.91110163 | AV21: 91.56920306 | AW21: 104.6082021 | AX21: 117.9017936 | AY21: 131.3727137 | AZ21: 144.9715383 | BA21: 158.6653834 | BB21: 172.4316122 | BC21: 186.2541755 | BD21: 200.1214003 | BE21: 214.0246057 | BF21: 227.9572084 | BG21: 241.914129 | BH21: 255.8913887 | BI21: 269.8858274 | BJ21: 283.8949045
A22: =Waterstand_obv_Lobith!Y42 -> 2010 | B22: =Waterstand_obv_Lobith!Z42 -> 917.2297043 | C22: =Waterstand_obv_Lobith!AA42 -> 890.7012097 | D22: 466.6427844 | E22: 452.5006851 | F22: 438.358588 | G22: 424.2164936 | H22: 410.074402 | I22: 395.9323135 | J22: 381.7902285 | K22: 367.6481474 | L22: 353.5060707 | M22: 339.3639989 | N22: 325.2219327 | O22: 311.0798727 | P22: 296.93782 | Q22: 282.7957755 | R22: 268.6537406 | S22: 254.511717 | T22: 240.3697065 | U22: 226.2277117 | V22: 212.0857356 | W22: 197.9437823 | X22: 183.8018571 | Y22: 169.659967 | Z22: 155.5181215 | AA22: 141.3763341 | AB22: 127.2346241 | AC22: 113.0930205 | AD22: 98.951569 | AE22: 84.81034564 | AF22: 70.66948739 | AG22: 56.52926825 | AH22: 42.39032778 | AI22: 28.25458564 | AJ22: 14.13164286 | AK22: 1.041657562 | AL22: 14.22908187 | AM22: 28.35222198 | AN22: 42.4880008 | AO22: 56.62695411 | AP22: 70.7671792 | AQ22: 84.90804069 | AR22: 99.04926599 | AS22: 113.1907188 | AT22: 127.3323232 | AU22: 141.4740339 | AV22: 155.6158217 | AW22: 169.7576676 | AX22: 183.899558 | AY22: 198.0414834 | AZ22: 212.1834368 | BA22: 226.325413 | BB22: 240.467408 | BC22: 254.6094186 | BD22: 268.7514423 | BE22: 282.8934772 | BF22: 297.0355217 | BG22: 311.1775745 | BH22: 325.3196345 | BI22: 339.4617008 | BJ22: 353.6037727
A23: =Waterstand_obv_Lobith!Y43 -> 2011 | B23: =Waterstand_obv_Lobith!Z43 -> 765.2371192 | C23: =Waterstand_obv_Lobith!AA43 -> 888.2246416 | D23: 373.0206586 | E23: 359.4929437 | F23: 346.0143658 | G23: 332.590899 | H23: 319.2294956 | I23: 305.9382874 | J23: 292.7268359 | K23: 279.6064471 | L23: 266.5905663 | M23: 253.6952795 | N23: 240.9399502 | O23: 228.3480335 | P23: 215.9481169 | Q23: 203.7752535 | R23: 191.8726628 | S23: 180.293881 | T23: 169.1054355 | U23: 158.3900663 | V23: 148.2503891 | W23: 138.8126171 | X23: 130.2294416 | Y23: 122.6803661 | Z23: 116.366821 | AA23: 111.498887 | AB23: 108.2717257 | AC23: 106.8341302 | AD23: 107.258082 | AE23: 109.5219656 | AF23: 113.515751 | AG23: 119.0654883 | AH23: 125.965691 | AI23: 134.0079105 | AJ23: 142.9995974 | AK23: 152.7731968 | AL23: 163.1882791 | AM23: 174.129777 | AN23: 185.504566 | AO23: 197.2376962 | AP23: 209.2689026 | AQ23: 221.5496296 | AR23: 234.0406015 | AS23: 246.7098862 | AT23: 259.5313714 | AU23: 272.4835729 | AV23: 285.5487039 | AW23: 298.7119467 | AX23: 311.9608819 | AY23: 325.2850391 | AZ23: 338.6755401 | BA23: 352.1248162 | BB23: 365.6263817 | BC23: 379.1746508 | BD23: 392.7647904 | BE23: 406.3926 | BF23: 420.0544133 | BG23: 433.7470172 | BH23: 447.4675851 | BI23: 461.2136213 | BJ23: 474.9829147
A24: =Waterstand_obv_Lobith!Y44 -> 2012 | B24: =Waterstand_obv_Lobith!Z44 -> 941.4875224 | C24: =Waterstand_obv_Lobith!AA44 -> 973.3058692 | D24: 543.8521582 | E24: 529.7540015 | F24: 515.6582534 | G24: 501.5651169 | H24: 487.4748185 | I24: 473.3876116 | J24: 459.3037807 | K24: 445.2236462 | L24: 431.1475703 | M24: 417.0759637 | N24: 403.0092948 | O24: 388.9480992 | P24: 374.8929927 | Q24: 360.8446871 | R24: 346.8040086 | S24: 332.7719227 | T24: 318.7495642 | U24: 304.738276 | V24: 290.7396585 | W24: 276.7556344 | X24: 262.7885335 | Y24: 248.8412054 | Z24: 234.917172 | AA24: 221.0208358 | AB24: 207.1577709 | AC24: 193.3351344 | AD24: 179.5622632 | AE24: 165.8515557 | AF24: 152.2198105 | AG24: 138.6903128 | AH24: 125.2961893 | AI24: 112.0859813 | AJ24: 99.13324054 | AK24: 86.55363394 | AL24: 74.53632481 | AM24: 63.40186026 | AN24: 53.70221646 | AO24: 46.34717059 | AP24: 42.56985306 | AQ24: 43.31656217 | AR24: 48.37826709 | AS24: 56.60908845 | AT24: 66.84849335 | AU24: 78.3125356 | AV24: 90.53720451 | AW24: 103.252688 | AX24: 116.2981072 | AY24: 129.5738473 | AZ24: 143.0157826 | BA24: 156.5811171 | BB24: 170.2403548 | BC24: 183.9725811 | BD24: 197.7625919 | BE24: 211.5990901 | BF24: 225.4735175 | BG24: 239.3792791 | BH24: 253.3112146 | BI24: 267.2652308 | BJ24: 281.2380411
A25: =Waterstand_obv_Lobith!Y45 -> 2013 | B25: =Waterstand_obv_Lobith!Z45 -> 1091.02509 | C25: =Waterstand_obv_Lobith!AA45 -> 949.1129704 | D25: 635.9584456 | E25: 621.9327804 | F25: 607.9125119 | G25: 593.8980223 | H25: 579.8897307 | I25: 565.8880972 | J25: 551.8936286 | K25: 537.9068843 | L25: 523.9284826 | M25: 509.9591099 | N25: 495.9995288 | O25: 482.05059 | P25: 468.113245 | Q25: 454.188561 | R25: 440.2777393 | S25: 426.3821367 | T25: 412.5032913 | U25: 398.6429532 | V25: 384.8031223 | W25: 370.9860937 | X25: 357.1945136 | Y25: 343.4314478 | Z25: 329.7004673 | AA25: 316.0057546 | AB25: 302.3522378 | AC25: 288.745761 | AD25: 275.1933017 | AE25: 261.703252 | AF25: 248.2857848 | AG25: 234.9533352 | AH25: 221.7212405 | AI25: 208.6085984 | AJ25: 195.6394288 | AK25: 182.8442641 | AL25: 170.2623379 | AM25: 157.9446185 | AN25: 145.9580121 | AO25: 134.3911459 | AP25: 123.3621453 | AQ25: 113.0285703 | AR25: 103.5987283 | AS25: 95.34115219 | AT25: 88.58427682 | AU25: 83.69237061 | AV25: 81.00402273 | AW25: 80.73964638 | AX25: 82.9224294 | AY25: 87.36914842 | AZ25: 93.75823641 | BA25: 101.7243614 | BB25: 110.9282854 | BC25: 121.0880807 | BD25: 131.9831887 | BE25: 143.4461603 | BF25: 155.3513427 | BG25: 167.60453 | BH25: 180.1347198 | BI25: 192.8879366 | BJ25: 205.8227269
A26: =Waterstand_obv_Lobith!Y46 -> 2014 | B26: =Waterstand_obv_Lobith!Z46 -> 903.1048611 | C26: =Waterstand_obv_Lobith!AA46 -> 961.2357303 | D26: 510.1776012 | E26: 496.1394692 | F26: 482.1074166 | G26: 468.0819899 | H26: 454.0638033 | I26: 440.0535486 | J26: 426.0520083 | K26: 412.0600708 | L26: 398.0787487 | M26: 384.109201 | N26: 370.152761 | O26: 356.2109693 | P26: 342.2856159 | Q26: 328.3787919 | R26: 314.4929557 | S26: 300.6310153 | T26: 286.7964357 | U26: 272.9933766 | V26: 259.2268733 | W26: 245.5030754 | X26: 231.8295671 | Y26: 218.2158023 | Z26: 204.6737026 | AA26: 191.2184947 | AB26: 177.8698988 | AC26: 164.6538462 | AD26: 151.605004 | AE26: 138.7705495 | AF26: 126.2159006 | AG26: 114.0335115 | AH26: 102.3563868 | AI26: 91.37843339 | AJ26: 81.38308338 | AK26: 72.77633154 | AL26: 66.10281843 | AM26: 61.99008611 | AN26: 60.9586659 | AO26: 63.15969538 | AP26: 68.28129533 | AQ26: 75.73323883 | AR26: 84.90413203 | AS26: 95.29900214 | AT26: 106.5602552 | AU26: 118.4410239 | AV26: 130.7725672 | AW26: 143.4386716 | AX26: 156.3580528 | AY26: 169.4727968 | AZ26: 182.7408466 | BA26: 196.1310918 | BB26: 209.6201168 | BC26: 223.1900122 | BD26: 236.8268771 | BE26: 250.5197754 | BF26: 264.2599971 | BG26: 278.0405262 | BH26: 291.8556533 | BI26: 305.7006879 | BJ26: 319.5717427
A27: =Waterstand_obv_Lobith!Y47 -> 2015 | B27: =Waterstand_obv_Lobith!Z47 -> 1034.027733 | C27: =Waterstand_obv_Lobith!AA47 -> 845.3368728 | D27: 529.4883092 | E27: 515.6845716 | F27: 501.8996765 | G27: 488.1352202 | H27: 474.3929817 | I27: 460.6749494 | J27: 446.9833519 | K27: 433.320695 | L27: 419.6898052 | M27: 406.0938814 | N27: 392.5365568 | O27: 379.0219733 | P27: 365.5548716 | Q27: 352.1406992 | R27: 338.7857434 | S27: 325.4972931 | T27: 312.2838384 | U27: 299.1553168 | V27: 286.12342 | W27: 273.2019754 | X27: 260.4074255 | Y27: 247.75943 | Z27: 235.2816249 | AA27: 223.0025805 | AB27: 210.957007 | AC27: 199.1872653 | AD27: 187.7452384 | AE27: 176.6946022 | AF27: 166.1134863 | AG27: 156.0973998 | AH27: 146.7620731 | AI27: 138.2454845 | AJ27: 130.7077728 | AK27: 124.3271079 | AL27: 119.2893023 | AM27: 115.7697954 | AN27: 113.9094088 | AO27: 113.7895483 | AP27: 115.4156366 | AQ27: 118.7159512 | AR27: 123.5564039 | AS27: 129.7647596 | AT27: 137.155389 | AU27: 145.5483033 | AV27: 154.780543 | AW27: 164.711033 | AX27: 175.2210954 | AY27: 186.2126208 | AZ27: 197.6052834 | BA27: 209.3335996 | BB27: 221.3442202 | BC27: 233.5936037 | BD27: 246.0460924 | BE27: 258.6723554 | BF27: 271.4481449 | BG27: 284.3533071 | BH27: 297.3709991 | BI27: 310.4870674 | BJ27: 323.6895533
A28: =Waterstand_obv_Lobith!Y48 -> 2016 | B28: =Waterstand_obv_Lobith!Z48 -> 1016.342921 | C28: =Waterstand_obv_Lobith!AA48 -> 1018.856429 | D28: 627.715605 | E28: 613.5820187 | F28: 599.4488358 | G28: 585.3160853 | H28: 571.1837994 | I28: 557.0520135 | J28: 542.9207665 | K28: 528.7901017 | L28: 514.6600671 | M28: 500.530716 | N28: 486.402108 | O28: 472.2743097 | P28: 458.1473962 | Q28: 444.0214518 | R28: 429.896572 | S28: 415.7728654 | T28: 401.6504558 | U28: 387.5294848 | V28: 373.4101158 | W28: 359.2925376 | X28: 345.1769699 | Y28: 331.06367 | Z28: 316.9529406 | AA28: 302.8451412 | AB28: 288.7407012 | AC28: 274.6401383 | AD28: 260.5440818 | AE28: 246.453305 | AF28: 232.3687684 | AG28: 218.2916799 | AH28: 204.2235797 | AI28: 190.1664626 | AJ28: 176.1229585 | AK28: 162.0966054 | AL28: 148.0922769 | AM28: 134.1168724 | AN28: 120.1804829 | AO28: 106.2984546 | AP28: 92.49526719 | AQ28: 78.81235592 | AR28: 65.325343 | AS28: 52.18633376 | AT28: 39.74199824 | AU28: 28.90396888 | AV28: 22.16872594 | AW28: 23.39797861 | AX28: 31.67772712 | AY28: 43.12182033 | AZ28: 55.81670343 | BA28: 69.07617081 | BB28: 82.62887127 | BC28: 96.35114613 | BD28: 110.1796549 | BE28: 124.0788836 | BF28: 138.0274695 | BG28: 152.0118263 | BH28: 166.0229151 | BI28: 180.0544954 | BJ28: 194.1021234
A29: =Waterstand_obv_Lobith!Y49 -> 2017 | B29: =Waterstand_obv_Lobith!Z49 -> 910.1750672 | C29: =Waterstand_obv_Lobith!AA49 -> 844.8522177 | D29: =SQRT(($B29-D$7-$B$2)^2+($C29-D$7-$B$3)^2) -> 430.0436721 | E29: 415.9290975 | F29: 401.8164612 | G29: 387.7059747 | H29: 373.5978815 | I29: 359.4924636 | J29: 345.3900486 | K29: 331.2910201 | L29: 317.1958296 | M29: 303.1050125 | N29: 289.0192085 | O29: 274.9391882 | P29: 260.8658879 | Q29: 246.8004574 | R29: 232.7443234 | S29: 218.6992785 | T29: 204.6676054 | U29: 190.6522567 | V29: 176.6571179 | W29: 162.6874046 | X29: 148.7502803 | Y29: 134.8558497 | Z29: 121.0188188 | AA29: 107.2614041 | AB29: 93.6187113 | AC29: 80.1493444 | AD29: 66.95798465 | AE29: 54.24782032 | AF29: 42.45327208 | AG29: 32.58426939 | AH29: 26.85496067 | AI29: 27.93999309 | AJ29: =SQRT(($B29-AJ$7-$B$2)^2+($C29-AJ$7-$B$3)^2) -> 35.21501832 | AK29: 45.8208666 | AL29: 57.9569333 | AM29: 70.84109272 | AN29: 84.13034363 | AO29: 97.65945433 | AP29: 111.3410226 | AQ29: 125.1250479 | AR29: 138.9810488 | AS29: 152.8894575 | AT29: 166.8371677 | AU29: 180.8150846 | AV29: 194.8167065 | AW29: 208.8372654 | AX29: 222.8731876 | AY29: 236.9217424 | AZ29: 250.9808087 | BA29: 265.0487137 | BB29: 279.124121 | BC29: 293.2059502 | BD29: 307.2933184 | BE29: 321.3854972 | BF29: 335.4818805 | BG29: =SQRT(($B29-BG$7-$B$2)^2+($C29-BG$7-$B$3)^2) -> 349.5819595 | BH29: 363.6853045 | BI29: 377.7915497 | BJ29: 391.9003819
A31: =A10 -> 1998 | B31: 944.4287634 | C31: 883.8665323 | D31: =IF(D10<$B$4,($B$5/100)-(D10/$B$4)*($B$5/100),0) -> 0 | E31: =IF(E10<$B$4,($B$5/100)-(E10/$B$4)*($B$5/100),0) -> 0 | F31: 0 | G31: 0 | H31: 0 | I31: 0 | J31: 0 | K31: 0 | L31: 0 | M31: 0 | N31: 0 | O31: 0 | P31: 0 | Q31: 0 | R31: 0 | S31: 0 | T31: 0 | U31: 0 | V31: 0 | W31: 0 | X31: 0 | Y31: 0 | Z31: 0 | AA31: 0 | AB31: 0 | AC31: 0 | AD31: 0 | AE31: 0 | AF31: 0 | AG31: 0.004073556436 | AH31: 0.1281616101 | AI31: 0.2477510444 | AJ31: 0.3580884091 | AK31: 0.4467759913 | AL31: 0.4850914016 | AM31: 0.4488158899 | AN31: 0.3611111494 | AO31: 0.2511767681 | AP31: 0.1317717199 | AQ31: 0.007779726125 | AR31: 0 | AS31: 0 | AT31: 0 | AU31: 0 | AV31: 0 | AW31: 0 | AX31: 0 | AY31: 0 | AZ31: 0 | BA31: 0 | BB31: 0 | BC31: 0 | BD31: 0 | BE31: 0 | BF31: 0 | BG31: 0 | BH31: 0 | BI31: 0 | BJ31: 0
A32: =A11 -> 1999 | B32: 1167.324194 | C32: 1041.140995 | D32: =IF(D11<$B$4,($B$5/100)-(D11/$B$4)*($B$5/100),0) -> 0 | E32: 0 | F32: 0 | G32: 0 | H32: 0 | I32: 0 | J32: 0 | K32: 0 | L32: 0 | M32: 0 | N32: 0 | O32: 0 | P32: 0 | Q32: 0 | R32: 0 | S32: 0 | T32: 0 | U32: 0 | V32: 0 | W32: 0 | X32: 0 | Y32: 0 | Z32: 0 | AA32: 0 | AB32: 0 | AC32: 0 | AD32: 0 | AE32: 0 | AF32: 0 | AG32: 0 | AH32: 0 | AI32: 0 | AJ32: 0 | AK32: 0 | AL32: 0 | AM32: 0 | AN32: 0 | AO32: 0 | AP32: 0 | AQ32: 0 | AR32: 0 | AS32: 0 | AT32: 0 | AU32: 0 | AV32: 0 | AW32: 0 | AX32: 0 | AY32: 0 | AZ32: 0 | BA32: 0 | BB32: 0 | BC32: 0 | BD32: 0.03809738251 | BE32: 0.05201667332 | BF32: 0.03932295885 | BG32: 0.001465564058 | BH32: 0 | BI32: 0 | BJ32: 0
A33: =A12 -> 2000 | B33: 992.6962366 | C33: 1004.294758 | D33: =IF(D12<$B$4,($B$5/100)-(D12/$B$4)*($B$5/100),0) -> 0 | E33: 0 | F33: 0 | G33: 0 | H33: 0 | I33: 0 | J33: 0 | K33: 0 | L33: 0 | M33: 0 | N33: 0 | O33: 0 | P33: 0 | Q33: 0 | R33: 0 | S33: 0 | T33: 0 | U33: 0 | V33: 0 | W33: 0 | X33: 0 | Y33: 0 | Z33: 0 | AA33: 0 | AB33: 0 | AC33: 0 | AD33: 0 | AE33: 0 | AF33: 0 | AG33: 0 | AH33: 0 | AI33: 0 | AJ33: 0 | AK33: 0 | AL33: 0 | AM33: 0 | AN33: 0 | AO33: 0 | AP33: 0.05716975702 | AQ33: 0.1750134715 | AR33: 0.2842651887 | AS33: 0.3761104261 | AT33: 0.4320113376 | AU33: 0.4287513414 | AV33: 0.3680689969 | AW33: 0.2738251635 | AX33: 0.1634217334 | AY33: 0.04497944644 | AZ33: 0 | BA33: 0 | BB33: 0 | BC33: 0 | BD33: 0 | BE33: 0 | BF33: 0 | BG33: 0 | BH33: 0 | BI33: 0 | BJ33: 0
A34: =A13 -> 2001 | B34: 1118.106048 | C34: 1010.370968 | D34: =IF(D13<$B$4,($B$5/100)-(D13/$B$4)*($B$5/100),0) -> 0 | E34: 0 | F34: 0 | G34: 0 | H34: 0 | I34: 0 | J34: 0 | K34: 0 | L34: 0 | M34: 0 | N34: 0 | O34: 0 | P34: 0 | Q34: 0 | R34: 0 | S34: 0 | T34: 0 | U34: 0 | V34: 0 | W34: 0 | X34: 0 | Y34: 0 | Z34: 0 | AA34: 0 | AB34: 0 | AC34: 0 | AD34: 0 | AE34: 0 | AF34: 0 | AG34: 0 | AH34: 0 | AI34: 0 | AJ34: 0 | AK34: 0 | AL34: 0 | AM34: 0 | AN34: 0 | AO34: 0 | AP34: 0 | AQ34: 0 | AR34: 0 | AS34: 0 | AT34: 0 | AU34: 0 | AV34: 0 | AW34: 0 | AX34: 0.03953385101 | AY34: 0.1098531075 | AZ34: 0.1566993282 | BA34: 0.1737658984 | BB34: 0.1582311528 | BC34: 0.1126763394 | BD34: 0.04331961705 | BE34: 0 | BF34: 0 | BG34: 0 | BH34: 0 | BI34: 0 | BJ34: 0
A35: 2002 | B35: 1063.945296 | C35: 957.6646505 | D35: =IF(D14<$B$4,($B$5/100)-(D14/$B$4)*($B$5/100),0) -> 0 | E35: 0 | F35: 0 | G35: 0 | H35: 0 | I35: 0 | J35: 0 | K35: 0 | L35: 0 | M35: 0 | N35: 0 | O35: 0 | P35: 0 | Q35: 0 | R35: 0 | S35: 0 | T35: 0 | U35: 0 | V35: 0 | W35: 0 | X35: 0 | Y35: 0 | Z35: 0 | AA35: 0 | AB35: 0 | AC35: 0 | AD35: 0 | AE35: 0 | AF35: 0 | AG35: 0 | AH35: 0 | AI35: 0 | AJ35: 0 | AK35: 0 | AL35: 0 | AM35: 0 | AN35: 0 | AO35: 0 | AP35: 0 | AQ35: 0 | AR35: 0 | AS35: 0.07383537743 | AT35: 0.1377688046 | AU35: 0.1756240432 | AV35: 0.1816556979 | AW35: 0.1548065193 | AX35: 0.09947065702 | AY35: 0.02259355143 | AZ35: 0 | BA35: 0 | BB35: 0 | BC35: 0 | BD35: 0 | BE35: 0 | BF35: 0 | BG35: 0 | BH35: 0 | BI35: 0 | BJ35: 0
A36: 2003 | B36: 922.0501344 | C36: 830.1151882 | D36: =IF(D15<$B$4,($B$5/100)-(D15/$B$4)*($B$5/100),0) -> 0 | E36: 0 | F36: 0 | G36: 0 | H36: 0 | I36: 0 | J36: 0 | K36: 0 | L36: 0 | M36: 0 | N36: 0 | O36: 0 | P36: 0 | Q36: 0 | R36: 0 | S36: 0 | T36: 0 | U36: 0 | V36: 0 | W36: 0 | X36: 0 | Y36: 0 | Z36: 0 | AA36: 0 | AB36: 0 | AC36: 0 | AD36: 0.002447156988 | AE36: 0.1021977788 | AF36: 0.1871652635 | AG36: 0.248916989 | AH36: 0.2771563611 | AI36: 0.2653023492 | AJ36: 0.2162936875 | AK36: 0.1397982593 | AL36: 0.04538207457 | AM36: 0 | AN36: 0 | AO36: 0 | AP36: 0 | AQ36: 0 | AR36: 0 | AS36: 0 | AT36: 0 | AU36: 0 | AV36: 0 | AW36: 0 | AX36: 0 | AY36: 0 | AZ36: 0 | BA36: 0 | BB36: 0 | BC36: 0 | BD36: 0 | BE36: 0 | BF36: 0 | BG36: 0 | BH36: 0 | BI36: 0 | BJ36: 0
A37: 2004 | B37: 963.3307796 | C37: 909.3990591 | D37: =IF(D16<$B$4,($B$5/100)-(D16/$B$4)*($B$5/100),0) -> 0 | E37: 0 | F37: 0 | G37: 0 | H37: 0 | I37: 0 | J37: 0 | K37: 0 | L37: 0 | M37: 0 | N37: 0 | O37: 0 | P37: 0 | Q37: 0 | R37: 0 | S37: 0 | T37: 0 | U37: 0 | V37: 0 | W37: 0 | X37: 0 | Y37: 0 | Z37: 0 | AA37: 0 | AB37: 0 | AC37: 0 | AD37: 0 | AE37: 0 | AF37: 0 | AG37: 0 | AH37: 0 | AI37: 0 | AJ37: 0.1152087667 | AK37: 0.2397991733 | AL37: 0.3587768183 | AM37: 0.4635128694 | AN37: 0.5260358928 | AO37: 0.5013915845 | AP37: 0.4110855848 | AQ37: 0.2970828618 | AR37: 0.1745884035 | AS37: 0.04837363802 | AT37: 0 | AU37: 0 | AV37: 0 | AW37: 0 | AX37: 0 | AY37: 0 | AZ37: 0 | BA37: 0 | BB37: 0 | BC37: 0 | BD37: 0 | BE37: 0 | BF37: 0 | BG37: 0 | BH37: 0 | BI37: 0 | BJ37: 0
A38: 2005 | B38: 1036.312634 | C38: 889.2451613 | D38: =IF(D17<$B$4,($B$5/100)-(D17/$B$4)*($B$5/100),0) -> 0 | E38: 0 | F38: 0 | G38: 0 | H38: 0 | I38: 0 | J38: 0 | K38: 0 | L38: 0 | M38: 0 | N38: 0 | O38: 0 | P38: 0 | Q38: 0 | R38: 0 | S38: 0 | T38: 0 | U38: 0 | V38: 0 | W38: 0 | X38: 0 | Y38: 0 | Z38: 0 | AA38: 0 | AB38: 0 | AC38: 0 | AD38: 0 | AE38: 0 | AF38: 0 | AG38: 0 | AH38: 0 | AI38: 0 | AJ38: 0 | AK38: 0 | AL38: 0 | AM38: 0 | AN38: 0 | AO38: 0 | AP38: 0 | AQ38: 0 | AR38: 0 | AS38: 0 | AT38: 0 | AU38: 0 | AV38: 0 | AW38: 0 | AX38: 0 | AY38: 0 | AZ38: 0 | BA38: 0 | BB38: 0 | BC38: 0 | BD38: 0 | BE38: 0 | BF38: 0 | BG38: 0 | BH38: 0 | BI38: 0 | BJ38: 0
A39: 2006 | B39: 1051.970565 | C39: 868.7884409 | D39: =IF(D18<$B$4,($B$5/100)-(D18/$B$4)*($B$5/100),0) -> 0 | E39: 0 | F39: 0 | G39: 0 | H39: 0 | I39: 0 | J39: 0 | K39: 0 | L39: 0 | M39: 0 | N39: 0 | O39: 0 | P39: 0 | Q39: 0 | R39: 0 | S39: 0 | T39: 0 | U39: 0 | V39: 0 | W39: 0 | X39: 0 | Y39: 0 | Z39: 0 | AA39: 0 | AB39: 0 | AC39: 0 | AD39: 0 | AE39: 0 | AF39: 0 | AG39: 0 | AH39: 0 | AI39: 0 | AJ39: 0 | AK39: 0 | AL39: 0 | AM39: 0 | AN39: 0 | AO39: 0 | AP39: 0 | AQ39: 0 | AR39: 0 | AS39: 0 | AT39: 0 | AU39: 0 | AV39: 0 | AW39: 0 | AX39: 0 | AY39: 0 | AZ39: 0 | BA39: 0 | BB39: 0 | BC39: 0 | BD39: 0 | BE39: 0 | BF39: 0 | BG39: 0 | BH39: 0 | BI39: 0 | BJ39: 0
A40: 2007 | B40: 901.888172 | C40: 1041.144086 | D40: =IF(D19<$B$4,($B$5/100)-(D19/$B$4)*($B$5/100),0) -> 0 | E40: 0 | F40: 0 | G40: 0 | H40: 0 | I40: 0 | J40: 0 | K40: 0 | L40: 0 | M40: 0 | N40: 0 | O40: 0 | P40: 0 | Q40: 0 | R40: 0 | S40: 0 | T40: 0 | U40: 0 | V40: 0 | W40: 0 | X40: 0 | Y40: 0 | Z40: 0 | AA40: 0 | AB40: 0 | AC40: 0 | AD40: 0 | AE40: 0 | AF40: 0 | AG40: 0 | AH40: 0 | AI40: 0 | AJ40: 0 | AK40: 0 | AL40: 0 | AM40: 0 | AN40: 0 | AO40: 0 | AP40: 0 | AQ40: 0 | AR40: 0 | AS40: 0 | AT40: 0 | AU40: 0 | AV40: 0 | AW40: 0 | AX40: 0 | AY40: 0 | AZ40: 0 | BA40: 0 | BB40: 0 | BC40: 0 | BD40: 0 | BE40: 0 | BF40: 0 | BG40: 0 | BH40: 0 | BI40: 0 | BJ40: 0
A41: 2008 | B41: 977.8186828 | C41: 930.299328 | D41: =IF(D20<$B$4,($B$5/100)-(D20/$B$4)*($B$5/100),0) -> 0 | E41: 0 | F41: 0 | G41: 0 | H41: 0 | I41: 0 | J41: 0 | K41: 0 | L41: 0 | M41: 0 | N41: 0 | O41: 0 | P41: 0 | Q41: 0 | R41: 0 | S41: 0 | T41: 0 | U41: 0 | V41: 0 | W41: 0 | X41: 0 | Y41: 0 | Z41: 0 | AA41: 0 | AB41: 0 | AC41: 0 | AD41: 0 | AE41: 0 | AF41: 0 | AG41: 0 | AH41: 0 | AI41: 0 | AJ41: 0 | AK41: 0.02681424506 | AL41: 0.1557817904 | AM41: 0.2828521807 | AN41: 0.4055588495 | AO41: 0.5150045312 | AP41: 0.5711764761 | AQ41: 0.5161192735 | AR41: 0.4069587277 | AS41: 0.28433343 | AT41: 0.1572950599 | AU41: 0.0283430555 | AV41: 0 | AW41: 0 | AX41: 0 | AY41: 0 | AZ41: 0 | BA41: 0 | BB41: 0 | BC41: 0 | BD41: 0 | BE41: 0 | BF41: 0 | BG41: 0 | BH41: 0 | BI41: 0 | BJ41: 0
A42: 2009 | B42: 942.2651882 | C42: 967.8369624 | D42: =IF(D21<$B$4,($B$5/100)-(D21/$B$4)*($B$5/100),0) -> 0 | E42: 0 | F42: 0 | G42: 0 | H42: 0 | I42: 0 | J42: 0 | K42: 0 | L42: 0 | M42: 0 | N42: 0 | O42: 0 | P42: 0 | Q42: 0 | R42: 0 | S42: 0 | T42: 0 | U42: 0 | V42: 0 | W42: 0 | X42: 0 | Y42: 0 | Z42: 0 | AA42: 0 | AB42: 0 | AC42: 0 | AD42: 0 | AE42: 0 | AF42: 0 | AG42: 0 | AH42: 0 | AI42: 0 | AJ42: 0 | AK42: 0 | AL42: 0.05300749958 | AM42: 0.1587225049 | AN42: 0.2503247815 | AO42: 0.3175359859 | AP42: 0.3461722361 | AQ42: 0.3272347986 | AR42: 0.266920159 | AS42: 0.1794168209 | AT42: 0.07606090959 | AU42: 0 | AV42: 0 | AW42: 0 | AX42: 0 | AY42: 0 | AZ42: 0 | BA42: 0 | BB42: 0 | BC42: 0 | BD42: 0 | BE42: 0 | BF42: 0 | BG42: 0 | BH42: 0 | BI42: 0 | BJ42: 0
A43: =A22 -> 2010 | B43: 917.2297043 | C43: 890.7012097 | D43: =IF(D22<$B$4,($B$5/100)-(D22/$B$4)*($B$5/100),0) -> 0 | E43: 0 | F43: 0 | G43: 0 | H43: 0 | I43: 0 | J43: 0 | K43: 0 | L43: 0 | M43: 0 | N43: 0 | O43: 0 | P43: 0 | Q43: 0 | R43: 0 | S43: 0 | T43: 0 | U43: 0 | V43: 0 | W43: 0 | X43: 0 | Y43: 0 | Z43: 0 | AA43: 0 | AB43: 0 | AC43: 0 | AD43: 0 | AE43: 0 | AF43: 0.04041811767 | AG43: 0.1723934963 | AH43: 0.3043569407 | AI43: 0.436290534 | AJ43: 0.5681046666 | AK43: 0.6902778628 | AL43: 0.5671952359 | AM43: 0.4353792615 | AN43: 0.3034453259 | AO43: 0.1714817616 | AP43: 0.03950632742 | AQ43: 0 | AR43: 0 | AS43: 0 | AT43: 0 | AU43: 0 | AV43: 0 | AW43: 0 | AX43: 0 | AY43: 0 | AZ43: 0 | BA43: 0 | BB43: 0 | BC43: 0 | BD43: 0 | BE43: 0 | BF43: 0 | BG43: 0 | BH43: 0 | BI43: 0 | BJ43: 0
A44: =A23 -> 2011 | B44: 765.2371192 | C44: 888.2246416 | D44: =IF(D23<$B$4,($B$5/100)-(D23/$B$4)*($B$5/100),0) -> 0 | E44: 0 | F44: 0 | G44: 0 | H44: 0 | I44: 0 | J44: 0 | K44: 0 | L44: 0 | M44: 0 | N44: 0 | O44: 0 | P44: 0 | Q44: 0 | R44: 0 | S44: 0 | T44: 0 | U44: 0 | V44: 0 | W44: 0 | X44: 0 | Y44: 0 | Z44: 0 | AA44: 0 | AB44: 0 | AC44: 0 | AD44: 0 | AE44: 0 | AF44: 0 | AG44: 0 | AH44: 0 | AI44: 0 | AJ44: 0 | AK44: 0 | AL44: 0 | AM44: 0 | AN44: 0 | AO44: 0 | AP44: 0 | AQ44: 0 | AR44: 0 | AS44: 0 | AT44: 0 | AU44: 0 | AV44: 0 | AW44: 0 | AX44: 0 | AY44: 0 | AZ44: 0 | BA44: 0 | BB44: 0 | BC44: 0 | BD44: 0 | BE44: 0 | BF44: 0 | BG44: 0 | BH44: 0 | BI44: 0 | BJ44: 0
A45: =A24 -> 2012 | B45: 941.4875224 | C45: 973.3058692 | D45: =IF(D24<$B$4,($B$5/100)-(D24/$B$4)*($B$5/100),0) -> 0 | E45: 0 | F45: 0 | G45: 0 | H45: 0 | I45: 0 | J45: 0 | K45: 0 | L45: 0 | M45: 0 | N45: 0 | O45: 0 | P45: 0 | Q45: 0 | R45: 0 | S45: 0 | T45: 0 | U45: 0 | V45: 0 | W45: 0 | X45: 0 | Y45: 0 | Z45: 0 | AA45: 0 | AB45: 0 | AC45: 0 | AD45: 0 | AE45: 0 | AF45: 0 | AG45: 0 | AH45: 0 | AI45: 0 | AJ45: 0 | AK45: 0 | AL45: 0.00432763511 | AM45: 0.1082493042 | AN45: 0.198779313 | AO45: 0.2674264078 | AP45: 0.3026813714 | AQ45: 0.2957120864 | AR45: 0.2484695071 | AS45: 0.1716485078 | AT45: 0.07608072869 | AU45: 0 | AV45: 0 | AW45: 0 | AX45: 0 | AY45: 0 | AZ45: 0 | BA45: 0 | BB45: 0 | BC45: 0 | BD45: 0 | BE45: 0 | BF45: 0 | BG45: 0 | BH45: 0 | BI45: 0 | BJ45: 0
A46: =A25 -> 2013 | B46: 1091.02509 | C46: 949.1129704 | D46: =IF(D25<$B$4,($B$5/100)-(D25/$B$4)*($B$5/100),0) -> 0 | E46: 0 | F46: 0 | G46: 0 | H46: 0 | I46: 0 | J46: 0 | K46: 0 | L46: 0 | M46: 0 | N46: 0 | O46: 0 | P46: 0 | Q46: 0 | R46: 0 | S46: 0 | T46: 0 | U46: 0 | V46: 0 | W46: 0 | X46: 0 | Y46: 0 | Z46: 0 | AA46: 0 | AB46: 0 | AC46: 0 | AD46: 0 | AE46: 0 | AF46: 0 | AG46: 0 | AH46: 0 | AI46: 0 | AJ46: 0 | AK46: 0 | AL46: 0 | AM46: 0 | AN46: 0 | AO46: 0 | AP46: 0 | AQ46: 0 | AR46: 0 | AS46: 0 | AT46: 0 | AU46: 0 | AV46: 0 | AW46: 0 | AX46: 0 | AY46: 0 | AZ46: 0 | BA46: 0 | BB46: 0 | BC46: 0 | BD46: 0 | BE46: 0 | BF46: 0 | BG46: 0 | BH46: 0 | BI46: 0 | BJ46: 0
A47: =A26 -> 2014 | B47: 903.1048611 | C47: 961.2357303 | D47: =IF(D26<$B$4,($B$5/100)-(D26/$B$4)*($B$5/100),0) -> 0 | E47: 0 | F47: 0 | G47: 0 | H47: 0 | I47: 0 | J47: 0 | K47: 0 | L47: 0 | M47: 0 | N47: 0 | O47: 0 | P47: 0 | Q47: 0 | R47: 0 | S47: 0 | T47: 0 | U47: 0 | V47: 0 | W47: 0 | X47: 0 | Y47: 0 | Z47: 0 | AA47: 0 | AB47: 0 | AC47: 0 | AD47: 0 | AE47: 0 | AF47: 0 | AG47: 0 | AH47: 0 | AI47: 0 | AJ47: 0 | AK47: 0.02075423899 | AL47: 0.08304036134 | AM47: 0.121425863 | AN47: 0.1310524516 | AO47: 0.1105095098 | AP47: 0.06270791023 | AQ47: 0 | AR47: 0 | AS47: 0 | AT47: 0 | AU47: 0 | AV47: 0 | AW47: 0 | AX47: 0 | AY47: 0 | AZ47: 0 | BA47: 0 | BB47: 0 | BC47: 0 | BD47: 0 | BE47: 0 | BF47: 0 | BG47: 0 | BH47: 0 | BI47: 0 | BJ47: 0
A48: =A27 -> 2015 | B48: 1034.027733 | C48: 845.3368728 | D48: =IF(D27<$B$4,($B$5/100)-(D27/$B$4)*($B$5/100),0) -> 0 | E48: 0 | F48: 0 | G48: 0 | H48: 0 | I48: 0 | J48: 0 | K48: 0 | L48: 0 | M48: 0 | N48: 0 | O48: 0 | P48: 0 | Q48: 0 | R48: 0 | S48: 0 | T48: 0 | U48: 0 | V48: 0 | W48: 0 | X48: 0 | Y48: 0 | Z48: 0 | AA48: 0 | AB48: 0 | AC48: 0 | AD48: 0 | AE48: 0 | AF48: 0 | AG48: 0 | AH48: 0 | AI48: 0 | AJ48: 0 | AK48: 0 | AL48: 0 | AM48: 0 | AN48: 0 | AO48: 0 | AP48: 0 | AQ48: 0 | AR48: 0 | AS48: 0 | AT48: 0 | AU48: 0 | AV48: 0 | AW48: 0 | AX48: 0 | AY48: 0 | AZ48: 0 | BA48: 0 | BB48: 0 | BC48: 0 | BD48: 0 | BE48: 0 | BF48: 0 | BG48: 0 | BH48: 0 | BI48: 0 | BJ48: 0
A49: =A28 -> 2016 | B49: 1016.342921 | C49: 1018.856429 | D49: =IF(D28<$B$4,($B$5/100)-(D28/$B$4)*($B$5/100),0) -> 0 | E49: 0 | F49: 0 | G49: 0 | H49: 0 | I49: 0 | J49: 0 | K49: 0 | L49: 0 | M49: 0 | N49: 0 | O49: 0 | P49: 0 | Q49: 0 | R49: 0 | S49: 0 | T49: 0 | U49: 0 | V49: 0 | W49: 0 | X49: 0 | Y49: 0 | Z49: 0 | AA49: 0 | AB49: 0 | AC49: 0 | AD49: 0 | AE49: 0 | AF49: 0 | AG49: 0 | AH49: 0 | AI49: 0 | AJ49: 0 | AK49: 0 | AL49: 0 | AM49: 0 | AN49: 0 | AO49: 0 | AP49: 0 | AQ49: 0 | AR49: 0.09029679862 | AS49: 0.2129275516 | AT49: 0.3290746831 | AU49: 0.4302296238 | AV49: 0.4930918912 | AW49: 0.4816188663 | AX49: 0.4043412135 | AY49: 0.2975296769 | AZ49: 0.1790441014 | BA49: 0.05528907241 | BB49: 0 | BC49: 0 | BD49: 0 | BE49: 0 | BF49: 0 | BG49: 0 | BH49: 0 | BI49: 0 | BJ49: 0
A50: =A29 -> 2017 | B50: 910.1750672 | C50: 844.8522177 | D50: =IF(D29<$B$4,($B$5/100)-(D29/$B$4)*($B$5/100),0) -> 0 | E50: 0 | F50: 0 | G50: 0 | H50: 0 | I50: 0 | J50: 0 | K50: 0 | L50: 0 | M50: 0 | N50: 0 | O50: 0 | P50: 0 | Q50: 0 | R50: 0 | S50: 0 | T50: 0 | U50: 0 | V50: 0 | W50: 0 | X50: 0 | Y50: 0 | Z50: 0 | AA50: 0 | AB50: 0 | AC50: 0 | AD50: 0.07505880992 | AE50: 0.1936870103 | AF50: 0.3037694605 | AG50: 0.3958801523 | AH50: 0.4493537004 | AI50: 0.4392267312 | AJ50: 0.3713264957 | AK50: 0.2723385784 | AL50: 0.1590686226 | AM50: 0.03881646792 | AN50: 0 | AO50: 0 | AP50: 0 | AQ50: 0 | AR50: 0 | AS50: 0 | AT50: 0 | AU50: 0 | AV50: 0 | AW50: 0 | AX50: 0 | AY50: 0 | AZ50: 0 | BA50: 0 | BB50: 0 | BC50: 0 | BD50: 0 | BE50: 0 | BF50: 0 | BG50: 0 | BH50: 0 | BI50: 0 | BJ50: 0
A51: geschatte kans submers | D51: =IF(COUNTIF(D31:D50,">0")<(2*$B$6),0,AVERAGE(D31:D50)) -> 0 | E51: =IF(COUNTIF(E31:E50,">0")<(2*$B$6),0,AVERAGE(E31:E50)) -> 0 | F51: 0 | G51: 0 | H51: 0 | I51: 0 | J51: 0 | K51: 0 | L51: 0 | M51: 0 | N51: 0 | O51: 0 | P51: 0 | Q51: 0 | R51: 0 | S51: 0 | T51: 0 | U51: 0 | V51: 0 | W51: 0 | X51: 0 | Y51: 0 | Z51: 0 | AA51: 0 | AB51: 0 | AC51: 0 | AD51: 0 | AE51: 0 | AF51: 0 | AG51: 0 | AH51: 0 | AI51: 0 | AJ51: 0 | AK51: 0 | AL51: 0 | AM51: 0 | AN51: 0 | AO51: 0 | AP51: 0 | AQ51: 0 | AR51: 0 | AS51: 0 | AT51: 0 | AU51: 0 | AV51: 0 | AW51: 0 | AX51: 0 | AY51: 0 | AZ51: 0 | BA51: 0 | BB51: 0 | BC51: 0 | BD51: 0 | BE51: 0 | BF51: 0 | BG51: 0 | BH51: 0 | BI51: 0 | BJ51: 0

Sheet Geul-Drijvend (hidden)
A1: NEVENGEUL DRIJVEND
A2: optimale diepte mei | B2: 116 | C2: cm
A3: optimale diepte juli | B3: 87 | C3: cm
A4: max distance | B4: 55 | C4: cm
A5: max bedekking | B5: 50 | C5: %
A6: minimaal jaren uit 10 jaar | B6: 8 | C6: -
D7: ='Interface KRW-tool Waterplanten'!$B$11 -> 470 | E7: =D7+10 -> 480 | F7: =E7+10 -> 490 | G7: 500 | H7: 510 | I7: 520 | J7: 530 | K7: 540 | L7: 550 | M7: 560 | N7: 570 | O7: 580 | P7: 590 | Q7: 600 | R7: 610 | S7: 620 | T7: 630 | U7: 640 | V7: 650 | W7: 660 | X7: 670 | Y7: 680 | Z7: 690 | AA7: 700 | AB7: 710 | AC7: 720 | AD7: 730 | AE7: 740 | AF7: 750 | AG7: 760 | AH7: 770 | AI7: 780 | AJ7: 790 | AK7: 800 | AL7: 810 | AM7: 820 | AN7: 830 | AO7: 840 | AP7: 850 | AQ7: 860 | AR7: 870 | AS7: 880 | AT7: 890 | AU7: 900 | AV7: 910 | AW7: 920 | AX7: 930 | AY7: 940 | AZ7: 950 | BA7: 960 | BB7: 970 | BC7: 980 | BD7: 990 | BE7: 1000 | BF7: 1010 | BG7: 1020 | BH7: 1030 | BI7: 1040 | BJ7: 1050
B8: peil in mei | C8: peil in juli
B9: (cm NAP) | C9: (cm NAP)
A10: =Waterstand_obv_Lobith!Y30 -> 1998 | B10: =Waterstand_obv_Lobith!Z30 -> 944.4287634 | C10: =Waterstand_obv_Lobith!AA30 -> 883.8665323 | D10: =SQRT(($B10-D$7-$B$2)^2+($C10-D$7-$B$3)^2) -> 485.0906187 | E10: 470.9639078 | F10: 456.8381514 | G10: 442.7134408 | H10: 428.5898794 | I10: 414.4675847 | J10: 400.3466909 | K10: 386.2273514 | L10: 372.1097433 | M10: 357.9940714 | N10: =SQRT(($B10-N$7-$B$2)^2+($C10-N$7-$B$3)^2) -> 343.8805741 | O10: 329.7695306 | P10: 315.66127 | Q10: 301.556183 | R10: 287.4547366 | S10: 273.3574942 | T10: 259.2651418 | U10: 245.1785224 | V10: 231.0986844 | W10: 217.0269477 | X10: =SQRT(($B10-X$7-$B$2)^2+($C10-X$7-$B$3)^2) -> 202.9649972 | Y10: 188.9150184 | Z10: 174.8798967 | AA10: 160.8635209 | AB10: 146.871258 | AC10: 132.9107239 | AD10: 118.9930864 | AE10: 105.1353827 | AF10: 91.36488812 | AG10: 77.72796708 | AH10: =SQRT(($B10-AH$7-$B$2)^2+($C10-AH$7-$B$3)^2) -> 64.30964899 | AI10: 51.28181977 | AJ10: 39.03740674 | AK10: 28.60093024 | AL10: 22.62978782 | AM10: 24.62115722 | AN10: 33.17070197 | AO10: 44.65858882 | AP10: 57.34530182 | AQ10: 70.58737654 | AR10: =SQRT(($B10-AR$7-$B$2)^2+($C10-AR$7-$B$3)^2) -> 84.12295652 | AS10: 97.83029132 | AT10: 111.6461373 | AU10: 125.5346728 | AV10: 139.4741846 | AW10: 153.4507812 | AX10: 167.4551771 | AY10: 181.4809368 | AZ10: 195.5234628 | BA10: 209.5793849 | BB10: =SQRT(($B10-BB$7-$B$2)^2+($C10-BB$7-$B$3)^2) -> 223.6461774 | BC10: 237.7219106 | BD10: 251.805085 | BE10: 265.8945184 | BF10: 279.9892659 | BG10: 294.0885634 | BH10: 308.1917864 | BI10: 322.2984196 | BJ10: 336.408034
A11: =Waterstand_obv_Lobith!Y31 -> 1999 | B11: =Waterstand_obv_Lobith!Z31 -> 1167.324194 | C11: =Waterstand_obv_Lobith!AA31 -> 1041.140995 | D11: 756.525162 | E11: 742.4426018 | F11: 728.3623502 | G11: 714.2845437 | H11: 700.2093299 | I11: 686.1368682 | J11: 672.0673315 | K11: 658.0009075 | L11: 643.9378002 | M11: 629.8782317 | N11: 615.8224444 | O11: 601.7707032 | P11: 587.7232984 | Q11: 573.6805485 | R11: 559.6428039 | S11: 545.610451 | T11: 531.5839167 | U11: 517.5636741 | V11: 503.5502487 | W11: 489.544226 | X11: 475.54626 | Y11: 461.5570838 | Z11: 447.5775216 | AA11: 433.6085033 | AB11: 419.6510817 | AC11: 405.7064537 | AD11: 391.7759855 | AE11: 377.8612431 | AF11: 363.9640302 | AG11: 350.0864344 | AH11: 336.2308846 | AI11: 322.4002233 | AJ11: 308.5977969 | AK11: 294.8275708 | AL11: 281.0942773 | AM11: 267.4036069 | AN11: 253.7624582 | AO11: 240.1792694 | AP11: 226.6644605 | AQ11: 213.2310341 | AR11: 199.895398 | AS11: 186.6785108 | AT11: 173.6074959 | AU11: 160.7179481 | AV11: 148.0572696 | AW11: 135.6895402 | AX11: 123.7026579 | AY11: 112.2187319 | AZ11: 101.4087769 | BA11: 91.51194606 | BB11: 82.85609518 | BC11: 75.86717831 | BD11: 71.03889766 | BE11: 68.82747429 | BF11: 69.48321707 | BG11: 72.9288262 | BH11: 78.79917466 | BI11: 86.60257596 | BJ11: 95.86815113
A12: =Waterstand_obv_Lobith!Y32 -> 2000 | B12: =Waterstand_obv_Lobith!Z32 -> 992.6962366 | C12: =Waterstand_obv_Lobith!AA32 -> 1004.294758 | D12: 604.5448118 | E12: 590.4190118 | F12: 576.2940132 | G12: 562.1698762 | H12: 548.0466676 | I12: 533.9244609 | J12: 519.8033379 | K12: 505.6833893 | L12: 491.5647163 | M12: 477.4474321 | N12: 463.3316636 | O12: 449.2175538 | P12: 435.1052639 | Q12: 420.9949772 | R12: 406.8869019 | S12: 392.7812763 | T12: 378.6783743 | U12: 364.5785118 | V12: 350.4820557 | W12: 336.3894342 | X12: 322.3011504 | Y12: 308.2177991 | Z12: 294.1400887 | AA12: 280.0688699 | AB12: 266.0051729 | AC12: 251.9502572 | AD12: 237.9056792 | AE12: 223.8733846 | AF12: 209.8558373 | AG12: 195.8562037 | AH12: 181.8786206 | AI12: 167.9285942 | AJ12: 154.0136126 | AK12: 140.144115 | AL12: 126.3350825 | AM12: 112.6087616 | AN12: 98.99956209 | AO12: 85.56338821 | AP12: 72.39664018 | AQ12: 59.67791565 | AR12: 47.76644978 | AS12: 37.44080437 | AT12: 30.36435311 | AU12: 29.02023513 | AV12: 34.09331539 | AW12: 43.38818113 | AX12: 54.79702884 | AY12: 67.25246819 | AZ12: 80.26876469 | BA12: 93.61225717 | BB12: 107.1607895 | BC12: 120.8454174 | BD12: 134.6246449 | BE12: 148.4721358 | BF12: 162.370426 | BG12: 176.3075022 | BH12: 190.2748419 | BI12: 204.2662369 | BJ12: 218.2770617
A13: =Waterstand_obv_Lobith!Y33 -> 2001 | B13: =Waterstand_obv_Lobith!Z33 -> 1118.106048 | C13: =Waterstand_obv_Lobith!AA33 -> 1010.370968 | D13: 699.0579955 | E13: 684.9617075 | F13: 670.8673494 | G13: 656.7750453 | H13: 642.6849305 | I13: 628.597152 | J13: 614.5118707 | K13: 600.4292622 | L13: 586.3495191 | M13: 572.2728529 | N13: 558.1994965 | O13: 544.1297066 | P13: 530.0637672 | Q13: 516.0019931 | R13: 501.9447346 | S13: 487.8923819 | T13: 473.8453714 | U13: 459.8041927 | V13: 445.769397 | W13: 431.7416067 | X13: 417.7215277 | Y13: 403.7099632 | Z13: 389.7078316 | AA13: 375.7161877 | AB13: 361.7362484 | AC13: 347.7694251 | AD13: 333.8173643 | AE13: 319.8819976 | AF13: 305.9656061 | AG13: 292.070902 | AH13: 278.2011349 | AI13: 264.3602298 | AJ13: 250.55297 | AK13: 236.7852413 | AL13: 223.0643633 | AM13: 209.3995459 | AN13: 195.8025268 | AO13: 182.2884779 | AP13: 168.877319 | AQ13: 155.5956572 | AR13: 142.4797116 | AS13: 129.5798128 | AT13: 116.9674637 | AU13: 104.7465859 | AV13: 93.07151513 | AW13: 82.17521892 | AX13: 72.41012555 | AY13: 64.29374744 | AZ13: 58.51619979 | BA13: 55.80864911 | BB13: 56.61329342 | BC13: 60.79082718 | BD13: 67.71989624 | BE13: 76.65796778 | BF13: 86.98795148 | BG13: 98.27188499 | BH13: 110.2171632 | BI13: 122.6306762 | BJ13: 135.3836859
A14: =Waterstand_obv_Lobith!Y34 -> 2002 | B14: =Waterstand_obv_Lobith!Z34 -> 1063.945296 | C14: =Waterstand_obv_Lobith!AA34 -> 957.6646505 | D14: 623.6696785 | E14: 609.5831928 | F14: 595.4993451 | G14: 581.4183271 | H14: 567.3403495 | I14: 553.2656444 | J14: 539.194468 | K14: 525.127104 | L14: 511.0638673 | M14: 497.0051082 | N14: 482.9512176 | O14: 468.9026335 | P14: 454.8598474 | Q14: 440.8234135 | R14: 426.7939584 | S14: 412.7721938 | T14: 398.758931 | U14: 384.7550989 | V14: 370.7617661 | W14: 356.780168 | X14: 342.8117404 | Y14: 328.8581616 | Z14: 314.9214053 | AA14: 301.0038083 | AB14: 287.1081568 | AC14: 273.2377989 | AD14: 259.3967922 | AE14: 245.5900994 | AF14: 231.8238512 | AG14: 218.1057061 | AH14: 204.4453475 | AI14: 190.8551839 | AJ14: 177.3513526 | AK14: 163.955187 | AL14: 150.6954028 | AM14: 137.6114294 | AN14: 124.7585932 | AO14: 112.2163431 | AP14: 100.1014922 | AQ14: 88.58955811 | AR14: 77.94812943 | AS14: 68.58361289 | AT14: 61.08611162 | AU14: 56.20777622 | AV14: 54.65450744 | AW14: 56.70023155 | AX14: 61.98965505 | AY14: 69.7890995 | AZ14: 79.36195237 | BA14: 90.14499742 | BB14: 101.7542217 | BC14: 113.9373631 | BD14: 126.5287469 | BE14: 139.4178068 | BF14: 152.5290987 | BG14: 165.8099123 | BH14: 179.2225658 | BI14: 192.7395371 | BJ14: 206.3403262
A15: =Waterstand_obv_Lobith!Y35 -> 2003 | B15: =Waterstand_obv_Lobith!Z35 -> 922.0501344 | C15: =Waterstand_obv_Lobith!AA35 -> 830.1151882 | D15: 433.0376414 | E15: 418.9729017 | F15: 404.9135537 | G15: 390.860179 | H15: 376.8134459 | I15: 362.7741261 | J15: 348.7431148 | K15: 334.7214569 | L15: 320.7103791 | M15: 306.7113314 | N15: 292.7260397 | O15: 278.7565746 | P15: 264.8054407 | Q15: 250.8756963 | R15: 236.9711133 | S15: 223.0963964 | T15: 209.2574864 | U15: 195.4619891 | V15: 181.7197918 | W15: 168.0439712 | X15: 154.4521603 | Y15: 140.9686609 | Z15: 127.6278062 | AA15: 114.4794761 | AB15: 101.5984449 | AC15: 89.1007158 | AD15: 77.1727355 | AE15: 66.12355596 | AF15: 56.47139277 | AG15: 49.04805551 | AH15: 44.97116074 | AI15: 45.15638212 | AJ15: 49.55595216 | AK15: 57.20564608 | AL15: 67.00133948 | AM15: 78.140086 | AN15: 90.12528274 | AO15: 102.6608988 | AP15: 115.5679613 | AQ15: 128.7347942 | AR15: 142.0892001 | AS15: 155.5828857 | AT15: 169.1825283 | AU15: 182.8644892 | AV15: 196.611584 | AW15: 210.4110466 | AX15: 224.2532097 | AY15: 238.1306272 | AZ15: 252.0374757 | BA15: 265.9691387 | BB15: 279.921911 | BC15: 293.8927863 | BD15: 307.8793 | BE15: 321.8794136 | BF15: 335.8914266 | BG15: 349.9139094 | BH15: 363.9456519 | BI15: 377.9856229 | BJ15: 392.0329382
A16: =Waterstand_obv_Lobith!Y36 -> 2004 | B16: =Waterstand_obv_Lobith!Z36 -> 963.3307796 | C16: =Waterstand_obv_Lobith!AA36 -> 909.3990591 | D16: 516.2979896 | E16: 502.164333 | F16: 488.0311676 | G16: 473.8985374 | H16: 459.7664918 | I16: 445.6350864 | J16: 431.504384 | K16: 417.3744562 | L16: 403.2453842 | M16: 389.1172614 | N16: 374.990195 | O16: 360.8643091 | P16: 346.7397479 | Q16: 332.6166803 | R16: 318.4953049 | S16: 304.3758573 | T16: 290.2586187 | U16: 276.1439279 | V16: 262.0321968 | W16: 247.9239306 | X16: 233.8197567 | Y16: 219.7204629 | Z16: 205.6270533 | AA16: 191.5408267 | AB16: 177.4634935 | AC16: 163.3973523 | AD16: 149.3455656 | AE16: 135.3126054 | AF16: 121.3050057 | AG16: 107.3326961 | AH16: 93.41151357 | AI16: 79.56829829 | AJ16: 65.85223853 | AK16: 52.36335116 | AL16: 39.33603654 | AM16: 27.43587062 | AN16: 18.92432885 | AO16: 19.06655313 | AP16: 27.72970743 | AQ16: 39.67795231 | AR16: 52.7232693 | AS16: 66.22043757 | AT16: 79.94091304 | AU16: 93.78674108 | AV16: 107.7095912 | AW16: 121.6830278 | AX16: 135.6914238 | AY16: 149.7249669 | AZ16: 163.777193 | BA16: 177.8436734 | BB16: 191.9212739 | BC16: 206.0077149 | BD16: 220.101299 | BE16: 234.2007367 | BF16: 248.3050307 | BG16: 262.4133981 | BH16: 276.5252154 | BI16: 290.63998 | BJ16: 304.7572824
A17: =Waterstand_obv_Lobith!Y37 -> 2005 | B17: =Waterstand_obv_Lobith!Z37 -> 1036.312634 | C17: =Waterstand_obv_Lobith!AA37 -> 889.2451613 | D17: 559.614435 | E17: 545.6346397 | F17: 531.6634312 | G17: 517.7015049 | H17: 503.7496325 | I17: 489.8086732 | J17: 475.8795861 | K17: 461.963445 | L17: 448.0614563 | M17: 434.1749793 | N17: 420.3055517 | O17: 406.4549186 | P17: 392.6250692 | Q17: 378.8182797 | R17: 365.0371668 | S17: 351.2847523 | T17: 337.5645439 | U17: 323.8806344 | V17: 310.2378273 | W17: 296.6417933 | X17: 283.0992717 | Y17: 269.618326 | Z17: 256.2086763 | AA17: 242.8821317 | AB17: 229.6531602 | AC17: 216.5396455 | AD17: 203.5639019 | AE17: 190.7540464 | AF17: 178.1458681 | AG17: 165.7853866 | AH17: 153.7323599 | AI17: 142.0650646 | AJ17: 130.886694 | AK17: 120.3335811 | AL17: 110.5848762 | AM17: 101.8717769 | AN17: 94.48123097 | AO17: 88.74427921 | AP17: 84.99641862 | AQ17: 83.50589957 | AR17: 84.39241287 | AS17: 87.58380807 | AT17: 92.84270312 | AU17: 99.84293469 | AV17: 108.2471972 | AW17: 117.7552537 | AX17: 128.121598 | AY17: 139.154547 | AZ17: 150.7077703 | BA17: 162.6704525 | BB17: 174.9586243 | BC17: 187.5083046 | BD17: 200.2703382 | BE17: 213.2065957 | BF17: 226.2871993 | BG17: 239.4884979 | BH17: 252.7915836 | BI17: 266.1811955 | BJ17: 279.644905
A18: =Waterstand_obv_Lobith!Y38 -> 2006 | B18: =Waterstand_obv_Lobith!Z38 -> 1051.970565 | C18: =Waterstand_obv_Lobith!AA38 -> 868.7884409 | D18: 560.660859 | E18: 546.7955914 | F18: 532.9448739 | G18: 519.1098713 | H18: 505.2918745 | I18: 491.4923177 | J18: 477.7127989 | K18: 463.9551035 | L18: 450.2212323 | M18: 436.5134338 | N18: 422.8342439 | O18: 409.1865316 | P18: 395.5735552 | Q18: 381.9990281 | R18: 368.4671998 | S18: 354.9829534 | T18: 341.5519245 | U18: 328.1806469 | V18: 314.8767329 | W18: 301.6490955 | X18: 288.5082264 | Y18: 275.4665435 | Z18: 262.5388285 | AA18: 249.7427804 | AB18: 237.099718 | AC18: 224.635474 | AD18: 212.3815342 | AE18: 200.3764855 | AF18: 188.6678453 | AG18: 177.3143416 | AH18: 166.3886884 | AI18: 155.9808178 | AJ18: 146.2013523 | AK18: 137.1847488 | AL18: 129.0909571 | AM18: 122.1036244 | AN18: 116.4221413 | AO18: 112.244977 | AP18: 109.744042 | AQ18: 109.0347406 | AR18: 110.1516888 | AS18: 113.0407645 | AT18: 117.571401 | AU18: 123.5631589 | AV18: 130.81542 | AW18: 139.1312115 | AX18: 148.3317697 | AY18: 158.262863 | AZ18: 168.7955974 | BA18: 179.8242853 | BB18: 191.2631524 | BC18: 203.0428855 | BD18: 215.1074923 | BE18: 227.4116381 | BF18: 239.9184717 | BG18: 252.5978878 | BH18: 265.4251549 | BI18: 278.3798353 | BJ18: 291.4449392
A19: =Waterstand_obv_Lobith!Y39 -> 2007 | B19: =Waterstand_obv_Lobith!Z39 -> 901.888172 | C19: =Waterstand_obv_Lobith!AA39 -> 1041.144086 | D19: 578.0837597 | E19: 564.2518836 | F19: 550.4357755 | G19: 536.6366534 | H19: 522.8558622 | I19: 509.0948904 | J19: 495.3553899 | K19: 481.6391981 | L19: 467.9483646 | M19: 454.2851823 | N19: 440.652223 | O19: 427.0523814 | P19: 413.4889253 | Q19: 399.9655562 | R19: 386.4864823 | S19: 373.0565049 | T19: 359.6811236 | U19: 346.3666634 | V19: 333.1204292 | W19: 319.950895 | X19: 306.8679358 | Y19: 293.8831143 | Z19: 281.0100349 | AA19: 268.2647844 | AB19: 255.6664808 | AC19: 243.237958 | AD19: 231.0066213 | AE19: 219.0055111 | AF19: 207.2746216 | AG19: 195.862512 | AH19: 184.8282403 | AI19: 174.2436032 | AJ19: 164.1955788 | AK19: 154.7887042 | AL19: 146.1468364 | AM19: 138.4133398 | AN19: 131.7482731 | AO19: 126.3208704 | AP19: 122.2960226 | AQ19: 119.8151575 | AR19: 118.9748999 | AS19: 119.8097728 | AT19: 122.2854713 | AU19: 126.3055475 | AV19: 131.7286839 | AW19: 138.3900322 | AX19: 146.1203471 | AY19: 154.7595253 | AZ19: 164.164142 | BA19: 174.2102763 | BB19: 184.7933311 | BC19: 195.8262752 | BD19: 207.2372671 | BE19: 218.9672115 | BF19: 230.9675184 | BG19: 243.198169 | BH19: 255.6261024 | BI19: 268.2238973 | BJ19: 280.9687063
A20: =Waterstand_obv_Lobith!Y40 -> 2008 | B20: =Waterstand_obv_Lobith!Z40 -> 977.8186828 | C20: =Waterstand_obv_Lobith!AA40 -> 930.299328 | D20: =SQRT(($B20-D$7-$B$2)^2+($C20-D$7-$B$3)^2) -> 541.178592 | E20: 527.0407083 | F20: 512.9030591 | G20: 498.7656642 | H20: 484.628546 | I20: 470.4917293 | J20: 456.3552423 | K20: 442.2191164 | L20: 428.0833876 | M20: 413.9480964 | N20: =SQRT(($B20-N$7-$B$2)^2+($C20-N$7-$B$3)^2) -> 399.8132893 | O20: 385.6790195 | P20: 371.5453483 | Q20: 357.4123468 | R20: 343.2800976 | S20: 329.1486977 | T20: 315.0182614 | U20: 300.8889243 | V20: 286.7608491 | W20: 272.6342318 | X20: =SQRT(($B20-X$7-$B$2)^2+($C20-X$7-$B$3)^2) -> 258.5093115 | Y20: 244.3863824 | Z20: 230.265811 | AA20: 216.1480592 | AB20: 202.0337182 | AC20: 187.9235564 | AD20: 173.8185918 | AE20: 159.7202011 | AF20: 145.6302936 | AG20: 131.5515952 | AH20: =SQRT(($B20-AH$7-$B$2)^2+($C20-AH$7-$B$3)^2) -> 117.4881355 | AI20: 103.4461298 | AJ20: 89.43568393 | AK20: 75.47437541 | AL20: 61.59562589 | AM20: 47.8712953 | AN20: 34.48623927 | AO20: 22.06672798 | AP20: 13.58603212 | AQ20: 16.79940635 | AR20: =SQRT(($B20-AR$7-$B$2)^2+($C20-AR$7-$B$3)^2) -> 27.92597069 | AS20: 40.95729024 | AT20: 54.54483852 | AU20: 68.35772958 | AV20: 82.28255574 | AW20: 96.27075757 | AX20: 110.2982255 | AY20: 124.351672 | AZ20: 138.4231849 | BA20: 152.5077634 | BB20: =SQRT(($B20-BB$7-$B$2)^2+($C20-BB$7-$B$3)^2) -> 166.6020939 | BC20: 180.7038945 | BD20: 194.8115429 | BE20: 208.9238547 | BF20: 223.0399445 | BG20: 237.1591377 | BH20: 251.2809113 | BI20: 265.4048534 | BJ20: 279.5306351
A21: =Waterstand_obv_Lobith!Y41 -> 2009 | B21: =Waterstand_obv_Lobith!Z41 -> 942.2651882 | C21: =Waterstand_obv_Lobith!AA41 -> 967.8369624 | D21: 543.7939812 | E21: 529.6884471 | F21: 515.5849183 | G21: 501.483564 | H21: 487.3845729 | I21: 473.2881563 | J21: 459.1945512 | K21: 445.1040248 | L21: 431.0168789 | M21: 416.9334561 | N21: 402.8541471 | O21: 388.7793987 | P21: 374.7097247 | Q21: 360.6457192 | R21: 346.5880722 | S21: 332.53759 | T21: 318.495221 | U21: 304.4620876 | V21: 290.4395286 | W21: 276.4291532 | X21: 262.4329128 | Y21: 248.4531962 | Z21: 234.4929588 | AA21: 220.5558993 | AB21: 206.6467074 | AC21: 192.7714156 | AD21: 178.9379101 | AE21: 165.1566912 | AF21: 151.442034 | AG21: 137.8138115 | AH21: 124.3004571 | AI21: 110.9439526 | AJ21: 97.80857634 | AK21: 84.99690932 | AL21: 72.68033836 | AM21: 61.15871624 | AN21: 50.97396945 | AO21: 43.08482971 | AP21: 38.9134879 | AQ21: 39.65118573 | AR21: 45.05744688 | AS21: 53.74132961 | AT21: 64.39011956 | AU21: 76.18427979 | AV21: 88.66792811 | AW21: 101.5871964 | AX21: 114.795102 | AY21: 128.2024666 | AZ21: 141.7527052 | BA21: 155.4084503 | BB21: 169.1441498 | BC21: 182.9417951 | BD21: 196.7883568 | BE21: 210.6741901 | BF21: 224.5920109 | BG21: 238.5362202 | BH21: 252.5024462 | BI21: 266.4872273 | BJ21: 280.4877882
A22: =Waterstand_obv_Lobith!Y42 -> 2010 | B22: =Waterstand_obv_Lobith!Z42 -> 917.2297043 | C22: =Waterstand_obv_Lobith!AA42 -> 890.7012097 | D22: 470.1804062 | E22: 456.0383713 | F22: 441.8963428 | G22: 427.7543214 | H22: 413.6123079 | I22: 399.470303 | J22: 385.3283076 | K22: 371.186323 | L22: 357.0443503 | M22: 342.9023911 | N22: 328.7604471 | O22: 314.6185202 | P22: 300.4766131 | Q22: 286.3347285 | R22: 272.1928699 | S22: 258.0510418 | T22: 243.9092493 | U22: 229.767499 | V22: 215.6257993 | W22: 201.4841608 | X22: 187.3425973 | Y22: 173.2011272 | Z22: 159.0597756 | AA22: 144.9185769 | AB22: 130.7775808 | AC22: 116.6368611 | AD22: 102.4965321 | AE22: 88.35678131 | AF22: 74.21793937 | AG22: 60.08064783 | AH22: 45.94633788 | AI22: 31.81898309 | AJ22: 17.71523089 | AK22: 3.900144324 | AL22: 10.79781673 | AM22: 24.85909424 | AN22: 38.97892106 | AO22: 53.11062048 | AP22: 67.24670793 | AQ22: 81.38489693 | AR22: 95.52425435 | AS22: 109.6643282 | AT22: 123.8048731 | AU22: 137.9457442 | AV22: 152.0868504 | AW22: 166.2281317 | AX22: 180.369547 | AY22: 194.5110671 | AZ22: 208.6526706 | BA22: 222.7943416 | BB22: 236.9360681 | BC22: 251.0778407 | BD22: 265.219652 | BE22: 279.3614962 | BF22: 293.5033684 | BG22: 307.6452648 | BH22: 321.7871823 | BI22: 335.9291181 | BJ22: 350.0710701
A23: =Waterstand_obv_Lobith!Y43 -> 2011 | B23: =Waterstand_obv_Lobith!Z43 -> 765.2371192 | C23: =Waterstand_obv_Lobith!AA43 -> 888.2246416 | D23: 376.6108178 | E23: 363.0791551 | F23: 349.5958204 | G23: 336.166629 | H23: 322.7983383 | I23: 309.4988401 | J23: 296.2773984 | K23: 283.144948 | L23: 270.114469 | M23: 257.2014602 | N23: 244.4245404 | O23: 231.8062137 | P23: 219.3738487 | Q23: 207.1609285 | R23: 195.208645 | S23: 183.5679162 | T23: 172.3018997 | U23: 161.4890381 | V23: 151.2265658 | W23: 141.6341731 | X23: 132.8570803 | Y23: 125.0670563 | Z23: 118.4589944 | AA23: 113.2400023 | AB23: 109.6086808 | AC23: 107.7257059 | AD23: 107.6828328 | AE23: 109.4822235 | AF23: 113.0359326 | AG23: 118.1858149 | AH23: 124.7343242 | AI23: 132.4742104 | AJ23: 141.2097065 | AK23: 150.7678546 | AL23: 161.0022073 | AM23: 171.7919543 | AN23: 183.0389039 | AO23: 194.6638259 | AP23: 206.6029281 | AQ23: 218.8047867 | AR23: 231.2278086 | AS23: 243.8381928 | AT23: 256.6083183 | AU23: 269.5154798 | AV23: 282.5408972 | AW23: 295.6689422 | AX23: 308.8865296 | AY23: 322.1826392 | AZ23: 335.5479366 | BA23: 348.9744726 | BB23: 362.4554418 | BC23: 375.9849892 | BD23: 389.5580533 | BE23: 403.1702391 | BF23: 416.8177137 | BG23: 430.4971211 | BH23: 444.205511 | BI23: 457.9402808 | BJ23: 471.6991261
A24: =Waterstand_obv_Lobith!Y44 -> 2012 | B24: =Waterstand_obv_Lobith!Z44 -> 941.4875224 | C24: =Waterstand_obv_Lobith!AA44 -> 973.3058692 | D24: 547.4321467 | E24: 533.3348737 | F24: 519.2400405 | G24: 505.1478514 | H24: 491.0585342 | I24: 476.9723432 | J24: 462.8895638 | K24: 448.8105173 | L24: 434.7355663 | M24: 420.6651219 | N24: 406.599652 | O24: 392.5396912 | P24: 378.4858535 | Q24: 364.4388474 | R24: 350.3994944 | S24: 336.3687527 | T24: 322.347747 | U24: 308.3378053 | V24: 294.3405074 | W24: 280.3577473 | X24: 266.3918142 | Y24: 252.4455007 | Z24: 238.5222484 | AA24: 224.6263457 | AB24: 210.763202 | AC24: 196.9397357 | AD24: 183.1649302 | AE24: 169.4506531 | AF24: 155.8128878 | AG24: 142.2736384 | AH24: 128.8639606 | AI24: 115.6289432 | AJ24: 102.6361763 | AK24: 89.99064869 | AL24: 77.86173014 | AM24: 66.53255736 | AN24: 56.48639976 | AO24: 48.52675062 | AP24: 43.80613764 | AQ24: 43.39481378 | AR24: 47.40508445 | AS24: 54.87598928 | AT24: 64.61815819 | AU24: 75.76040217 | AV24: 87.77112683 | AW24: 100.33894 | AX24: 113.2785727 | AY24: 126.4759551 | AZ24: 139.8581402 | BA24: 153.3767634 | BB24: 166.9986938 | BC24: 180.7005697 | BD24: 194.4654932 | BE24: 208.2809646 | BF24: 222.1375529 | BG24: 236.0280165 | BH24: 249.9467078 | BI24: 263.8891602 | BJ24: 277.8517969
A25: =Waterstand_obv_Lobith!Y45 -> 2013 | B25: =Waterstand_obv_Lobith!Z45 -> 1091.02509 | C25: =Waterstand_obv_Lobith!AA45 -> 949.1129704 | D25: 639.3769801 | E25: 625.3480323 | F25: 611.3243004 | G25: 597.3061519 | H25: 583.2939893 | I25: 569.2882545 | J25: 555.289434 | K25: 541.2980642 | L25: 527.3147382 | M25: 513.3401133 | N25: 499.37492 | O25: 485.4199723 | P25: 471.47618 | Q25: 457.544563 | R25: 443.6262683 | S25: 429.7225904 | T25: 415.8349955 | U25: 401.9651506 | V25: 388.1149586 | W25: 374.2866013 | X25: 360.4825914 | Y25: 346.7058371 | Z25: 332.9597217 | AA25: 319.248203 | AB25: 305.575938 | AC25: 291.9484418 | AD25: 278.3722894 | AE25: 264.8553762 | AF25: 251.4072574 | AG25: 238.0395931 | AH25: 224.7667384 | AI25: 211.6065346 | AJ25: 198.5813795 | AK25: 185.7196896 | AL25: 173.0579148 | AM25: 160.6433338 | AN25: 148.5379395 | AO25: 136.8238221 | AP25: 125.6104975 | AQ25: 115.0444952 | AR25: 105.3208179 | AS25: 96.69391647 | AT25: 89.48157509 | AU25: 84.04874229 | AV25: 80.75537059 | AW25: 79.86656797 | AX25: 81.46107953 | AY25: 85.39991966 | AZ25: 91.38044143 | BA25: 99.03344827 | BB25: 108.0039938 | BC25: 117.9919551 | BD25: 128.760787 | BE25: 140.1305787 | BF25: 151.9665025 | BG25: 164.1677699 | BH25: 176.6586977 | BI25: 189.3819798 | BJ25: 202.2937791
A26: =Waterstand_obv_Lobith!Y46 -> 2014 | B26: =Waterstand_obv_Lobith!Z46 -> 903.1048611 | C26: =Waterstand_obv_Lobith!AA46 -> 961.2357303 | D26: 513.7723412 | E26: 499.7351366 | F26: 485.7040199 | G26: 471.6795343 | H26: 457.6622895 | I26: 443.6529719 | J26: 429.6523567 | K26: 415.6613234 | L26: 401.6808733 | M26: 387.7121511 | N26: 373.7564719 | O26: 359.8153533 | P26: 345.8905559 | Q26: 331.9841334 | R26: 318.0984957 | S26: 304.2364889 | T26: 290.4014968 | U26: 276.5975732 | V26: 262.8296134 | W26: 249.1035806 | X26: 235.4268082 | Y26: 221.8084088 | Z26: 208.2598338 | AA26: 194.7956533 | AB26: 181.4346569 | AC26: 168.2014354 | AD26: 155.1286919 | AE26: 142.2606735 | AF26: 129.6583487 | AG26: 117.4073063 | AH26: 105.629843 | AI26: 94.50318468 | AJ26: 84.28546782 | AK26: 75.34738388 | AL26: 68.19396183 | AM26: 63.43188947 | AN26: 61.6181205 | AO26: 63.00778481 | AP26: 67.40303493 | AQ26: 74.27218383 | AR26: 83.00328585 | AS26: 93.07380746 | AT26: 104.0957339 | AU26: 115.7977115 | AV26: 127.993352 | AW26: 140.5542113 | AX26: 153.3905945 | AY26: 166.4387655 | AZ26: 179.6525837 | BA26: 192.9980285 | BB26: 206.4495754 | BC26: 219.9877618 | BD26: 233.5975247 | BE26: 247.2670453 | BF26: 260.9869343 | BG26: 274.7496461 | BH26: 288.5490534 | BI26: 302.3801323 | BJ26: 316.2387272
A27: =Waterstand_obv_Lobith!Y47 -> 2015 | B27: =Waterstand_obv_Lobith!Z47 -> 1034.027733 | C27: =Waterstand_obv_Lobith!AA47 -> 845.3368728 | D27: 532.7917057 | E27: 518.9794886 | F27: 505.1855278 | G27: 491.4113606 | H27: 477.6586995 | I27: 463.9294571 | J27: 450.2257756 | K27: 436.5500623 | L27: 422.9050305 | M27: 409.2937486 | N27: 395.7196995 | O27: 382.1868502 | P27: 368.6997374 | Q27: 355.2635701 | R27: 341.8843549 | S27: 328.569049 | T27: 315.3257488 | U27: 302.163922 | V27: 289.0946967 | W27: 276.1312216 | X27: 263.2891175 | Y27: 250.5870454 | Z27: 238.0474221 | AA27: 225.6973262 | AB27: 213.5696396 | AC27: 201.7044839 | AD27: 190.1510103 | AE27: 178.9695913 | AF27: 168.2344272 | AG27: 158.0364843 | AH27: 148.4864919 | AI27: 139.7173796 | AJ27: 131.8850031 | AK27: 125.1653383 | AL27: 119.7458551 | AM27: 115.8092297 | AN27: 113.5098479 | AO27: 112.9477466 | AP27: 114.1485933 | AQ27: 117.0581447 | AR27: 121.5537623 | AS27: 127.467741 | AT27: 134.6132716 | AU27: 142.8056048 | AV27: 151.875438 | AW27: 161.6751575 | AX27: 172.0801105 | AY27: 182.9870824 | AZ27: 194.3115545 | BA27: 205.9846793 | BB27: 217.9504438 | BC27: 230.1632113 | BD27: 242.5856792 | BE27: 255.1872247 | BF27: 267.9425825 | BG27: 280.830795 | BH27: 293.8343807 | BI27: 306.9386766 | BJ27: 320.1313153
A28: =Waterstand_obv_Lobith!Y48 -> 2016 | B28: =Waterstand_obv_Lobith!Z48 -> 1016.342921 | C28: =Waterstand_obv_Lobith!AA48 -> 1018.856429 | D28: 631.2736261 | E28: 617.1405059 | F28: 603.0078084 | G28: 588.8755641 | H28: 574.7438064 | I28: 560.6125721 | J28: 546.4819018 | K28: 532.3518404 | L28: 518.2224377 | M28: 504.0937491 | N28: 489.9658365 | O28: 475.8387688 | P28: 461.7126237 | Q28: 447.5874885 | R28: 433.463462 | S28: 419.3406561 | T28: 405.2191985 | U28: 391.0992353 | V28: 376.9809343 | W28: 362.8644897 | X28: 348.7501267 | Y28: 334.6381088 | Z28: 320.5287457 | AA28: 306.4224042 | AB28: 292.3195218 | AC28: 278.2206243 | AD28: 264.1263501 | AE28: 250.0374808 | AF28: 235.9549847 | AG28: 221.8800752 | AH28: 207.814294 | AI28: 193.7596288 | AJ28: 179.7186878 | AK28: 165.6949599 | AL28: 151.6932192 | AM28: 137.7201718 | AN28: 123.7855352 | AO28: 109.9039204 | AP28: 96.09830754 | AQ28: 82.40690326 | AR28: 68.89782797 | AS28: 55.70389296 | AT28: 43.11538802 | AU28: 31.85827486 | AV28: 23.89482517 | AW28: 22.95595049 | AX28: 29.71512503 | AY28: 40.48458532 | AZ28: 52.86789802 | BA28: 65.9623198 | BB28: 79.41687873 | BC28: 93.07552643 | BD28: 106.8600328 | BE28: 120.7272944 | BF28: 134.6517456 | BG28: 148.6173126 | BH28: 162.6134022 | BI28: 176.6327591 | BJ28: 190.6702509
A29: =Waterstand_obv_Lobith!Y49 -> 2017 | B29: =Waterstand_obv_Lobith!Z49 -> 910.1750672 | C29: =Waterstand_obv_Lobith!AA49 -> 844.8522177 | D29: =SQRT(($B29-D$7-$B$2)^2+($C29-D$7-$B$3)^2) -> 433.5301298 | E29: 419.4136714 | F29: 405.2990033 | G29: 391.1863192 | H29: 377.0758421 | I29: 362.9678291 | J29: 348.8625793 | K29: 334.7604421 | L29: 320.6618279 | M29: 306.5672229 | N29: 292.4772067 | O29: 278.3924761 | P29: 264.313876 | Q29: 250.2424412 | R29: 236.1794523 | S29: 222.1265134 | T29: 208.0856609 | U29: 194.0595181 | V29: 180.0515228 | W29: 166.0662674 | X29: 152.1100243 | Y29: 138.1915836 | Z29: 124.3236425 | AA29: 110.5252115 | AB29: 96.82601242 | AC29: 83.27503217 | AD29: 69.95845398 | AE29: 57.04068359 | AF29: 44.86751482 | AG29: 34.24249096 | AH29: 27.0555445 | AI29: 26.29556596 | AJ29: =SQRT(($B29-AJ$7-$B$2)^2+($C29-AJ$7-$B$3)^2) -> 32.41775887 | AK29: 42.54838882 | AL29: 54.49605208 | AM29: 67.29988108 | AN29: 80.552643 | AO29: 94.06477872 | AP29: 107.7387437 | AQ29: 121.519921 | AR29: 135.375572 | AS29: 149.2849617 | AT29: 163.2343533 | AU29: 177.2143008 | AV29: 191.2181024 | AW29: 205.2408756 | AX29: 219.2789805 | AY29: 233.3296501 | AZ29: 247.3907434 | BA29: 261.4605787 | BB29: 275.5378168 | BC29: 289.6213784 | BD29: 303.7103836 | BE29: 317.8041086 | BF29: 331.901952 | BG29: =SQRT(($B29-BG$7-$B$2)^2+($C29-BG$7-$B$3)^2) -> 346.0034104 | BH29: 360.1080592 | BI29: 374.2155376 | BJ29: 388.3255373
A31: =A10 -> 1998 | B31: 944.4287634 | C31: 883.8665323 | D31: =IF(D10<$B$4,($B$5/100)-(D10/$B$4)*($B$5/100),0) -> 0 | E31: =IF(E10<$B$4,($B$5/100)-(E10/$B$4)*($B$5/100),0) -> 0 | F31: 0 | G31: 0 | H31: 0 | I31: 0 | J31: 0 | K31: 0 | L31: 0 | M31: 0 | N31: 0 | O31: 0 | P31: 0 | Q31: 0 | R31: 0 | S31: 0 | T31: 0 | U31: 0 | V31: 0 | W31: 0 | X31: 0 | Y31: 0 | Z31: 0 | AA31: 0 | AB31: 0 | AC31: 0 | AD31: 0 | AE31: 0 | AF31: 0 | AG31: 0 | AH31: 0 | AI31: 0.03380163846 | AJ31: 0.1451144842 | AK31: 0.2399915432 | AL31: 0.2942746562 | AM31: 0.276171298 | AN31: 0.1984481639 | AO31: 0.09401282895 | AP31: 0 | AQ31: 0 | AR31: 0 | AS31: 0 | AT31: 0 | AU31: 0 | AV31: 0 | AW31: 0 | AX31: 0 | AY31: 0 | AZ31: 0 | BA31: 0 | BB31: 0 | BC31: 0 | BD31: 0 | BE31: 0 | BF31: 0 | BG31: 0 | BH31: 0 | BI31: 0 | BJ31: 0
A32: 1999 | B32: 1167.324194 | C32: 1041.140995 | D32: =IF(D11<$B$4,($B$5/100)-(D11/$B$4)*($B$5/100),0) -> 0 | E32: 0 | F32: 0 | G32: 0 | H32: 0 | I32: 0 | J32: 0 | K32: 0 | L32: 0 | M32: 0 | N32: 0 | O32: 0 | P32: 0 | Q32: 0 | R32: 0 | S32: 0 | T32: 0 | U32: 0 | V32: 0 | W32: 0 | X32: 0 | Y32: 0 | Z32: 0 | AA32: 0 | AB32: 0 | AC32: 0 | AD32: 0 | AE32: 0 | AF32: 0 | AG32: 0 | AH32: 0 | AI32: 0 | AJ32: 0 | AK32: 0 | AL32: 0 | AM32: 0 | AN32: 0 | AO32: 0 | AP32: 0 | AQ32: 0 | AR32: 0 | AS32: 0 | AT32: 0 | AU32: 0 | AV32: 0 | AW32: 0 | AX32: 0 | AY32: 0 | AZ32: 0 | BA32: 0 | BB32: 0 | BC32: 0 | BD32: 0 | BE32: 0 | BF32: 0 | BG32: 0 | BH32: 0 | BI32: 0 | BJ32: 0
A33: 2000 | B33: 992.6962366 | C33: 1004.294758 | D33: 0 | E33: 0 | F33: 0 | G33: 0 | H33: 0 | I33: 0 | J33: 0 | K33: 0 | L33: 0 | M33: 0 | N33: 0 | O33: 0 | P33: 0 | Q33: 0 | R33: 0 | S33: 0 | T33: 0 | U33: 0 | V33: 0 | W33: 0 | X33: 0 | Y33: 0 | Z33: 0 | AA33: 0 | AB33: 0 | AC33: 0 | AD33: 0 | AE33: 0 | AF33: 0 | AG33: 0 | AH33: 0 | AI33: 0 | AJ33: 0 | AK33: 0 | AL33: 0 | AM33: 0 | AN33: 0 | AO33: 0 | AP33: 0 | AQ33: 0 | AR33: 0.06575954747 | AS33: 0.1596290512 | AT33: 0.2239604263 | AU33: 0.2361796806 | AV33: 0.1900607691 | AW33: 0.1055619897 | AX33: 0.001845192371 | AY33: 0 | AZ33: 0 | BA33: 0 | BB33: 0 | BC33: 0 | BD33: 0 | BE33: 0 | BF33: 0 | BG33: 0 | BH33: 0 | BI33: 0 | BJ33: 0
A34: =A13 -> 2001 | B34: 1118.106048 | C34: 1010.370968 | D34: 0 | E34: 0 | F34: 0 | G34: 0 | H34: 0 | I34: 0 | J34: 0 | K34: 0 | L34: 0 | M34: 0 | N34: 0 | O34: 0 | P34: 0 | Q34: 0 | R34: 0 | S34: 0 | T34: 0 | U34: 0 | V34: 0 | W34: 0 | X34: 0 | Y34: 0 | Z34: 0 | AA34: 0 | AB34: 0 | AC34: 0 | AD34: 0 | AE34: 0 | AF34: 0 | AG34: 0 | AH34: 0 | AI34: 0 | AJ34: 0 | AK34: 0 | AL34: 0 | AM34: 0 | AN34: 0 | AO34: 0 | AP34: 0 | AQ34: 0 | AR34: 0 | AS34: 0 | AT34: 0 | AU34: 0 | AV34: 0 | AW34: 0 | AX34: 0 | AY34: 0 | AZ34: 0 | BA34: 0 | BB34: 0 | BC34: 0 | BD34: 0 | BE34: 0 | BF34: 0 | BG34: 0 | BH34: 0 | BI34: 0 | BJ34: 0
A35: 2002 | B35: 1063.945296 | C35: 957.6646505 | D35: 0 | E35: 0 | F35: 0 | G35: 0 | H35: 0 | I35: 0 | J35: 0 | K35: 0 | L35: 0 | M35: 0 | N35: 0 | O35: 0 | P35: 0 | Q35: 0 | R35: 0 | S35: 0 | T35: 0 | U35: 0 | V35: 0 | W35: 0 | X35: 0 | Y35: 0 | Z35: 0 | AA35: 0 | AB35: 0 | AC35: 0 | AD35: 0 | AE35: 0 | AF35: 0 | AG35: 0 | AH35: 0 | AI35: 0 | AJ35: 0 | AK35: 0 | AL35: 0 | AM35: 0 | AN35: 0 | AO35: 0 | AP35: 0 | AQ35: 0 | AR35: 0 | AS35: 0 | AT35: 0 | AU35: 0 | AV35: 0.003140841496 | AW35: 0 | AX35: 0 | AY35: 0 | AZ35: 0 | BA35: 0 | BB35: 0 | BC35: 0 | BD35: 0 | BE35: 0 | BF35: 0 | BG35: 0 | BH35: 0 | BI35: 0 | BJ35: 0
A36: 2003 | B36: 922.0501344 | C36: 830.1151882 | D36: 0 | E36: 0 | F36: 0 | G36: 0 | H36: 0 | I36: 0 | J36: 0 | K36: 0 | L36: 0 | M36: 0 | N36: 0 | O36: 0 | P36: 0 | Q36: 0 | R36: 0 | S36: 0 | T36: 0 | U36: 0 | V36: 0 | W36: =IF(W15<$B$4,($B$5/100)-(W15/$B$4)*($B$5/100),0) -> 0 | X36: 0 | Y36: 0 | Z36: 0 | AA36: 0 | AB36: 0 | AC36: 0 | AD36: 0 | AE36: 0 | AF36: 0 | AG36: 0.05410858625 | AH36: 0.09117126604 | AI36: 0.08948743526 | AJ36: 0.04949134398 | AK36: 0 | AL36: 0 | AM36: 0 | AN36: 0 | AO36: 0 | AP36: 0 | AQ36: 0 | AR36: 0 | AS36: 0 | AT36: 0 | AU36: 0 | AV36: 0 | AW36: 0 | AX36: 0 | AY36: 0 | AZ36: 0 | BA36: 0 | BB36: 0 | BC36: 0 | BD36: 0 | BE36: 0 | BF36: 0 | BG36: 0 | BH36: 0 | BI36: 0 | BJ36: 0
A37: 2004 | B37: 963.3307796 | C37: 909.3990591 | D37: =IF(D16<$B$4,($B$5/100)-(D16/$B$4)*($B$5/100),0) -> 0 | E37: 0 | F37: 0 | G37: 0 | H37: 0 | I37: 0 | J37: 0 | K37: 0 | L37: 0 | M37: 0 | N37: 0 | O37: 0 | P37: 0 | Q37: 0 | R37: 0 | S37: 0 | T37: 0 | U37: 0 | V37: 0 | W37: 0 | X37: 0 | Y37: 0 | Z37: 0 | AA37: 0 | AB37: 0 | AC37: 0 | AD37: 0 | AE37: 0 | AF37: 0 | AG37: 0 | AH37: 0 | AI37: 0 | AJ37: 0 | AK37: 0.02396953488 | AL37: 0.1423996678 | AM37: 0.2505829944 | AN37: 0.3279606468 | AO37: 0.3266676988 | AP37: 0.2479117506 | AQ37: 0.1392913426 | AR37: 0.02069755182 | AS37: 0 | AT37: 0 | AU37: 0 | AV37: 0 | AW37: 0 | AX37: 0 | AY37: 0 | AZ37: 0 | BA37: 0 | BB37: 0 | BC37: 0 | BD37: 0 | BE37: 0 | BF37: 0 | BG37: 0 | BH37: 0 | BI37: 0 | BJ37: 0
A38: 2005 | B38: 1036.312634 | C38: 889.2451613 | D38: 0 | E38: 0 | F38: 0 | G38: 0 | H38: 0 | I38: 0 | J38: 0 | K38: 0 | L38: 0 | M38: 0 | N38: 0 | O38: 0 | P38: 0 | Q38: 0 | R38: 0 | S38: 0 | T38: 0 | U38: 0 | V38: 0 | W38: 0 | X38: 0 | Y38: 0 | Z38: 0 | AA38: 0 | AB38: 0 | AC38: 0 | AD38: 0 | AE38: 0 | AF38: 0 | AG38: 0 | AH38: 0 | AI38: 0 | AJ38: 0 | AK38: 0 | AL38: 0 | AM38: 0 | AN38: 0 | AO38: 0 | AP38: 0 | AQ38: 0 | AR38: 0 | AS38: 0 | AT38: 0 | AU38: 0 | AV38: 0 | AW38: 0 | AX38: 0 | AY38: 0 | AZ38: 0 | BA38: 0 | BB38: 0 | BC38: 0 | BD38: 0 | BE38: 0 | BF38: 0 | BG38: 0 | BH38: 0 | BI38: 0 | BJ38: 0
A39: 2006 | B39: 1051.970565 | C39: 868.7884409 | D39: 0 | E39: 0 | F39: 0 | G39: 0 | H39: 0 | I39: 0 | J39: 0 | K39: 0 | L39: 0 | M39: 0 | N39: 0 | O39: 0 | P39: 0 | Q39: 0 | R39: 0 | S39: 0 | T39: 0 | U39: 0 | V39: 0 | W39: 0 | X39: 0 | Y39: 0 | Z39: 0 | AA39: 0 | AB39: 0 | AC39: 0 | AD39: 0 | AE39: 0 | AF39: 0 | AG39: 0 | AH39: 0 | AI39: 0 | AJ39: 0 | AK39: 0 | AL39: 0 | AM39: 0 | AN39: 0 | AO39: 0 | AP39: 0 | AQ39: 0 | AR39: 0 | AS39: 0 | AT39: 0 | AU39: 0 | AV39: 0 | AW39: 0 | AX39: 0 | AY39: 0 | AZ39: 0 | BA39: 0 | BB39: 0 | BC39: 0 | BD39: 0 | BE39: 0 | BF39: 0 | BG39: 0 | BH39: 0 | BI39: 0 | BJ39: 0
A40: 2007 | B40: 901.888172 | C40: 1041.144086 | D40: 0 | E40: 0 | F40: 0 | G40: 0 | H40: 0 | I40: 0 | J40: 0 | K40: 0 | L40: 0 | M40: 0 | N40: 0 | O40: 0 | P40: 0 | Q40: 0 | R40: 0 | S40: 0 | T40: 0 | U40: 0 | V40: 0 | W40: 0 | X40: 0 | Y40: 0 | Z40: 0 | AA40: 0 | AB40: 0 | AC40: 0 | AD40: 0 | AE40: 0 | AF40: 0 | AG40: 0 | AH40: 0 | AI40: 0 | AJ40: 0 | AK40: 0 | AL40: 0 | AM40: 0 | AN40: 0 | AO40: 0 | AP40: 0 | AQ40: 0 | AR40: 0 | AS40: 0 | AT40: 0 | AU40: 0 | AV40: 0 | AW40: 0 | AX40: 0 | AY40: 0 | AZ40: 0 | BA40: 0 | BB40: 0 | BC40: 0 | BD40: 0 | BE40: 0 | BF40: 0 | BG40: 0 | BH40: 0 | BI40: 0 | BJ40: 0
A41: 2008 | B41: 977.8186828 | C41: 930.299328 | D41: 0 | E41: 0 | F41: 0 | G41: 0 | H41: 0 | I41: 0 | J41: 0 | K41: 0 | L41: 0 | M41: 0 | N41: 0 | O41: 0 | P41: 0 | Q41: 0 | R41: 0 | S41: 0 | T41: 0 | U41: 0 | V41: 0 | W41: =IF(W20<$B$4,($B$5/100)-(W20/$B$4)*($B$5/100),0) -> 0 | X41: 0 | Y41: 0 | Z41: 0 | AA41: 0 | AB41: 0 | AC41: 0 | AD41: 0 | AE41: 0 | AF41: 0 | AG41: 0 | AH41: 0 | AI41: 0 | AJ41: 0 | AK41: 0 | AL41: 0 | AM41: 0.06480640633 | AN41: 0.1864887339 | AO41: 0.299393382 | AP41: 0.3764906171 | AQ41: 0.3472781241 | AR41: 0.2461275392 | AS41: 0.1276609978 | AT41: 0.004137831681 | AU41: 0 | AV41: 0 | AW41: 0 | AX41: 0 | AY41: 0 | AZ41: 0 | BA41: 0 | BB41: 0 | BC41: 0 | BD41: 0 | BE41: 0 | BF41: 0 | BG41: 0 | BH41: 0 | BI41: 0 | BJ41: 0
A42: 2009 | B42: 942.2651882 | C42: 967.8369624 | D42: =IF(D21<$B$4,($B$5/100)-(D21/$B$4)*($B$5/100),0) -> 0 | E42: 0 | F42: 0 | G42: 0 | H42: 0 | I42: 0 | J42: 0 | K42: 0 | L42: 0 | M42: 0 | N42: 0 | O42: 0 | P42: 0 | Q42: 0 | R42: 0 | S42: 0 | T42: 0 | U42: 0 | V42: 0 | W42: 0 | X42: 0 | Y42: 0 | Z42: 0 | AA42: 0 | AB42: 0 | AC42: 0 | AD42: 0 | AE42: 0 | AF42: 0 | AG42: 0 | AH42: 0 | AI42: 0 | AJ42: 0 | AK42: 0 | AL42: 0 | AM42: 0 | AN42: 0.03660027769 | AO42: 0.1083197299 | AP42: 0.1462410191 | AQ42: 0.1395346752 | AR42: 0.09038684659 | AS42: 0.0114424581 | AT42: 0 | AU42: 0 | AV42: 0 | AW42: 0 | AX42: 0 | AY42: 0 | AZ42: 0 | BA42: 0 | BB42: 0 | BC42: 0 | BD42: 0 | BE42: 0 | BF42: 0 | BG42: 0 | BH42: 0 | BI42: 0 | BJ42: 0
A43: =A22 -> 2010 | B43: 917.2297043 | C43: 890.7012097 | D43: 0 | E43: 0 | F43: 0 | G43: 0 | H43: 0 | I43: 0 | J43: 0 | K43: 0 | L43: 0 | M43: 0 | N43: 0 | O43: 0 | P43: 0 | Q43: 0 | R43: 0 | S43: 0 | T43: 0 | U43: 0 | V43: 0 | W43: 0 | X43: 0 | Y43: 0 | Z43: 0 | AA43: 0 | AB43: 0 | AC43: 0 | AD43: 0 | AE43: 0 | AF43: 0 | AG43: 0 | AH43: 0.08230601929 | AI43: 0.2107365174 | AJ43: 0.3389524465 | AK43: 0.4645441425 | AL43: 0.4018380297 | AM43: 0.2740082342 | AN43: 0.1456461722 | AO43: 0.01717617748 | AP43: 0 | AQ43: 0 | AR43: 0 | AS43: 0 | AT43: 0 | AU43: 0 | AV43: 0 | AW43: 0 | AX43: 0 | AY43: 0 | AZ43: 0 | BA43: 0 | BB43: 0 | BC43: 0 | BD43: 0 | BE43: 0 | BF43: 0 | BG43: 0 | BH43: 0 | BI43: 0 | BJ43: 0
A44: 2011 | B44: 765.2371192 | C44: 888.2246416 | D44: 0 | E44: 0 | F44: 0 | G44: 0 | H44: 0 | I44: 0 | J44: 0 | K44: 0 | L44: 0 | M44: 0 | N44: 0 | O44: 0 | P44: 0 | Q44: 0 | R44: 0 | S44: 0 | T44: 0 | U44: 0 | V44: 0 | W44: 0 | X44: 0 | Y44: 0 | Z44: 0 | AA44: 0 | AB44: 0 | AC44: 0 | AD44: 0 | AE44: 0 | AF44: 0 | AG44: 0 | AH44: 0 | AI44: 0 | AJ44: 0 | AK44: 0 | AL44: 0 | AM44: 0 | AN44: 0 | AO44: 0 | AP44: 0 | AQ44: 0 | AR44: 0 | AS44: 0 | AT44: 0 | AU44: 0 | AV44: 0 | AW44: 0 | AX44: 0 | AY44: 0 | AZ44: 0 | BA44: 0 | BB44: 0 | BC44: 0 | BD44: 0 | BE44: 0 | BF44: 0 | BG44: 0 | BH44: 0 | BI44: 0 | BJ44: 0
A45: 2012 | B45: 941.4875224 | C45: 973.3058692 | D45: 0 | E45: 0 | F45: 0 | G45: 0 | H45: 0 | I45: 0 | J45: 0 | K45: 0 | L45: 0 | M45: 0 | N45: 0 | O45: 0 | P45: 0 | Q45: 0 | R45: 0 | S45: 0 | T45: 0 | U45: 0 | V45: 0 | W45: 0 | X45: 0 | Y45: 0 | Z45: 0 | AA45: 0 | AB45: 0 | AC45: 0 | AD45: 0 | AE45: 0 | AF45: 0 | AG45: 0 | AH45: 0 | AI45: 0 | AJ45: 0 | AK45: 0 | AL45: 0 | AM45: 0 | AN45: 0 | AO45: 0.0588477216 | AP45: 0.1017623851 | AQ45: 0.1055016929 | AR45: 0.06904468684 | AS45: 0.001127370137 | AT45: 0 | AU45: 0 | AV45: 0 | AW45: 0 | AX45: 0 | AY45: 0 | AZ45: 0 | BA45: 0 | BB45: 0 | BC45: 0 | BD45: 0 | BE45: 0 | BF45: 0 | BG45: 0 | BH45: 0 | BI45: 0 | BJ45: 0
A46: 2013 | B46: 1091.02509 | C46: 949.1129704 | D46: 0 | E46: 0 | F46: 0 | G46: 0 | H46: 0 | I46: 0 | J46: 0 | K46: 0 | L46: 0 | M46: 0 | N46: 0 | O46: 0 | P46: 0 | Q46: 0 | R46: 0 | S46: 0 | T46: 0 | U46: 0 | V46: 0 | W46: =IF(W25<$B$4,($B$5/100)-(W25/$B$4)*($B$5/100),0) -> 0 | X46: 0 | Y46: 0 | Z46: 0 | AA46: 0 | AB46: 0 | AC46: 0 | AD46: 0 | AE46: 0 | AF46: 0 | AG46: 0 | AH46: 0 | AI46: 0 | AJ46: 0 | AK46: 0 | AL46: 0 | AM46: 0 | AN46: 0 | AO46: 0 | AP46: 0 | AQ46: 0 | AR46: 0 | AS46: 0 | AT46: 0 | AU46: 0 | AV46: 0 | AW46: 0 | AX46: 0 | AY46: 0 | AZ46: 0 | BA46: 0 | BB46: 0 | BC46: 0 | BD46: 0 | BE46: 0 | BF46: 0 | BG46: 0 | BH46: 0 | BI46: 0 | BJ46: 0
A47: 2014 | B47: 903.1048611 | C47: 961.2357303 | D47: =IF(D26<$B$4,($B$5/100)-(D26/$B$4)*($B$5/100),0) -> 0 | E47: 0 | F47: 0 | G47: 0 | H47: 0 | I47: 0 | J47: 0 | K47: 0 | L47: 0 | M47: 0 | N47: 0 | O47: 0 | P47: 0 | Q47: 0 | R47: 0 | S47: 0 | T47: 0 | U47: 0 | V47: 0 | W47: 0 | X47: 0 | Y47: 0 | Z47: 0 | AA47: 0 | AB47: 0 | AC47: 0 | AD47: 0 | AE47: 0 | AF47: 0 | AG47: 0 | AH47: 0 | AI47: 0 | AJ47: 0 | AK47: 0 | AL47: 0 | AM47: 0 | AN47: 0 | AO47: 0 | AP47: 0 | AQ47: 0 | AR47: 0 | AS47: 0 | AT47: 0 | AU47: 0 | AV47: 0 | AW47: 0 | AX47: 0 | AY47: 0 | AZ47: 0 | BA47: 0 | BB47: 0 | BC47: 0 | BD47: 0 | BE47: 0 | BF47: 0 | BG47: 0 | BH47: 0 | BI47: 0 | BJ47: 0
A48: 2015 | B48: 1034.027733 | C48: 845.3368728 | D48: 0 | E48: 0 | F48: 0 | G48: 0 | H48: 0 | I48: 0 | J48: 0 | K48: 0 | L48: 0 | M48: 0 | N48: 0 | O48: 0 | P48: 0 | Q48: 0 | R48: 0 | S48: 0 | T48: 0 | U48: 0 | V48: 0 | W48: 0 | X48: 0 | Y48: 0 | Z48: 0 | AA48: 0 | AB48: 0 | AC48: 0 | AD48: 0 | AE48: 0 | AF48: 0 | AG48: 0 | AH48: 0 | AI48: 0 | AJ48: 0 | AK48: 0 | AL48: 0 | AM48: 0 | AN48: 0 | AO48: 0 | AP48: 0 | AQ48: 0 | AR48: 0 | AS48: 0 | AT48: 0 | AU48: 0 | AV48: 0 | AW48: 0 | AX48: 0 | AY48: 0 | AZ48: 0 | BA48: 0 | BB48: 0 | BC48: 0 | BD48: 0 | BE48: 0 | BF48: 0 | BG48: 0 | BH48: 0 | BI48: 0 | BJ48: 0
A49: 2016 | B49: 1016.342921 | C49: 1018.856429 | D49: 0 | E49: 0 | F49: 0 | G49: 0 | H49: 0 | I49: 0 | J49: 0 | K49: 0 | L49: 0 | M49: 0 | N49: 0 | O49: 0 | P49: 0 | Q49: 0 | R49: 0 | S49: 0 | T49: 0 | U49: 0 | V49: 0 | W49: 0 | X49: 0 | Y49: 0 | Z49: 0 | AA49: 0 | AB49: 0 | AC49: 0 | AD49: 0 | AE49: 0 | AF49: 0 | AG49: 0 | AH49: 0 | AI49: 0 | AJ49: 0 | AK49: 0 | AL49: 0 | AM49: 0 | AN49: 0 | AO49: 0 | AP49: 0 | AQ49: 0 | AR49: 0 | AS49: 0 | AT49: 0.1080419271 | AU49: 0.2103793195 | AV49: 0.2827743166 | AW49: 0.291309541 | AX49: 0.2298624997 | AY49: 0.1319583153 | AZ49: 0.01938274526 | BA49: 0 | BB49: 0 | BC49: 0 | BD49: 0 | BE49: 0 | BF49: 0 | BG49: 0 | BH49: 0 | BI49: 0 | BJ49: 0
A50: 2017 | B50: 910.1750672 | C50: 844.8522177 | D50: 0 | E50: 0 | F50: 0 | G50: 0 | H50: 0 | I50: 0 | J50: 0 | K50: 0 | L50: 0 | M50: 0 | N50: 0 | O50: 0 | P50: 0 | Q50: 0 | R50: 0 | S50: 0 | T50: 0 | U50: 0 | V50: 0 | W50: 0 | X50: 0 | Y50: 0 | Z50: 0 | AA50: 0 | AB50: 0 | AC50: 0 | AD50: 0 | AE50: 0 | AF50: 0.09211350165 | AG50: 0.1887046276 | AH50: 0.2540405046 | AI50: 0.2609494004 | AJ50: 0.2052931012 | AK50: 0.1131964653 | AL50: 0.004581344718 | AM50: 0 | AN50: 0 | AO50: 0 | AP50: 0 | AQ50: 0 | AR50: 0 | AS50: 0 | AT50: 0 | AU50: 0 | AV50: 0 | AW50: 0 | AX50: 0 | AY50: 0 | AZ50: 0 | BA50: 0 | BB50: 0 | BC50: 0 | BD50: 0 | BE50: 0 | BF50: 0 | BG50: 0 | BH50: 0 | BI50: 0 | BJ50: 0
A51: geschatte kans submers | D51: =IF(COUNTIF(D31:D50,">0")<(2*$B$6),0,AVERAGE(D31:D50)) -> 0 | E51: =IF(COUNTIF(E31:E50,">0")<(2*$B$6),0,AVERAGE(E31:E50)) -> 0 | F51: 0 | G51: 0 | H51: 0 | I51: 0 | J51: 0 | K51: 0 | L51: 0 | M51: 0 | N51: 0 | O51: 0 | P51: 0 | Q51: 0 | R51: 0 | S51: 0 | T51: 0 | U51: 0 | V51: 0 | W51: 0 | X51: 0 | Y51: 0 | Z51: 0 | AA51: 0 | AB51: 0 | AC51: 0 | AD51: 0 | AE51: 0 | AF51: 0 | AG51: 0 | AH51: 0 | AI51: 0 | AJ51: 0 | AK51: 0 | AL51: 0 | AM51: 0 | AN51: 0 | AO51: 0 | AP51: 0 | AQ51: 0 | AR51: 0 | AS51: 0 | AT51: 0 | AU51: 0 | AV51: 0 | AW51: 0 | AX51: 0 | AY51: 0 | AZ51: 0 | BA51: 0 | BB51: 0 | BC51: 0 | BD51: 0 | BE51: 0 | BF51: 0 | BG51: 0 | BH51: 0 | BI51: 0 | BJ51: 0

Sheet Geul - helofyten (hidden)
A1: NEVENGEUL HELOFYTEN
A2: optimale diepte mei | B2: 110 | C2: cm
A3: optimale diepte juli | B3: 102 | C3: cm
A4: max distance | B4: 190 | C4: cm
A5: max bedekking | B5: 70 | C5: %
A6: minimaal jaren uit 10 jaar | B6: 8 | C6: -
D7: ='Interface KRW-tool Waterplanten'!$B$11 -> 470 | E7: =D7+10 -> 480 | F7: =E7+10 -> 490 | G7: 500 | H7: 510 | I7: 520 | J7: 530 | K7: 540 | L7: 550 | M7: 560 | N7: 570 | O7: 580 | P7: 590 | Q7: 600 | R7: 610 | S7: 620 | T7: 630 | U7: 640 | V7: 650 | W7: 660 | X7: 670 | Y7: 680 | Z7: 690 | AA7: 700 | AB7: 710 | AC7: 720 | AD7: 730 | AE7: 740 | AF7: 750 | AG7: 760 | AH7: 770 | AI7: 780 | AJ7: 790 | AK7: 800 | AL7: 810 | AM7: 820 | AN7: 830 | AO7: 840 | AP7: 850 | AQ7: 860 | AR7: 870 | AS7: 880 | AT7: 890 | AU7: 900 | AV7: 910 | AW7: 920 | AX7: 930 | AY7: 940 | AZ7: 950 | BA7: 960 | BB7: 970 | BC7: 980 | BD7: 990 | BE7: 1000 | BF7: 1010 | BG7: 1020 | BH7: 1030 | BI7: 1040 | BJ7: 1050
B8: peil in mei | C8: peil in juli
B9: (cm NAP) | C9: (cm NAP)
A10: =Waterstand_obv_Lobith!Y30 -> 1998 | B10: =Waterstand_obv_Lobith!Z30 -> 944.4287634 | C10: =Waterstand_obv_Lobith!AA30 -> 883.8665323 | D10: =SQRT(($B10-D$7-$B$2)^2+($C10-D$7-$B$3)^2) -> 479.6551444 | E10: 465.5568189 | F10: 451.4612339 | G10: 437.3686544 | H10: 423.2793804 | I10: 409.1937536 | J10: 395.1121639 | K10: 381.035059 | L10: 366.9629549 | M10: 352.8964499 | N10: =SQRT(($B10-N$7-$B$2)^2+($C10-N$7-$B$3)^2) -> 338.8362413 | O10: 324.7831469 | P10: 310.7381319 | Q10: 296.7023436 | R10: 282.6771564 | S10: 268.6642307 | T10: 254.6655904 | U10: 240.6837282 | V10: 226.7217482 | W10: 212.7835642 | X10: =SQRT(($B10-X$7-$B$2)^2+($C10-X$7-$B$3)^2) -> 198.8741795 | Y10: 185.0000902 | Z10: 171.1698789 | AA10: 157.3951128 | AB10: 143.6917382 | AC10: 130.082319 | AD10: 116.599759 | AE10: 103.2937456 | AF10: 90.24240674 | AG10: 77.57439049 | AH10: =SQRT(($B10-AH$7-$B$2)^2+($C10-AH$7-$B$3)^2) -> 65.51244268 | AI10: 54.46075865 | AJ10: 45.16711545 | AK10: 38.91223978 | AL10: 37.25931414 | AM10: 40.77193369 | AN10: 48.33678374 | AO10: 58.39981805 | AP10: 69.89014834 | AQ10: 82.21147682 | AR10: =SQRT(($B10-AR$7-$B$2)^2+($C10-AR$7-$B$3)^2) -> 95.04115428 | AS10: 108.1984986 | AT10: 121.5771738 | AU10: 135.1114476 | AV10: 148.7588564 | AW10: 162.4908965 | AX10: 176.2877918 | AY10: 190.1354244 | AZ10: 204.0234636 | BA10: 217.944185 | BB10: =SQRT(($B10-BB$7-$B$2)^2+($C10-BB$7-$B$3)^2) -> 231.8917029 | BC10: 245.8614568 | BD10: 259.8498606 | BE10: 273.8540563 | BF10: 287.8717392 | BG10: 301.9010306 | BH10: 315.9403842 | BI10: 329.9885157 | BJ10: 344.0443497
A11: =Waterstand_obv_Lobith!Y31 -> 1999 | B11: =Waterstand_obv_Lobith!Z31 -> 1167.324194 | C11: =Waterstand_obv_Lobith!AA31 -> 1041.140995 | D11: 751.693409 | E11: 737.6406153 | F11: 723.5913029 | G11: 709.5456785 | H11: 695.5039656 | I11: 681.4664059 | J11: 667.4332615 | K11: 653.404817 | L11: 639.3813815 | M11: 625.3632922 | N11: 611.3509168 | O11: 597.3446574 | P11: 583.3449546 | Q11: 569.3522919 | R11: 555.3672015 | S11: 541.3902702 | T11: 527.4221468 | U11: 513.46355 | V11: 499.5152785 | W11: 485.578222 | X11: 471.6533747 | Y11: 457.741851 | Z11: 443.8449035 | AA11: 429.9639457 | AB11: 416.1005778 | AC11: 402.2566184 | AD11: 388.4341428 | AE11: 374.6355289 | AF11: 360.8635141 | AG11: 347.1212641 | AH11: 333.4124597 | AI11: 319.7414025 | AJ11: 306.1131502 | AK11: 292.5336852 | AL11: 279.010131 | AM11: 265.5510298 | AN11: 252.1667022 | AO11: 238.8697175 | AP11: 225.6755152 | AQ11: 212.6032323 | AR11: 199.6768154 | AS11: 186.926528 | AT11: 174.3910064 | AU11: 162.1200769 | AV11: 150.1786122 | AW11: 138.6517645 | AX11: 127.6519018 | AY11: 117.3273382 | AZ11: 107.8721489 | BA11: 99.53439986 | BB11: 92.6163754 | BC11: 87.45564149 | BD11: 84.37526572 | BE11: 83.60551239 | BF11: 85.20902498 | BG11: 89.05770138 | BH11: 94.87871421 | BI11: 102.3360476 | BJ11: 111.100688
A12: =Waterstand_obv_Lobith!Y32 -> 2000 | B12: =Waterstand_obv_Lobith!Z32 -> 992.6962366 | C12: =Waterstand_obv_Lobith!AA32 -> 1004.294758 | D12: 597.6595532 | E12: 583.5213121 | F12: 569.3832644 | G12: 555.2454249 | H12: 541.1078099 | I12: 526.9704376 | J12: 512.8333279 | K12: 498.6965032 | L12: 484.5599884 | M12: 470.4238116 | N12: 456.288004 | O12: 442.1526011 | P12: 428.0176431 | Q12: 413.8831754 | R12: 399.7492502 | S12: 385.615927 | T12: 371.4832745 | U12: 357.3513724 | V12: 343.2203133 | W12: 329.0902058 | X12: 314.961178 | Y12: 300.8333821 | Z12: 286.7070001 | AA12: 272.5822518 | AB12: 258.4594051 | AC12: 244.3387898 | AD12: 230.2208164 | AE12: 216.1060027 | AF12: 201.9950112 | AG12: 187.8887028 | AH12: 173.7882181 | AI12: 159.6950997 | AJ12: 145.6114864 | AK12: 131.5404313 | AL12: 117.4864468 | AM12: 103.4564898 | AN12: 89.46186557 | AO12: 75.52221858 | AP12: 61.67483771 | AQ12: 47.99964285 | AR12: 34.70080433 | AS12: 22.45720216 | AT12: 14.3005607 | AU12: 17.45526121 | AV12: 28.37016481 | AW12: 41.292207 | AX12: 54.81994588 | AY12: 68.59596616 | AZ12: 82.49597979 | BA12: 96.46640238 | BB12: 110.4805272 | BC12: 124.5236002 | BD12: 138.5868216 | BE12: 152.6646233 | BF12: 166.7533128 | BG12: 180.8503454 | BH12: 194.9539113 | BI12: 209.0626883 | BJ12: 223.1756881
A13: =Waterstand_obv_Lobith!Y33 -> 2001 | B13: =Waterstand_obv_Lobith!Z33 -> 1118.106048 | C13: =Waterstand_obv_Lobith!AA33 -> 1010.370968 | D13: 694.0657207 | E13: 679.9982973 | F13: 665.9340388 | G13: 651.87315 | H13: 637.8158538 | I13: 623.7623931 | J13: 609.7130331 | K13: 595.668064 | L13: 581.6278037 | M13: 567.5926019 | N13: 553.5628433 | O13: 539.5389524 | P13: 525.521399 | Q13: 511.5107042 | R13: 497.5074473 | S13: 483.5122747 | T13: 469.5259093 | U13: 455.5491622 | V13: 441.5829468 | W13: 427.6282948 | X13: 413.6863766 | Y13: 399.7585245 | Z13: 385.8462616 | AA13: 371.9513372 | AB13: 358.0757698 | AC13: 344.2219002 | AD13: 330.392458 | AE13: 316.5906441 | AF13: 302.8202365 | AG13: 289.0857231 | AH13: 275.3924745 | AI13: 261.7469669 | AJ13: 248.157076 | AK13: 234.6324658 | AL13: 221.1851118 | AM13: 207.8300108 | AN13: 194.5861584 | AO13: 181.4779125 | AP13: 168.5369171 | AQ13: 155.8048526 | AR13: 143.3374053 | AS13: 131.210028 | AT13: 119.526278 | AU13: 108.4296583 | AV13: 98.11957234 | AW13: 88.87018709 | AX13: 81.04548002 | AY13: 75.09214012 | AZ13: 71.47929201 | BA13: 70.56733567 | BB13: 72.45832278 | BC13: 76.9458785 | BD13: 83.61296488 | BE13: 91.98688805 | BF13: 101.6466785 | BG13: 112.2608878 | BH13: 123.5838444 | BI13: 135.4379056 | BJ13: 147.6952469
A14: =Waterstand_obv_Lobith!Y34 -> 2002 | B14: =Waterstand_obv_Lobith!Z34 -> 1063.945296 | C14: =Waterstand_obv_Lobith!AA34 -> 957.6646505 | D14: 618.8216802 | E14: 604.7710914 | F14: 590.7248717 | G14: 576.6833404 | H14: 562.6468486 | I14: 548.6157829 | J14: 534.5905708 | K14: 520.5716852 | L14: 506.5596515 | M14: 492.5550544 | N14: 478.5585467 | O14: 464.5708598 | P14: 450.5928149 | Q14: 436.6253381 | R14: 422.6694772 | S14: 408.726422 | T14: 394.7975293 | U14: 380.8843528 | V14: 366.98868 | W14: 353.1125774 | X14: 339.2584463 | Y14: 325.4290929 | Z14: 311.6278158 | AA14: 297.8585178 | AB14: 284.1258484 | AC14: 270.4353874 | AD14: 256.7938859 | AE14: 243.2095823 | AF14: 229.6926251 | AG14: 216.2556429 | AH14: 202.9145243 | AI14: 189.6894969 | AJ14: 176.6066429 | AK14: 163.7000531 | AL14: 151.0149279 | AM14: 138.6120829 | AN14: 126.5745259 | AO14: 115.0170061 | AP14: 104.099533 | AQ14: 94.04527547 | AR14: 85.16052439 | AS14: 77.84674681 | AT14: 72.58041792 | AU14: 69.82634274 | AV14: 69.88218096 | AW14: 72.74146198 | AX14: 78.09687168 | AY14: 85.48053838 | AZ14: 94.41781355 | BA14: 104.5108826 | BB14: 115.4570295 | BC14: 127.035927 | BD14: 139.0896395 | BE14: 151.5048808 | BF14: 164.1996649 | BG14: 177.1138929 | BH14: 190.202871 | BI14: 203.4328715 | BJ14: 216.7780761
A15: =Waterstand_obv_Lobith!Y35 -> 2003 | B15: =Waterstand_obv_Lobith!Z35 -> 922.0501344 | C15: =Waterstand_obv_Lobith!AA35 -> 830.1151882 | D15: 428.511079 | E15: 414.5098773 | F15: 400.5185787 | G15: 386.5382587 | H15: 372.5701531 | I15: 358.6156892 | J15: 344.6765239 | K15: 330.7545913 | L15: 316.852163 | M15: 302.971924 | N15: 289.1170702 | O15: 275.2914344 | P15: 261.4996509 | Q15: 247.7473732 | R15: 234.0415657 | S15: 220.3908983 | T15: 206.80629 | U15: 193.3016687 | V15: 179.8950491 | W15: 166.6100904 | X15: 153.4783886 | Y15: 140.5429092 | Z15: 127.8632194 | AA15: 115.5235752 | AB15: 103.6455015 | AC15: 92.40716165 | AD15: 82.07178 | AE15: 73.0237675 | AF15: 65.79638416 | AG15: 61.03980437 | AH15: 59.35108479 | AI15: 60.98561153 | AJ15: 65.69580171 | AK15: 72.88780358 | AL15: 81.91047222 | AM15: 92.22808145 | AN15: 103.4539151 | AO15: 115.3230511 | AP15: 127.6561775 | AQ15: 140.331013 | AR15: 153.2628029 | AS15: 166.3916473 | AT15: 179.674355 | AU15: 193.0791739 | AV15: 206.5823345 | AW15: 220.1657432 | AX15: 233.8154145 | AY15: 247.5203862 | AZ15: 261.2719563 | BA15: 275.0631358 | BB15: 288.8882522 | BC15: 302.742656 | BD15: 316.6225029 | BE15: 330.5245874 | BF15: 344.446217 | BG15: 358.3851141 | BH15: 372.3393392 | BI15: 386.3072315 | BJ15: 400.2873601
A16: =Waterstand_obv_Lobith!Y36 -> 2004 | B16: =Waterstand_obv_Lobith!Z36 -> 963.3307796 | C16: =Waterstand_obv_Lobith!AA36 -> 909.3990591 | D16: 510.6668304 | E16: 496.554141 | F16: 482.4431761 | G16: 468.3340916 | H16: 454.2270628 | I16: 440.1222873 | J16: 426.019989 | K16: 411.9204222 | L16: 397.8238775 | M16: 383.7306877 | N16: 369.6412368 | O16: 355.5559691 | P16: 341.4754023 | Q16: 327.400143 | R16: 313.3309063 | S16: 299.2685417 | T16: 285.2140657 | U16: 271.1687049 | V16: 257.1339529 | W16: 243.1116471 | X16: 229.1040728 | Y16: 215.1141079 | Z16: 201.1454266 | AA16: 187.2027934 | AB16: 173.2924958 | AC16: 159.4229981 | AD16: 145.6059599 | AE16: 131.8578734 | AF16: 118.2028003 | AG16: 104.6771476 | AH16: 91.3384281 | AI16: 78.28225644 | AJ16: 65.67735454 | AK16: 53.84160218 | AL16: 43.40877044 | AM16: 35.63319488 | AN16: 32.48273084 | AO16: 35.22117302 | AP16: 42.73095195 | AQ16: 53.02204712 | AR16: 64.78225611 | AS16: 77.34432062 | AT16: 90.37448289 | AU16: 103.6964338 | AV16: 117.2107231 | AW16: 130.8577733 | AX16: 144.6000002 | AY16: 158.4126361 | AZ16: 172.2787465 | BA16: 186.1863844 | BB16: 200.1268922 | BC16: 214.093849 | BD16: 228.0823961 | BE16: 242.0887908 | BF16: 256.110105 | BG16: 270.1440155 | BH16: 284.1886562 | BI16: 298.2425113 | BJ16: 312.3043368
A17: =Waterstand_obv_Lobith!Y37 -> 2005 | B17: =Waterstand_obv_Lobith!Z37 -> 1036.312634 | C17: =Waterstand_obv_Lobith!AA37 -> 889.2451613 | D17: 555.7568827 | E17: 541.8436645 | F17: 527.9426113 | G17: 514.0547101 | H17: 500.1810562 | I17: 486.3228692 | J17: 472.4815099 | K17: 458.6585018 | L17: 444.8555556 | M17: 431.0745985 | N17: 417.3178088 | O17: 403.5876579 | P17: 389.8869602 | Q17: 376.2189333 | R17: 362.5872721 | S17: 348.9962378 | T17: 335.4507685 | U17: 321.9566153 | V17: 308.5205118 | W17: 295.1503859 | X17: 281.8556269 | Y17: 268.6474241 | Z17: 255.5391997 | AA17: 242.5471638 | AB17: 229.6910332 | AC17: 216.994965 | AD17: 204.4887746 | AE17: 192.2095289 | AF17: 180.2036267 | AG17: 168.5294965 | AH17: 157.2610418 | AI17: 146.4919088 | AJ17: 136.3404688 | AK17: 126.9549823 | AL17: 118.5175582 | AM17: 111.2441266 | AN17: 105.3759924 | AO17: 101.1580143 | AP17: 98.80176087 | AQ17: 98.44100791 | AR17: 100.0973333 | AS17: 103.6741058 | AT17: 108.9824036 | AU17: 115.7843184 | AV17: 123.8339714 | AW17: 132.9048402 | AX17: 142.8024532 | AY17: 153.3668306 | AZ17: 164.4695376 | BA17: 176.0087296 | BB17: 187.90401 | BC17: 200.0918816 | BD17: 212.522011 | BE17: 225.1542788 | BF17: 237.9564946 | BG17: 250.9026453 | BH17: 263.9715543 | BI17: 277.1458562 | BJ17: 290.4112079
A18: =Waterstand_obv_Lobith!Y38 -> 2006 | B18: =Waterstand_obv_Lobith!Z38 -> 1051.970565 | C18: =Waterstand_obv_Lobith!AA38 -> 868.7884409 | D18: 557.5299027 | E18: 543.7503216 | F18: 529.9898416 | G18: 516.2499899 | H18: 502.5324586 | I18: 488.8391268 | J18: 475.1720865 | K18: 461.5336734 | L18: 447.9265024 | M18: 434.3535097 | N18: 420.8180026 | O18: 407.323718 | P18: 393.8748927 | Q18: 380.4763475 | R18: 367.1335873 | S18: 353.8529225 | T18: 340.6416162 | U18: 327.5080618 | V18: 314.4620016 | W18: 301.5147929 | X18: 288.6797365 | Y18: 275.9724808 | Z18: 263.4115222 | AA18: 251.0188238 | AB18: 238.8205808 | AC18: 226.8481644 | AD18: 215.1392795 | AE18: 203.7393666 | AF18: 192.7032677 | AG18: 182.0971424 | AH18: 172.0005499 | AI18: 162.5084892 | AJ18: 153.7329794 | AK18: 145.8034597 | AL18: 138.8649298 | AM18: 133.0724939 | AN18: 128.581136 | AO18: 125.5305876 | AP18: 124.027208 | AQ18: 124.1272259 | AR18: 125.8268179 | AS18: 129.0628064 | AT18: 133.7236998 | AU18: 139.6669173 | AV18: 146.7367291 | AW18: 154.7788343 | AX18: 163.649954 | AY18: 173.222768 | AZ18: 183.3874239 | BA18: 194.0509395 | BB18: 205.1355333 | BC18: 216.5765613 | BD18: 228.3204476 | BE18: 240.3227969 | BF18: 252.5467612 | BG18: 264.9616698 | BH18: 277.5419002 | BI18: 290.2659578 | BJ18: 303.1157306
A19: =Waterstand_obv_Lobith!Y39 -> 2007 | B19: =Waterstand_obv_Lobith!Z39 -> 901.888172 | C19: =Waterstand_obv_Lobith!AA39 -> 1041.144086 | D19: 568.9535735 | E19: 555.0563247 | F19: 541.1717643 | G19: 527.3008944 | H19: 513.4448248 | I19: 499.6047868 | J19: 485.7821505 | K19: 471.9784451 | L19: 458.1953813 | M19: 444.4348797 | N19: 430.6991028 | O19: 416.9904939 | P19: 403.3118233 | Q19: 389.6662439 | R19: 376.057358 | S19: 362.4892982 | T19: 348.9668267 | U19: 335.495456 | V19: 322.0815981 | W19: 308.7327496 | X19: 295.4577221 | Y19: 282.266931 | Z19: 269.1727609 | AA19: 256.1900272 | AB19: 243.3365671 | AC19: 230.6339951 | AD19: 218.108676 | AE19: 205.792977 | AF19: 193.7268805 | AG19: 181.960048 | AH19: 170.5544309 | AI19: 159.5874956 | AJ19: 149.1560377 | AK19: 139.3803373 | AL19: 130.4079494 | AM19: 122.4156367 | AN19: 115.6068464 | AO19: 110.2011696 | AP19: 106.4126525 | AQ19: 104.4174672 | AR19: 104.3185616 | AS19: 106.1212379 | AT19: 109.7318184 | AU19: 114.9801149 | AV19: 121.6543532 | AW19: 129.5343062 | AX19: 138.4142021 | AY19: 148.114301 | AZ19: 158.4840718 | BA19: 169.4005781 | BB19: 180.7647938 | BC19: 192.4974429 | BD19: 204.5351323 | BE19: 216.8270629 | BF19: 229.3323572 | BG19: 242.0179433 | BH19: 254.8569005 | BI19: 267.8271729 | BJ19: 280.9105719
A20: =Waterstand_obv_Lobith!Y40 -> 2008 | B20: =Waterstand_obv_Lobith!Z40 -> 977.8186828 | C20: =Waterstand_obv_Lobith!AA40 -> 930.299328 | D20: =SQRT(($B20-D$7-$B$2)^2+($C20-D$7-$B$3)^2) -> 535.3859475 | E20: 521.2636114 | F20: 507.1423788 | G20: 493.0223445 | H20: 478.9036145 | I20: 464.7863076 | J20: 450.6705576 | K20: 436.5565156 | L20: 422.4443526 | M20: 408.3342636 | N20: =SQRT(($B20-N$7-$B$2)^2+($C20-N$7-$B$3)^2) -> 394.2264713 | O20: 380.1212312 | P20: 366.0188386 | Q20: 351.9196357 | R20: 337.8240219 | S20: 323.732466 | T20: 309.6455221 | U20: 295.5638495 | V20: 281.4882394 | W20: 267.4196491 | X20: =SQRT(($B20-X$7-$B$2)^2+($C20-X$7-$B$3)^2) -> 253.3592479 | Y20: 239.3084793 | Z20: 225.2691458 | AA20: 211.2435274 | AB20: 197.2345498 | AC20: 183.2460298 | AD20: 169.2830387 | AE20: 155.3524605 | AF20: 141.4638709 | AG20: 127.6309781 | AH20: =SQRT(($B20-AH$7-$B$2)^2+($C20-AH$7-$B$3)^2) -> 113.8740811 | AI20: 100.2244787 | AJ20: 86.73284219 | AK20: 73.48622795 | AL20: 60.64540777 | AM20: 48.53354787 | AN20: 37.85690233 | AO20: 30.17921203 | AP20: 28.07889997 | AQ20: 32.65064178 | AR20: =SQRT(($B20-AR$7-$B$2)^2+($C20-AR$7-$B$3)^2) -> 41.75768425 | AS20: 53.11632497 | AT20: 65.56663605 | AU20: 78.59149794 | AV20: 91.94706811 | AW20: 105.5078344 | AX20: 119.2037873 | AY20: 132.9931678 | AZ20: 146.8496594 | BA20: 160.7559089 | BB20: =SQRT(($B20-BB$7-$B$2)^2+($C20-BB$7-$B$3)^2) -> 174.7000345 | BC20: 188.6736384 | BD20: 202.6706235 | BE20: 216.6864587 | BF20: 230.7177089 | BG20: 244.7617228 | BH20: 258.8164229 | BI20: 272.8801578 | BJ20: 286.9515993
A21: =Waterstand_obv_Lobith!Y41 -> 2009 | B21: =Waterstand_obv_Lobith!Z41 -> 942.2651882 | C21: =Waterstand_obv_Lobith!AA41 -> 967.8369624 | D21: 536.5845389 | E21: 522.4566243 | F21: 508.3295007 | G21: 494.2032358 | H21: 480.0779054 | I21: 465.9535946 | J21: 451.8303988 | K21: 437.7084261 | L21: 423.5877988 | M21: 409.468656 | N21: 395.3511569 | O21: 381.2354839 | P21: 367.1218479 | Q21: 353.010493 | R21: 338.9017043 | S21: 324.7958161 | T21: 310.6932236 | U21: 296.5943967 | V21: 282.4998994 | W21: 268.4104136 | X21: 254.3267723 | Y21: 240.2500034 | Z21: 226.1813898 | AA21: 212.1225544 | AB21: 198.0755792 | AC21: 184.0431799 | AD21: 170.0289653 | AE21: 156.0378353 | AF21: 142.0766097 | AG21: 128.1550624 | AH21: 114.2876941 | AI21: 100.4969353 | AJ21: 86.8193008 | AK21: 73.3181286 | AL21: 60.11243607 | AM21: 47.44957281 | AN21: 35.90848018 | AO21: 26.96990801 | AP21: 23.7767308 | AQ21: 28.34236964 | AR21: 37.9637578 | AS21: 49.79160467 | AT21: 62.58722621 | AU21: 75.8624932 | AV21: 89.40399803 | AW21: 103.1068953 | AX21: 116.914451 | AY21: 130.7935237 | AZ21: 144.7235393 | BA21: 158.691083 | BB21: 172.6870487 | BC21: 186.7050449 | BD21: 200.7404563 | BE21: 214.7898689 | BF21: 228.8507041 | BG21: 242.9209784 | BH21: 256.9991415 | BI21: 271.0839643 | BJ21: 285.1744601
A22: =Waterstand_obv_Lobith!Y42 -> 2010 | B22: =Waterstand_obv_Lobith!Z42 -> 917.2297043 | C22: =Waterstand_obv_Lobith!AA42 -> 890.7012097 | D22: 463.9982053 | E22: 449.8618857 | F22: 435.7259436 | G22: 421.590417 | H22: 407.455349 | I22: 393.3207891 | J22: 379.1867941 | K22: 365.0534297 | L22: 350.9207721 | M22: 336.7889101 | N22: 322.6579485 | O22: 308.5280108 | P22: 294.3992445 | Q22: 280.2718268 | R22: 266.1459724 | S22: 252.0219441 | T22: 237.9000673 | U22: 223.7807493 | V22: 209.664507 | W22: 195.5520064 | X22: 181.4441207 | Y22: 167.342017 | Z22: 153.2472915 | AA22: 139.1621863 | AB22: 125.0899508 | AC22: 111.0354787 | AD22: 97.00649073 | AE22: 83.0159079 | AF22: 69.08706597 | AG22: 55.26666631 | AH22: 41.66276666 | AI22: 28.5861478 | AJ22: 17.27858694 | AK22: 13.41384684 | AL22: 21.47819842 | AM22: 33.80376795 | AN22: 47.16011502 | AO22: 60.87247464 | AP22: 74.74516633 | AQ22: 88.70299662 | AR22: 102.7112619 | AS22: 116.7518096 | AT22: 130.8142453 | AU22: 144.8921961 | AV22: 158.9815405 | AW22: 173.079496 | AX22: 187.184117 | AY22: 201.2940023 | AZ22: 215.4081175 | BA22: 229.5256823 | BB22: 243.6460969 | BC22: 257.7688931 | BD22: 271.8936998 | BE22: 286.020219 | BF22: 300.1482091 | BG22: 314.2774716 | BH22: 328.4078423 | BI22: 342.539184 | BJ22: 356.6713814
A23: =Waterstand_obv_Lobith!Y43 -> 2011 | B23: =Waterstand_obv_Lobith!Z43 -> 765.2371192 | C23: =Waterstand_obv_Lobith!AA43 -> 888.2246416 | D23: 366.4843984 | E23: 352.8194709 | F23: 339.1936671 | G23: 325.6118988 | H23: 312.0799151 | I23: 298.6044845 | J23: 285.1936237 | K23: 271.8568884 | L23: 258.6057473 | M23: 245.4540636 | N23: 232.4187215 | O23: 219.5204476 | P23: 206.7848923 | Q23: 194.2440642 | R23: 181.9382347 | S23: 169.9184688 | T23: 158.2499631 | U23: 147.0163787 | V23: 136.3252742 | W23: 126.3144694 | X23: 117.1584822 | Y23: 109.0727956 | Z23: 102.3114829 | AA23: 97.1514504 | AB23: 93.85717394 | AC23: 92.62793253 | AD23: 93.54516914 | AE23: 96.5477263 | AF23: 101.4506197 | AG23: 107.995338 | AH23: 115.9040888 | AI23: 124.9180635 | AJ23: 134.8157535 | AK23: 145.4168222 | AL23: 156.578469 | AM23: 168.1891249 | AN23: 180.1620008 | AO23: 192.429497 | AP23: 204.938713 | AQ23: 217.6479747 | AR23: 230.5241976 | AS23: 243.540901 | AT23: 256.6767135 | AU23: 269.9142457 | AV23: 283.239236 | AW23: 296.6398988 | AX23: 310.1064243 | AY23: 323.6305906 | AZ23: 337.2054625 | BA23: 350.8251541 | BB23: 364.484641 | BC23: 378.1796112 | BD23: 391.9063448 | BE23: 405.6616174 | BF23: 419.4426214 | BG23: 433.2469012 | BH23: 447.0723009 | BI23: 460.9169198 | BJ23: 474.7790768
A24: =Waterstand_obv_Lobith!Y44 -> 2012 | B24: =Waterstand_obv_Lobith!Z44 -> 941.4875224 | C24: =Waterstand_obv_Lobith!AA44 -> 973.3058692 | D24: 540.1107567 | E24: 525.9883665 | F24: 511.8670666 | G24: 497.7469498 | H24: 483.6281197 | I24: 469.5106925 | J24: 455.3947985 | K24: 441.280585 | L24: 427.1682184 | M24: 413.0578882 | N24: 398.9498103 | O24: 384.8442326 | P24: 370.7414402 | Q24: 356.6417638 | R24: 342.545588 | S24: 328.4533635 | T24: 314.3656218 | U24: 300.2829938 | V24: 286.2062342 | W24: 272.1362539 | X24: 258.0741615 | Y24: 244.0213208 | Z24: 229.9794278 | AA24: 215.9506179 | AB24: 201.9376179 | AC24: 187.9439643 | AD24: 173.9743253 | AE24: 160.03499 | AF24: 146.1346304 | AG24: 132.2855335 | AH24: 118.505673 | AI24: 104.8223579 | AJ24: 91.27901663 | AK24: 77.94864364 | AL24: 64.96247543 | AM24: 52.57618646 | AN24: 41.3326451 | AO24: 32.44256031 | AP24: 28.22502238 | AQ24: 30.67220332 | AR24: 38.53461074 | AS24: 49.28537708 | AT24: 61.42622048 | AU24: 74.27861557 | AV24: 87.5296801 | AW24: 101.0226562 | AX24: 114.6721816 | AY24: 128.4283512 | AZ24: 142.2602319 | BA24: 156.1477049 | BB24: 170.0771528 | BC24: 184.039045 | BD24: 198.026519 | BE24: 212.0345123 | BF24: 226.0592103 | BG24: 240.0976859 | BH24: 254.1476557 | BI24: 268.2073136 | BJ24: 282.2752119
A25: =Waterstand_obv_Lobith!Y45 -> 2013 | B25: =Waterstand_obv_Lobith!Z45 -> 1091.02509 | C25: =Waterstand_obv_Lobith!AA45 -> 949.1129704 | D25: 635.1069474 | E25: 621.1264553 | F25: 607.1534503 | G25: 593.1884617 | H25: 579.2320691 | I25: 565.2849093 | J25: 551.3476829 | K25: 537.4211628 | L25: 523.5062035 | M25: 509.6037518 | N25: 495.7148602 | O25: 481.8407013 | P25: 467.9825854 | Q25: 454.1419812 | R25: 440.3205399 | S25: 426.5201246 | T25: 412.7428442 | U25: 398.9910955 | V25: 385.2676123 | W25: 371.5755265 | X25: 357.9184414 | Y25: 344.300522 | Z25: 330.7266065 | AA25: 317.202344 | AB25: 303.7343673 | AC25: 290.3305093 | AD25: 277.0000784 | AE25: 263.754208 | AF25: 250.6063069 | AG25: 237.5726412 | AH25: 224.6730929 | AI25: 211.9321529 | AJ25: 199.3802303 | AK25: 187.0553796 | AL25: 175.0055823 | AM25: 163.2917409 | AN25: 151.9915506 | AO25: 141.2043563 | AP25: 131.0568924 | AQ25: 121.7092759 | AR25: 113.3595459 | AS25: 106.2432372 | AT25: 100.6223844 | AU25: 96.75796113 | AV25: 94.86486094 | AW25: 95.0609312 | AX25: 97.33354735 | AY25: 101.5433811 | AZ25: 107.4630031 | BA25: 114.8282885 | BB25: 123.3806088 | BC25: 132.8909833 | BD25: 143.1686147 | BE25: 154.0600241 | BF25: 165.4440384 | BG25: 177.2257561 | BH25: 189.3309468 | BI25: 201.7013789 | BJ25: 214.2911221
A26: =Waterstand_obv_Lobith!Y46 -> 2014 | B26: =Waterstand_obv_Lobith!Z46 -> 903.1048611 | C26: =Waterstand_obv_Lobith!AA46 -> 961.2357303 | D26: 505.8667858 | E26: 491.7869388 | F26: 477.7107716 | G26: 463.6386195 | H26: 449.5708595 | I26: 435.5079171 | J26: 421.4502747 | K26: 407.3984809 | L26: 393.3531624 | M26: 379.3150387 | N26: 365.2849391 | O26: 351.2638252 | P26: 337.2528177 | Q26: 323.2532308 | R26: 309.2666154 | S26: 295.2948147 | T26: 281.3400358 | U26: 267.4049437 | V26: 253.4927851 | W26: 239.6075547 | X26: 225.7542213 | Y26: 211.9390399 | Z26: 198.1699896 | AA26: 184.4574015 | AB26: 170.8148739 | AC26: 157.2606413 | AD26: 143.81967 | AE26: 130.5269537 | AF26: 117.4328481 | AG26: 104.6119591 | AH26: 92.17836062 | AI26: 80.31213071 | AJ26: 69.30531373 | AK26: 59.63568297 | AL26: 52.05384573 | AM26: 47.56880309 | AN26: 47.07418825 | AO26: 50.68695464 | AP26: 57.63987806 | AQ26: 66.8995046 | AR26: 77.64490896 | AS26: 89.34159199 | AT26: 101.6617344 | AU26: 114.4040926 | AV26: 127.4420832 | AW26: 140.693542 | AX26: 154.1034098 | AY26: 167.6336753 | AZ26: 181.2573785 | BA26: 194.9549318 | BB26: 208.7117956 | BC26: 222.5169696 | BD26: 236.3619892 | BE26: 250.2402408 | BF26: 264.1464864 | BG26: 278.0765263 | BH26: 292.0269553 | BI26: 305.9949849 | BJ26: 319.9783102
A27: =Waterstand_obv_Lobith!Y47 -> 2015 | B27: =Waterstand_obv_Lobith!Z47 -> 1034.027733 | C27: =Waterstand_obv_Lobith!AA47 -> 845.3368728 | D27: 529.9568174 | E27: 516.243098 | F27: 502.5531256 | G27: 488.8888953 | H27: 475.2526274 | I27: 461.6467998 | J27: 448.0741854 | K27: 434.5378965 | L27: 421.0414367 | M27: 407.5887625 | N27: 394.1843568 | O27: 380.8333166 | P27: 367.5414574 | Q27: 354.3154397 | R27: 341.1629211 | S27: 328.0927409 | T27: 315.1151448 | U27: 302.2420592 | V27: 289.4874268 | W27: 276.8676184 | X27: 264.4019403 | Y27: 252.1132561 | Z27: 240.028752 | AA27: 228.1808705 | AB27: 216.608443 | AC27: 205.3580421 | AD27: 194.4855607 | AE27: 184.0579833 | AF27: 174.1552443 | AG27: 164.8719412 | AH27: 156.3184726 | AI27: 148.6209029 | AJ27: 141.9185705 | AK27: 136.3583094 | AL27: 132.0844291 | AM27: 129.2246273 | AN27: 127.8738135 | AO27: 128.0797411 | AP27: 129.8350028 | AQ27: 133.0783072 | AR27: 137.7045523 | AS27: 143.5801226 | AT27: 150.5588241 | AU27: 158.4950075 | AV27: 167.2524298 | AW27: 176.7090353 | AX27: 186.7586438 | AY27: 197.310666 | AZ27: 208.2887583 | BA27: 219.6290388 | BB27: 231.2782363 | BC27: 243.1919622 | BD27: 255.3331909 | BE27: 267.6709664 | BF27: 280.1793249 | BG27: 292.8364083 | BH27: 305.6237391 | BI27: 318.5256313 | BJ27: 331.5287102
A28: =Waterstand_obv_Lobith!Y48 -> 2016 | B28: =Waterstand_obv_Lobith!Z48 -> 1016.342921 | C28: =Waterstand_obv_Lobith!AA48 -> 1018.856429 | D28: 624.560496 | E28: 610.4193855 | F28: 596.2783236 | G28: 582.1373138 | H28: 567.9963601 | I28: 553.8554668 | J28: 539.7146386 | K28: 525.5738807 | L28: 511.4331991 | M28: 497.2926001 | N28: 483.1520911 | O28: 469.0116801 | P28: 454.8713764 | Q28: 440.7311903 | R28: 426.5911334 | S28: 412.451219 | T28: 398.3114624 | U28: 384.1718809 | V28: 370.0324946 | W28: 355.8933268 | X28: 341.7544045 | Y28: 327.6157597 | Z28: 313.4774298 | AA28: 299.3394595 | AB28: 285.2019022 | AC28: 271.0648225 | AD28: 256.9282993 | AE28: 242.7924298 | AF28: 228.6573352 | AG28: 214.5231688 | AH28: 200.3901269 | AI28: 186.2584654 | AJ28: 172.1285245 | AK28: 158.0007656 | AL28: 143.8758316 | AM28: 129.754645 | AN28: 115.6385788 | AO28: 101.5297685 | AP28: 87.43172702 | AQ28: 73.35066382 | AR28: 59.29867516 | AS28: 45.30282407 | AT28: 31.43817523 | AU28: 18.01032633 | AV28: 7.77076877 | AW28: 14.01420137 | AX28: 27.06308986 | AY28: 40.84634409 | AZ28: 54.81274321 | BA28: 68.85092455 | BB28: 82.92444033 | BC28: 97.01791483 | BD28: 111.1237544 | BE28: 125.237781 | BF28: 139.3575071 | BG28: 153.4813597 | BH28: 167.6082956 | BI28: 181.7375959 | BJ28: 195.8687488
A29: =Waterstand_obv_Lobith!Y49 -> 2017 | B29: =Waterstand_obv_Lobith!Z49 -> 910.1750672 | C29: =Waterstand_obv_Lobith!AA49 -> 844.8522177 | D29: =SQRT(($B29-D$7-$B$2)^2+($C29-D$7-$B$3)^2) -> 428.3268702 | E29: 414.2503615 | F29: 400.1784806 | G29: 386.1117334 | H29: 372.0507021 | I29: 357.9960604 | J29: 343.9485914 | K29: 329.9092115 | L29: 315.8789992 | M29: 301.8592328 | N29: 287.8514387 | O29: 273.8574539 | P29: 259.8795093 | Q29: 245.92034 | R29: 231.9833355 | S29: 218.0727453 | T29: 204.193968 | U29: 190.353962 | V29: 176.5618451 | W29: 162.8297867 | X29: 149.1743736 | Y29: 135.61876 | Z29: 122.1961634 | AA29: 108.9557555 | AB29: 95.97296992 | AC29: 83.36825089 | AD29: 71.34227049 | AE29: 60.24262494 | AF29: 50.68163533 | AG29: 43.68160324 | AH29: 40.58986034 | AI29: 42.27281707 | AJ29: =SQRT(($B29-AJ$7-$B$2)^2+($C29-AJ$7-$B$3)^2) -> 48.23323921 | AK29: 57.14805041 | AL29: 67.86275832 | AM29: 79.65430477 | AN29: 92.11005683 | AO29: 104.9938897 | AP29: 118.165863 | AQ29: 131.5394445 | AR29: 145.0588838 | AS29: 158.6869058 | AT29: 172.3977621 | AU29: 186.1731524 | AV29: 199.9997424 | AW29: 213.8676022 | AX29: 227.7691937 | AY29: 241.6986965 | AZ29: 255.6515484 | BA29: 269.6241244 | BB29: 283.6135095 | BC29: 297.6173333 | BD29: 311.6336493 | BE29: 325.6608446 | BF29: 339.6975714 | BG29: =SQRT(($B29-BG$7-$B$2)^2+($C29-BG$7-$B$3)^2) -> 353.742695 | BH29: 367.7952536 | BI29: 381.8544263 | BJ29: 395.9195085
A31: =A10 -> 1998 | B31: 944.4287634 | C31: 883.8665323 | D31: =IF(D10<$B$4,($B$5/100)-(D10/$B$4)*($B$5/100),0) -> 0 | E31: =IF(E10<$B$4,($B$5/100)-(E10/$B$4)*($B$5/100),0) -> 0 | F31: 0 | G31: 0 | H31: 0 | I31: 0 | J31: 0 | K31: 0 | L31: 0 | M31: 0 | N31: 0 | O31: 0 | P31: 0 | Q31: 0 | R31: 0 | S31: 0 | T31: 0 | U31: 0 | V31: 0 | W31: 0 | X31: 0 | Y31: 0.01842072033 | Z31: 0.0693741302 | AA31: 0.1201232685 | AB31: 0.1706093855 | AC31: 0.2207493511 | AD31: 0.2704219405 | AE31: 0.319444095 | AF31: 0.3675279752 | AG31: 0.414199614 | AH31: 0.4586383691 | AI31: 0.4993550997 | AJ31: 0.5335948378 | AK31: 0.5566391166 | AL31: 0.5627288426 | AM31: 0.5497876127 | AN31: 0.5219171125 | AO31: 0.4848427756 | AP31: 0.4425099798 | AQ31: 0.3971156117 | AR31: 0.349848379 | AS31: 0.3013739526 | AT31: 0.2520840967 | AU31: 0.2022209826 | AV31: 0.1519410555 | AW31: 0.1013493288 | AX31: 0.05051866195 | AY31: 0 | AZ31: 0 | BA31: 0 | BB31: 0 | BC31: 0 | BD31: 0 | BE31: 0 | BF31: 0 | BG31: 0 | BH31: 0 | BI31: 0 | BJ31: 0
A32: 1999 | B32: 1167.324194 | C32: 1041.140995 | D32: =IF(D11<$B$4,($B$5/100)-(D11/$B$4)*($B$5/100),0) -> 0 | E32: 0 | F32: 0 | G32: 0 | H32: 0 | I32: 0 | J32: 0 | K32: 0 | L32: 0 | M32: 0 | N32: 0 | O32: 0 | P32: 0 | Q32: 0 | R32: 0 | S32: 0 | T32: 0 | U32: 0 | V32: 0 | W32: 0 | X32: 0 | Y32: 0 | Z32: 0 | AA32: 0 | AB32: 0 | AC32: 0 | AD32: 0 | AE32: 0 | AF32: 0 | AG32: 0 | AH32: 0 | AI32: 0 | AJ32: 0 | AK32: 0 | AL32: 0 | AM32: 0 | AN32: 0 | AO32: 0 | AP32: 0 | AQ32: 0 | AR32: 0 | AS32: 0.01132331797 | AT32: 0.05750681867 | AU32: 0.1027155061 | AV32: 0.146710376 | AW32: 0.1891777096 | AX32: 0.2297035195 | AY32: 0.2677413857 | AZ32: 0.3025762934 | BA32: 0.3332943163 | BB32: 0.3587817749 | BC32: 0.377795005 | BD32: 0.3891437579 | BE32: 0.3919796912 | BF32: 0.3860720132 | BG32: 0.3718926791 | BH32: 0.3504468424 | BI32: 0.322972456 | BJ32: 0.2906816756
A33: 2000 | B33: 992.6962366 | C33: 1004.294758 | D33: 0 | E33: 0 | F33: 0 | G33: 0 | H33: 0 | I33: 0 | J33: 0 | K33: 0 | L33: 0 | M33: 0 | N33: 0 | O33: 0 | P33: 0 | Q33: 0 | R33: 0 | S33: 0 | T33: 0 | U33: 0 | V33: 0 | W33: 0 | X33: 0 | Y33: 0 | Z33: 0 | AA33: 0 | AB33: 0 | AC33: 0 | AD33: 0 | AE33: 0 | AF33: 0 | AG33: 0.007778463383 | AH33: 0.05972761757 | AI33: 0.1116496329 | AJ33: 0.1635366292 | AK33: 0.2153773583 | AL33: 0.2671551961 | AM33: 0.3188445112 | AN33: 0.3704036532 | AO33: 0.4217602474 | AP33: 0.4727769137 | AQ33: 0.5231592106 | AR33: 0.5721549314 | AS33: 0.6172629394 | AT33: 0.6473137237 | AU33: 0.6356911429 | AV33: 0.5954783402 | AW33: 0.5478708163 | AX33: 0.4980317783 | AY33: 0.4472780194 | AZ33: 0.3960674429 | BA33: 0.3445974649 | BB33: 0.2929664786 | BC33: 0.2412288414 | BD33: 0.1894169732 | BE33: 0.1375513877 | BF33: 0.08564568972 | BG33: 0.03370925376 | BH33: 0 | BI33: 0 | BJ33: 0
A34: =A13 -> 2001 | B34: 1118.106048 | C34: 1010.370968 | D34: 0 | E34: 0 | F34: 0 | G34: 0 | H34: 0 | I34: 0 | J34: 0 | K34: 0 | L34: 0 | M34: 0 | N34: 0 | O34: 0 | P34: 0 | Q34: 0 | R34: 0 | S34: 0 | T34: 0 | U34: 0 | V34: 0 | W34: 0 | X34: 0 | Y34: 0 | Z34: 0 | AA34: 0 | AB34: 0 | AC34: 0 | AD34: 0 | AE34: 0 | AF34: 0 | AG34: 0 | AH34: 0 | AI34: 0 | AJ34: 0 | AK34: 0 | AL34: 0 | AM34: 0 | AN34: 0 | AO34: 0.03139716438 | AP34: 0.0790745161 | AQ34: 0.1259821221 | AR34: 0.1719148225 | AS34: 0.2165946337 | AT34: 0.2596400286 | AU34: 0.3005223115 | AV34: 0.3385068387 | AW34: 0.3725835212 | AX34: 0.4014113894 | AY34: 0.4233447469 | AZ34: 0.43665524 | BA34: 0.4400150791 | BB34: 0.4330482845 | BC34: 0.4165151845 | BD34: 0.3919522347 | BE34: 0.3611009388 | BF34: 0.3255122371 | BG34: 0.2864072555 | BH34: 0.2446910995 | BI34: 0.2010182424 | BJ34: 0.1558596166
A35: 2002 | B35: 1063.945296 | C35: 957.6646505 | D35: 0 | E35: 0 | F35: 0 | G35: 0 | H35: 0 | I35: 0 | J35: 0 | K35: 0 | L35: 0 | M35: 0 | N35: 0 | O35: 0 | P35: 0 | Q35: 0 | R35: 0 | S35: 0 | T35: 0 | U35: 0 | V35: 0 | W35: 0 | X35: 0 | Y35: 0 | Z35: 0 | AA35: 0 | AB35: 0 | AC35: 0 | AD35: 0 | AE35: 0 | AF35: 0 | AG35: 0 | AH35: 0 | AI35: 0.001143958764 | AJ35: 0.04934394726 | AK35: 0.09689454118 | AL35: 0.1436292128 | AM35: 0.1893239049 | AN35: 0.2336727992 | AO35: 0.2762531355 | AP35: 0.3164754049 | AQ35: 0.3535174061 | AR35: 0.3862506996 | AS35: 0.4131961959 | AT35: 0.4325984603 | AU35: 0.4427450531 | AV35: 0.4425393333 | AW35: 0.4320051401 | AX35: 0.4122746833 | AY35: 0.3850717007 | AZ35: 0.3521448974 | BA35: 0.314959906 | BB35: 0.2746319965 | BC35: 0.2319729006 | BD35: 0.187564486 | BE35: 0.1418241235 | BF35: 0.09505386599 | BG35: 0.04747513158 | BH35: 0 | BI35: 0 | BJ35: 0
A36: 2003 | B36: 922.0501344 | C36: 830.1151882 | D36: 0 | E36: 0 | F36: 0 | G36: 0 | H36: 0 | I36: 0 | J36: 0 | K36: 0 | L36: 0 | M36: 0 | N36: 0 | O36: 0 | P36: 0 | Q36: 0 | R36: 0 | S36: 0 | T36: 0 | U36: 0 | V36: 0.03722876653 | W36: =IF(W15<$B$4,($B$5/100)-(W15/$B$4)*($B$5/100),0) -> 0.08617335104 | X36: 0.134553305 | Y36: 0.1822103345 | Z36: 0.2289249811 | AA36: 0.2743868282 | AB36: 0.3181481525 | AC36: 0.3595525624 | AD36: 0.3976302842 | AE36: 0.4309650671 | AF36: 0.4575922689 | AG36: 0.4751165102 | AH36: 0.4813381087 | AI36: 0.475316168 | AJ36: 0.4579628358 | AK36: 0.4314659868 | AL36: 0.398224576 | AM36: 0.3602123315 | AN36: 0.3188539969 | AO36: 0.2751256014 | AP36: 0.2296877671 | AQ36: 0.1829910048 | AR36: 0.1353475683 | AS36: 0.08697814145 | AT36: 0.03804184998 | AU36: 0 | AV36: 0 | AW36: 0 | AX36: 0 | AY36: 0 | AZ36: 0 | BA36: 0 | BB36: 0 | BC36: 0 | BD36: 0 | BE36: 0 | BF36: 0 | BG36: 0 | BH36: 0 | BI36: 0 | BJ36: 0
A37: 2004 | B37: 963.3307796 | C37: 909.3990591 | D37: =IF(D16<$B$4,($B$5/100)-(D16/$B$4)*($B$5/100),0) -> 0 | E37: 0 | F37: 0 | G37: 0 | H37: 0 | I37: 0 | J37: 0 | K37: 0 | L37: 0 | M37: 0 | N37: 0 | O37: 0 | P37: 0 | Q37: 0 | R37: 0 | S37: 0 | T37: 0 | U37: 0 | V37: 0 | W37: 0 | X37: 0 | Y37: 0 | Z37: 0 | AA37: 0.01030549789 | AB37: 0.06155396292 | AC37: 0.1126521123 | AD37: 0.16355699 | AE37: 0.2142078349 | AF37: 0.2645159989 | AG37: 0.3143473511 | AH37: 0.3634900017 | AI37: 0.4115916868 | AJ37: 0.458030799 | AK37: 0.5016362025 | AL37: 0.540072951 | AM37: 0.5687198083 | AN37: 0.5803267811 | AO37: 0.5702377836 | AP37: 0.542570177 | AQ37: 0.5046556159 | AR37: 0.4613285301 | AS37: 0.4150472398 | AT37: 0.3670413788 | AU37: 0.317960507 | AV37: 0.2681710202 | AW37: 0.2178924141 | AX37: 0.1672631571 | AY37: 0.1163744985 | AZ37: 0.0652888285 | BA37: 0.01405016271 | BB37: 0 | BC37: 0 | BD37: 0 | BE37: 0 | BF37: 0 | BG37: 0 | BH37: 0 | BI37: 0 | BJ37: 0
A38: 2005 | B38: 1036.312634 | C38: 889.2451613 | D38: 0 | E38: 0 | F38: 0 | G38: 0 | H38: 0 | I38: 0 | J38: 0 | K38: 0 | L38: 0 | M38: 0 | N38: 0 | O38: 0 | P38: 0 | Q38: 0 | R38: 0 | S38: 0 | T38: 0 | U38: 0 | V38: 0 | W38: 0 | X38: 0 | Y38: 0 | Z38: 0 | AA38: 0 | AB38: 0 | AC38: 0 | AD38: 0 | AE38: 0 | AF38: 0.03609190147 | AG38: 0.07910185514 | AH38: 0.1206172145 | AI38: 0.1602929675 | AJ38: 0.1976930096 | AK38: 0.232271118 | AL38: 0.2633563644 | AM38: 0.2901532179 | AN38: 0.3117726595 | AO38: 0.3273125787 | AP38: 0.3359935126 | AQ38: 0.3373226024 | AR38: 0.3312203512 | AS38: 0.3180427682 | AT38: 0.2984858814 | AU38: 0.2734261955 | AV38: 0.2437695791 | AW38: 0.2103505887 | AX38: 0.1738856987 | AY38: 0.1349643083 | AZ38: 0.09405959816 | BA38: 0.05154678566 | BB38: 0.007722068323 | BC38: 0 | BD38: 0 | BE38: 0 | BF38: 0 | BG38: 0 | BH38: 0 | BI38: 0 | BJ38: 0
A39: 2006 | B39: 1051.970565 | C39: 868.7884409 | D39: 0 | E39: 0 | F39: 0 | G39: 0 | H39: 0 | I39: 0 | J39: 0 | K39: 0 | L39: 0 | M39: 0 | N39: 0 | O39: 0 | P39: 0 | Q39: 0 | R39: 0 | S39: 0 | T39: 0 | U39: 0 | V39: 0 | W39: 0 | X39: 0 | Y39: 0 | Z39: 0 | AA39: 0 | AB39: 0 | AC39: 0 | AD39: 0 | AE39: 0 | AF39: 0 | AG39: 0.02911579106 | AH39: 0.06631376346 | AI39: 0.1012845134 | AJ39: 0.133615339 | AK39: 0.1628293591 | AL39: 0.1883923637 | AM39: 0.2097329172 | AN39: 0.2262800254 | AO39: 0.2375188878 | AP39: 0.2430576549 | AQ39: 0.2426891678 | AR39: 0.2364275131 | AS39: 0.2245054502 | AT39: 0.2073337377 | AU39: 0.1854376733 | AV39: 0.1593909981 | AW39: 0.1297621893 | AX39: 0.09707911676 | AY39: 0.06181085484 | AZ39: 0.02436212255 | BA39: 0 | BB39: 0 | BC39: 0 | BD39: 0 | BE39: 0 | BF39: 0 | BG39: 0 | BH39: 0 | BI39: 0 | BJ39: 0
A40: 2007 | B40: 901.888172 | C40: 1041.144086 | D40: 0 | E40: 0 | F40: 0 | G40: 0 | H40: 0 | I40: 0 | J40: 0 | K40: 0 | L40: 0 | M40: 0 | N40: 0 | O40: 0 | P40: 0 | Q40: 0 | R40: 0 | S40: 0 | T40: 0 | U40: 0 | V40: 0 | W40: 0 | X40: 0 | Y40: 0 | Z40: 0 | AA40: 0 | AB40: 0 | AC40: 0 | AD40: 0 | AE40: 0 | AF40: 0 | AG40: 0.02962087574 | AH40: 0.07164157024 | AI40: 0.1120460689 | AJ40: 0.1504777558 | AK40: 0.1864934941 | AL40: 0.2195496601 | AM40: 0.2489950227 | AN40: 0.2740800394 | AO40: 0.2939956909 | AP40: 0.3079533854 | AQ40: 0.3153040682 | AR40: 0.3156684572 | AS40: 0.3090270182 | AT40: 0.2957248795 | AU40: 0.2763890505 | AV40: 0.2517997514 | AW40: 0.2227683454 | AX40: 0.1900529398 | AY40: 0.154315733 | AZ40: 0.1161113145 | BA40: 0.07589260715 | BB40: 0.03402444381 | BC40: 0 | BD40: 0 | BE40: 0 | BF40: 0 | BG40: 0 | BH40: 0 | BI40: 0 | BJ40: 0
A41: 2008 | B41: 977.8186828 | C41: 930.299328 | D41: 0 | E41: 0 | F41: 0 | G41: 0 | H41: 0 | I41: 0 | J41: 0 | K41: 0 | L41: 0 | M41: 0 | N41: 0 | O41: 0 | P41: 0 | Q41: 0 | R41: 0 | S41: 0 | T41: 0 | U41: 0 | V41: 0 | W41: =IF(W20<$B$4,($B$5/100)-(W20/$B$4)*($B$5/100),0) -> 0 | X41: 0 | Y41: 0 | Z41: 0 | AA41: 0 | AB41: 0 | AC41: 0.02488304829 | AD41: 0.07632564676 | AE41: 0.1276488297 | AF41: 0.1788173177 | AG41: 0.2297806072 | AH41: 0.2804639118 | AI41: 0.3307519206 | AJ41: 0.3804579498 | AK41: 0.4292612654 | AL41: 0.4765695503 | AM41: 0.5211921921 | AN41: 0.560527202 | AO41: 0.5888134294 | AP41: 0.5965514212 | AQ41: 0.5797081619 | AR41: 0.5461559001 | AS41: 0.5043082764 | AT41: 0.4584387093 | AU41: 0.410452376 | AV41: 0.3612476438 | AW41: 0.3112869259 | AX41: 0.2608281521 | AY41: 0.2100251712 | AZ41: 0.158974939 | BA41: 0.1077413881 | BB41: 0.05636829407 | BC41: 0.00488659536 | BD41: 0 | BE41: 0 | BF41: 0 | BG41: 0 | BH41: 0 | BI41: 0 | BJ41: 0
A42: 2009 | B42: 942.2651882 | C42: 967.8369624 | D42: =IF(D21<$B$4,($B$5/100)-(D21/$B$4)*($B$5/100),0) -> 0 | E42: 0 | F42: 0 | G42: 0 | H42: 0 | I42: 0 | J42: 0 | K42: 0 | L42: 0 | M42: 0 | N42: 0 | O42: 0 | P42: 0 | Q42: 0 | R42: 0 | S42: 0 | T42: 0 | U42: 0 | V42: 0 | W42: 0 | X42: 0 | Y42: 0 | Z42: 0 | AA42: 0 | AB42: 0 | AC42: 0.02194617932 | AD42: 0.07357749609 | AE42: 0.1251237647 | AF42: 0.1765598589 | AG42: 0.22784977 | AH42: 0.2789400745 | AI42: 0.3297481331 | AJ42: 0.3801394181 | AK42: 0.4298805788 | AL42: 0.4785331303 | AM42: 0.5251857844 | AN42: 0.5677055993 | AO42: 0.600637181 | AP42: 0.6124015181 | AQ42: 0.5955807434 | AR42: 0.5601335239 | AS42: 0.516557246 | AT42: 0.4694154824 | AU42: 0.420506604 | AV42: 0.3706168494 | AW42: 0.3201324911 | AX42: 0.2692625491 | AY42: 0.2181291234 | AZ42: 0.1668080132 | BA42: 0.1153486417 | BB42: 0.06378455732 | BC42: 0.0121393083 | BD42: 0 | BE42: 0 | BF42: 0 | BG42: 0 | BH42: 0 | BI42: 0 | BJ42: 0
A43: =A22 -> 2010 | B43: 917.2297043 | C43: 890.7012097 | D43: 0 | E43: 0 | F43: 0 | G43: 0 | H43: 0 | I43: 0 | J43: 0 | K43: 0 | L43: 0 | M43: 0 | N43: 0 | O43: 0 | P43: 0 | Q43: 0 | R43: 0 | S43: 0 | T43: 0 | U43: 0 | V43: 0 | W43: 0 | X43: 0.03152166073 | Y43: 0.0834767796 | Z43: 0.1354047154 | AA43: 0.1872972085 | AB43: 0.2391422863 | AC43: 0.2909219207 | AD43: 0.3426076657 | AE43: 0.3941519183 | AF43: 0.4454687043 | AG43: 0.4963859662 | AH43: 0.5465055965 | AI43: 0.5946826134 | AJ43: 0.6363420481 | AK43: 0.6505805643 | AL43: 0.6208697953 | AM43: 0.5754598023 | AN43: 0.5262522078 | AO43: 0.4757329882 | AP43: 0.4246230714 | AQ43: 0.3731994861 | AR43: 0.3215900876 | AS43: 0.269861754 | AT43: 0.2180527805 | AU43: 0.1661866459 | AV43: 0.1142785351 | AW43: 0.06233869898 | AX43: 0.01037430583 | AY43: 0 | AZ43: 0 | BA43: 0 | BB43: 0 | BC43: 0 | BD43: 0 | BE43: 0 | BF43: 0 | BG43: 0 | BH43: 0 | BI43: 0 | BJ43: 0
A44: 2011 | B44: 765.2371192 | C44: 888.2246416 | D44: 0 | E44: 0 | F44: 0 | G44: 0 | H44: 0 | I44: 0 | J44: 0 | K44: 0 | L44: 0 | M44: 0 | N44: 0 | O44: 0 | P44: 0 | Q44: 0 | R44: 0.02970124053 | S44: 0.07398458868 | T44: 0.1169738202 | U44: 0.1583607101 | V44: 0.1977489897 | W44: 0.2346309023 | X44: 0.2683634865 | Y44: 0.2981528582 | Z44: 0.3230629578 | AA44: 0.3420736038 | AB44: 0.3542104118 | AC44: 0.3587391959 | AD44: 0.3553599032 | AE44: 0.3442978505 | AF44: 0.326234559 | AG44: 0.302122439 | AH44: 0.2729849359 | AI44: 0.2397755554 | AJ44: 0.203310382 | AK44: 0.1642538131 | AL44: 0.1231319564 | AM44: 0.08035585564 | AN44: 0.03624526035 | AO44: 0 | AP44: 0 | AQ44: 0 | AR44: 0 | AS44: 0 | AT44: 0 | AU44: 0 | AV44: 0 | AW44: 0 | AX44: 0 | AY44: 0 | AZ44: 0 | BA44: 0 | BB44: 0 | BC44: 0 | BD44: 0 | BE44: 0 | BF44: 0 | BG44: 0 | BH44: 0 | BI44: 0 | BJ44: 0
A45: 2012 | B45: 941.4875224 | C45: 973.3058692 | D45: 0 | E45: 0 | F45: 0 | G45: 0 | H45: 0 | I45: 0 | J45: 0 | K45: 0 | L45: 0 | M45: 0 | N45: 0 | O45: 0 | P45: 0 | Q45: 0 | R45: 0 | S45: 0 | T45: 0 | U45: 0 | V45: 0 | W45: 0 | X45: 0 | Y45: 0 | Z45: 0 | AA45: 0 | AB45: 0 | AC45: 0.007574868551 | AD45: 0.05904195939 | AE45: 0.1103974051 | AF45: 0.1616092564 | AG45: 0.212632245 | AH45: 0.263400152 | AI45: 0.3138123658 | AJ45: 0.3637088861 | AK45: 0.4128207866 | AL45: 0.4606645642 | AM45: 0.5062982604 | AN45: 0.5477218338 | AO45: 0.5804747778 | AP45: 0.5960130755 | AQ45: 0.5869971457 | AR45: 0.5580303815 | AS45: 0.518422295 | AT45: 0.4736928719 | AU45: 0.4263419427 | AV45: 0.3775222312 | AW45: 0.3278112666 | AX45: 0.2775235414 | AY45: 0.2268429165 | AZ45: 0.1758833563 | BA45: 0.124718982 | BB45: 0.07339996331 | BC45: 0.02196141322 | BD45: 0 | BE45: 0 | BF45: 0 | BG45: 0 | BH45: 0 | BI45: 0 | BJ45: 0
A46: 2013 | B46: 1091.02509 | C46: 949.1129704 | D46: 0 | E46: 0 | F46: 0 | G46: 0 | H46: 0 | I46: 0 | J46: 0 | K46: 0 | L46: 0 | M46: 0 | N46: 0 | O46: 0 | P46: 0 | Q46: 0 | R46: 0 | S46: 0 | T46: 0 | U46: 0 | V46: 0 | W46: =IF(W25<$B$4,($B$5/100)-(W25/$B$4)*($B$5/100),0) -> 0 | X46: 0 | Y46: 0 | Z46: 0 | AA46: 0 | AB46: 0 | AC46: 0 | AD46: 0 | AE46: 0 | AF46: 0 | AG46: 0 | AH46: 0 | AI46: 0 | AJ46: 0 | AK46: 0.01084860135 | AL46: 0.05524259139 | AM46: 0.09839884929 | AN46: 0.1400311294 | AO46: 0.179773424 | AP46: 0.2171588175 | AQ46: 0.2515974045 | AR46: 0.2823595678 | AS46: 0.3085775473 | AT46: 0.3292859522 | AU46: 0.3435233011 | AV46: 0.3504978807 | AW46: 0.3497755166 | AX46: 0.3414027203 | AY46: 0.3258928066 | AZ46: 0.3040836727 | BA46: 0.2769484108 | BB46: 0.2454398622 | BC46: 0.2104016406 | BD46: 0.1725366827 | BE46: 0.1324104374 | BF46: 0.0904693323 | BG46: 0.04706300375 | BH46: 0.002464932678 | BI46: 0 | BJ46: 0
A47: 2014 | B47: 903.1048611 | C47: 961.2357303 | D47: =IF(D26<$B$4,($B$5/100)-(D26/$B$4)*($B$5/100),0) -> 0 | E47: 0 | F47: 0 | G47: 0 | H47: 0 | I47: 0 | J47: 0 | K47: 0 | L47: 0 | M47: 0 | N47: 0 | O47: 0 | P47: 0 | Q47: 0 | R47: 0 | S47: 0 | T47: 0 | U47: 0 | V47: 0 | W47: 0 | X47: 0 | Y47: 0 | Z47: 0 | AA47: 0.02042009979 | AB47: 0.07068204364 | AC47: 0.1206186899 | AD47: 0.1701380579 | AE47: 0.2191112231 | AF47: 0.2673526647 | AG47: 0.314587519 | AH47: 0.3603955135 | AI47: 0.4041132027 | AJ47: 0.4446646336 | AK47: 0.4802895891 | AL47: 0.5082226736 | AM47: 0.5247465149 | AN47: 0.5265687801 | AO47: 0.5132585882 | AP47: 0.4876425545 | AQ47: 0.453528141 | AR47: 0.4139398091 | AS47: 0.3708467664 | AT47: 0.3254567682 | AU47: 0.2785112378 | AV47: 0.2304765355 | AW47: 0.1816553718 | AX47: 0.1322505954 | AY47: 0.08240224893 | AZ47: 0.03220965813 | BA47: 0 | BB47: 0 | BC47: 0 | BD47: 0 | BE47: 0 | BF47: 0 | BG47: 0 | BH47: 0 | BI47: 0 | BJ47: 0
A48: 2015 | B48: 1034.027733 | C48: 845.3368728 | D48: 0 | E48: 0 | F48: 0 | G48: 0 | H48: 0 | I48: 0 | J48: 0 | K48: 0 | L48: 0 | M48: 0 | N48: 0 | O48: 0 | P48: 0 | Q48: 0 | R48: 0 | S48: 0 | T48: 0 | U48: 0 | V48: 0 | W48: 0 | X48: 0 | Y48: 0 | Z48: 0 | AA48: 0 | AB48: 0 | AC48: 0 | AD48: 0 | AE48: 0.0218916404 | AF48: 0.05837541582 | AG48: 0.09257705875 | AH48: 0.1240898377 | AI48: 0.1524493053 | AJ48: 0.1771421087 | AK48: 0.1976272813 | AL48: 0.2133731558 | AM48: 0.2239092678 | AN48: 0.2288859501 | AO48: 0.2281272697 | AP48: 0.2216605159 | AQ48: 0.2097114998 | AR48: 0.1926674388 | AS48: 0.1710206008 | AT48: 0.1453095956 | AU48: 0.1160710252 | AV48: 0.08380683758 | AW48: 0.04896671203 | AX48: 0.01194183853 | AY48: 0 | AZ48: 0 | BA48: 0 | BB48: 0 | BC48: 0 | BD48: 0 | BE48: 0 | BF48: 0 | BG48: 0 | BH48: 0 | BI48: 0 | BJ48: 0
A49: 2016 | B49: 1016.342921 | C49: 1018.856429 | D49: 0 | E49: 0 | F49: 0 | G49: 0 | H49: 0 | I49: 0 | J49: 0 | K49: 0 | L49: 0 | M49: 0 | N49: 0 | O49: 0 | P49: 0 | Q49: 0 | R49: 0 | S49: 0 | T49: 0 | U49: 0 | V49: 0 | W49: 0 | X49: 0 | Y49: 0 | Z49: 0 | AA49: 0 | AB49: 0 | AC49: 0 | AD49: 0 | AE49: 0 | AF49: 0 | AG49: 0 | AH49: 0 | AI49: 0.01378460109 | AJ49: 0.0658422783 | AK49: 0.1178919163 | AL49: 0.1699311467 | AM49: 0.2219565709 | AN49: 0.2739631308 | AO49: 0.3259429581 | AP49: 0.377883111 | AQ49: 0.4297607122 | AR49: 0.4815311968 | AS49: 0.5330948587 | AT49: 0.5841751439 | AU49: 0.6336461662 | AV49: 0.6713708519 | AW49: 0.6483687318 | AX49: 0.6002938795 | AY49: 0.5495134691 | AZ49: 0.4980583145 | BA49: 0.446338699 | BB49: 0.394488904 | BC49: 0.342565577 | BD49: 0.2905966943 | BE49: 0.2385976491 | BF49: 0.1865776055 | BG49: 0.1345423591 | BH49: 0.08249575297 | BI49: 0.03044043625 | BJ49: 0
A50: 2017 | B50: 910.1750672 | C50: 844.8522177 | D50: 0 | E50: 0 | F50: 0 | G50: 0 | H50: 0 | I50: 0 | J50: 0 | K50: 0 | L50: 0 | M50: 0 | N50: 0 | O50: 0 | P50: 0 | Q50: 0 | R50: 0 | S50: 0 | T50: 0 | U50: 0 | V50: 0.04950899169 | W50: 0.1001007857 | X50: 0.1504102024 | Y50: 0.200351937 | Z50: 0.2498036085 | AA50: 0.2985840587 | AB50: 0.346415374 | AC50: 0.3928538125 | AD50: 0.4371600561 | AE50: 0.4780534871 | AF50: 0.5132781856 | AG50: 0.5390677776 | AH50: 0.5504584093 | AI50: 0.5442580424 | AJ50: 0.5222985924 | AK50: 0.4894545511 | AL50: 0.4499793115 | AM50: 0.4065367719 | AN50: 0.3606471591 | AO50: 0.3131804064 | AP50: 0.2646520838 | AQ50: 0.2153809938 | AR50: 0.1655725333 | AS50: 0.1153640312 | AT50: 0.06485035018 | AU50: 0.01409891219 | AV50: 0 | AW50: 0 | AX50: 0 | AY50: 0 | AZ50: 0 | BA50: 0 | BB50: 0 | BC50: 0 | BD50: 0 | BE50: 0 | BF50: 0 | BG50: 0 | BH50: 0 | BI50: 0 | BJ50: 0
A51: geschatte kans submers | D51: =IF(COUNTIF(D31:D50,">0")<(2*$B$6),0,AVERAGE(D31:D50)) -> 0 | E51: =IF(COUNTIF(E31:E50,">0")<(2*$B$6),0,AVERAGE(E31:E50)) -> 0 | F51: 0 | G51: 0 | H51: 0 | I51: 0 | J51: 0 | K51: 0 | L51: 0 | M51: 0 | N51: 0 | O51: 0 | P51: 0 | Q51: 0 | R51: 0 | S51: 0 | T51: 0 | U51: 0 | V51: 0 | W51: 0 | X51: 0 | Y51: 0 | Z51: 0 | AA51: 0 | AB51: 0 | AC51: 0 | AD51: 0 | AE51: 0 | AF51: 0 | AG51: 0 | AH51: 0 | AI51: 0.2398027918 | AJ51: 0.2659080725 | AK51: 0.2883258062 | AL51: 0.3069813521 | AM51: 0.3209904598 | AN51: 0.330292766 | AO51: 0.3362192444 | AP51: 0.338434274 | AQ51: 0.3339100549 | AR51: 0.3241070846 | AS51: 0.3110702517 | AT51: 0.2962224255 | AU51: 0.2773223317 | AV51: 0.2579062329 | AW51: 0.2337047884 | AX51: 0.2062049264 | AY51: 0 | AZ51: 0 | BA51: 0 | BB51: 0 | BC51: 0 | BD51: 0 | BE51: 0 | BF51: 0 | BG51: 0 | BH51: 0 | BI51: 0 | BJ51: 0

Sheet Geul-PotNod (hidden)
A1: NEVENGEUL Rivierfonteinkruid
A2: optimale diepte mei | B2: 112 | C2: cm
A3: optimale diepte juli | B3: 104 | C3: cm
A4: max distance | B4: 40 | C4: cm
A5: max bedekking | B5: 70 | C5: %
A6: minimaal jaren uit 10 jaar | B6: 8 | C6: -
D7: ='Interface KRW-tool Waterplanten'!$B$11 -> 470 | E7: =D7+10 -> 480 | F7: =E7+10 -> 490 | G7: 500 | H7: 510 | I7: 520 | J7: 530 | K7: 540 | L7: 550 | M7: 560 | N7: 570 | O7: 580 | P7: 590 | Q7: 600 | R7: 610 | S7: 620 | T7: 630 | U7: 640 | V7: 650 | W7: 660 | X7: 670 | Y7: 680 | Z7: 690 | AA7: 700 | AB7: 710 | AC7: 720 | AD7: 730 | AE7: 740 | AF7: 750 | AG7: 760 | AH7: 770 | AI7: 780 | AJ7: 790 | AK7: 800 | AL7: 810 | AM7: 820 | AN7: 830 | AO7: 840 | AP7: 850 | AQ7: 860 | AR7: 870 | AS7: 880 | AT7: 890 | AU7: 900 | AV7: 910 | AW7: 920 | AX7: 930 | AY7: 940 | AZ7: 950 | BA7: 960 | BB7: 970 | BC7: 980 | BD7: 990 | BE7: 1000 | BF7: 1010 | BG7: 1020 | BH7: 1030 | BI7: 1040 | BJ7: 1050
B8: peil in mei | C8: peil in juli
B9: (cm NAP) | C9: (cm NAP)
A10: =Waterstand_obv_Lobith!Y30 -> 1998 | B10: =Waterstand_obv_Lobith!Z30 -> 944.4287634 | C10: =Waterstand_obv_Lobith!AA30 -> 883.8665323 | D10: =SQRT(($B10-D$7-$B$2)^2+($C10-D$7-$B$3)^2) -> 476.8352717 | E10: 462.7374747 | F10: 448.6424685 | G10: 434.5505248 | H10: 420.4619516 | I10: 406.3770993 | J10: 392.2963687 | K10: 378.2202202 | L10: 364.1491852 | M10: 350.0838802 | N10: =SQRT(($B10-N$7-$B$2)^2+($C10-N$7-$B$3)^2) -> 336.0250247 | O10: 321.9734637 | P10: 307.9301957 | Q10: 293.8964095 | R10: 279.8735314 | S10: 265.8632876 | T10: 251.8677863 | U10: 237.8896295 | V10: 223.9320654 | W10: 209.9992 | X10: =SQRT(($B10-X$7-$B$2)^2+($C10-X$7-$B$3)^2) -> 196.096298 | Y10: 182.2302176 | Z10: 168.410054 | AA10: 154.6481179 | AB10: 140.9614644 | AC10: 127.3743637 | AD10: 113.9224412 | AE10: 100.6599061 | AF10: 87.67274828 | AG10: 75.10396047 | AH10: =SQRT(($B10-AH$7-$B$2)^2+($C10-AH$7-$B$3)^2) -> 63.20363094 | AI10: 52.42893332 | AJ10: 43.62209458 | AK10: 38.17042339 | AL10: 37.56428234 | AM10: 42.01391905 | AN10: 50.19226514 | AO10: 60.60823018 | AP10: 72.30111791 | AQ10: 84.74400119 | AR10: =SQRT(($B10-AR$7-$B$2)^2+($C10-AR$7-$B$3)^2) -> 97.65060073 | AS10: 110.8590723 | AT10: 124.273199 | AU10: 137.8329499 | AV10: 151.4992283 | AW10: 165.2456059 | AX10: 179.0536354 | AY10: 192.9100786 | AZ10: 206.8052043 | BA10: 220.7317073 | BB10: =SQRT(($B10-BB$7-$B$2)^2+($C10-BB$7-$B$3)^2) -> 234.6840018 | BC10: 248.6577462 | BD10: 262.6495171 | BE10: 276.6565794 | BF10: 290.6767225 | BG10: 304.7081409 | BH10: 318.7493454 | BI10: 332.7990975 | BJ10: 346.8563584
A11: =Waterstand_obv_Lobith!Y31 -> 1999 | B11: =Waterstand_obv_Lobith!Z31 -> 1167.324194 | C11: =Waterstand_obv_Lobith!AA31 -> 1041.140995 | D11: 748.8825812 | E11: 734.830468 | F11: 720.7818761 | G11: 706.7370155 | H11: 692.6961133 | I11: 678.659415 | J11: 664.6271871 | K11: 650.5997188 | L11: 636.5773247 | M11: 622.5603477 | N11: 608.5491622 | O11: 594.5441775 | P11: 580.5458425 | Q11: 566.55465 | R11: 552.5711427 | S11: 538.595919 | T11: 524.629641 | U11: 510.6730426 | V11: 496.7269397 | W11: 482.792242 | X11: 468.8699661 | Y11: 454.9612526 | Z11: 441.0673844 | AA11: 427.1898101 | AB11: 413.3301708 | AC11: 399.4903332 | AD11: 385.6724291 | AE11: 371.8789034 | AF11: 358.1125731 | AG11: 344.3766997 | AH11: 330.6750784 | AI11: 317.0121508 | AJ11: 303.3931443 | AK11: 289.8242506 | AL11: 276.3128525 | AM11: 262.867816 | AN11: 249.4998696 | AO11: 236.2221013 | AP11: 223.0506162 | AQ11: 210.0054134 | AR11: 197.1115671 | AS11: 184.40083 | AT11: 171.9138224 | AU11: 159.7030325 | AV11: 147.8369197 | AW11: 136.4054656 | AX11: 125.5274762 | AY11: 115.3596269 | AZ11: 106.1062664 | BA11: 98.02671066 | BB11: 91.43266505 | BC11: 86.66388219 | BD11: 84.03168874 | BE11: 83.73781075 | BF11: 85.80627707 | BG11: 90.07448819 | BH11: 96.25024498 | BI11: 103.994259 | BJ11: 112.9845216
A12: =Waterstand_obv_Lobith!Y32 -> 2000 | B12: =Waterstand_obv_Lobith!Z32 -> 992.6962366 | C12: =Waterstand_obv_Lobith!AA32 -> 1004.294758 | D12: 594.8318902 | E12: 580.6936866 | F12: 566.5556793 | G12: 552.4178834 | H12: 538.2803154 | I12: 524.1429939 | J12: 510.0059394 | K12: 495.8691746 | L12: 481.7327251 | M12: 467.5966194 | N12: 453.4608898 | O12: 439.3255726 | P12: 425.1907088 | Q12: 411.0563452 | R12: 396.9225353 | S12: 382.7893404 | T12: 368.6568313 | U12: 354.5250899 | V12: 340.3942119 | W12: 326.2643094 | X12: 312.1355149 | Y12: 298.0079861 | Z12: 283.8819119 | AA12: 269.7575208 | AB12: 255.6350917 | AC12: 241.514969 | AD12: 227.3975821 | AE12: 213.2834744 | AF12: 199.173343 | AG12: 185.0680974 | AH12: 170.9689468 | AI12: 156.8775346 | AJ12: 142.7961518 | AK12: 128.7280897 | AL12: 114.6782508 | AM12: 100.6542662 | AN12: 86.66868761 | AO12: 72.74366997 | AP12: 58.92216584 | AQ12: 45.29902576 | AR12: 32.12758694 | AS12: 20.30669718 | AT12: 13.8759525 | AU12: 19.30601371 | AV12: 30.86911519 | AW12: 43.96683273 | AX12: 57.56094586 | AY12: 71.3683585 | AZ12: 85.28553631 | BA12: 99.26632264 | BB12: 113.2871701 | BC12: 127.3348461 | BD12: 141.4013548 | BE12: 155.4815849 | BF12: 169.5721184 | BG12: 183.6705841 | BH12: 197.7752855 | BI12: 211.8849775 | BJ12: 225.9987252
A13: =Waterstand_obv_Lobith!Y33 -> 2001 | B13: =Waterstand_obv_Lobith!Z33 -> 1118.106048 | C13: =Waterstand_obv_Lobith!AA33 -> 1010.370968 | D13: 691.2519921 | E13: 677.1851861 | F13: 663.1215846 | G13: 649.0613959 | H13: 635.0048467 | I13: 620.9521841 | J13: 606.9036782 | K13: 592.8596245 | L13: 578.8203469 | M13: 564.7862018 | N13: 550.7575813 | O13: 536.7349188 | P13: 522.7186937 | Q13: 508.7094381 | R13: 494.7077441 | S13: 480.7142725 | T13: 466.7297628 | U13: 452.7550454 | V13: 438.791056 | W13: 424.8388524 | X13: 410.8996351 | Y13: 396.9747723 | Z13: 383.0658292 | AA13: 369.1746053 | AB13: 355.3031788 | AC13: 341.4539625 | AD13: 327.6297731 | AE13: 313.8339177 | AF13: 300.0703044 | AG13: 286.3435825 | AH13: 272.6593239 | AI13: 259.0242587 | AJ13: 245.4465854 | AK13: 231.9363834 | AL13: 218.5061684 | AM13: 205.1716484 | AN13: 191.9527676 | AO13: 178.875165 | AP13: 165.9722397 | AQ13: 153.2881079 | AR13: 140.8818785 | AS13: 128.8338596 | AT13: 117.2545225 | AU13: 106.2971436 | AV13: 96.17454139 | AW13: 87.17799085 | AX13: 79.68978458 | AY13: 74.16819698 | AZ13: 71.07306889 | BA13: 70.72369333 | BB13: 73.15941823 | BC13: 78.12016483 | BD13: 85.16583723 | BE13: 93.82792499 | BF13: 103.7021658 | BG13: 114.4753199 | BH13: 125.9168715 | BI13: 137.8605027 | BJ13: 150.1864771
A14: =Waterstand_obv_Lobith!Y34 -> 2002 | B14: =Waterstand_obv_Lobith!Z34 -> 1063.945296 | C14: =Waterstand_obv_Lobith!AA34 -> 957.6646505 | D14: 616.0112273 | E14: 601.9614881 | F14: 587.9161796 | G14: 573.8756271 | H14: 559.8401883 | I14: 545.8102578 | J14: 531.7862715 | K14: 517.7687125 | L14: 503.7581173 | M14: 489.7550835 | N14: 475.7602788 | O14: 461.7744514 | P14: 447.7984424 | Q14: 433.8332008 | R14: 419.8798009 | S14: 405.9394638 | T14: 392.0135831 | U14: 378.1037561 | V14: 364.2118223 | W14: 350.33991 | X14: 336.4904956 | Y14: 322.6664759 | Z14: 308.8712608 | AA14: 295.1088898 | AB14: 281.3841821 | AC14: 267.7029305 | AD14: 254.0721553 | AE14: 240.500439 | AF14: 226.9983749 | AG14: 213.5791734 | AH14: 200.2594926 | AI14: 187.060593 | AJ14: 174.009961 | AK14: 161.1436241 | AL14: 148.5094902 | AM14: 136.1722062 | AN14: 124.2202513 | AO14: 112.7762027 | AP14: 102.0111414 | AQ14: 92.16330101 | AR14: 83.55761563 | AS14: 76.6138121 | AT14: 71.81557825 | AU14: 69.6080337 | AV14: 70.23588421 | AW14: 73.62662905 | AX14: 79.42720932 | AY14: 87.15780319 | AZ14: 96.3549881 | BA14: 106.6399775 | BB14: 117.7280166 | BC14: 129.4128547 | BD14: 141.5467698 | BE14: 154.0236641 | BF14: 166.7665739 | BG14: 179.7189229 | BH14: 192.8385136 | BI14: 206.0934094 | BJ14: 219.4590952
A15: =Waterstand_obv_Lobith!Y35 -> 2003 | B15: =Waterstand_obv_Lobith!Z35 -> 922.0501344 | C15: =Waterstand_obv_Lobith!AA35 -> 830.1151882 | D15: 425.7100933 | E15: 411.710793 | F15: 397.7215994 | G15: 383.7436178 | H15: 369.7781196 | I15: 355.8265747 | J15: 341.8906913 | K15: 327.9724659 | L15: 314.0742459 | M15: 300.1988099 | N15: 286.3494701 | O15: 272.5302049 | P15: 258.745833 | Q15: 245.0022442 | R15: 231.3067081 | S15: 217.6682952 | T15: 204.0984574 | U15: 190.6118408 | V15: 177.2274454 | W15: 163.9703051 | X15: 150.8739689 | Y15: 137.9842311 | Z15: 125.3648339 | AA15: 113.1063002 | AB15: 101.3396698 | AC15: 90.25753283 | AD15: 80.14434342 | AE15: 71.41294932 | AF15: 64.62586849 | AG15: 60.4416779 | AH15: 59.41287718 | AI15: 61.69751635 | AJ15: 66.95727796 | AK15: 74.56521052 | AL15: 83.88482681 | AM15: 94.41058054 | AN15: 105.7830386 | AO15: 117.7571434 | AP15: 130.1669634 | AQ15: 142.899027 | AR15: 155.87439 | AS15: 169.0370344 | AT15: 182.3464081 | AU15: 195.7725877 | AV15: 209.2930951 | AW15: 222.8907652 | AX15: 236.5522918 | AY15: 250.2672178 | AZ15: 264.0272218 | BA15: 277.8256061 | BB15: 291.6569234 | BC15: 305.5167008 | BD15: 319.4012336 | BE15: 333.307428 | BF15: 347.2326816 | BG15: 361.1747897 | BH15: 375.1318731 | BI15: 389.1023205 | BJ15: 403.0847421
A16: =Waterstand_obv_Lobith!Y36 -> 2004 | B16: =Waterstand_obv_Lobith!Z36 -> 963.3307796 | C16: =Waterstand_obv_Lobith!AA36 -> 909.3990591 | D16: 507.8441615 | E16: 493.7318053 | F16: 479.6212034 | G16: 465.5125154 | H16: 451.4059207 | I16: 437.3016218 | J16: 423.1998484 | K16: 409.1008615 | L16: 395.0049596 | M16: 380.9124852 | N16: 366.8238332 | O16: 352.7394616 | P16: 338.6599047 | Q16: 324.5857887 | R16: 310.5178537 | S16: 296.4569795 | T16: 282.4042208 | U16: 268.3608525 | V16: 254.3284302 | W16: 240.3088713 | X16: 226.3045665 | Y16: 212.3185344 | Z16: 198.3546402 | AA16: 184.4179127 | AB16: 170.5150132 | AC16: 156.6549487 | AD16: 142.8501879 | AE16: 129.1184705 | AF16: 115.4858547 | AG16: 101.9920873 | AH16: 88.70055859 | AI16: 75.71784677 | AJ16: 63.23444904 | AK16: 51.6139397 | AL16: 41.58607936 | AM16: 34.56595467 | AN16: 32.56084225 | AO16: 36.40895047 | AP16: 44.62079 | AQ16: 55.28488153 | AR16: 67.24448938 | AS16: 79.92011372 | AT16: 93.01950227 | AU16: 106.3862351 | AV16: 119.9309562 | AW16: 133.5995415 | AX16: 147.3575268 | AY16: 161.1820211 | AZ16: 175.0572682 | BA16: 188.9720889 | BB16: 202.9183422 | BC16: 216.8899648 | BD16: 230.8823511 | BE16: 244.8919421 | BF16: 258.9159449 | BG16: 272.9521382 | BH16: 286.9987334 | BI16: 301.0542745 | BJ16: 315.1175644
A17: =Waterstand_obv_Lobith!Y37 -> 2005 | B17: =Waterstand_obv_Lobith!Z37 -> 1036.312634 | C17: =Waterstand_obv_Lobith!AA37 -> 889.2451613 | D17: 552.9733099 | E17: 539.0624505 | F17: 525.1639455 | G17: 511.2788024 | H17: 497.4081401 | I17: 483.5532049 | J17: 469.7153883 | K17: 455.8962493 | L17: 442.0975392 | M17: 428.3212326 | N17: 414.5695628 | O17: 400.8450654 | P17: 387.1506303 | Q17: 373.4895643 | R17: 359.8656676 | S17: 346.2833273 | T17: 332.7476324 | U17: 319.2645157 | V17: 305.840931 | W17: 292.4850751 | X17: 279.2066676 | Y17: 266.0173064 | Z17: 252.9309222 | AA17: 239.9643629 | AB17: 227.1381508 | AC17: 214.4774665 | AD17: 202.0134345 | AE17: 189.784804 | AF17: 177.8401414 | AG17: 166.2406689 | AH17: 155.063871 | AI17: 144.4079228 | AJ17: 134.3967717 | AK17: 125.1852081 | AL17: 116.9623034 | AM17: 109.9501001 | AN17: 104.392857 | AO17: 100.5321475 | AP17: 98.56752391 | AQ17: 98.61237678 | AR17: 100.6640201 | AS17: 104.6044408 | AT17: 110.231271 | AU17: 117.3020767 | AV17: 125.573171 | AW17: 134.8238309 | AX17: 144.8665229 | AY17: 155.547914 | AZ17: 166.7453077 | BA17: 178.3615477 | BB17: 190.3199564 | BC17: 202.5599415 | BD17: 215.0334252 | BE17: 227.7020379 | BF17: 240.5349499 | BG17: 253.5072114 | BH17: 266.5984815 | BI17: 279.7920556 | BJ17: 293.0741177
A18: =Waterstand_obv_Lobith!Y38 -> 2006 | B18: =Waterstand_obv_Lobith!Z38 -> 1051.970565 | C18: =Waterstand_obv_Lobith!AA38 -> 868.7884409 | D18: 554.7725267 | E18: 540.9966509 | F18: 527.2401693 | G18: 513.5046407 | H18: 499.7917926 | I18: 486.1035444 | J18: 472.4420343 | K18: 458.8096508 | L18: 445.2090694 | M18: 431.6432965 | N18: 418.11572 | O18: 404.6301709 | P18: 391.1909957 | Q18: 377.8031432 | R18: 364.472269 | S18: 351.2048615 | T18: 338.0083944 | U18: 324.891512 | V18: 311.8642564 | W18: 298.9383454 | X18: 286.1275139 | Y18: 273.4479368 | Z18: 260.9187498 | AA18: 248.5626961 | AB18: 236.4069242 | AC18: 224.483972 | AD18: 212.8329711 | AE18: 201.5011004 | AF18: 190.5453053 | AG18: 180.0342558 | AH18: 170.050443 | AI18: 160.6921686 | AJ18: 152.0749583 | AK18: 144.3316072 | AL18: 137.6097116 | AM18: 132.0653346 | AN18: 127.8517599 | AO18: 125.1035267 | AP18: 123.9181677 | AQ18: 124.3403884 | AR18: 126.3540742 | AS18: 129.8852261 | AT18: 134.8146574 | AU18: 140.9957863 | AV18: 148.272154 | AW18: 156.491059 | AX18: 165.5121489 | AY18: 175.2115616 | AZ18: 185.4829135 | BA18: 196.2364164 | BB18: 207.3970853 | BC18: 218.9026516 | BD18: 230.7015188 | BE18: 242.7509231 | BF18: 255.0153536 | BG18: 267.4652322 | BH18: 280.0758297 | BI18: 292.8263824 | BJ18: 305.6993787
A19: =Waterstand_obv_Lobith!Y39 -> 2007 | B19: =Waterstand_obv_Lobith!Z39 -> 901.888172 | C19: =Waterstand_obv_Lobith!AA39 -> 1041.144086 | D19: 566.1731535 | E19: 552.2783669 | F19: 538.3964612 | G19: 524.5284589 | H19: 510.6754929 | I19: 496.8388209 | J19: 483.019843 | K19: 469.2201227 | L19: 455.4414105 | M19: 441.6856725 | N19: 427.9551239 | O19: 414.2522697 | P19: 400.5799518 | Q19: 386.9414072 | R19: 373.3403373 | S19: 359.7809921 | T19: 346.2682734 | U19: 332.8078604 | V19: 319.4063663 | W19: 306.0715303 | X19: 292.8124596 | Y19: 279.6399316 | Z19: 266.5667762 | AA19: 253.6083615 | AB19: 240.7832134 | AC19: 228.1138108 | AD19: 215.6276084 | AE19: 203.3583545 | AF19: 191.347786 | AG19: 179.6477944 | AH19: 168.3231561 | AI19: 157.4548815 | AJ19: 147.1441285 | AK19: 137.5163605 | AL19: 128.7249169 | AM19: 120.9523008 | AN19: 114.4063543 | AO19: 109.3076793 | AP19: 105.8655921 | AQ19: 104.2443208 | AR19: 104.5286241 | AS19: 106.7032713 | AT19: 110.6568703 | AU19: 116.2079936 | AV19: 123.1407837 | AW19: 131.2364563 | AX19: 140.2938427 | AY19: 150.1389927 | AZ19: 160.6271209 | BA19: 171.6403997 | BB19: 183.0840836 | BC19: 194.8823658 | BD19: 206.9746152 | BE19: 219.3122116 | BF19: 231.855992 | BG19: 244.5742338 | BH19: 257.441082 | BI19: 270.435326 | BJ19: 283.5394512
A20: =Waterstand_obv_Lobith!Y40 -> 2008 | B20: =Waterstand_obv_Lobith!Z40 -> 977.8186828 | C20: =Waterstand_obv_Lobith!AA40 -> 930.299328 | D20: =SQRT(($B20-D$7-$B$2)^2+($C20-D$7-$B$3)^2) -> 532.5613962 | E20: 518.4392737 | F20: 504.3182728 | G20: 490.1984905 | H20: 476.0800352 | I20: 461.9630285 | J20: 447.8476074 | K20: 433.7339268 | L20: 419.6221622 | M20: 405.5125138 | N20: =SQRT(($B20-N$7-$B$2)^2+($C20-N$7-$B$3)^2) -> 391.4052102 | O20: 377.3005147 | P20: 363.198731 | Q20: 349.1002119 | R20: 335.0053697 | S20: 320.9146889 | T20: 306.8287426 | U20: 292.7482145 | V20: 278.6739257 | W20: 264.6068719 | X20: =SQRT(($B20-X$7-$B$2)^2+($C20-X$7-$B$3)^2) -> 250.5482717 | Y20: 236.4996326 | Z20: 222.4628419 | AA20: 208.4402931 | AB20: 194.4350678 | AC20: 180.4511994 | AD20: 166.4940694 | AE20: 152.5710161 | AF20: 138.6923024 | AG20: 124.8727133 | AH20: =SQRT(($B20-AH$7-$B$2)^2+($C20-AH$7-$B$3)^2) -> 111.1343075 | AI20: 97.5114049 | AJ20: 84.06018006 | AK20: 70.87844282 | AL20: 58.14975014 | AM20: 46.24968352 | AN20: 36.00934616 | AO20: 29.22862973 | AP20: 28.49478164 | AQ20: 34.19930358 | AR20: =SQRT(($B20-AR$7-$B$2)^2+($C20-AR$7-$B$3)^2) -> 43.90025228 | AS20: 55.54162345 | AT20: 68.13597963 | AU20: 81.24131649 | AV20: 94.64560893 | AW20: 108.2378449 | AX20: 121.9552002 | AY20: 135.7597534 | AZ20: 149.6273719 | BA20: 163.5420136 | BB20: =SQRT(($B20-BB$7-$B$2)^2+($C20-BB$7-$B$3)^2) -> 177.4926196 | BC20: 191.4713289 | BD20: 205.4724059 | BE20: 219.4915701 | BF20: 233.5255642 | BG20: 247.5718662 | BH20: 261.6284937 | BI20: 275.6938674 | BJ20: 289.7667135
A21: =Waterstand_obv_Lobith!Y41 -> 2009 | B21: =Waterstand_obv_Lobith!Z41 -> 942.2651882 | C21: =Waterstand_obv_Lobith!AA41 -> 967.8369624 | D21: 533.7588957 | E21: 519.6311343 | F21: 505.5041768 | G21: 491.3780924 | H21: 477.2529588 | I21: 463.1288629 | J21: 449.0059027 | K21: 434.8841888 | L21: 420.7638467 | M21: 406.6450192 | N21: 392.5278699 | O21: 378.4125865 | P21: 364.299386 | Q21: 350.1885201 | R21: 336.0802829 | S21: 321.9750201 | T21: 307.8731404 | U21: 293.7751309 | V21: 279.681577 | W21: 265.593188 | X21: 251.5108318 | Y21: 237.4355818 | Z21: 223.3687814 | AA21: 209.3121341 | AB21: 195.2678327 | AC21: 181.2387471 | AD21: 167.228707 | AE21: 153.242936 | AF21: 139.2887448 | AG21: 125.3766781 | AH21: 111.5225018 | AI21: 97.75083325 | AJ21: 84.10221394 | AK21: 70.64799629 | AL21: 57.5247457 | AM21: 45.0228093 | AN21: 33.83800152 | AO21: 25.74815209 | AP21: 24.10237178 | AQ21: 29.98134945 | AR21: 40.20992793 | AS21: 52.29527027 | AT21: 65.21312968 | AU21: 78.55386223 | AV21: 92.13395824 | AW21: 105.8613397 | AX21: 119.6853384 | AY21: 133.5759605 | AZ21: 147.5143865 | BA21: 161.4882386 | BB21: 175.4890543 | BC21: 189.5108577 | BD21: 203.5493114 | BE21: 217.6011929 | BF21: 231.6640588 | BG21: 245.7360233 | BH21: 259.8156079 | BI21: 273.9016377 | BJ21: 287.9931668
A22: =Waterstand_obv_Lobith!Y42 -> 2010 | B22: =Waterstand_obv_Lobith!Z42 -> 917.2297043 | C22: =Waterstand_obv_Lobith!AA42 -> 890.7012097 | D22: 461.1709128 | E22: 447.034666 | F22: 432.8988038 | G22: 418.7633652 | H22: 404.6283946 | I22: 390.4939429 | J22: 376.3600685 | K22: 362.226839 | L22: 348.0943329 | M22: 333.9626421 | N22: 319.8318747 | O22: 305.7021586 | P22: 291.5736468 | Q22: 277.4465232 | R22: 263.3210112 | S22: 249.1973849 | T22: 235.0759843 | U22: 220.9572359 | V22: 206.841683 | W22: 192.7300276 | X22: 178.6231935 | Y22: 164.5224209 | Z22: 150.4294144 | AA22: 136.346582 | AB22: 122.2774392 | AC22: 108.227325 | AD22: 94.20475353 | AE22: 80.2241691 | AF22: 66.31213335 | AG22: 52.52314489 | AH22: 38.98797853 | AI22: 26.10448602 | AJ22: 15.58287235 | AK22: 14.29012355 | AL22: 23.78212252 | AM22: 36.42761414 | AN22: 49.88339195 | AO22: 63.63752441 | AP22: 77.5313887 | AQ22: 91.50135493 | AR22: 105.5172008 | AS22: 119.5627927 | AT22: 133.6287511 | AU22: 147.7092578 | AV22: 161.8005147 | AW22: 175.8999382 | AX22: 190.0057104 | AY22: 204.1165151 | AZ22: 218.2313759 | BA22: 232.3495538 | BB22: 246.4704787 | BC22: 260.5937041 | BD22: 274.7188751 | BE22: 288.8457063 | BF22: 302.9739655 | BG22: 317.1034618 | BH22: 331.2340369 | BI22: 345.3655584 | BJ22: 359.4979147
A23: =Waterstand_obv_Lobith!Y43 -> 2011 | B23: =Waterstand_obv_Lobith!Z43 -> 765.2371192 | C23: =Waterstand_obv_Lobith!AA43 -> 888.2246416 | D23: 363.7484945 | E23: 350.0910339 | F23: 336.4736198 | G23: 322.9013186 | H23: 309.3800678 | I23: 295.9168653 | J23: 282.5200098 | K23: 269.199407 | L23: 255.9669617 | M23: 242.8370859 | N23: 229.8273593 | O23: 216.9593968 | P23: 204.2599927 | Q23: 191.7626382 | R23: 179.5095379 | S23: 167.5542867 | T23: 155.9653929 | U23: 144.8308274 | V23: 134.263671 | W23: 124.4085935 | X23: 115.4480962 | Y23: 107.6058906 | Z23: 101.1424366 | AA23: 96.33564902 | AB23: 93.44154353 | AC23: 92.63955333 | AD23: 93.98325184 | AE23: 97.38386115 | AF23: 102.6371336 | AG23: 109.4766915 | AH23: 117.6261483 | AI23: 126.8332589 | AJ23: 136.8847703 | AK23: 147.6082827 | AL23: 158.8677749 | AM23: 170.5571303 | AN23: 182.5938101 | AO23: 194.9134789 | AP23: 207.4657298 | AQ23: 220.2107941 | AR23: 233.1170492 | AS23: 246.1591424 | AT23: 259.3165791 | AU23: 272.5726563 | AV23: 285.9136544 | AW23: 299.3282188 | AX23: 312.806885 | AY23: 326.3417107 | AZ23: 339.9259874 | BA23: 353.5540152 | BB23: 367.2209232 | BC23: 380.9225266 | BD23: 394.6552116 | BE23: 408.415843 | BF23: 422.2016883 | BG23: 436.0103558 | BH23: 449.8397439 | BI23: 463.6879985 | BJ23: 477.5534784
A24: =Waterstand_obv_Lobith!Y44 -> 2012 | B24: =Waterstand_obv_Lobith!Z44 -> 941.4875224 | C24: =Waterstand_obv_Lobith!AA44 -> 973.3058692 | D24: 537.2861955 | E24: 523.1640164 | F24: 509.0429454 | G24: 494.9230773 | H24: 480.8045181 | I24: 466.6873865 | J24: 452.5718163 | K24: 438.4579582 | L24: 424.345983 | M24: 410.236085 | N24: 396.1284862 | O24: 382.0234414 | P24: 367.9212442 | Q24: 353.8222352 | R24: 339.7268112 | S24: 325.6354379 | T24: 311.5486649 | U24: 297.4671457 | V24: 283.3916635 | W24: 269.3231648 | X24: 255.2628044 | Y24: 241.2120052 | Z24: 227.1725415 | AA24: 213.1466533 | AB24: 199.1372089 | AC24: 185.1479412 | AD24: 171.1837968 | AE24: 157.2514689 | AF24: 143.3602338 | AG24: 129.5233138 | AH24: 115.7601873 | AI24: 102.100701 | AJ24: 88.5928062 | AK24: 75.31810858 | AL24: 62.42555285 | AM24: 50.21037559 | AN24: 39.30920993 | AO24: 31.13432436 | AP24: 28.16874725 | AQ24: 31.90000769 | AR24: 40.5184237 | AS24: 51.63211043 | AT24: 63.95316252 | AU24: 76.90344052 | AV24: 90.21236796 | AW24: 103.7420045 | AX24: 117.4160793 | AY24: 131.1894349 | AZ24: 145.0337892 | BA24: 158.9305892 | BB24: 172.867187 | BC24: 186.834677 | BD24: 200.8266135 | BE24: 214.8382202 | BF24: 228.8658843 | BG24: 242.9068241 | BH24: 256.9588632 | BI24: 271.0202751 | BJ24: 285.0896731
A25: =Waterstand_obv_Lobith!Y45 -> 2013 | B25: =Waterstand_obv_Lobith!Z45 -> 1091.02509 | C25: =Waterstand_obv_Lobith!AA45 -> 949.1129704 | D25: 632.3102739 | E25: 618.3312391 | F25: 604.3597935 | G25: 590.396476 | H25: 576.4418771 | I25: 562.4966457 | J25: 548.5614963 | K25: 534.6372172 | L25: 520.7246804 | M25: 506.824853 | N25: 492.93881 | O25: 479.0677501 | P25: 465.2130136 | Q25: 451.3761035 | R25: 437.5587111 | S25: 423.7627454 | T25: 409.9903697 | U25: 396.2440435 | V25: 382.5265753 | W25: 368.8411848 | X25: 355.1915799 | Y25: 341.5820505 | Z25: 328.0175849 | AA25: 314.504014 | AB25: 301.0481915 | AC25: 287.6582215 | AD25: 274.3437464 | AE25: 261.1163151 | AF25: 247.9898563 | AG25: 234.981292 | AH25: 222.1113379 | AI25: 209.405552 | AJ25: 196.8957186 | AK25: 184.6216748 | AL25: 172.6337209 | AM25: 160.9957776 | AN25: 149.7894496 | AO25: 139.1190785 | AP25: 129.1176084 | AQ25: 119.9524723 | AR25: 111.8294881 | AS25: 104.9908244 | AT25: 99.70111335 | AU25: 96.21616705 | AV25: 94.73536616 | AW25: 95.35212845 | AX25: 98.02686979 | AY25: 102.5987622 | AZ25: 108.8289704 | BA25: 116.4516363 | BB25: 125.2127086 | BC25: 134.8905527 | BD25: 145.3020991 | BE25: 156.3007959 | BF25: 167.7712061 | BG25: 179.622984 | BH25: 191.7854405 | BI25: 204.2030705 | BJ25: 216.8320382
A26: =Waterstand_obv_Lobith!Y46 -> 2014 | B26: =Waterstand_obv_Lobith!Z46 -> 903.1048611 | C26: =Waterstand_obv_Lobith!AA46 -> 961.2357303 | D26: 503.0505369 | E26: 488.9714008 | F26: 474.8960086 | G26: 460.8247033 | H26: 446.757871 | I26: 432.6959481 | J26: 418.6394292 | K26: 404.5888776 | L26: 390.5449373 | M26: 376.5083481 | N26: 362.4799641 | O26: 348.4607762 | P26: 334.4519408 | Q26: 320.4548157 | R26: 306.4710052 | S26: 292.5024192 | T26: 278.5513479 | U26: 264.6205615 | V26: 250.7134415 | W26: 236.834157 | X26: 222.9879057 | Y26: 209.1812474 | Z26: 195.422574 | AA26: 181.722785 | AB26: 168.0962783 | AC26: 154.562437 | AD26: 141.1479193 | AE26: 127.8902783 | AF26: 114.8438569 | AG26: 102.0896647 | AH26: 89.75236933 | AI26: 78.02996843 | AJ26: 67.24480757 | AK26: 57.92281344 | AL26: 50.87475297 | AM26: 47.13203434 | AN26: 47.48280566 | AO26: 51.84404503 | AP26: 59.33795731 | AQ26: 68.95057179 | AR26: 79.92102052 | AS26: 91.76359678 | AT26: 104.1813125 | AU26: 116.9911708 | AV26: 130.0773701 | AW26: 143.3642577 | AX26: 156.8008245 | AY26: 170.3516561 | AZ26: 183.9915077 | BA26: 197.7019551 | BB26: 211.4692678 | BC26: 225.2830207 | BD26: 239.1351659 | BE26: 253.019398 | BF26: 266.93071 | BG26: 280.8650781 | BH26: 294.8192332 | BI26: 308.7904928 | BJ26: 322.7766358
A27: =Waterstand_obv_Lobith!Y47 -> 2015 | B27: =Waterstand_obv_Lobith!Z47 -> 1034.027733 | C27: =Waterstand_obv_Lobith!AA47 -> 845.3368728 | D27: 527.2122627 | E27: 513.5031429 | F27: 499.8181526 | G27: 486.1593294 | H27: 472.5289424 | I27: 458.9295254 | J27: 445.3639155 | K27: 431.8352986 | L27: 418.3472636 | M27: 404.9038662 | N27: 391.5097045 | O27: 378.1700102 | P27: 364.890757 | Q27: 351.6787915 | R27: 338.5419919 | S27: 325.4894594 | T27: 312.5317521 | U27: 299.6811705 | V27: 286.9521072 | W27: 274.3614764 | X27: 261.9292416 | Y27: 249.679065 | Z27: 237.6391032 | AA27: 225.8429792 | AB27: 214.330957 | AC27: 203.1513402 | AD27: 192.3620932 | AE27: 182.0326421 | AF27: 172.2457276 | AG27: 163.0990453 | AH27: 154.706194 | AI27: 147.1961764 | AJ27: 140.7104198 | AK27: 135.3961968 | AL27: 131.3957305 | AM27: 128.8314631 | AN27: 127.7898813 | AO27: 128.3080732 | AP27: 130.3674405 | AQ27: 133.896891 | AR27: 138.7843122 | AS27: 144.8923504 | AT27: 152.0739987 | AU27: 160.1849212 | AV27: 169.0914452 | AW27: 178.6746337 | AX27: 188.8314927 | AY27: 199.4744107 | AZ27: 210.5296853 | BA27: 221.935703 | BB27: 233.6411012 | BC27: 245.6030783 | BD27: 257.7859188 | BE27: 270.159745 | BF27: 282.6994795 | BG27: 295.3839935 | BH27: 308.1954112 | BI27: 321.1185441 | BJ27: 334.1404304
A28: =Waterstand_obv_Lobith!Y48 -> 2016 | B28: =Waterstand_obv_Lobith!Z48 -> 1016.342921 | C28: =Waterstand_obv_Lobith!AA48 -> 1018.856429 | D28: 621.7322702 | E28: 607.5911691 | F28: 593.4501173 | G28: 579.3091185 | H28: 565.1681765 | I28: 551.0272958 | J28: 536.8864812 | K28: 522.7457381 | L28: 508.6050724 | M28: 494.4644908 | N28: 480.3240007 | O28: 466.1836105 | P28: 452.0433294 | Q28: 437.9031681 | R28: 423.7631386 | S28: 409.6232545 | T28: 395.4835314 | U28: 381.3439873 | V28: 367.2046427 | W28: 353.0655217 | X28: 338.9266523 | Y28: 324.7880672 | Z28: 310.6498054 | AA28: 296.5119131 | AB28: 282.3744457 | AC28: 268.2374705 | AD28: 254.1010696 | AE28: 239.9653445 | AF28: 225.8304221 | AG28: 211.6964633 | AH28: 197.5636747 | AI28: 183.4323269 | AJ28: 169.3027806 | AK28: 155.1755281 | AL28: 141.0512585 | AM28: 126.9309675 | AN28: 112.8161491 | AO28: 98.70915102 | AP28: 84.61388473 | AQ28: 70.53738358 | AR28: 56.49367641 | AS28: 42.51527334 | AT28: 28.69776054 | AU28: 15.47819282 | AV28: 7.455698883 | AW28: 16.48030457 | AX28: 29.79284195 | AY28: 43.63056755 | AZ28: 57.61631208 | BA28: 71.66346635 | BB28: 85.74185327 | BC28: 99.83826118 | BD28: 113.9460021 | BE28: 128.0613305 | BF28: 142.1819868 | BG28: 156.3065269 | BH28: 170.4339853 | BI28: 184.5636919 | BJ28: 198.6951669
A29: =Waterstand_obv_Lobith!Y49 -> 2017 | B29: =Waterstand_obv_Lobith!Z49 -> 910.1750672 | C29: =Waterstand_obv_Lobith!AA49 -> 844.8522177 | D29: =SQRT(($B29-D$7-$B$2)^2+($C29-D$7-$B$3)^2) -> 425.5112203 | E29: 411.4355999 | F29: 397.364703 | G29: 383.2990497 | H29: 369.2392392 | I29: 355.1859655 | J29: 341.1400363 | K29: 327.1023979 | L29: 313.0741653 | M29: 299.0566624 | N29: 285.0514718 | O29: 271.0605023 | P29: 257.0860755 | Q29: 243.1310439 | R29: 229.1989503 | S29: 215.2942477 | T29: 201.422609 | U29: 187.591369 | V29: 173.8101723 | W29: 160.0919433 | X29: 146.4543772 | Y29: 132.922304 | Z29: 119.5315574 | AA29: 106.3355421 | AB29: 93.41681763 | AC29: 80.90831921 | AD29: 69.03340074 | AE29: 58.18130902 | AF29: 49.03589522 | AG29: 42.70800067 | AH29: 40.53921093 | AI29: 43.16111588 | AJ29: =SQRT(($B29-AJ$7-$B$2)^2+($C29-AJ$7-$B$3)^2) -> 49.82304913 | AK29: 59.1759286 | AL29: 70.15158464 | AM29: 82.10176081 | AN29: 94.65808697 | AO29: 107.6085858 | AP29: 120.8265783 | AQ29: 134.2330672 | AR29: 147.7767594 | AS29: 161.4231239 | AT29: 175.1481637 | AU29: 188.9347335 | AV29: 202.7702834 | AW29: 216.6454295 | AX29: 230.5530231 | AY29: 244.4875268 | AZ29: 258.444588 | BA29: 272.4207396 | BB29: 286.4131869 | BC29: 300.4196531 | BD29: 314.4382646 | BE29: 328.4674665 | BF29: 342.5059574 | BG29: =SQRT(($B29-BG$7-$B$2)^2+($C29-BG$7-$B$3)^2) -> 356.5526401 | BH29: 370.6065831 | BI29: 384.6669907 | BJ29: 398.733179
A31: =A10 -> 1998 | B31: 944.4287634 | C31: 883.8665323 | D31: =IF(D10<$B$4,($B$5/100)-(D10/$B$4)*($B$5/100),0) -> 0 | E31: =IF(E10<$B$4,($B$5/100)-(E10/$B$4)*($B$5/100),0) -> 0 | F31: 0 | G31: 0 | H31: 0 | I31: 0 | J31: 0 | K31: 0 | L31: 0 | M31: 0 | N31: 0 | O31: 0 | P31: 0 | Q31: 0 | R31: 0 | S31: 0 | T31: 0 | U31: 0 | V31: 0 | W31: 0 | X31: 0 | Y31: 0 | Z31: 0 | AA31: 0 | AB31: 0 | AC31: 0 | AD31: 0 | AE31: 0 | AF31: 0 | AG31: 0 | AH31: 0 | AI31: 0 | AJ31: 0 | AK31: 0.03201759071 | AL31: 0.04262505907 | AM31: 0 | AN31: 0 | AO31: 0 | AP31: 0 | AQ31: 0 | AR31: 0 | AS31: 0 | AT31: 0 | AU31: 0 | AV31: 0 | AW31: 0 | AX31: 0 | AY31: 0 | AZ31: 0 | BA31: 0 | BB31: 0 | BC31: 0 | BD31: 0 | BE31: 0 | BF31: 0 | BG31: 0 | BH31: 0 | BI31: 0 | BJ31: 0
A32: 1999 | B32: 1167.324194 | C32: 1041.140995 | D32: =IF(D11<$B$4,($B$5/100)-(D11/$B$4)*($B$5/100),0) -> 0 | E32: 0 | F32: 0 | G32: 0 | H32: 0 | I32: 0 | J32: 0 | K32: 0 | L32: 0 | M32: 0 | N32: 0 | O32: 0 | P32: 0 | Q32: 0 | R32: 0 | S32: 0 | T32: 0 | U32: 0 | V32: 0 | W32: 0 | X32: 0 | Y32: 0 | Z32: 0 | AA32: 0 | AB32: 0 | AC32: 0 | AD32: 0 | AE32: 0 | AF32: 0 | AG32: 0 | AH32: 0 | AI32: 0 | AJ32: 0 | AK32: 0 | AL32: 0 | AM32: 0 | AN32: 0 | AO32: 0 | AP32: 0 | AQ32: 0 | AR32: 0 | AS32: 0 | AT32: 0 | AU32: 0 | AV32: 0 | AW32: 0 | AX32: 0 | AY32: 0 | AZ32: 0 | BA32: 0 | BB32: 0 | BC32: 0 | BD32: 0 | BE32: 0 | BF32: 0 | BG32: 0 | BH32: 0 | BI32: 0 | BJ32: 0
A33: 2000 | B33: 992.6962366 | C33: 1004.294758 | D33: 0 | E33: 0 | F33: 0 | G33: 0 | H33: 0 | I33: 0 | J33: 0 | K33: 0 | L33: 0 | M33: 0 | N33: 0 | O33: 0 | P33: 0 | Q33: 0 | R33: 0 | S33: 0 | T33: 0 | U33: 0 | V33: 0 | W33: 0 | X33: 0 | Y33: 0 | Z33: 0 | AA33: 0 | AB33: 0 | AC33: 0 | AD33: 0 | AE33: 0 | AF33: 0 | AG33: 0 | AH33: 0 | AI33: 0 | AJ33: 0 | AK33: 0 | AL33: 0 | AM33: 0 | AN33: 0 | AO33: 0 | AP33: 0 | AQ33: 0 | AR33: 0.1377672285 | AS33: 0.3446327994 | AT33: 0.4571708313 | AU33: 0.3621447601 | AV33: 0.1597904841 | AW33: 0 | AX33: 0 | AY33: 0 | AZ33: 0 | BA33: 0 | BB33: 0 | BC33: 0 | BD33: 0 | BE33: 0 | BF33: 0 | BG33: 0 | BH33: 0 | BI33: 0 | BJ33: 0
A34: =A13 -> 2001 | B34: 1118.106048 | C34: 1010.370968 | D34: 0 | E34: 0 | F34: 0 | G34: 0 | H34: 0 | I34: 0 | J34: 0 | K34: 0 | L34: 0 | M34: 0 | N34: 0 | O34: 0 | P34: 0 | Q34: 0 | R34: 0 | S34: 0 | T34: 0 | U34: 0 | V34: 0 | W34: 0 | X34: 0 | Y34: 0 | Z34: 0 | AA34: 0 | AB34: 0 | AC34: 0 | AD34: 0 | AE34: 0 | AF34: 0 | AG34: 0 | AH34: 0 | AI34: 0 | AJ34: 0 | AK34: 0 | AL34: 0 | AM34: 0 | AN34: 0 | AO34: 0 | AP34: 0 | AQ34: 0 | AR34: 0 | AS34: 0 | AT34: 0 | AU34: 0 | AV34: 0 | AW34: 0 | AX34: 0 | AY34: 0 | AZ34: 0 | BA34: 0 | BB34: 0 | BC34: 0 | BD34: 0 | BE34: 0 | BF34: 0 | BG34: 0 | BH34: 0 | BI34: 0 | BJ34: 0
A35: 2002 | B35: 1063.945296 | C35: 957.6646505 | D35: 0 | E35: 0 | F35: 0 | G35: 0 | H35: 0 | I35: 0 | J35: 0 | K35: 0 | L35: 0 | M35: 0 | N35: 0 | O35: 0 | P35: 0 | Q35: 0 | R35: 0 | S35: 0 | T35: 0 | U35: 0 | V35: 0 | W35: 0 | X35: 0 | Y35: 0 | Z35: 0 | AA35: 0 | AB35: 0 | AC35: 0 | AD35: 0 | AE35: 0 | AF35: 0 | AG35: 0 | AH35: 0 | AI35: 0 | AJ35: 0 | AK35: 0 | AL35: 0 | AM35: 0 | AN35: 0 | AO35: 0 | AP35: 0 | AQ35: 0 | AR35: 0 | AS35: 0 | AT35: 0 | AU35: 0 | AV35: 0 | AW35: 0 | AX35: 0 | AY35: 0 | AZ35: 0 | BA35: 0 | BB35: 0 | BC35: 0 | BD35: 0 | BE35: 0 | BF35: 0 | BG35: 0 | BH35: 0 | BI35: 0 | BJ35: 0
A36: 2003 | B36: 922.0501344 | C36: 830.1151882 | D36: 0 | E36: 0 | F36: 0 | G36: 0 | H36: 0 | I36: 0 | J36: 0 | K36: 0 | L36: 0 | M36: 0 | N36: 0 | O36: 0 | P36: 0 | Q36: 0 | R36: 0 | S36: 0 | T36: 0 | U36: 0 | V36: 0 | W36: =IF(W15<$B$4,($B$5/100)-(W15/$B$4)*($B$5/100),0) -> 0 | X36: 0 | Y36: 0 | Z36: 0 | AA36: 0 | AB36: 0 | AC36: 0 | AD36: 0 | AE36: 0 | AF36: 0 | AG36: 0 | AH36: 0 | AI36: 0 | AJ36: 0 | AK36: 0 | AL36: 0 | AM36: 0 | AN36: 0 | AO36: 0 | AP36: 0 | AQ36: 0 | AR36: 0 | AS36: 0 | AT36: 0 | AU36: 0 | AV36: 0 | AW36: 0 | AX36: 0 | AY36: 0 | AZ36: 0 | BA36: 0 | BB36: 0 | BC36: 0 | BD36: 0 | BE36: 0 | BF36: 0 | BG36: 0 | BH36: 0 | BI36: 0 | BJ36: 0
A37: 2004 | B37: 963.3307796 | C37: 909.3990591 | D37: =IF(D16<$B$4,($B$5/100)-(D16/$B$4)*($B$5/100),0) -> 0 | E37: 0 | F37: 0 | G37: 0 | H37: 0 | I37: 0 | J37: 0 | K37: 0 | L37: 0 | M37: 0 | N37: 0 | O37: 0 | P37: 0 | Q37: 0 | R37: 0 | S37: 0 | T37: 0 | U37: 0 | V37: 0 | W37: 0 | X37: 0 | Y37: 0 | Z37: 0 | AA37: 0 | AB37: 0 | AC37: 0 | AD37: 0 | AE37: 0 | AF37: 0 | AG37: 0 | AH37: 0 | AI37: 0 | AJ37: 0 | AK37: 0 | AL37: 0 | AM37: 0.09509579322 | AN37: 0.1301852606 | AO37: 0.06284336684 | AP37: 0 | AQ37: 0 | AR37: 0 | AS37: 0 | AT37: 0 | AU37: 0 | AV37: 0 | AW37: 0 | AX37: 0 | AY37: 0 | AZ37: 0 | BA37: 0 | BB37: 0 | BC37: 0 | BD37: 0 | BE37: 0 | BF37: 0 | BG37: 0 | BH37: 0 | BI37: 0 | BJ37: 0
A38: 2005 | B38: 1036.312634 | C38: 889.2451613 | D38: 0 | E38: 0 | F38: 0 | G38: 0 | H38: 0 | I38: 0 | J38: 0 | K38: 0 | L38: 0 | M38: 0 | N38: 0 | O38: 0 | P38: 0 | Q38: 0 | R38: 0 | S38: 0 | T38: 0 | U38: 0 | V38: 0 | W38: 0 | X38: 0 | Y38: 0 | Z38: 0 | AA38: 0 | AB38: 0 | AC38: 0 | AD38: 0 | AE38: 0 | AF38: 0 | AG38: 0 | AH38: 0 | AI38: 0 | AJ38: 0 | AK38: 0 | AL38: 0 | AM38: 0 | AN38: 0 | AO38: 0 | AP38: 0 | AQ38: 0 | AR38: 0 | AS38: 0 | AT38: 0 | AU38: 0 | AV38: 0 | AW38: 0 | AX38: 0 | AY38: 0 | AZ38: 0 | BA38: 0 | BB38: 0 | BC38: 0 | BD38: 0 | BE38: 0 | BF38: 0 | BG38: 0 | BH38: 0 | BI38: 0 | BJ38: 0
A39: 2006 | B39: 1051.970565 | C39: 868.7884409 | D39: 0 | E39: 0 | F39: 0 | G39: 0 | H39: 0 | I39: 0 | J39: 0 | K39: 0 | L39: 0 | M39: 0 | N39: 0 | O39: 0 | P39: 0 | Q39: 0 | R39: 0 | S39: 0 | T39: 0 | U39: 0 | V39: 0 | W39: 0 | X39: 0 | Y39: 0 | Z39: 0 | AA39: 0 | AB39: 0 | AC39: 0 | AD39: 0 | AE39: 0 | AF39: 0 | AG39: 0 | AH39: 0 | AI39: 0 | AJ39: 0 | AK39: 0 | AL39: 0 | AM39: 0 | AN39: 0 | AO39: 0 | AP39: 0 | AQ39: 0 | AR39: 0 | AS39: 0 | AT39: 0 | AU39: 0 | AV39: 0 | AW39: 0 | AX39: 0 | AY39: 0 | AZ39: 0 | BA39: 0 | BB39: 0 | BC39: 0 | BD39: 0 | BE39: 0 | BF39: 0 | BG39: 0 | BH39: 0 | BI39: 0 | BJ39: 0
A40: 2007 | B40: 901.888172 | C40: 1041.144086 | D40: 0 | E40: 0 | F40: 0 | G40: 0 | H40: 0 | I40: 0 | J40: 0 | K40: 0 | L40: 0 | M40: 0 | N40: 0 | O40: 0 | P40: 0 | Q40: 0 | R40: 0 | S40: 0 | T40: 0 | U40: 0 | V40: 0 | W40: 0 | X40: 0 | Y40: 0 | Z40: 0 | AA40: 0 | AB40: 0 | AC40: 0 | AD40: 0 | AE40: 0 | AF40: 0 | AG40: 0 | AH40: 0 | AI40: 0 | AJ40: 0 | AK40: 0 | AL40: 0 | AM40: 0 | AN40: 0 | AO40: 0 | AP40: 0 | AQ40: 0 | AR40: 0 | AS40: 0 | AT40: 0 | AU40: 0 | AV40: 0 | AW40: 0 | AX40: 0 | AY40: 0 | AZ40: 0 | BA40: 0 | BB40: 0 | BC40: 0 | BD40: 0 | BE40: 0 | BF40: 0 | BG40: 0 | BH40: 0 | BI40: 0 | BJ40: 0
A41: 2008 | B41: 977.8186828 | C41: 930.299328 | D41: 0 | E41: 0 | F41: 0 | G41: 0 | H41: 0 | I41: 0 | J41: 0 | K41: 0 | L41: 0 | M41: 0 | N41: 0 | O41: 0 | P41: 0 | Q41: 0 | R41: 0 | S41: 0 | T41: 0 | U41: 0 | V41: 0 | W41: =IF(W20<$B$4,($B$5/100)-(W20/$B$4)*($B$5/100),0) -> 0 | X41: 0 | Y41: 0 | Z41: 0 | AA41: 0 | AB41: 0 | AC41: 0 | AD41: 0 | AE41: 0 | AF41: 0 | AG41: 0 | AH41: 0 | AI41: 0 | AJ41: 0 | AK41: 0 | AL41: 0 | AM41: 0 | AN41: 0.06983644222 | AO41: 0.1884989798 | AP41: 0.2013413213 | AQ41: 0.1015121873 | AR41: 0 | AS41: 0 | AT41: 0 | AU41: 0 | AV41: 0 | AW41: 0 | AX41: 0 | AY41: 0 | AZ41: 0 | BA41: 0 | BB41: 0 | BC41: 0 | BD41: 0 | BE41: 0 | BF41: 0 | BG41: 0 | BH41: 0 | BI41: 0 | BJ41: 0
A42: 2009 | B42: 942.2651882 | C42: 967.8369624 | D42: =IF(D21<$B$4,($B$5/100)-(D21/$B$4)*($B$5/100),0) -> 0 | E42: 0 | F42: 0 | G42: 0 | H42: 0 | I42: 0 | J42: 0 | K42: 0 | L42: 0 | M42: 0 | N42: 0 | O42: 0 | P42: 0 | Q42: 0 | R42: 0 | S42: 0 | T42: 0 | U42: 0 | V42: 0 | W42: 0 | X42: 0 | Y42: 0 | Z42: 0 | AA42: 0 | AB42: 0 | AC42: 0 | AD42: 0 | AE42: 0 | AF42: 0 | AG42: 0 | AH42: 0 | AI42: 0 | AJ42: 0 | AK42: 0 | AL42: 0 | AM42: 0 | AN42: 0.1078349734 | AO42: 0.2494073384 | AP42: 0.2782084939 | AQ42: 0.1753263847 | AR42: 0 | AS42: 0 | AT42: 0 | AU42: 0 | AV42: 0 | AW42: 0 | AX42: 0 | AY42: 0 | AZ42: 0 | BA42: 0 | BB42: 0 | BC42: 0 | BD42: 0 | BE42: 0 | BF42: 0 | BG42: 0 | BH42: 0 | BI42: 0 | BJ42: 0
A43: =A22 -> 2010 | B43: 917.2297043 | C43: 890.7012097 | D43: 0 | E43: 0 | F43: 0 | G43: 0 | H43: 0 | I43: 0 | J43: 0 | K43: 0 | L43: 0 | M43: 0 | N43: 0 | O43: 0 | P43: 0 | Q43: 0 | R43: 0 | S43: 0 | T43: 0 | U43: 0 | V43: 0 | W43: 0 | X43: 0 | Y43: 0 | Z43: 0 | AA43: 0 | AB43: 0 | AC43: 0 | AD43: 0 | AE43: 0 | AF43: 0 | AG43: 0 | AH43: 0.01771037573 | AI43: 0.2431714947 | AJ43: 0.4272997339 | AK43: 0.4499228378 | AL43: 0.2838128559 | AM43: 0.06251675254 | AN43: 0 | AO43: 0 | AP43: 0 | AQ43: 0 | AR43: 0 | AS43: 0 | AT43: 0 | AU43: 0 | AV43: 0 | AW43: 0 | AX43: 0 | AY43: 0 | AZ43: 0 | BA43: 0 | BB43: 0 | BC43: 0 | BD43: 0 | BE43: 0 | BF43: 0 | BG43: 0 | BH43: 0 | BI43: 0 | BJ43: 0
A44: 2011 | B44: 765.2371192 | C44: 888.2246416 | D44: 0 | E44: 0 | F44: 0 | G44: 0 | H44: 0 | I44: 0 | J44: 0 | K44: 0 | L44: 0 | M44: 0 | N44: 0 | O44: 0 | P44: 0 | Q44: 0 | R44: 0 | S44: 0 | T44: 0 | U44: 0 | V44: 0 | W44: 0 | X44: 0 | Y44: 0 | Z44: 0 | AA44: 0 | AB44: 0 | AC44: 0 | AD44: 0 | AE44: 0 | AF44: 0 | AG44: 0 | AH44: 0 | AI44: 0 | AJ44: 0 | AK44: 0 | AL44: 0 | AM44: 0 | AN44: 0 | AO44: 0 | AP44: 0 | AQ44: 0 | AR44: 0 | AS44: 0 | AT44: 0 | AU44: 0 | AV44: 0 | AW44: 0 | AX44: 0 | AY44: 0 | AZ44: 0 | BA44: 0 | BB44: 0 | BC44: 0 | BD44: 0 | BE44: 0 | BF44: 0 | BG44: 0 | BH44: 0 | BI44: 0 | BJ44: 0
A45: 2012 | B45: 941.4875224 | C45: 973.3058692 | D45: 0 | E45: 0 | F45: 0 | G45: 0 | H45: 0 | I45: 0 | J45: 0 | K45: 0 | L45: 0 | M45: 0 | N45: 0 | O45: 0 | P45: 0 | Q45: 0 | R45: 0 | S45: 0 | T45: 0 | U45: 0 | V45: 0 | W45: 0 | X45: 0 | Y45: 0 | Z45: 0 | AA45: 0 | AB45: 0 | AC45: 0 | AD45: 0 | AE45: 0 | AF45: 0 | AG45: 0 | AH45: 0 | AI45: 0 | AJ45: 0 | AK45: 0 | AL45: 0 | AM45: 0 | AN45: 0.01208882631 | AO45: 0.1551493237 | AP45: 0.2070469231 | AQ45: 0.1417498655 | AR45: 0 | AS45: 0 | AT45: 0 | AU45: 0 | AV45: 0 | AW45: 0 | AX45: 0 | AY45: 0 | AZ45: 0 | BA45: 0 | BB45: 0 | BC45: 0 | BD45: 0 | BE45: 0 | BF45: 0 | BG45: 0 | BH45: 0 | BI45: 0 | BJ45: 0
A46: 2013 | B46: 1091.02509 | C46: 949.1129704 | D46: 0 | E46: 0 | F46: 0 | G46: 0 | H46: 0 | I46: 0 | J46: 0 | K46: 0 | L46: 0 | M46: 0 | N46: 0 | O46: 0 | P46: 0 | Q46: 0 | R46: 0 | S46: 0 | T46: 0 | U46: 0 | V46: 0 | W46: =IF(W25<$B$4,($B$5/100)-(W25/$B$4)*($B$5/100),0) -> 0 | X46: 0 | Y46: 0 | Z46: 0 | AA46: 0 | AB46: 0 | AC46: 0 | AD46: 0 | AE46: 0 | AF46: 0 | AG46: 0 | AH46: 0 | AI46: 0 | AJ46: 0 | AK46: 0 | AL46: 0 | AM46: 0 | AN46: 0 | AO46: 0 | AP46: 0 | AQ46: 0 | AR46: 0 | AS46: 0 | AT46: 0 | AU46: 0 | AV46: 0 | AW46: 0 | AX46: 0 | AY46: 0 | AZ46: 0 | BA46: 0 | BB46: 0 | BC46: 0 | BD46: 0 | BE46: 0 | BF46: 0 | BG46: 0 | BH46: 0 | BI46: 0 | BJ46: 0
A47: 2014 | B47: 903.1048611 | C47: 961.2357303 | D47: =IF(D26<$B$4,($B$5/100)-(D26/$B$4)*($B$5/100),0) -> 0 | E47: 0 | F47: 0 | G47: 0 | H47: 0 | I47: 0 | J47: 0 | K47: 0 | L47: 0 | M47: 0 | N47: 0 | O47: 0 | P47: 0 | Q47: 0 | R47: 0 | S47: 0 | T47: 0 | U47: 0 | V47: 0 | W47: 0 | X47: 0 | Y47: 0 | Z47: 0 | AA47: 0 | AB47: 0 | AC47: 0 | AD47: 0 | AE47: 0 | AF47: 0 | AG47: 0 | AH47: 0 | AI47: 0 | AJ47: 0 | AK47: 0 | AL47: 0 | AM47: 0 | AN47: 0 | AO47: 0 | AP47: 0 | AQ47: 0 | AR47: 0 | AS47: 0 | AT47: 0 | AU47: 0 | AV47: 0 | AW47: 0 | AX47: 0 | AY47: 0 | AZ47: 0 | BA47: 0 | BB47: 0 | BC47: 0 | BD47: 0 | BE47: 0 | BF47: 0 | BG47: 0 | BH47: 0 | BI47: 0 | BJ47: 0
A48: 2015 | B48: 1034.027733 | C48: 845.3368728 | D48: 0 | E48: 0 | F48: 0 | G48: 0 | H48: 0 | I48: 0 | J48: 0 | K48: 0 | L48: 0 | M48: 0 | N48: 0 | O48: 0 | P48: 0 | Q48: 0 | R48: 0 | S48: 0 | T48: 0 | U48: 0 | V48: 0 | W48: 0 | X48: 0 | Y48: 0 | Z48: 0 | AA48: 0 | AB48: 0 | AC48: 0 | AD48: 0 | AE48: 0 | AF48: 0 | AG48: 0 | AH48: 0 | AI48: 0 | AJ48: 0 | AK48: 0 | AL48: 0 | AM48: 0 | AN48: 0 | AO48: 0 | AP48: 0 | AQ48: 0 | AR48: 0 | AS48: 0 | AT48: 0 | AU48: 0 | AV48: 0 | AW48: 0 | AX48: 0 | AY48: 0 | AZ48: 0 | BA48: 0 | BB48: 0 | BC48: 0 | BD48: 0 | BE48: 0 | BF48: 0 | BG48: 0 | BH48: 0 | BI48: 0 | BJ48: 0
A49: 2016 | B49: 1016.342921 | C49: 1018.856429 | D49: 0 | E49: 0 | F49: 0 | G49: 0 | H49: 0 | I49: 0 | J49: 0 | K49: 0 | L49: 0 | M49: 0 | N49: 0 | O49: 0 | P49: 0 | Q49: 0 | R49: 0 | S49: 0 | T49: 0 | U49: 0 | V49: 0 | W49: 0 | X49: 0 | Y49: 0 | Z49: 0 | AA49: 0 | AB49: 0 | AC49: 0 | AD49: 0 | AE49: 0 | AF49: 0 | AG49: 0 | AH49: 0 | AI49: 0 | AJ49: 0 | AK49: 0 | AL49: 0 | AM49: 0 | AN49: 0 | AO49: 0 | AP49: 0 | AQ49: 0 | AR49: 0 | AS49: 0 | AT49: 0.1977891905 | AU49: 0.4291316256 | AV49: 0.5695252695 | AW49: 0.4115946701 | AX49: 0.1786252659 | AY49: 0 | AZ49: 0 | BA49: 0 | BB49: 0 | BC49: 0 | BD49: 0 | BE49: 0 | BF49: 0 | BG49: 0 | BH49: 0 | BI49: 0 | BJ49: 0
A50: 2017 | B50: 910.1750672 | C50: 844.8522177 | D50: 0 | E50: 0 | F50: 0 | G50: 0 | H50: 0 | I50: 0 | J50: 0 | K50: 0 | L50: 0 | M50: 0 | N50: 0 | O50: 0 | P50: 0 | Q50: 0 | R50: 0 | S50: 0 | T50: 0 | U50: 0 | V50: 0 | W50: 0 | X50: 0 | Y50: 0 | Z50: 0 | AA50: 0 | AB50: 0 | AC50: 0 | AD50: 0 | AE50: 0 | AF50: 0 | AG50: 0 | AH50: 0 | AI50: 0 | AJ50: 0 | AK50: 0 | AL50: 0 | AM50: 0 | AN50: 0 | AO50: 0 | AP50: 0 | AQ50: 0 | AR50: 0 | AS50: 0 | AT50: 0 | AU50: 0 | AV50: 0 | AW50: 0 | AX50: 0 | AY50: 0 | AZ50: 0 | BA50: 0 | BB50: 0 | BC50: 0 | BD50: 0 | BE50: 0 | BF50: 0 | BG50: 0 | BH50: 0 | BI50: 0 | BJ50: 0
A51: geschatte kans submers | D51: =IF(COUNTIF(D31:D50,">0")<(2*$B$6),0,AVERAGE(D31:D50)) -> 0 | E51: =IF(COUNTIF(E31:E50,">0")<(2*$B$6),0,AVERAGE(E31:E50)) -> 0 | F51: 0 | G51: 0 | H51: 0 | I51: 0 | J51: 0 | K51: 0 | L51: 0 | M51: 0 | N51: 0 | O51: 0 | P51: 0 | Q51: 0 | R51: 0 | S51: 0 | T51: 0 | U51: 0 | V51: 0 | W51: 0 | X51: 0 | Y51: 0 | Z51: 0 | AA51: 0 | AB51: 0 | AC51: 0 | AD51: 0 | AE51: 0 | AF51: 0 | AG51: 0 | AH51: 0 | AI51: 0 | AJ51: 0 | AK51: 0 | AL51: 0 | AM51: 0 | AN51: 0 | AO51: 0 | AP51: 0 | AQ51: 0 | AR51: 0 | AS51: 0 | AT51: 0 | AU51: 0 | AV51: 0 | AW51: 0 | AX51: 0 | AY51: 0 | AZ51: 0 | BA51: 0 | BB51: 0 | BC51: 0 | BD51: 0 | BE51: 0 | BF51: 0 | BG51: 0 | BH51: 0 | BI51: 0 | BJ51: 0

Sheet Geul-PotPec (hidden)
A1: NEVENGEUL Schedefonteinkruid
A2: optimale diepte mei | B2: 119 | C2: cm
A3: optimale diepte juli | B3: 109 | C3: cm
A4: max distance | B4: 75 | C4: cm
A5: max bedekking | B5: 70 | C5: %
A6: minimaal jaren uit 10 jaar | B6: 8 | C6: -
D7: ='Interface KRW-tool Waterplanten'!$B$11 -> 470 | E7: =D7+10 -> 480 | F7: =E7+10 -> 490 | G7: 500 | H7: 510 | I7: 520 | J7: 530 | K7: 540 | L7: 550 | M7: 560 | N7: 570 | O7: 580 | P7: 590 | Q7: 600 | R7: 610 | S7: 620 | T7: 630 | U7: 640 | V7: 650 | W7: 660 | X7: 670 | Y7: 680 | Z7: 690 | AA7: 700 | AB7: 710 | AC7: 720 | AD7: 730 | AE7: 740 | AF7: 750 | AG7: 760 | AH7: 770 | AI7: 780 | AJ7: 790 | AK7: 800 | AL7: 810 | AM7: 820 | AN7: 830 | AO7: 840 | AP7: 850 | AQ7: 860 | AR7: 870 | AS7: 880 | AT7: 890 | AU7: 900 | AV7: 910 | AW7: 920 | AX7: 930 | AY7: 940 | AZ7: 950 | BA7: 960 | BB7: 970 | BC7: 980 | BD7: 990 | BE7: 1000 | BF7: 1010 | BG7: 1020 | BH7: 1030 | BI7: 1040 | BJ7: 1050
B8: peil in mei | C8: peil in juli
B9: (cm NAP) | C9: (cm NAP)
A10: =Waterstand_obv_Lobith!Y30 -> 1998 | B10: =Waterstand_obv_Lobith!Z30 -> 944.4287634 | C10: =Waterstand_obv_Lobith!AA30 -> 883.8665323 | D10: =SQRT(($B10-D$7-$B$2)^2+($C10-D$7-$B$3)^2) -> 468.2661726 | E10: 454.1666021 | F10: 440.0697633 | G10: 425.9759273 | H10: 411.8854024 | I10: 397.7985405 | J10: 383.7157449 | K10: 369.6374805 | L10: 355.5642854 | M10: 341.4967864 | N10: =SQRT(($B10-N$7-$B$2)^2+($C10-N$7-$B$3)^2) -> 327.4357177 | O10: 313.3819448 | P10: 299.3364953 | Q10: 285.3005985 | R10: 271.2757372 | S10: 257.2637162 | T10: 243.2667543 | U10: 229.2876094 | V10: 215.3297516 | W10: 201.3976068 | X10: =SQRT(($B10-X$7-$B$2)^2+($C10-X$7-$B$3)^2) -> 187.4969069 | Y10: 173.6352043 | Z10: 159.8226463 | AA10: 146.0731746 | AB10: 132.4064441 | AC10: 118.8510014 | AD10: 105.4497729 | AE10: 92.26997721 | AF10: 79.42192884 | AG10: 67.09647432 | AH10: =SQRT(($B10-AH$7-$B$2)^2+($C10-AH$7-$B$3)^2) -> 55.64198912 | AI10: 45.71788533 | AJ10: 38.52556456 | AK10: 35.75350627 | AL10: 38.37195977 | AM10: 45.45878774 | AN10: 55.32264879 | AO10: 66.74346077 | AP10: 79.0492482 | AQ10: 91.88513333 | AR10: =SQRT(($B10-AR$7-$B$2)^2+($C10-AR$7-$B$3)^2) -> 105.0569932 | AS10: 118.4528003 | AT10: 132.0043938 | AU10: 145.6683015 | AV10: 159.4156459 | AW10: 173.2265633 | AX10: 187.0869753 | AY10: 200.9866424 | AZ10: 214.9179483 | BA10: 228.8751157 | BB10: =SQRT(($B10-BB$7-$B$2)^2+($C10-BB$7-$B$3)^2) -> 242.8536857 | BC10: 256.850164 | BD10: 270.8617744 | BE10: 284.8862842 | BF10: 298.9218778 | BG10: 312.9670639 | BH10: 327.0206067 | BI10: 341.0814731 | BJ10: 355.1487933
A11: =Waterstand_obv_Lobith!Y31 -> 1999 | B11: =Waterstand_obv_Lobith!Z31 -> 1167.324194 | C11: =Waterstand_obv_Lobith!AA31 -> 1041.140995 | D11: 740.2926258 | E11: 726.239539 | F11: 712.1899776 | G11: 698.1441545 | H11: 684.1022999 | I11: 670.0646633 | J11: 656.0315154 | K11: 642.0031506 | L11: 627.9798895 | M11: 613.9620818 | N11: 599.9501097 | O11: 585.9443919 | P11: 571.9453878 | Q11: 557.9536028 | R11: 543.9695939 | S11: 529.9939767 | T11: 516.0274329 | U11: 502.0707199 | V11: 488.1246808 | W11: 474.1902574 | X11: 460.2685048 | Y11: 446.3606084 | Z11: 432.4679051 | AA11: 418.5919077 | AB11: 404.7343344 | AC11: 390.8971446 | AD11: 377.0825823 | AE11: 363.2932289 | AF11: 349.5320677 | AG11: 335.8025649 | AH11: 322.1087687 | AI11: 308.4554345 | AJ11: 294.8481835 | AK11: 281.2937034 | AL11: 267.8000071 | AM11: 254.3767679 | AN11: 241.0357572 | AO11: 227.7914233 | AP11: 214.6616611 | AQ11: 201.6688498 | AR11: 188.8412593 | AS11: 176.2149751 | AT11: 163.8365457 | AU11: 151.7666298 | AV11: 140.0849962 | AW11: 128.8972552 | AX11: 118.3435619 | AY11: 108.6089079 | AZ11: 99.93293306 | BA11: 92.61364557 | BB11: 86.99415833 | BC11: 83.41870186 | BD11: 82.15458634 | BE11: 83.30709629 | BF11: 86.78000075 | BG11: 92.31178021 | BH11: 99.55983629 | BI11: 108.179745 | BJ11: 117.8709187
A12: =Waterstand_obv_Lobith!Y32 -> 2000 | B12: =Waterstand_obv_Lobith!Z32 -> 992.6962366 | C12: =Waterstand_obv_Lobith!AA32 -> 1004.294758 | D12: 586.3840743 | E12: 572.2468547 | F12: 558.1098842 | G12: 543.9731822 | H12: 529.8367702 | I12: 515.7006721 | J12: 501.5649143 | K12: 487.4295266 | L12: 473.294542 | M12: 459.1599978 | N12: 445.025936 | O12: 430.892404 | P12: 416.7594557 | Q12: 402.6271526 | R12: 388.4955652 | S12: 374.3647743 | T12: 360.2348739 | U12: 346.1059729 | V12: 331.978199 | W12: 317.8517024 | X12: 303.7266613 | Y12: 289.6032888 | Z12: 275.4818415 | AA12: 261.3626315 | AB12: 247.2460419 | AC12: 233.1325489 | AD12: 219.022751 | AE12: 204.9174115 | AF12: 190.8175193 | AG12: 176.724378 | AH12: 162.6397426 | AI12: 148.5660324 | AJ12: 134.5066767 | AK12: 120.4667016 | AL12: 106.4537754 | AM12: 92.4801947 | AN12: 78.56695565 | AO12: 64.75296617 | AP12: 51.11875131 | AQ12: 37.85903912 | AR12: 25.56339082 | AS12: 16.54288541 | AT12: 17.14197087 | AU12: 26.72128876 | AV12: 39.1689594 | AW12: 52.48225879 | AX12: 66.14051402 | AY12: 79.96716641 | AZ12: 93.88784698 | BA12: 107.8661574 | BB12: 121.8822712 | BC12: 135.9244942 | BD12: 149.9854934 | BE12: 164.0604411 | BF12: 178.1460313 | BG12: 192.2399245 | BH12: 206.3404194 | BI12: 220.4462492 | BJ12: 234.5564514
A13: =Waterstand_obv_Lobith!Y33 -> 2001 | B13: =Waterstand_obv_Lobith!Z33 -> 1118.106048 | C13: =Waterstand_obv_Lobith!AA33 -> 1010.370968 | D13: 682.666919 | E13: 668.5989694 | F13: 654.5342173 | G13: 640.4728732 | H13: 626.4151666 | I13: 612.3613481 | J13: 598.3116916 | K13: 584.2664974 | L13: 570.2260952 | M13: 556.190848 | N13: 542.161156 | O13: 528.1374619 | P13: 514.1202567 | Q13: 500.1100859 | R13: 486.1075578 | S13: 472.1133523 | T13: 458.1282321 | U13: 444.1530556 | V13: 430.1887916 | W13: 416.2365387 | X13: 402.2975463 | Y13: 388.3732425 | Z13: 374.4652656 | AA13: 360.575505 | AB13: 346.7061501 | AC13: 332.8597515 | AD13: 319.0392983 | AE13: 305.2483146 | AF13: 291.4909831 | AG13: 277.772304 | AH13: 264.098301 | AI13: 250.4762908 | AJ13: 236.9152421 | AK13: 223.4262554 | AL13: 210.0232161 | AM13: 196.7236919 | AN13: 183.5501856 | AO13: 170.5319041 | AP13: 157.7072921 | AQ13: 145.1277012 | AR13: 132.8627463 | AS13: 121.0081362 | AT13: 109.6969858 | AU13: 99.11553047 | AV13: 89.52289125 | AW13: 81.26996822 | AX13: 74.80152012 | AY13: 70.60968127 | AZ13: 69.10996141 | BA13: 70.47443823 | BB13: 74.54600004 | BC13: 80.91703034 | BD13: 89.0955974 | BE13: 98.63308346 | BF13: 109.1739201 | BG13: 120.4549896 | BH13: 132.2870522 | BI13: 144.5348535 | BJ13: 157.1011889
A14: =Waterstand_obv_Lobith!Y34 -> 2002 | B14: =Waterstand_obv_Lobith!Z34 -> 1063.945296 | C14: =Waterstand_obv_Lobith!AA34 -> 957.6646505 | D14: 607.4207368 | E14: 593.3698278 | F14: 579.3233584 | G14: 565.2816596 | H14: 551.2450959 | I14: 537.2140699 | J14: 523.189027 | K14: 509.1704616 | L14: 495.1589241 | M14: 481.1550282 | N14: 467.1594612 | O14: 453.1729949 | P14: 439.1964986 | Q14: 425.2309554 | R14: 411.2774812 | S14: 397.3373474 | T14: 383.412009 | U14: 369.503139 | V14: 355.6126697 | W14: 341.7428447 | X14: 327.8962839 | Y14: 314.0760641 | Z14: 300.2858224 | AA14: 286.5298871 | AB14: 272.8134478 | AC14: 259.142776 | AD14: 245.5255169 | AE14: 231.9710769 | AF14: 218.4911476 | AG14: 205.1004209 | AH14: 191.8175793 | AI14: 178.6666863 | AJ14: 165.6791655 | AK14: 152.8966545 | AL14: 140.3751689 | AM14: 128.1912209 | AN14: 116.4508058 | AO14: 105.3023801 | AP14: 94.95468569 | AQ14: 85.69826958 | AR14: 77.92300356 | AS14: 72.10960795 | AT14: 68.75752057 | AU14: 68.23047494 | AV14: 70.59177562 | AW14: 75.5711576 | AX14: 82.69704309 | AY14: 91.46913147 | AZ14: 101.4613379 | BA14: 112.3485833 | BB14: 123.8951381 | BC14: 135.933095 | BD14: 148.342871 | BE14: 161.038531 | BF14: 173.9574935 | BG14: 187.0534967 | BH14: 200.2918163 | BI14: 213.6459987 | BJ14: 227.0956051
A15: =Waterstand_obv_Lobith!Y35 -> 2003 | B15: =Waterstand_obv_Lobith!Z35 -> 922.0501344 | C15: =Waterstand_obv_Lobith!AA35 -> 830.1151882 | D15: 417.1105726 | E15: 403.1103116 | F15: 389.1203115 | G15: 375.1417204 | H15: 361.1758629 | I15: 347.2242755 | J15: 333.2887503 | K15: 319.3713898 | L15: 305.4746768 | M15: 291.6015633 | N15: 277.7555854 | O15: 263.9410139 | P15: 250.1630515 | Q15: 236.4280988 | R15: 222.744112 | S15: 209.1210965 | T15: 195.5717938 | U15: 182.1126577 | V15: 168.7652619 | W15: 155.5583723 | X15: 142.5310518 | Y15: 129.7374051 | Z15: 117.2539459 | AA15: 105.1911659 | AB15: 93.71165841 | AC15: 83.05762138 | AD15: 73.58846389 | AE15: 65.81759314 | AF15: 60.40404883 | AG15: 58.01157353 | AH15: 59.0087808 | AI15: 63.23551028 | AJ15: 70.11007994 | AK15: 78.94375756 | AL15: 89.15610134 | AM15: 100.3269852 | AN15: 112.1703949 | AO15: 124.4945423 | AP15: 137.1699114 | AQ15: 150.1075553 | AR15: 163.2451276 | AS15: 176.5379994 | AT15: 189.9535701 | AU15: 203.4675707 | AV15: 217.0616177 | AW15: 230.7215626 | AX15: 244.4363577 | AY15: 258.1972628 | AZ15: 271.9972796 | BA15: 285.830743 | BB15: 299.6930216 | BC15: 313.5802939 | BD15: 327.4893804 | BE15: 341.417615 | BF15: 355.3627462 | BG15: 369.32286 | BH15: 383.2963194 | BI15: 397.2817162 | BJ15: 411.2778326
A16: =Waterstand_obv_Lobith!Y36 -> 2004 | B16: =Waterstand_obv_Lobith!Z36 -> 963.3307796 | C16: =Waterstand_obv_Lobith!AA36 -> 909.3990591 | D16: 499.2865618 | E16: 485.1726229 | F16: 471.0603754 | G16: 456.9499759 | H16: 442.8416012 | I16: 428.735451 | J16: 414.6317525 | K16: 400.5307646 | L16: 386.4327841 | M16: 372.3381526 | N16: 358.2472653 | O16: 344.1605821 | P16: 330.0786414 | Q16: 316.0020771 | R16: 301.9316412 | S16: 287.8682324 | T16: 273.8129333 | U16: 259.7670604 | V16: 245.73223 | W16: 231.7104488 | X16: 217.7042382 | Y16: 203.7168097 | Z16: 189.7523169 | AA16: 175.8162251 | AB16: 161.9158678 | AC16: 148.0613098 | AD16: 134.2667296 | AE16: 120.5527184 | AF16: 106.9502741 | AG16: 93.50809784 | AH16: 80.30670948 | AI16: 67.48756044 | AJ16: 55.31703209 | AK16: 44.33257567 | AL16: 35.64800824 | AM16: 31.24393889 | AN16: 32.88748915 | AO16: 39.83704518 | AP16: 49.923876 | AQ16: 61.62626567 | AR16: 74.18355509 | AS16: 87.22730692 | AT16: 100.568416 | AU16: 114.1026272 | AV16: 127.7685906 | AW16: 141.5281455 | AX16: 155.3564263 | AY16: 169.2365871 | AZ16: 183.1568335 | BA16: 197.1086728 | BB16: 211.0858406 | BC16: 225.0836185 | BD16: 239.0983868 | BE16: 253.1273233 | BF16: 267.1681961 | BG16: 281.2192174 | BH16: 295.2789384 | BI16: 309.3461729 | BJ16: 323.4199405
A17: =Waterstand_obv_Lobith!Y37 -> 2005 | B17: =Waterstand_obv_Lobith!Z37 -> 1036.312634 | C17: =Waterstand_obv_Lobith!AA37 -> 889.2451613 | D17: 544.3717967 | E17: 530.4615887 | F17: 516.5639759 | G17: 502.6800028 | H17: 488.8108319 | I17: 474.9577596 | J17: 461.1222371 | K17: 447.3058927 | L17: 433.5105601 | M17: 419.7383111 | N17: 405.9914948 | O17: 392.2727851 | P17: 378.5852375 | Q17: 364.9323583 | R17: 351.3181894 | S17: 337.747412 | T17: 324.2254746 | U17: 310.7587528 | V17: 297.3547487 | W17: 284.0223418 | X17: 270.7721085 | Y17: 257.6167285 | Z17: 244.5715088 | AA17: 231.6550603 | AB17: 218.8901804 | AC17: 206.3050052 | AD17: 193.9345231 | AE17: 181.82256 | AF17: 170.024373 | AG17: 158.6099981 | AH17: 147.6684651 | AI17: 137.3128533 | AJ17: 127.6858009 | AK17: 118.9643133 | AL17: 111.3613574 | AM17: 105.1199126 | AN17: 100.4939804 | AO17: 97.71327539 | AP17: 96.93672304 | AQ17: 98.21187484 | AR17: 101.4614037 | AS17: 106.5047442 | AT17: 113.1021866 | AU17: 120.999788 | AV17: 129.9607356 | AW17: 139.7806742 | AX17: 150.2913203 | AY17: 161.3577548 | AZ17: 172.8732748 | BA17: 184.7539261 | BB17: 196.9336368 | BC17: 209.3602192 | BD17: 221.9922194 | BE17: 234.7964854 | BF17: 247.7463091 | BG17: 260.8200102 | BH17: 273.9998573 | BI17: 287.271241 | BJ17: 300.6220384
A18: =Waterstand_obv_Lobith!Y38 -> 2006 | B18: =Waterstand_obv_Lobith!Z38 -> 1051.970565 | C18: =Waterstand_obv_Lobith!AA38 -> 868.7884409 | D18: 546.1859428 | E18: 532.413283 | F18: 518.6605092 | G18: 504.9292463 | H18: 491.221298 | I18: 477.5386723 | J18: 463.8836098 | K18: 450.2586183 | L18: 436.6665126 | M18: 423.1104621 | N18: 409.5940466 | O18: 396.1213234 | P18: 382.6969072 | Q18: 369.3260655 | R18: 356.0148347 | S18: 342.7701598 | T18: 329.6000642 | U18: 316.5138579 | V18: 303.5223915 | W18: 290.6383698 | X18: 277.8767387 | Y18: 265.2551636 | Z18: 252.7946236 | AA18: 240.520148 | AB18: 228.4617287 | AC18: 216.6554439 | AD18: 205.14483 | AE18: 193.982528 | AF18: 183.2322053 | AG18: 172.9706939 | AH18: 163.2901737 | AI18: 154.3000348 | AJ18: 146.1277545 | AK18: 138.9177473 | AL18: 132.8268061 | AM18: 128.0147659 | AN18: 124.6298527 | AO18: 122.7901465 | AP18: 122.5652478 | AQ18: 123.9639459 | AR18: 126.9325796 | AS18: 131.364758 | AT18: 137.1186331 | AU18: 144.0358964 | AV18: 151.9577551 | AW18: 160.7357435 | AX18: 170.2374786 | AY18: 180.3486041 | AZ18: 190.9723511 | BA18: 202.0278664 | BB18: 213.4480702 | BC18: 225.1774824 | BD18: 237.170231 | BE18: 249.3883284 | BF18: 261.8002259 | BG18: 274.3796242 | BH18: 287.1045072 | BI18: 299.9563601 | BJ18: 312.9195389
A19: =Waterstand_obv_Lobith!Y39 -> 2007 | B19: =Waterstand_obv_Lobith!Z39 -> 901.888172 | C19: =Waterstand_obv_Lobith!AA39 -> 1041.144086 | D19: 558.1004967 | E19: 544.2201019 | F19: 530.3535369 | G19: 516.5019157 | H19: 502.6664737 | I19: 488.8485846 | J19: 475.04978 | K19: 461.2717727 | L19: 447.5164837 | M19: 433.786074 | N19: 420.0829833 | O19: 406.4099749 | P19: 392.7701905 | Q19: 379.1672156 | R19: 365.6051589 | S19: 352.0887488 | T19: 338.6234514 | U19: 325.2156157 | V19: 311.8726528 | W19: 298.6032592 | X19: 285.4176961 | Y19: 272.3281404 | Z19: 259.3491294 | AA19: 246.4981252 | AB19: 233.7962373 | AC19: 221.269147 | AD19: 208.9482957 | AE19: 196.8724082 | AF19: 185.0894377 | AG19: 173.6590187 | AH19: 162.6554936 | AI19: 152.1714968 | AJ19: 142.3218862 | AK19: 133.247417 | AL19: 125.1168612 | AM19: 118.1252886 | AN19: 112.4852819 | AO19: 108.4079955 | AP19: 106.0737871 | AQ19: 105.5983104 | AR19: 107.0063456 | AS19: 110.2257358 | AT19: 115.1045945 | AU19: 121.4430834 | AV19: 129.0262661 | AW19: 137.6485822 | AX19: 147.1274517 | AY19: 157.3081113 | AZ19: 168.0630736 | BA19: 179.2890168 | BB19: 190.9028716 | BC19: 202.8380172 | BD19: 215.0409637 | BE19: 227.4686152 | BF19: 240.0860799 | BG19: 252.8649453 | BH19: 265.7819321 | BI19: 278.8178442 | BJ19: 291.9567521
A20: =Waterstand_obv_Lobith!Y40 -> 2008 | B20: =Waterstand_obv_Lobith!Z40 -> 977.8186828 | C20: =Waterstand_obv_Lobith!AA40 -> 930.299328 | D20: =SQRT(($B20-D$7-$B$2)^2+($C20-D$7-$B$3)^2) -> 524.0144902 | E20: 509.8909939 | F20: 495.7685604 | G20: 481.647283 | H20: 467.5272666 | I20: 453.408629 | J20: 439.291503 | K20: 425.1760393 | L20: 411.0624091 | M20: 396.950808 | N20: =SQRT(($B20-N$7-$B$2)^2+($C20-N$7-$B$3)^2) -> 382.8414604 | O20: 368.7346248 | P20: 354.6306012 | Q20: 340.529739 | R20: 326.4324477 | S20: 312.3392109 | T20: 298.2506035 | U20: 284.1673138 | V20: 270.0901739 | W20: 256.0201981 | X20: =SQRT(($B20-X$7-$B$2)^2+($C20-X$7-$B$3)^2) -> 241.9586362 | Y20: 227.9070455 | Z20: 213.8673916 | AA20: 199.8421902 | AB20: 185.8347135 | AC20: 171.849296 | AD20: 157.8917994 | AE20: 143.9703445 | AF20: 130.0965022 | AG20: 116.2873152 | AH20: =SQRT(($B20-AH$7-$B$2)^2+($C20-AH$7-$B$3)^2) -> 102.568901 | AI20: 88.98325262 | AJ20: 75.6019777 | AK20: 62.55636512 | AL20: 50.10926663 | AM20: 38.84042208 | AN20: 30.10345781 | AO20: 26.53032146 | AP20: 30.02495199 | AQ20: 38.71869738 | AR20: =SQRT(($B20-AR$7-$B$2)^2+($C20-AR$7-$B$3)^2) -> 49.96776273 | AS20: 62.40526498 | AT20: 75.44572143 | AU20: 88.82396448 | AV20: 102.4076972 | AW20: 116.1248304 | AX20: 129.9331213 | AY20: 143.8063135 | AZ20: 157.7272823 | BA20: 171.6844063 | BB20: =SQRT(($B20-BB$7-$B$2)^2+($C20-BB$7-$B$3)^2) -> 185.6695321 | BC20: 199.6767762 | BD20: 213.7017893 | BE20: 227.7412886 | BF20: 241.7927507 | BG20: 255.8542047 | BH20: 269.9240891 | BI20: 284.0011508 | BJ20: 298.084373
A21: =Waterstand_obv_Lobith!Y41 -> 2009 | B21: =Waterstand_obv_Lobith!Z41 -> 942.2651882 | C21: =Waterstand_obv_Lobith!AA41 -> 967.8369624 | D21: 525.3479575 | E21: 511.2224892 | F21: 497.0979687 | G21: 482.9744791 | H21: 468.8521136 | I21: 454.730977 | J21: 440.6111873 | K21: 426.4928785 | L21: 412.3762025 | M21: 398.261333 | N21: 384.1484692 | O21: 370.0378404 | P21: 355.9297126 | Q21: 341.8243955 | R21: 327.7222518 | S21: 313.6237097 | T21: 299.5292779 | U21: 285.439565 | V21: 271.3553063 | W21: 257.2773975 | X21: 243.2069412 | Y21: 229.1453103 | Z21: 215.0942357 | AA21: 201.0559306 | AB21: 187.0332704 | AC21: 173.0300587 | AD21: 159.0514326 | AE21: 145.1044975 | AF21: 131.1993604 | AG21: 117.3508805 | AH21: 103.5817849 | AI21: 89.92854465 | AJ21: 76.45325455 | AK21: 63.26971725 | AL21: 50.60646313 | AM21: 38.97397978 | AN21: 29.61297163 | AO21: 25.19692596 | AP21: 28.15745136 | AQ21: 36.75321832 | AR21: 48.0495166 | AS21: 60.55338996 | AT21: 73.65235926 | AU21: 87.07828095 | AV21: 100.7004667 | AW21: 114.4488575 | AX21: 128.2828827 | AY21: 142.1775474 | AZ21: 156.1166614 | BA21: 170.089297 | BB21: 184.0878213 | BC21: 198.1067463 | BD21: 212.1420277 | BE21: 226.1906207 | BF21: 240.2501902 | BG21: 254.3189157 | BH21: 268.3953574 | BI21: 282.4783618 | BJ21: 296.5669939
A22: =Waterstand_obv_Lobith!Y42 -> 2010 | B22: =Waterstand_obv_Lobith!Z42 -> 917.2297043 | C22: =Waterstand_obv_Lobith!AA42 -> 890.7012097 | D22: 452.6503981 | E22: 438.5131294 | F22: 424.3761849 | G22: 410.2395984 | H22: 396.1034079 | I22: 381.9676577 | J22: 367.8323983 | K22: 353.6976886 | L22: 339.5635974 | M22: 325.4302051 | N22: 311.297607 | O22: 297.1659163 | P22: 283.0352691 | Q22: 268.9058297 | R22: 254.7777992 | S22: 240.6514257 | T22: 226.5270192 | U22: 212.404972 | V22: 198.2857884 | W22: 184.1701268 | X22: 170.0588642 | Y22: 155.953195 | Z22: 141.8547875 | AA22: 127.7660458 | AB22: 113.6905633 | AC22: 99.63395963 | AD22: 85.60553505 | AE22: 71.62184968 | AF22: 57.71543184 | AG22: 43.95967234 | AH22: 30.55870601 | AI22: 18.30891131 | AJ22: 11.68751273 | AK22: 18.38422351 | AL22: 30.64900316 | AM22: 44.05386606 | AN22: 57.81111342 | AO22: 71.71824423 | AP22: 85.70232363 | AQ22: 99.73098815 | AR22: 113.7877485 | AS22: 127.8633389 | AT22: 141.952158 | AU22: 156.0506228 | AV22: 170.1563358 | AW22: 184.2676323 | AX22: 198.383321 | AY22: 212.5025265 | AZ22: 226.6245915 | BA22: 240.7490129 | BB22: 254.8753988 | BC22: 269.0034398 | BD22: 283.1328882 | BE22: 297.2635431 | BF22: 311.3952405 | BG22: 325.5278445 | BH22: 339.6612419 | BI22: 353.7953377 | BJ22: 367.9300513
A23: =Waterstand_obv_Lobith!Y43 -> 2011 | B23: =Waterstand_obv_Lobith!Z43 -> 765.2371192 | C23: =Waterstand_obv_Lobith!AA43 -> 888.2246416 | D23: 355.9204983 | E23: 342.3012795 | F23: 328.7262245 | G23: 315.2010398 | H23: 301.7324316 | I23: 288.3283286 | J23: 274.9981633 | K23: 261.7532323 | L23: 248.6071588 | M23: 235.5764933 | N23: 222.6814967 | O23: 209.947169 | P23: 197.4046062 | Q23: 185.0927966 | R23: 173.0609954 | S23: 161.3718467 | T23: 150.1054219 | U23: 139.3642798 | V23: 129.2794155 | W23: 120.0163824 | X23: 111.7796799 | Y23: 104.8115529 | Z23: 99.37920508 | AA23: 95.74440552 | AB23: 94.11565211 | AC23: 94.59662128 | AD23: 97.15598562 | AE23: 101.6368552 | AF23: 107.7998846 | AG23: 115.3758202 | AH23: 124.1061831 | AI23: 133.765128 | AJ23: 144.1661342 | AK23: 155.1600433 | AL23: 166.6295407 | AM23: 178.4829645 | AN23: 190.6487173 | AO23: 203.0706729 | AP23: 215.7045733 | AQ23: 228.5152681 | AR23: 241.4746209 | AS23: 254.5599287 | AT23: 267.7527257 | AU23: 281.0378745 | AV23: 294.4028731 | AW23: 307.8373214 | AX23: 321.3325088 | AY23: 334.8810924 | AZ23: 348.476844 | BA23: 362.114451 | BB23: 375.7893564 | BC23: 389.4976318 | BD23: 403.2358738 | BE23: 417.0011208 | BF23: 430.7907839 | BG23: 444.6025914 | BH23: 458.4345418 | BI23: 472.2848652 | BJ23: 486.1519913
A24: =Waterstand_obv_Lobith!Y44 -> 2012 | B24: =Waterstand_obv_Lobith!Z44 -> 941.4875224 | C24: =Waterstand_obv_Lobith!AA44 -> 973.3058692 | D24: 528.8899431 | E24: 514.7705354 | F24: 500.6524106 | G24: 486.5356805 | H24: 472.4204701 | I24: 458.3069198 | J24: 444.1951879 | K24: 430.0854532 | L24: 415.9779192 | M24: 401.8728175 | N24: 387.7704135 | O24: 373.6710127 | P24: 359.5749685 | Q24: 345.4826915 | R24: 331.3946624 | S24: 317.3114471 | T24: 303.2337162 | U24: 289.1622707 | V24: 275.0980751 | W24: 261.0423014 | X24: 246.9963872 | Y24: 232.9621159 | Z24: 218.9417265 | AA24: 204.9380682 | AB24: 190.9548218 | AC24: 176.9968252 | AD24: 163.0705623 | AE24: 149.1849204 | AF24: 135.3524016 | AG24: 121.5911378 | AH24: 107.9283882 | AI24: 94.40693374 | AJ24: 81.09748027 | AK24: 68.12439706 | AL24: 55.72311587 | AM24: 44.37564435 | AN24: 35.11879809 | AO24: 29.95767261 | AP24: 31.00958427 | AQ24: 37.75879348 | AR24: 47.85246758 | AS24: 59.61535727 | AT24: 72.23657654 | AU24: 85.33613044 | AV24: 98.72379312 | AW24: 112.2965694 | AX24: 125.9946493 | AY24: 139.7811999 | AZ24: 153.6324054 | BA24: 167.5322302 | BB24: 181.4695025 | BC24: 195.4362108 | BD24: 209.426466 | BE24: 223.435845 | BF24: 237.4609631 | BG24: 251.4991872 | BH24: 265.5484388 | BI24: 279.6070556 | BJ24: 293.6736925
A25: =Waterstand_obv_Lobith!Y45 -> 2013 | B25: =Waterstand_obv_Lobith!Z45 -> 1091.02509 | C25: =Waterstand_obv_Lobith!AA45 -> 949.1129704 | D25: 623.7089076 | E25: 609.7294812 | F25: 595.7577352 | G25: 581.794223 | H25: 567.8395519 | I25: 553.8943902 | J25: 539.9594747 | K25: 526.0356196 | L25: 512.1237271 | M25: 498.2247993 | N25: 484.3399524 | O25: 470.4704329 | P25: 456.6176377 | Q25: 442.7831364 | R25: 428.9686989 | S25: 415.1763282 | T25: 401.4082987 | U25: 387.667204 | V25: 373.9560133 | W25: 360.2781407 | X25: 346.6375304 | Y25: 333.0387609 | Z25: 319.4871751 | AA25: 305.9890421 | AB25: 292.5517606 | AC25: 279.1841175 | AD25: 265.8966157 | AE25: 252.7018976 | AF25: 239.6152914 | AG25: 226.6555242 | AH25: 213.845658 | AI25: 201.2143242 | AJ25: 188.7973598 | AK25: 176.6399781 | AL25: 164.7996379 | AM25: 153.3497944 | AN25: 142.384684 | AO25: 132.0251379 | AP25: 122.4249805 | AQ25: 113.7765997 | AR25: 106.3125272 | AS25: 100.2975186 | AT25: 96.00432826 | AU25: 93.67000504 | AV25: 93.44147175 | AW25: 95.33387353 | AX25: 99.22593533 | AY25: 104.8953051 | AZ25: 112.0725829 | BA25: 120.4885996 | BB25: 129.9028154 | BC25: 140.1141686 | BD25: 150.9609851 | BE25: 162.3159198 | BF25: 174.0795698 | BG25: 186.1744758 | BH25: 198.5401074 | BI25: 211.1289015 | BJ25: 223.9032198
A26: =Waterstand_obv_Lobith!Y46 -> 2014 | B26: =Waterstand_obv_Lobith!Z46 -> 903.1048611 | C26: =Waterstand_obv_Lobith!AA46 -> 961.2357303 | D26: 494.7383321 | E26: 480.6653778 | F26: 466.596607 | G26: 452.5324097 | H26: 438.4732261 | I26: 424.4195544 | J26: 410.3719609 | K26: 396.331092 | L26: 382.2976885 | M26: 368.272604 | N26: 354.2568263 | O26: 340.2515058 | P26: 326.2579889 | Q26: 312.2778627 | R26: 298.3130096 | S26: 284.3656798 | T26: 270.4385846 | U26: 256.5350195 | V26: 242.659029 | W26: 228.81563 | X26: 215.0111177 | Y26: 201.2534941 | Z26: 187.553078 | AA26: 173.923389 | AB26: 160.3824598 | AC26: 146.9548284 | AD26: 133.6746414 | AE26: 120.5906212 | AF26: 107.7742367 | AG26: 95.33348976 | AH26: 83.43657737 | AI26: 72.35226752 | AJ26: 62.51430866 | AK26: 54.60061317 | AL26: 49.54205417 | AM26: 48.24524125 | AN26: 50.9979556 | AO26: 57.21870015 | AP26: 65.93305559 | AQ26: 76.29125763 | AR26: 87.71285062 | AS26: 99.8335231 | AT26: 112.4274011 | AU26: 125.3519393 | AV26: 138.5146088 | AW26: 151.8534986 | AX26: 165.3259604 | AY26: 178.9018205 | AZ26: 192.5592105 | BA26: 206.2819374 | BB26: 220.0577785 | BC26: 233.8773483 | BD26: 247.7333289 | BE26: 261.619935 | BF26: 275.5325363 | BG26: 289.4673846 | BH26: 303.4214147 | BI26: 317.3920968 | BJ26: 331.3773246
A27: =Waterstand_obv_Lobith!Y47 -> 2015 | B27: =Waterstand_obv_Lobith!Z47 -> 1034.027733 | C27: =Waterstand_obv_Lobith!AA47 -> 845.3368728 | D27: 518.6376509 | E27: 504.9333825 | F27: 491.253935 | G27: 477.6014411 | H27: 463.9782801 | I27: 450.3871139 | J27: 436.8309286 | K27: 423.3130852 | L27: 409.8373775 | M27: 396.4081027 | N27: 383.0301447 | O27: 369.7090743 | P27: 356.4512695 | Q27: 343.2640608 | R27: 330.1559076 | S27: 317.1366128 | T27: 304.2175851 | U27: 291.4121599 | V27: 278.7359949 | W27: 266.2075557 | X27: 253.848716 | Y27: 241.685495 | Z27: 229.7489638 | AA27: 218.0763496 | AB27: 206.7123658 | AC27: 195.7107816 | AD27: 185.1362145 | AE27: 175.0660613 | AF27: 165.5923721 | AG27: 156.8232814 | AH27: 148.8833418 | AI27: 141.9117943 | AJ27: 136.0575806 | AK27: 131.4700465 | AL27: 128.2851551 | AM27: 126.6088026 | AN27: 126.5009754 | AO27: 127.9656386 | AP27: 130.9500384 | AQ27: 135.3536864 | AR27: 141.0437107 | AS27: 147.8716883 | AT27: 155.6879703 | AU27: 164.3516108 | AV27: 173.7358911 | AW27: 183.7304214 | AX27: 194.2410246 | AY27: 205.1884098 | AZ27: 216.5063311 | BA27: 228.1396487 | BB27: 240.0425112 | BC27: 252.1767536 | BD27: 264.5105347 | BE27: 277.0172031 | BF27: 289.6743667 | BG27: 302.4631326 | BH27: 315.3674912 | BI27: 328.373815 | BJ27: 341.470453
A28: =Waterstand_obv_Lobith!Y48 -> 2016 | B28: =Waterstand_obv_Lobith!Z48 -> 1016.342921 | C28: =Waterstand_obv_Lobith!AA48 -> 1018.856429 | D28: 613.2663782 | E28: 599.1257494 | F28: 584.9851935 | G28: 570.8447158 | H28: 556.7043224 | I28: 542.5640198 | J28: 528.4238153 | K28: 514.283717 | L28: 500.1437339 | M28: 486.003876 | N28: 471.8641547 | O28: 457.7245826 | P28: 443.5851739 | Q28: 429.4459448 | R28: 415.3069136 | S28: 401.1681013 | T28: 387.0295318 | U28: 372.8912327 | V28: 358.7532361 | W28: 344.6155792 | X28: 330.4783055 | Y28: 316.3414665 | Z28: 302.2051231 | AA28: 288.0693483 | AB28: 273.9342301 | AC28: 259.7998757 | AD28: 245.6664169 | AE28: 231.5340178 | AF28: 217.4028849 | AG28: 203.2732825 | AH28: 189.1455534 | AI28: 175.0201513 | AJ28: 160.8976891 | AK28: 146.7790153 | AL28: 132.6653396 | AM28: 118.5584469 | AN28: 104.4610852 | AO28: 90.37771466 | AP28: 76.31608153 | AQ28: 62.29090859 | AR28: 48.33394549 | AS28: 34.52800717 | AT28: 21.17064647 | AU28: 10.20829392 | AV28: 12.6578931 | AW28: 24.8240861 | AX28: 38.36988719 | AY28: 52.23276018 | AZ28: 66.21385224 | BA28: 80.25140012 | BB28: 94.32020046 | BC28: 108.4080864 | BD28: 122.508474 | BE28: 136.6174923 | BF28: 150.7327177 | BG28: 164.8525559 | BH28: 178.9759151 | BI28: 193.1020227 | BJ28: 207.2303167
A29: =Waterstand_obv_Lobith!Y49 -> 2017 | B29: =Waterstand_obv_Lobith!Z49 -> 910.1750672 | C29: =Waterstand_obv_Lobith!AA49 -> 844.8522177 | D29: =SQRT(($B29-D$7-$B$2)^2+($C29-D$7-$B$3)^2) -> 416.9302405 | E29: 402.8526775 | F29: 388.7798015 | G29: 374.7121407 | H29: 360.6503052 | I29: 346.5950043 | J29: 332.5470663 | K29: 318.5074655 | L29: 304.4773553 | M29: 290.4581109 | N29: 276.4513854 | O29: 262.4591831 | P29: 248.4839574 | Q29: 234.5287432 | R29: 220.5973383 | S29: 206.6945572 | T29: 192.8265912 | U29: 179.0015324 | V29: 165.2301513 | W29: 151.527084 | X29: 137.9126952 | Y29: 124.4160994 | Z29: 111.0802417 | AA29: 97.97078338 | AB29: 85.19230422 | AC29: 72.91901672 | AD29: 61.45435135 | AE29: 51.34288267 | AF29: 43.53786745 | AG29: 39.43349088 | AH29: 40.18027506 | AI29: 45.5401889 | AJ29: =SQRT(($B29-AJ$7-$B$2)^2+($C29-AJ$7-$B$3)^2) -> 54.16053089 | AK29: 64.75196837 | AL29: 76.50014189 | AM29: 88.94788367 | AN29: 101.8389921 | AO29: 115.0244957 | AP29: 128.4137411 | AQ29: 141.9490867 | AR29: 155.5924083 | AS29: 169.3176063 | AT29: 183.10627 | AU29: 196.9450695 | AV29: 210.8241322 | AW29: 224.7359985 | AX29: 238.6749323 | AY29: 252.6364535 | AZ29: 266.6170136 | BA29: 280.613767 | BB29: 294.6244059 | BC29: 308.6470392 | BD29: 322.6801034 | BE29: 336.7222942 | BF29: 350.7725156 | BG29: =SQRT(($B29-BG$7-$B$2)^2+($C29-BG$7-$B$3)^2) -> 364.8298398 | BH29: 378.8934762 | BI29: 392.9627471 | BJ29: 407.0370683
A31: =A10 -> 1998 | B31: 944.4287634 | C31: 883.8665323 | D31: =IF(D10<$B$4,($B$5/100)-(D10/$B$4)*($B$5/100),0) -> 0 | E31: =IF(E10<$B$4,($B$5/100)-(E10/$B$4)*($B$5/100),0) -> 0 | F31: 0 | G31: 0 | H31: 0 | I31: 0 | J31: 0 | K31: 0 | L31: 0 | M31: 0 | N31: 0 | O31: 0 | P31: 0 | Q31: 0 | R31: 0 | S31: 0 | T31: 0 | U31: 0 | V31: 0 | W31: 0 | X31: 0 | Y31: 0 | Z31: 0 | AA31: 0 | AB31: 0 | AC31: 0 | AD31: 0 | AE31: 0 | AF31: 0 | AG31: 0.07376623964 | AH31: 0.1806747682 | AI31: 0.2732997369 | AJ31: 0.3404280641 | AK31: 0.3663006081 | AL31: 0.3418617088 | AM31: 0.2757179811 | AN31: 0.183655278 | AO31: 0.07706103286 | AP31: 0 | AQ31: 0 | AR31: 0 | AS31: 0 | AT31: 0 | AU31: 0 | AV31: 0 | AW31: 0 | AX31: 0 | AY31: 0 | AZ31: 0 | BA31: 0 | BB31: 0 | BC31: 0 | BD31: 0 | BE31: 0 | BF31: 0 | BG31: 0 | BH31: 0 | BI31: 0 | BJ31: 0
A32: 1999 | B32: 1167.324194 | C32: 1041.140995 | D32: =IF(D11<$B$4,($B$5/100)-(D11/$B$4)*($B$5/100),0) -> 0 | E32: 0 | F32: 0 | G32: 0 | H32: 0 | I32: 0 | J32: 0 | K32: 0 | L32: 0 | M32: 0 | N32: 0 | O32: 0 | P32: 0 | Q32: 0 | R32: 0 | S32: 0 | T32: 0 | U32: 0 | V32: 0 | W32: 0 | X32: 0 | Y32: 0 | Z32: 0 | AA32: 0 | AB32: 0 | AC32: 0 | AD32: 0 | AE32: 0 | AF32: 0 | AG32: 0 | AH32: 0 | AI32: 0 | AJ32: 0 | AK32: 0 | AL32: 0 | AM32: 0 | AN32: 0 | AO32: 0 | AP32: 0 | AQ32: 0 | AR32: 0 | AS32: 0 | AT32: 0 | AU32: 0 | AV32: 0 | AW32: 0 | AX32: 0 | AY32: 0 | AZ32: 0 | BA32: 0 | BB32: 0 | BC32: 0 | BD32: 0 | BE32: 0 | BF32: 0 | BG32: 0 | BH32: 0 | BI32: 0 | BJ32: 0
A33: 2000 | B33: 992.6962366 | C33: 1004.294758 | D33: 0 | E33: 0 | F33: 0 | G33: 0 | H33: 0 | I33: 0 | J33: 0 | K33: 0 | L33: 0 | M33: 0 | N33: 0 | O33: 0 | P33: 0 | Q33: 0 | R33: 0 | S33: 0 | T33: 0 | U33: 0 | V33: 0 | W33: 0 | X33: 0 | Y33: 0 | Z33: 0 | AA33: 0 | AB33: 0 | AC33: 0 | AD33: 0 | AE33: 0 | AF33: 0 | AG33: 0 | AH33: 0 | AI33: 0 | AJ33: 0 | AK33: 0 | AL33: 0 | AM33: 0 | AN33: 0 | AO33: 0.09563898242 | AP33: 0.2228916545 | AQ33: 0.3466489683 | AR33: 0.4614083523 | AS33: 0.5455997362 | AT33: 0.5400082719 | AU33: 0.4506013049 | AV33: 0.3344230456 | AW33: 0.2101655846 | AX33: 0.08268853577 | AY33: 0 | AZ33: 0 | BA33: 0 | BB33: 0 | BC33: 0 | BD33: 0 | BE33: 0 | BF33: 0 | BG33: 0 | BH33: 0 | BI33: 0 | BJ33: 0
A34: =A13 -> 2001 | B34: 1118.106048 | C34: 1010.370968 | D34: 0 | E34: 0 | F34: 0 | G34: 0 | H34: 0 | I34: 0 | J34: 0 | K34: 0 | L34: 0 | M34: 0 | N34: 0 | O34: 0 | P34: 0 | Q34: 0 | R34: 0 | S34: 0 | T34: 0 | U34: 0 | V34: 0 | W34: 0 | X34: 0 | Y34: 0 | Z34: 0 | AA34: 0 | AB34: 0 | AC34: 0 | AD34: 0 | AE34: 0 | AF34: 0 | AG34: 0 | AH34: 0 | AI34: 0 | AJ34: 0 | AK34: 0 | AL34: 0 | AM34: 0 | AN34: 0 | AO34: 0 | AP34: 0 | AQ34: 0 | AR34: 0 | AS34: 0 | AT34: 0 | AU34: 0 | AV34: 0 | AW34: 0 | AX34: 0.001852478914 | AY34: 0.04097630814 | AZ34: 0.05497369348 | BA34: 0.04223857651 | BB34: 0.004237332996 | BC34: 0 | BD34: 0 | BE34: 0 | BF34: 0 | BG34: 0 | BH34: 0 | BI34: 0 | BJ34: 0
A35: 2002 | B35: 1063.945296 | C35: 957.6646505 | D35: 0 | E35: 0 | F35: 0 | G35: 0 | H35: 0 | I35: 0 | J35: 0 | K35: 0 | L35: 0 | M35: 0 | N35: 0 | O35: 0 | P35: 0 | Q35: 0 | R35: 0 | S35: 0 | T35: 0 | U35: 0 | V35: 0 | W35: 0 | X35: 0 | Y35: 0 | Z35: 0 | AA35: 0 | AB35: 0 | AC35: 0 | AD35: 0 | AE35: 0 | AF35: 0 | AG35: 0 | AH35: 0 | AI35: 0 | AJ35: 0 | AK35: 0 | AL35: 0 | AM35: 0 | AN35: 0 | AO35: 0 | AP35: 0 | AQ35: 0 | AR35: 0 | AS35: 0.02697699242 | AT35: 0.05826314137 | AU35: 0.06318223394 | AV35: 0.04114342755 | AW35: 0 | AX35: 0 | AY35: 0 | AZ35: 0 | BA35: 0 | BB35: 0 | BC35: 0 | BD35: 0 | BE35: 0 | BF35: 0 | BG35: 0 | BH35: 0 | BI35: 0 | BJ35: 0
A36: 2003 | B36: 922.0501344 | C36: 830.1151882 | D36: 0 | E36: 0 | F36: 0 | G36: 0 | H36: 0 | I36: 0 | J36: 0 | K36: 0 | L36: 0 | M36: 0 | N36: 0 | O36: 0 | P36: 0 | Q36: 0 | R36: 0 | S36: 0 | T36: 0 | U36: 0 | V36: 0 | W36: =IF(W15<$B$4,($B$5/100)-(W15/$B$4)*($B$5/100),0) -> 0 | X36: 0 | Y36: 0 | Z36: 0 | AA36: 0 | AB36: 0 | AC36: 0 | AD36: 0.01317433699 | AE36: 0.08570246403 | AF36: 0.1362288776 | AG36: 0.158558647 | AH36: 0.1492513792 | AI36: 0.1098019041 | AJ36: 0.04563925393 | AK36: 0 | AL36: 0 | AM36: 0 | AN36: 0 | AO36: 0 | AP36: 0 | AQ36: 0 | AR36: 0 | AS36: 0 | AT36: 0 | AU36: 0 | AV36: 0 | AW36: 0 | AX36: 0 | AY36: 0 | AZ36: 0 | BA36: 0 | BB36: 0 | BC36: 0 | BD36: 0 | BE36: 0 | BF36: 0 | BG36: 0 | BH36: 0 | BI36: 0 | BJ36: 0
A37: 2004 | B37: 963.3307796 | C37: 909.3990591 | D37: =IF(D16<$B$4,($B$5/100)-(D16/$B$4)*($B$5/100),0) -> 0 | E37: 0 | F37: 0 | G37: 0 | H37: 0 | I37: 0 | J37: 0 | K37: 0 | L37: 0 | M37: 0 | N37: 0 | O37: 0 | P37: 0 | Q37: 0 | R37: 0 | S37: 0 | T37: 0 | U37: 0 | V37: 0 | W37: 0 | X37: 0 | Y37: 0 | Z37: 0 | AA37: 0 | AB37: 0 | AC37: 0 | AD37: 0 | AE37: 0 | AF37: 0 | AG37: 0 | AH37: 0 | AI37: 0.07011610258 | AJ37: 0.1837077005 | AK37: 0.2862292938 | AL37: 0.3672852565 | AM37: 0.4083899037 | AN37: 0.3930501012 | AO37: 0.3281875783 | AP37: 0.234043824 | AQ37: 0.1248215204 | AR37: 0.007620152473 | AS37: 0 | AT37: 0 | AU37: 0 | AV37: 0 | AW37: 0 | AX37: 0 | AY37: 0 | AZ37: 0 | BA37: 0 | BB37: 0 | BC37: 0 | BD37: 0 | BE37: 0 | BF37: 0 | BG37: 0 | BH37: 0 | BI37: 0 | BJ37: 0
A38: 2005 | B38: 1036.312634 | C38: 889.2451613 | D38: 0 | E38: 0 | F38: 0 | G38: 0 | H38: 0 | I38: 0 | J38: 0 | K38: 0 | L38: 0 | M38: 0 | N38: 0 | O38: 0 | P38: 0 | Q38: 0 | R38: 0 | S38: 0 | T38: 0 | U38: 0 | V38: 0 | W38: 0 | X38: 0 | Y38: 0 | Z38: 0 | AA38: 0 | AB38: 0 | AC38: 0 | AD38: 0 | AE38: 0 | AF38: 0 | AG38: 0 | AH38: 0 | AI38: 0 | AJ38: 0 | AK38: 0 | AL38: 0 | AM38: 0 | AN38: 0 | AO38: 0 | AP38: 0 | AQ38: 0 | AR38: 0 | AS38: 0 | AT38: 0 | AU38: 0 | AV38: 0 | AW38: 0 | AX38: 0 | AY38: 0 | AZ38: 0 | BA38: 0 | BB38: 0 | BC38: 0 | BD38: 0 | BE38: 0 | BF38: 0 | BG38: 0 | BH38: 0 | BI38: 0 | BJ38: 0
A39: 2006 | B39: 1051.970565 | C39: 868.7884409 | D39: 0 | E39: 0 | F39: 0 | G39: 0 | H39: 0 | I39: 0 | J39: 0 | K39: 0 | L39: 0 | M39: 0 | N39: 0 | O39: 0 | P39: 0 | Q39: 0 | R39: 0 | S39: 0 | T39: 0 | U39: 0 | V39: 0 | W39: 0 | X39: 0 | Y39: 0 | Z39: 0 | AA39: 0 | AB39: 0 | AC39: 0 | AD39: 0 | AE39: 0 | AF39: 0 | AG39: 0 | AH39: 0 | AI39: 0 | AJ39: 0 | AK39: 0 | AL39: 0 | AM39: 0 | AN39: 0 | AO39: 0 | AP39: 0 | AQ39: 0 | AR39: 0 | AS39: 0 | AT39: 0 | AU39: 0 | AV39: 0 | AW39: 0 | AX39: 0 | AY39: 0 | AZ39: 0 | BA39: 0 | BB39: 0 | BC39: 0 | BD39: 0 | BE39: 0 | BF39: 0 | BG39: 0 | BH39: 0 | BI39: 0 | BJ39: 0
A40: 2007 | B40: 901.888172 | C40: 1041.144086 | D40: 0 | E40: 0 | F40: 0 | G40: 0 | H40: 0 | I40: 0 | J40: 0 | K40: 0 | L40: 0 | M40: 0 | N40: 0 | O40: 0 | P40: 0 | Q40: 0 | R40: 0 | S40: 0 | T40: 0 | U40: 0 | V40: 0 | W40: 0 | X40: 0 | Y40: 0 | Z40: 0 | AA40: 0 | AB40: 0 | AC40: 0 | AD40: 0 | AE40: 0 | AF40: 0 | AG40: 0 | AH40: 0 | AI40: 0 | AJ40: 0 | AK40: 0 | AL40: 0 | AM40: 0 | AN40: 0 | AO40: 0 | AP40: 0 | AQ40: 0 | AR40: 0 | AS40: 0 | AT40: 0 | AU40: 0 | AV40: 0 | AW40: 0 | AX40: 0 | AY40: 0 | AZ40: 0 | BA40: 0 | BB40: 0 | BC40: 0 | BD40: 0 | BE40: 0 | BF40: 0 | BG40: 0 | BH40: 0 | BI40: 0 | BJ40: 0
A41: 2008 | B41: 977.8186828 | C41: 930.299328 | D41: 0 | E41: 0 | F41: 0 | G41: 0 | H41: 0 | I41: 0 | J41: 0 | K41: 0 | L41: 0 | M41: 0 | N41: 0 | O41: 0 | P41: 0 | Q41: 0 | R41: 0 | S41: 0 | T41: 0 | U41: 0 | V41: 0 | W41: =IF(W20<$B$4,($B$5/100)-(W20/$B$4)*($B$5/100),0) -> 0 | X41: 0 | Y41: 0 | Z41: 0 | AA41: 0 | AB41: 0 | AC41: 0 | AD41: 0 | AE41: 0 | AF41: 0 | AG41: 0 | AH41: 0 | AI41: 0 | AJ41: 0 | AK41: 0.1161405922 | AL41: 0.2323135115 | AM41: 0.3374893939 | AN41: 0.4190343938 | AO41: 0.4523836663 | AP41: 0.4197671148 | AQ41: 0.3386254911 | AR41: 0.2336342146 | AS41: 0.1175508602 | AT41: 0 | AU41: 0 | AV41: 0 | AW41: 0 | AX41: 0 | AY41: 0 | AZ41: 0 | BA41: 0 | BB41: 0 | BC41: 0 | BD41: 0 | BE41: 0 | BF41: 0 | BG41: 0 | BH41: 0 | BI41: 0 | BJ41: 0
A42: 2009 | B42: 942.2651882 | C42: 967.8369624 | D42: =IF(D21<$B$4,($B$5/100)-(D21/$B$4)*($B$5/100),0) -> 0 | E42: 0 | F42: 0 | G42: 0 | H42: 0 | I42: 0 | J42: 0 | K42: 0 | L42: 0 | M42: 0 | N42: 0 | O42: 0 | P42: 0 | Q42: 0 | R42: 0 | S42: 0 | T42: 0 | U42: 0 | V42: 0 | W42: 0 | X42: 0 | Y42: 0 | Z42: 0 | AA42: 0 | AB42: 0 | AC42: 0 | AD42: 0 | AE42: 0 | AF42: 0 | AG42: 0 | AH42: 0 | AI42: 0 | AJ42: 0 | AK42: 0.109482639 | AL42: 0.2276730108 | AM42: 0.3362428554 | AN42: 0.4236122648 | AO42: 0.464828691 | AP42: 0.4371971206 | AQ42: 0.3569699624 | AR42: 0.251537845 | AS42: 0.1348350271 | AT42: 0.01257798026 | AU42: 0 | AV42: 0 | AW42: 0 | AX42: 0 | AY42: 0 | AZ42: 0 | BA42: 0 | BB42: 0 | BC42: 0 | BD42: 0 | BE42: 0 | BF42: 0 | BG42: 0 | BH42: 0 | BI42: 0 | BJ42: 0
A43: =A22 -> 2010 | B43: 917.2297043 | C43: 890.7012097 | D43: 0 | E43: 0 | F43: 0 | G43: 0 | H43: 0 | I43: 0 | J43: 0 | K43: 0 | L43: 0 | M43: 0 | N43: 0 | O43: 0 | P43: 0 | Q43: 0 | R43: 0 | S43: 0 | T43: 0 | U43: 0 | V43: 0 | W43: 0 | X43: 0 | Y43: 0 | Z43: 0 | AA43: 0 | AB43: 0 | AC43: 0 | AD43: 0 | AE43: 0.03152940299 | AF43: 0.1613226362 | AG43: 0.2897097248 | AH43: 0.4147854106 | AI43: 0.5291168278 | AJ43: 0.5909165479 | AK43: 0.5284139139 | AL43: 0.4139426372 | AM43: 0.2888305834 | AN43: 0.160429608 | AO43: 0.03062972049 | AP43: 0 | AQ43: 0 | AR43: 0 | AS43: 0 | AT43: 0 | AU43: 0 | AV43: 0 | AW43: 0 | AX43: 0 | AY43: 0 | AZ43: 0 | BA43: 0 | BB43: 0 | BC43: 0 | BD43: 0 | BE43: 0 | BF43: 0 | BG43: 0 | BH43: 0 | BI43: 0 | BJ43: 0
A44: 2011 | B44: 765.2371192 | C44: 888.2246416 | D44: 0 | E44: 0 | F44: 0 | G44: 0 | H44: 0 | I44: 0 | J44: 0 | K44: 0 | L44: 0 | M44: 0 | N44: 0 | O44: 0 | P44: 0 | Q44: 0 | R44: 0 | S44: 0 | T44: 0 | U44: 0 | V44: 0 | W44: 0 | X44: 0 | Y44: 0 | Z44: 0 | AA44: 0 | AB44: 0 | AC44: 0 | AD44: 0 | AE44: 0 | AF44: 0 | AG44: 0 | AH44: 0 | AI44: 0 | AJ44: 0 | AK44: 0 | AL44: 0 | AM44: 0 | AN44: 0 | AO44: 0 | AP44: 0 | AQ44: 0 | AR44: 0 | AS44: 0 | AT44: 0 | AU44: 0 | AV44: 0 | AW44: 0 | AX44: 0 | AY44: 0 | AZ44: 0 | BA44: 0 | BB44: 0 | BC44: 0 | BD44: 0 | BE44: 0 | BF44: 0 | BG44: 0 | BH44: 0 | BI44: 0 | BJ44: 0
A45: 2012 | B45: 941.4875224 | C45: 973.3058692 | D45: 0 | E45: 0 | F45: 0 | G45: 0 | H45: 0 | I45: 0 | J45: 0 | K45: 0 | L45: 0 | M45: 0 | N45: 0 | O45: 0 | P45: 0 | Q45: 0 | R45: 0 | S45: 0 | T45: 0 | U45: 0 | V45: 0 | W45: 0 | X45: 0 | Y45: 0 | Z45: 0 | AA45: 0 | AB45: 0 | AC45: 0 | AD45: 0 | AE45: 0 | AF45: 0 | AG45: 0 | AH45: 0 | AI45: 0 | AJ45: 0 | AK45: 0.06417229415 | AL45: 0.1799175852 | AM45: 0.2858273194 | AN45: 0.3722245511 | AO45: 0.4203950557 | AP45: 0.4105772135 | AQ45: 0.3475845942 | AR45: 0.2533769693 | AS45: 0.1435899989 | AT45: 0.02579195229 | AU45: 0 | AV45: 0 | AW45: 0 | AX45: 0 | AY45: 0 | AZ45: 0 | BA45: 0 | BB45: 0 | BC45: 0 | BD45: 0 | BE45: 0 | BF45: 0 | BG45: 0 | BH45: 0 | BI45: 0 | BJ45: 0
A46: 2013 | B46: 1091.02509 | C46: 949.1129704 | D46: 0 | E46: 0 | F46: 0 | G46: 0 | H46: 0 | I46: 0 | J46: 0 | K46: 0 | L46: 0 | M46: 0 | N46: 0 | O46: 0 | P46: 0 | Q46: 0 | R46: 0 | S46: 0 | T46: 0 | U46: 0 | V46: 0 | W46: =IF(W25<$B$4,($B$5/100)-(W25/$B$4)*($B$5/100),0) -> 0 | X46: 0 | Y46: 0 | Z46: 0 | AA46: 0 | AB46: 0 | AC46: 0 | AD46: 0 | AE46: 0 | AF46: 0 | AG46: 0 | AH46: 0 | AI46: 0 | AJ46: 0 | AK46: 0 | AL46: 0 | AM46: 0 | AN46: 0 | AO46: 0 | AP46: 0 | AQ46: 0 | AR46: 0 | AS46: 0 | AT46: 0 | AU46: 0 | AV46: 0 | AW46: 0 | AX46: 0 | AY46: 0 | AZ46: 0 | BA46: 0 | BB46: 0 | BC46: 0 | BD46: 0 | BE46: 0 | BF46: 0 | BG46: 0 | BH46: 0 | BI46: 0 | BJ46: 0
A47: 2014 | B47: 903.1048611 | C47: 961.2357303 | D47: =IF(D26<$B$4,($B$5/100)-(D26/$B$4)*($B$5/100),0) -> 0 | E47: 0 | F47: 0 | G47: 0 | H47: 0 | I47: 0 | J47: 0 | K47: 0 | L47: 0 | M47: 0 | N47: 0 | O47: 0 | P47: 0 | Q47: 0 | R47: 0 | S47: 0 | T47: 0 | U47: 0 | V47: 0 | W47: 0 | X47: 0 | Y47: 0 | Z47: 0 | AA47: 0 | AB47: 0 | AC47: 0 | AD47: 0 | AE47: 0 | AF47: 0 | AG47: 0 | AH47: 0 | AI47: 0.02471216984 | AJ47: 0.1165331192 | AK47: 0.1903942771 | AL47: 0.2376074945 | AM47: 0.2497110817 | AN47: 0.2240190811 | AO47: 0.1659587986 | AP47: 0.08462481452 | AQ47: 0 | AR47: 0 | AS47: 0 | AT47: 0 | AU47: 0 | AV47: 0 | AW47: 0 | AX47: 0 | AY47: 0 | AZ47: 0 | BA47: 0 | BB47: 0 | BC47: 0 | BD47: 0 | BE47: 0 | BF47: 0 | BG47: 0 | BH47: 0 | BI47: 0 | BJ47: 0
A48: 2015 | B48: 1034.027733 | C48: 845.3368728 | D48: 0 | E48: 0 | F48: 0 | G48: 0 | H48: 0 | I48: 0 | J48: 0 | K48: 0 | L48: 0 | M48: 0 | N48: 0 | O48: 0 | P48: 0 | Q48: 0 | R48: 0 | S48: 0 | T48: 0 | U48: 0 | V48: 0 | W48: 0 | X48: 0 | Y48: 0 | Z48: 0 | AA48: 0 | AB48: 0 | AC48: 0 | AD48: 0 | AE48: 0 | AF48: 0 | AG48: 0 | AH48: 0 | AI48: 0 | AJ48: 0 | AK48: 0 | AL48: 0 | AM48: 0 | AN48: 0 | AO48: 0 | AP48: 0 | AQ48: 0 | AR48: 0 | AS48: 0 | AT48: 0 | AU48: 0 | AV48: 0 | AW48: 0 | AX48: 0 | AY48: 0 | AZ48: 0 | BA48: 0 | BB48: 0 | BC48: 0 | BD48: 0 | BE48: 0 | BF48: 0 | BG48: 0 | BH48: 0 | BI48: 0 | BJ48: 0
A49: 2016 | B49: 1016.342921 | C49: 1018.856429 | D49: 0 | E49: 0 | F49: 0 | G49: 0 | H49: 0 | I49: 0 | J49: 0 | K49: 0 | L49: 0 | M49: 0 | N49: 0 | O49: 0 | P49: 0 | Q49: 0 | R49: 0 | S49: 0 | T49: 0 | U49: 0 | V49: 0 | W49: 0 | X49: 0 | Y49: 0 | Z49: 0 | AA49: 0 | AB49: 0 | AC49: 0 | AD49: 0 | AE49: 0 | AF49: 0 | AG49: 0 | AH49: 0 | AI49: 0 | AJ49: 0 | AK49: 0 | AL49: 0 | AM49: 0 | AN49: 0 | AO49: 0 | AP49: 0 | AQ49: 0.1186181865 | AR49: 0.2488831755 | AS49: 0.3777385997 | AT49: 0.5024072996 | AU49: 0.60472259 | AV49: 0.5818596644 | AW49: 0.4683085298 | AX49: 0.3418810529 | AY49: 0.2124942383 | AZ49: 0.08200404572 | BA49: 0 | BB49: 0 | BC49: 0 | BD49: 0 | BE49: 0 | BF49: 0 | BG49: 0 | BH49: 0 | BI49: 0 | BJ49: 0
A50: 2017 | B50: 910.1750672 | C50: 844.8522177 | D50: 0 | E50: 0 | F50: 0 | G50: 0 | H50: 0 | I50: 0 | J50: 0 | K50: 0 | L50: 0 | M50: 0 | N50: 0 | O50: 0 | P50: 0 | Q50: 0 | R50: 0 | S50: 0 | T50: 0 | U50: 0 | V50: 0 | W50: 0 | X50: 0 | Y50: 0 | Z50: 0 | AA50: 0 | AB50: 0 | AC50: 0.01942251065 | AD50: 0.1264260541 | AE50: 0.2207997617 | AF50: 0.2936465705 | AG50: 0.3319540851 | AH50: 0.3249840994 | AI50: 0.2749582369 | AJ50: 0.1945017117 | AK50: 0.09564829524 | AL50: 0 | AM50: 0 | AN50: 0 | AO50: 0 | AP50: 0 | AQ50: 0 | AR50: 0 | AS50: 0 | AT50: 0 | AU50: 0 | AV50: 0 | AW50: 0 | AX50: 0 | AY50: 0 | AZ50: 0 | BA50: 0 | BB50: 0 | BC50: 0 | BD50: 0 | BE50: 0 | BF50: 0 | BG50: 0 | BH50: 0 | BI50: 0 | BJ50: 0
A51: geschatte kans submers | D51: =IF(COUNTIF(D31:D50,">0")<(2*$B$6),0,AVERAGE(D31:D50)) -> 0 | E51: =IF(COUNTIF(E31:E50,">0")<(2*$B$6),0,AVERAGE(E31:E50)) -> 0 | F51: 0 | G51: 0 | H51: 0 | I51: 0 | J51: 0 | K51: 0 | L51: 0 | M51: 0 | N51: 0 | O51: 0 | P51: 0 | Q51: 0 | R51: 0 | S51: 0 | T51: 0 | U51: 0 | V51: 0 | W51: 0 | X51: 0 | Y51: 0 | Z51: 0 | AA51: 0 | AB51: 0 | AC51: 0 | AD51: 0 | AE51: 0 | AF51: 0 | AG51: 0 | AH51: 0 | AI51: 0 | AJ51: 0 | AK51: 0 | AL51: 0 | AM51: 0 | AN51: 0 | AO51: 0 | AP51: 0 | AQ51: 0 | AR51: 0 | AS51: 0 | AT51: 0 | AU51: 0 | AV51: 0 | AW51: 0 | AX51: 0 | AY51: 0 | AZ51: 0 | BA51: 0 | BB51: 0 | BC51: 0 | BD51: 0 | BE51: 0 | BF51: 0 | BG51: 0 | BH51: 0 | BI51: 0 | BJ51: 0

Sheet Geul-NuphLut (hidden)
A1: NEVENGEUL Gele Plomp
A2: optimale diepte mei | B2: 106 | C2: cm
A3: optimale diepte juli | B3: 103 | C3: cm
A4: max distance | B4: 45 | C4: cm
A5: max bedekking | B5: 40 | C5: %
A6: minimaal jaren uit 10 jaar | B6: 8 | C6: -
D7: ='Interface KRW-tool Waterplanten'!$B$11 -> 470 | E7: =D7+10 -> 480 | F7: =E7+10 -> 490 | G7: 500 | H7: 510 | I7: 520 | J7: 530 | K7: 540 | L7: 550 | M7: 560 | N7: 570 | O7: 580 | P7: 590 | Q7: 600 | R7: 610 | S7: 620 | T7: 630 | U7: 640 | V7: 650 | W7: 660 | X7: 670 | Y7: 680 | Z7: 690 | AA7: 700 | AB7: 710 | AC7: 720 | AD7: 730 | AE7: 740 | AF7: 750 | AG7: 760 | AH7: 770 | AI7: 780 | AJ7: 790 | AK7: 800 | AL7: 810 | AM7: 820 | AN7: 830 | AO7: 840 | AP7: 850 | AQ7: 860 | AR7: 870 | AS7: 880 | AT7: 890 | AU7: 900 | AV7: 910 | AW7: 920 | AX7: 930 | AY7: 940 | AZ7: 950 | BA7: 960 | BB7: 970 | BC7: 980 | BD7: 990 | BE7: 1000 | BF7: 1010 | BG7: 1020 | BH7: 1030 | BI7: 1040 | BJ7: 1050
B8: peil in mei | C8: peil in juli
B9: (cm NAP) | C9: (cm NAP)
